Workbook

Sheet Protect
B2: Liberty Midstates
B3: WNAR Filing
B4: Password Protection Worksheet
B6: This worksheet provides password protection for the report pages to prevent unintentional formula changes. The password is "WNAR".
G11: All Report Worksheets are Protected

Sheet Final Checklist
B2: Liberty Midstates
B3: Semi-Annual WNAR Filing
B4: Final Checklist
B7: Data Table List | C7: Check For | D7: Result | E7: Initials | F7: Initials
B8: Validation Lists | C8: Changes from prior filings | D8: No changes | E8: RS
B9: Beta Coefficient | C9: Changes from prior filings | D9: No changes | E9: RS
B10: Billing Determinants | C10: Changes from prior filings | D10: No changes | E10: RS
B11: Volumetric Rates | C11: Changes from prior filings | D11: No changes | E11: RS
B12: Prior Period Adustments | C12: Additions and corrections add to total adjustment | D12: OK. No adjustments this filing | E12: RS
B13: Volumetric True-Up | C13: Ties out on Reconciliation Worksheet | D13: Checked and ties. | E13: RS
B14: Reconciliation Period Adjustment | C14: Ties out on Reconciliation Worksheet | D14: Checked and ties. | E14: RS
B15: CWNA Amounts | C15: Ties out on Reconciliation Worksheet | D15: Checked and ties. | E15: RS
B16: WNAR Rates | C16: Ties out on Reconciliation Worksheet | D16: Checked and ties. | E16: RS
B17: Customer Est Vol & Revenue | C17: Table has been updated. | D17: Checked and updated through December 2026 | E17: RS
B18: Meter Read Schedule | C18: Table has been updated. | D18: Used billing cycles from revenue reports | E18: RS
B19: WNARevAlloc | C19: Ties to Revenue Reports. | D19: Reviewed with Tatiana Earhart | E19: RS
B20: WEMOTempAct | C20: Kansas City International Airport USW00003947 used on and after 1/8/2025, unranked | D20: Checked OK and updated through 7/31/2026 | E20: RS
B21: NEMOTempAct | C21: Kirksville, MO USW00014938 used on and after 1/8/2025, unranked | D21: Checked OK and updated through 7/31/2026 | E21: RS
B22: SEMOTempAct | C22: Cape Girardeau, MO USW00003935 used on and after 1/8/2025, unranked | D22: Checked OK and updated through 7/31/2026 | E22: RS
B23: NHDD | C23: Normal HDDs from rate case GR-2024-0106, 20-year unranked per Schedule C | D23: Checked OK. | E23: RS
B24: NEMO Cycles | C24: Update billing data for each monthly cycle. | D24: Checked and ties to reports from Revenue Dept. | E24: RS
B25: SEMO Cycles | C25: Update billing data for each monthly cycle. | D25: Checked and ties to reports from Revenue Dept. | E25: RS
B26: WEMO Cycles | C26: Update billing data for each monthly cycle. | D26: Checked and ties to reports from Revenue Dept. | E26: RS
B29: Report Worksheets | C29: Check For | D29: Result | E29: Initials | F29: Initials
B30: All Report Pages | C30: Correct year and filing period are showing on the dropdown menus. | D30: Checked OK. | E30: RS
B31: Reconciliaion worksheet | C31: No cells are shaded yellow. No inconsistencies indicated. | D31: Checked OK. | E31: RS
B32: Protect worksheet | C32: Password protection is turned on for report worksheets | D32: Checked OK. | E32: RS

Sheet Reconciliation
B2: Reconciiation Worksheet
B3: Worksheets vs. Tables
B4: Year: | C4: =DateSet!C2 -> 2026
B6: CWNA Amounts
B7: Res | C7: CWNA Worksheets | F7: CWNA Amount Table | I7: Difference
B8: Flow Month | C8: NEMO | D8: WEMO | E8: SEMO | F8: NEMO | G8: WEMO | H8: SEMO | I8: NEMO | J8: WEMO | K8: SEMO
B9: ='CWNA NEMO'!B11 -> 45839 | C9: ='CWNA NEMO'!E11 -> 846.4781774 | D9: ='CWNA WEMO'!E11 -> 117.6683691 | E9: ='CWNA SEMO'!E11 -> 372.1216888 | F9: =SUMPRODUCT((CAWNAAmounts[Month]=$B9)*(CAWNAAmounts[Region]=C$8)*(CAWNAAmounts[CustClass]="Res")*CAWNAAmounts[CAWNA]) -> 846.4781774 | G9: =SUMPRODUCT((CAWNAAmounts[Month]=$B9)*(CAWNAAmounts[Region]=D$8)*(CAWNAAmounts[CustClass]="Res")*CAWNAAmounts[CAWNA]) -> 117.6683691 | H9: =SUMPRODUCT((CAWNAAmounts[Month]=$B9)*(CAWNAAmounts[Region]=E$8)*(CAWNAAmounts[CustClass]="Res")*CAWNAAmounts[CAWNA]) -> 372.1216888 | I9: =F9-C9 -> 0 | J9: =G9-D9 -> 0 | K9: 0
B10: ='CWNA NEMO'!B12 -> 45870 | C10: ='CWNA NEMO'!E12 -> -19660.38625 | D10: ='CWNA WEMO'!E12 -> -738.9524663 | E10: ='CWNA SEMO'!E12 -> -4890.268442 | F10: =SUMPRODUCT((CAWNAAmounts[Month]=$B10)*(CAWNAAmounts[Region]=C$8)*(CAWNAAmounts[CustClass]="Res")*CAWNAAmounts[CAWNA]) -> -19660.38625 | G10: =SUMPRODUCT((CAWNAAmounts[Month]=$B10)*(CAWNAAmounts[Region]=D$8)*(CAWNAAmounts[CustClass]="Res")*CAWNAAmounts[CAWNA]) -> -738.9524663 | H10: =SUMPRODUCT((CAWNAAmounts[Month]=$B10)*(CAWNAAmounts[Region]=E$8)*(CAWNAAmounts[CustClass]="Res")*CAWNAAmounts[CAWNA]) -> -4890.268442 | I10: =F10-C10 -> 0 | J10: 0 | K10: 0
B11: ='CWNA NEMO'!B13 -> 45901 | C11: ='CWNA NEMO'!E13 -> 129674.7812 | D11: ='CWNA WEMO'!E13 -> 26342.05843 | E11: ='CWNA SEMO'!E13 -> 64591.09632 | F11: =SUMPRODUCT((CAWNAAmounts[Month]=$B11)*(CAWNAAmounts[Region]=C$8)*(CAWNAAmounts[CustClass]="Res")*CAWNAAmounts[CAWNA]) -> 129674.7812 | G11: =SUMPRODUCT((CAWNAAmounts[Month]=$B11)*(CAWNAAmounts[Region]=D$8)*(CAWNAAmounts[CustClass]="Res")*CAWNAAmounts[CAWNA]) -> 26342.05843 | H11: =SUMPRODUCT((CAWNAAmounts[Month]=$B11)*(CAWNAAmounts[Region]=E$8)*(CAWNAAmounts[CustClass]="Res")*CAWNAAmounts[CAWNA]) -> 64591.09632 | I11: 0 | J11: 0 | K11: 0
B12: ='CWNA NEMO'!B14 -> 45931 | C12: ='CWNA NEMO'!E14 -> 67361.53054 | D12: ='CWNA WEMO'!E14 -> 14945.94631 | E12: ='CWNA SEMO'!E14 -> 50111.94481 | F12: =SUMPRODUCT((CAWNAAmounts[Month]=$B12)*(CAWNAAmounts[Region]=C$8)*(CAWNAAmounts[CustClass]="Res")*CAWNAAmounts[CAWNA]) -> 67361.53054 | G12: =SUMPRODUCT((CAWNAAmounts[Month]=$B12)*(CAWNAAmounts[Region]=D$8)*(CAWNAAmounts[CustClass]="Res")*CAWNAAmounts[CAWNA]) -> 14945.94631 | H12: =SUMPRODUCT((CAWNAAmounts[Month]=$B12)*(CAWNAAmounts[Region]=E$8)*(CAWNAAmounts[CustClass]="Res")*CAWNAAmounts[CAWNA]) -> 50111.94481 | I12: 0 | J12: 0 | K12: 0
B13: ='CWNA NEMO'!B15 -> 45962 | C13: ='CWNA NEMO'!E15 -> -103451.2516 | D13: ='CWNA WEMO'!E15 -> -19378.88932 | E13: ='CWNA SEMO'!E15 -> -38149.05302 | F13: =SUMPRODUCT((CAWNAAmounts[Month]=$B13)*(CAWNAAmounts[Region]=C$8)*(CAWNAAmounts[CustClass]="Res")*CAWNAAmounts[CAWNA]) -> -103451.2516 | G13: =SUMPRODUCT((CAWNAAmounts[Month]=$B13)*(CAWNAAmounts[Region]=D$8)*(CAWNAAmounts[CustClass]="Res")*CAWNAAmounts[CAWNA]) -> -19378.88932 | H13: =SUMPRODUCT((CAWNAAmounts[Month]=$B13)*(CAWNAAmounts[Region]=E$8)*(CAWNAAmounts[CustClass]="Res")*CAWNAAmounts[CAWNA]) -> -38149.05302 | I13: 0 | J13: 0 | K13: 0
B14: ='CWNA NEMO'!B16 -> 45992 | C14: ='CWNA NEMO'!E16 -> 177307.1296 | D14: ='CWNA WEMO'!E16 -> 63174.25055 | E14: ='CWNA SEMO'!E16 -> 145302.886 | F14: =SUMPRODUCT((CAWNAAmounts[Month]=$B14)*(CAWNAAmounts[Region]=C$8)*(CAWNAAmounts[CustClass]="Res")*CAWNAAmounts[CAWNA]) -> 177307.1296 | G14: =SUMPRODUCT((CAWNAAmounts[Month]=$B14)*(CAWNAAmounts[Region]=D$8)*(CAWNAAmounts[CustClass]="Res")*CAWNAAmounts[CAWNA]) -> 63174.25055 | H14: =SUMPRODUCT((CAWNAAmounts[Month]=$B14)*(CAWNAAmounts[Region]=E$8)*(CAWNAAmounts[CustClass]="Res")*CAWNAAmounts[CAWNA]) -> 145302.886 | I14: 0 | J14: 0 | K14: 0
B15: ='CWNA NEMO'!B17 -> 46023 | C15: ='CWNA NEMO'!E17 -> -46711.47527 | D15: ='CWNA WEMO'!E17 -> 14194.38666 | E15: ='CWNA SEMO'!E17 -> -206292.0346 | F15: =SUMPRODUCT((CAWNAAmounts[Month]=$B15)*(CAWNAAmounts[Region]=C$8)*(CAWNAAmounts[CustClass]="Res")*CAWNAAmounts[CAWNA]) -> -46711.47527 | G15: =SUMPRODUCT((CAWNAAmounts[Month]=$B15)*(CAWNAAmounts[Region]=D$8)*(CAWNAAmounts[CustClass]="Res")*CAWNAAmounts[CAWNA]) -> 14194.38666 | H15: =SUMPRODUCT((CAWNAAmounts[Month]=$B15)*(CAWNAAmounts[Region]=E$8)*(CAWNAAmounts[CustClass]="Res")*CAWNAAmounts[CAWNA]) -> -206292.0346 | I15: 0 | J15: 0 | K15: 0
B16: ='CWNA NEMO'!B18 -> 46054 | C16: ='CWNA NEMO'!E18 -> 235511.9354 | D16: ='CWNA WEMO'!E18 -> 16695.86688 | E16: ='CWNA SEMO'!E18 -> 204749.4657 | F16: =SUMPRODUCT((CAWNAAmounts[Month]=$B16)*(CAWNAAmounts[Region]=C$8)*(CAWNAAmounts[CustClass]="Res")*CAWNAAmounts[CAWNA]) -> 235511.9354 | G16: =SUMPRODUCT((CAWNAAmounts[Month]=$B16)*(CAWNAAmounts[Region]=D$8)*(CAWNAAmounts[CustClass]="Res")*CAWNAAmounts[CAWNA]) -> 16695.86688 | H16: =SUMPRODUCT((CAWNAAmounts[Month]=$B16)*(CAWNAAmounts[Region]=E$8)*(CAWNAAmounts[CustClass]="Res")*CAWNAAmounts[CAWNA]) -> 204749.4657 | I16: 0 | J16: 0 | K16: 0
B17: ='CWNA NEMO'!B19 -> 46082 | C17: ='CWNA NEMO'!E19 -> 127713.4461 | D17: ='CWNA WEMO'!E19 -> 49876.1913 | E17: ='CWNA SEMO'!E19 -> 235720.0552 | F17: =SUMPRODUCT((CAWNAAmounts[Month]=$B17)*(CAWNAAmounts[Region]=C$8)*(CAWNAAmounts[CustClass]="Res")*CAWNAAmounts[CAWNA]) -> 127713.4461 | G17: =SUMPRODUCT((CAWNAAmounts[Month]=$B17)*(CAWNAAmounts[Region]=D$8)*(CAWNAAmounts[CustClass]="Res")*CAWNAAmounts[CAWNA]) -> 49876.1913 | H17: =SUMPRODUCT((CAWNAAmounts[Month]=$B17)*(CAWNAAmounts[Region]=E$8)*(CAWNAAmounts[CustClass]="Res")*CAWNAAmounts[CAWNA]) -> 235720.0552 | I17: 0 | J17: 0 | K17: 0
B18: ='CWNA NEMO'!B20 -> 46113 | C18: ='CWNA NEMO'!E20 -> 77015.89777 | D18: ='CWNA WEMO'!E20 -> 4939.742776 | E18: ='CWNA SEMO'!E20 -> 90580.31047 | F18: =SUMPRODUCT((CAWNAAmounts[Month]=$B18)*(CAWNAAmounts[Region]=C$8)*(CAWNAAmounts[CustClass]="Res")*CAWNAAmounts[CAWNA]) -> 77015.89777 | G18: =SUMPRODUCT((CAWNAAmounts[Month]=$B18)*(CAWNAAmounts[Region]=D$8)*(CAWNAAmounts[CustClass]="Res")*CAWNAAmounts[CAWNA]) -> 4939.742776 | H18: =SUMPRODUCT((CAWNAAmounts[Month]=$B18)*(CAWNAAmounts[Region]=E$8)*(CAWNAAmounts[CustClass]="Res")*CAWNAAmounts[CAWNA]) -> 90580.31047 | I18: 0 | J18: 0 | K18: 0
B19: ='CWNA NEMO'!B21 -> 46143 | C19: ='CWNA NEMO'!E21 -> 34182.2343 | D19: ='CWNA WEMO'!E21 -> -19.73768717 | E19: ='CWNA SEMO'!E21 -> 11704.65441 | F19: =SUMPRODUCT((CAWNAAmounts[Month]=$B19)*(CAWNAAmounts[Region]=C$8)*(CAWNAAmounts[CustClass]="Res")*CAWNAAmounts[CAWNA]) -> 34182.2343 | G19: =SUMPRODUCT((CAWNAAmounts[Month]=$B19)*(CAWNAAmounts[Region]=D$8)*(CAWNAAmounts[CustClass]="Res")*CAWNAAmounts[CAWNA]) -> -19.73768717 | H19: =SUMPRODUCT((CAWNAAmounts[Month]=$B19)*(CAWNAAmounts[Region]=E$8)*(CAWNAAmounts[CustClass]="Res")*CAWNAAmounts[CAWNA]) -> 11704.65441 | I19: 0 | J19: 0 | K19: 0
B20: ='CWNA NEMO'!B22 -> 46174 | C20: ='CWNA NEMO'!E22 -> 674.2198867 | D20: ='CWNA WEMO'!E22 -> 132.9624372 | E20: ='CWNA SEMO'!E22 -> 149.855537 | F20: =SUMPRODUCT((CAWNAAmounts[Month]=$B20)*(CAWNAAmounts[Region]=C$8)*(CAWNAAmounts[CustClass]="Res")*CAWNAAmounts[CAWNA]) -> 674.2198867 | G20: =SUMPRODUCT((CAWNAAmounts[Month]=$B20)*(CAWNAAmounts[Region]=D$8)*(CAWNAAmounts[CustClass]="Res")*CAWNAAmounts[CAWNA]) -> 132.9624372 | H20: =SUMPRODUCT((CAWNAAmounts[Month]=$B20)*(CAWNAAmounts[Region]=E$8)*(CAWNAAmounts[CustClass]="Res")*CAWNAAmounts[CAWNA]) -> 149.855537 | I20: 0 | J20: 0 | K20: 0
B21: Total | C21: =SUM(C9:C20) -> 680464.5399 | D21: =SUM(D9:D20) -> 170281.4942 | E21: 553951.0341 | F21: 680464.5399 | G21: 170281.4942 | H21: 553951.0341 | I21: 0 | J21: 0 | K21: 0
B23: SGS | C23: CWNA Worksheets | F23: CWNA Amount Table | I23: Difference
B24: Flow Month | C24: NEMO | D24: WEMO | E24: SEMO | F24: NEMO | G24: WEMO | H24: SEMO | I24: NEMO | J24: WEMO | K24: SEMO
B25: ='CWNA NEMO'!B31 -> 45839 | C25: ='CWNA NEMO'!E31 -> 36.74026345 | D25: ='CWNA WEMO'!E31 -> 0 | E25: ='CWNA SEMO'!E31 -> 0 | F25: =SUMPRODUCT((CAWNAAmounts[Month]=$B25)*(CAWNAAmounts[Region]=C$8)*(CAWNAAmounts[CustClass]="SGS")*CAWNAAmounts[CAWNA]) -> 36.74026345 | G25: =SUMPRODUCT((CAWNAAmounts[Month]=$B25)*(CAWNAAmounts[Region]=D$8)*(CAWNAAmounts[CustClass]="SGS")*CAWNAAmounts[CAWNA]) -> 0 | H25: =SUMPRODUCT((CAWNAAmounts[Month]=$B25)*(CAWNAAmounts[Region]=E$8)*(CAWNAAmounts[CustClass]="SGS")*CAWNAAmounts[CAWNA]) -> 0 | I25: =F25-C25 -> 0 | J25: =G25-D25 -> 0 | K25: =H25-E25 -> 0
B26: ='CWNA NEMO'!B32 -> 45870 | C26: ='CWNA NEMO'!E32 -> -643.8730314 | D26: ='CWNA WEMO'!E32 -> 33.60251987 | E26: ='CWNA SEMO'!E32 -> 11.67967487 | F26: =SUMPRODUCT((CAWNAAmounts[Month]=$B26)*(CAWNAAmounts[Region]=C$8)*(CAWNAAmounts[CustClass]="SGS")*CAWNAAmounts[CAWNA]) -> -643.8730314 | G26: =SUMPRODUCT((CAWNAAmounts[Month]=$B26)*(CAWNAAmounts[Region]=D$8)*(CAWNAAmounts[CustClass]="SGS")*CAWNAAmounts[CAWNA]) -> 33.60251987 | H26: =SUMPRODUCT((CAWNAAmounts[Month]=$B26)*(CAWNAAmounts[Region]=E$8)*(CAWNAAmounts[CustClass]="SGS")*CAWNAAmounts[CAWNA]) -> 11.67967487 | I26: =F26-C26 -> 0 | J26: 0 | K26: 0
B27: ='CWNA NEMO'!B33 -> 45901 | C27: ='CWNA NEMO'!E33 -> 11844.6341 | D27: ='CWNA WEMO'!E33 -> 2341.216194 | E27: ='CWNA SEMO'!E33 -> 2859.400468 | F27: =SUMPRODUCT((CAWNAAmounts[Month]=$B27)*(CAWNAAmounts[Region]=C$8)*(CAWNAAmounts[CustClass]="SGS")*CAWNAAmounts[CAWNA]) -> 11844.6341 | G27: =SUMPRODUCT((CAWNAAmounts[Month]=$B27)*(CAWNAAmounts[Region]=D$8)*(CAWNAAmounts[CustClass]="SGS")*CAWNAAmounts[CAWNA]) -> 2341.216194 | H27: =SUMPRODUCT((CAWNAAmounts[Month]=$B27)*(CAWNAAmounts[Region]=E$8)*(CAWNAAmounts[CustClass]="SGS")*CAWNAAmounts[CAWNA]) -> 2859.400468 | I27: 0 | J27: 0 | K27: 0
B28: ='CWNA NEMO'!B34 -> 45931 | C28: ='CWNA NEMO'!E34 -> 9432.490041 | D28: ='CWNA WEMO'!E34 -> 2557.033487 | E28: ='CWNA SEMO'!E34 -> 4519.2365 | F28: =SUMPRODUCT((CAWNAAmounts[Month]=$B28)*(CAWNAAmounts[Region]=C$8)*(CAWNAAmounts[CustClass]="SGS")*CAWNAAmounts[CAWNA]) -> 9432.490041 | G28: =SUMPRODUCT((CAWNAAmounts[Month]=$B28)*(CAWNAAmounts[Region]=D$8)*(CAWNAAmounts[CustClass]="SGS")*CAWNAAmounts[CAWNA]) -> 2557.033487 | H28: =SUMPRODUCT((CAWNAAmounts[Month]=$B28)*(CAWNAAmounts[Region]=E$8)*(CAWNAAmounts[CustClass]="SGS")*CAWNAAmounts[CAWNA]) -> 4519.2365 | I28: =F28-C28 -> 0 | J28: 0 | K28: 0
B29: ='CWNA NEMO'!B35 -> 45962 | C29: ='CWNA NEMO'!E35 -> -15588.15487 | D29: ='CWNA WEMO'!E35 -> -3229.081768 | E29: ='CWNA SEMO'!E35 -> -3521.023311 | F29: =SUMPRODUCT((CAWNAAmounts[Month]=$B29)*(CAWNAAmounts[Region]=C$8)*(CAWNAAmounts[CustClass]="SGS")*CAWNAAmounts[CAWNA]) -> -15588.15487 | G29: =SUMPRODUCT((CAWNAAmounts[Month]=$B29)*(CAWNAAmounts[Region]=D$8)*(CAWNAAmounts[CustClass]="SGS")*CAWNAAmounts[CAWNA]) -> -3229.081768 | H29: =SUMPRODUCT((CAWNAAmounts[Month]=$B29)*(CAWNAAmounts[Region]=E$8)*(CAWNAAmounts[CustClass]="SGS")*CAWNAAmounts[CAWNA]) -> -3521.023311 | I29: 0 | J29: 0 | K29: 0
B30: ='CWNA NEMO'!B36 -> 45992 | C30: ='CWNA NEMO'!E36 -> 26561.28868 | D30: ='CWNA WEMO'!E36 -> 10779.84448 | E30: ='CWNA SEMO'!E36 -> 13212.45393 | F30: =SUMPRODUCT((CAWNAAmounts[Month]=$B30)*(CAWNAAmounts[Region]=C$8)*(CAWNAAmounts[CustClass]="SGS")*CAWNAAmounts[CAWNA]) -> 26561.28868 | G30: =SUMPRODUCT((CAWNAAmounts[Month]=$B30)*(CAWNAAmounts[Region]=D$8)*(CAWNAAmounts[CustClass]="SGS")*CAWNAAmounts[CAWNA]) -> 10779.84448 | H30: =SUMPRODUCT((CAWNAAmounts[Month]=$B30)*(CAWNAAmounts[Region]=E$8)*(CAWNAAmounts[CustClass]="SGS")*CAWNAAmounts[CAWNA]) -> 13212.45393 | I30: 0 | J30: 0 | K30: 0
B31: ='CWNA NEMO'!B37 -> 46023 | C31: ='CWNA NEMO'!E37 -> -5889.60023 | D31: ='CWNA WEMO'!E37 -> 2403.115796 | E31: ='CWNA SEMO'!E37 -> -19711.91897 | F31: =SUMPRODUCT((CAWNAAmounts[Month]=$B31)*(CAWNAAmounts[Region]=C$8)*(CAWNAAmounts[CustClass]="SGS")*CAWNAAmounts[CAWNA]) -> -5889.60023 | G31: =SUMPRODUCT((CAWNAAmounts[Month]=$B31)*(CAWNAAmounts[Region]=D$8)*(CAWNAAmounts[CustClass]="SGS")*CAWNAAmounts[CAWNA]) -> 2403.115796 | H31: =SUMPRODUCT((CAWNAAmounts[Month]=$B31)*(CAWNAAmounts[Region]=E$8)*(CAWNAAmounts[CustClass]="SGS")*CAWNAAmounts[CAWNA]) -> -19711.91897 | I31: 0 | J31: 0 | K31: 0
B32: ='CWNA NEMO'!B38 -> 46054 | C32: ='CWNA NEMO'!E38 -> 33645.74805 | D32: ='CWNA WEMO'!E38 -> 2485.526512 | E32: ='CWNA SEMO'!E38 -> 18118.00199 | F32: =SUMPRODUCT((CAWNAAmounts[Month]=$B32)*(CAWNAAmounts[Region]=C$8)*(CAWNAAmounts[CustClass]="SGS")*CAWNAAmounts[CAWNA]) -> 33645.74805 | G32: =SUMPRODUCT((CAWNAAmounts[Month]=$B32)*(CAWNAAmounts[Region]=D$8)*(CAWNAAmounts[CustClass]="SGS")*CAWNAAmounts[CAWNA]) -> 2485.526512 | H32: =SUMPRODUCT((CAWNAAmounts[Month]=$B32)*(CAWNAAmounts[Region]=E$8)*(CAWNAAmounts[CustClass]="SGS")*CAWNAAmounts[CAWNA]) -> 18118.00199 | I32: 0 | J32: 0 | K32: 0
B33: ='CWNA NEMO'!B39 -> 46082 | C33: ='CWNA NEMO'!E39 -> 16308.93683 | D33: ='CWNA WEMO'!E39 -> 6644.147442 | E33: ='CWNA SEMO'!E39 -> 17504.13145 | F33: =SUMPRODUCT((CAWNAAmounts[Month]=$B33)*(CAWNAAmounts[Region]=C$8)*(CAWNAAmounts[CustClass]="SGS")*CAWNAAmounts[CAWNA]) -> 16308.93683 | G33: =SUMPRODUCT((CAWNAAmounts[Month]=$B33)*(CAWNAAmounts[Region]=D$8)*(CAWNAAmounts[CustClass]="SGS")*CAWNAAmounts[CAWNA]) -> 6644.147442 | H33: =SUMPRODUCT((CAWNAAmounts[Month]=$B33)*(CAWNAAmounts[Region]=E$8)*(CAWNAAmounts[CustClass]="SGS")*CAWNAAmounts[CAWNA]) -> 17504.13145 | I33: 0 | J33: 0 | K33: 0
B34: ='CWNA NEMO'!B40 -> 46113 | C34: ='CWNA NEMO'!E40 -> 8302.189625 | D34: ='CWNA WEMO'!E40 -> 507.3461107 | E34: ='CWNA SEMO'!E40 -> 5907.363418 | F34: =SUMPRODUCT((CAWNAAmounts[Month]=$B34)*(CAWNAAmounts[Region]=C$8)*(CAWNAAmounts[CustClass]="SGS")*CAWNAAmounts[CAWNA]) -> 8302.189625 | G34: =SUMPRODUCT((CAWNAAmounts[Month]=$B34)*(CAWNAAmounts[Region]=D$8)*(CAWNAAmounts[CustClass]="SGS")*CAWNAAmounts[CAWNA]) -> 507.3461107 | H34: =SUMPRODUCT((CAWNAAmounts[Month]=$B34)*(CAWNAAmounts[Region]=E$8)*(CAWNAAmounts[CustClass]="SGS")*CAWNAAmounts[CAWNA]) -> 5907.363418 | I34: 0 | J34: 0 | K34: 0
B35: ='CWNA NEMO'!B41 -> 46143 | C35: ='CWNA NEMO'!E41 -> 2624.130411 | D35: ='CWNA WEMO'!E41 -> -35.84028849 | E35: ='CWNA SEMO'!E41 -> 281.3068317 | F35: =SUMPRODUCT((CAWNAAmounts[Month]=$B35)*(CAWNAAmounts[Region]=C$8)*(CAWNAAmounts[CustClass]="SGS")*CAWNAAmounts[CAWNA]) -> 2624.130411 | G35: =SUMPRODUCT((CAWNAAmounts[Month]=$B35)*(CAWNAAmounts[Region]=D$8)*(CAWNAAmounts[CustClass]="SGS")*CAWNAAmounts[CAWNA]) -> -35.84028849 | H35: =SUMPRODUCT((CAWNAAmounts[Month]=$B35)*(CAWNAAmounts[Region]=E$8)*(CAWNAAmounts[CustClass]="SGS")*CAWNAAmounts[CAWNA]) -> 281.3068317 | I35: 0 | J35: 0 | K35: 0
B36: ='CWNA NEMO'!B42 -> 46174 | C36: ='CWNA NEMO'!E42 -> 7.392586343 | D36: ='CWNA WEMO'!E42 -> 0 | E36: ='CWNA SEMO'!E42 -> 0 | F36: =SUMPRODUCT((CAWNAAmounts[Month]=$B36)*(CAWNAAmounts[Region]=C$8)*(CAWNAAmounts[CustClass]="SGS")*CAWNAAmounts[CAWNA]) -> 7.392586343 | G36: =SUMPRODUCT((CAWNAAmounts[Month]=$B36)*(CAWNAAmounts[Region]=D$8)*(CAWNAAmounts[CustClass]="SGS")*CAWNAAmounts[CAWNA]) -> 0 | H36: =SUMPRODUCT((CAWNAAmounts[Month]=$B36)*(CAWNAAmounts[Region]=E$8)*(CAWNAAmounts[CustClass]="SGS")*CAWNAAmounts[CAWNA]) -> 0 | I36: 0 | J36: 0 | K36: 0
B37: Total | C37: =SUM(C25:C36) -> 86641.92246 | D37: 24486.91048 | E37: 39180.63198 | F37: 86641.92246 | G37: 24486.91048 | H37: 39180.63198 | I37: 0 | J37: 0 | K37: 0
B39: Reconciliation Period Adjustments
B40: CWNA | C40: CWNA Worksheets | E40: ReconPerAdj Table | G40: Difference
B41: Region | C41: Res | D41: SGS | E41: Res | F41: SGS | G41: Res | H41: SGS
B42: NEMO | C42: ='CWNA NEMO'!C24 -> 680464.54 | D42: ='CWNA NEMO'!C44 -> 86641.92 | E42: =SUMPRODUCT((ReconPerAdj[Year]=$C$4)*(ReconPerAdj[Region]=$B42)*(ReconPerAdj[RateName]=$B$40)*(ReconPerAdj[CustClass]=E$41)*ReconPerAdj[ReconcilingPeriodAdj]) -> 680464.54 | F42: =SUMPRODUCT((ReconPerAdj[Year]=$C$4)*(ReconPerAdj[Region]=$B42)*(ReconPerAdj[RateName]=$B$40)*(ReconPerAdj[CustClass]=F$41)*ReconPerAdj[ReconcilingPeriodAdj]) -> 86641.92 | G42: =E42-C42 -> 0 | H42: 0
B43: WEMO | C43: ='CWNA WEMO'!C24 -> 170281.49 | D43: ='CWNA WEMO'!C44 -> 24486.91 | E43: =SUMPRODUCT((ReconPerAdj[Year]=$C$4)*(ReconPerAdj[Region]=$B43)*(ReconPerAdj[RateName]=$B$40)*(ReconPerAdj[CustClass]=E$41)*ReconPerAdj[ReconcilingPeriodAdj]) -> 170281.49 | F43: =SUMPRODUCT((ReconPerAdj[Year]=$C$4)*(ReconPerAdj[Region]=$B43)*(ReconPerAdj[RateName]=$B$40)*(ReconPerAdj[CustClass]=F$41)*ReconPerAdj[ReconcilingPeriodAdj]) -> 24486.91 | G43: 0 | H43: 0
B44: SEMO | C44: ='CWNA SEMO'!C24 -> 553951.03 | D44: ='CWNA SEMO'!C44 -> 39180.63 | E44: =SUMPRODUCT((ReconPerAdj[Year]=$C$4)*(ReconPerAdj[Region]=$B44)*(ReconPerAdj[RateName]=$B$40)*(ReconPerAdj[CustClass]=E$41)*ReconPerAdj[ReconcilingPeriodAdj]) -> 553951.03 | F44: =SUMPRODUCT((ReconPerAdj[Year]=$C$4)*(ReconPerAdj[Region]=$B44)*(ReconPerAdj[RateName]=$B$40)*(ReconPerAdj[CustClass]=F$41)*ReconPerAdj[ReconcilingPeriodAdj]) -> 39180.63 | G44: 0 | H44: 0
B45: ARR | C45: ARR Summary Worksheet | E45: ReconPerAdj Table | G45: Difference
B46: Region | C46: Res | D46: SGS | E46: Res | F46: SGS | G46: Res | H46: SGS
B47: NEMO | C47: ='ARR Summary'!C61 -> 91079.05 | D47: ='ARR Summary'!D61 -> 9002.48 | E47: =SUMPRODUCT((ReconPerAdj[Year]=$C$4)*(ReconPerAdj[Region]=$B47)*(ReconPerAdj[RateName]=$B$45)*(ReconPerAdj[CustClass]=E$46)*ReconPerAdj[ReconcilingPeriodAdj]) -> 91079.05 | F47: =SUMPRODUCT((ReconPerAdj[Year]=$C$4)*(ReconPerAdj[Region]=$B47)*(ReconPerAdj[RateName]=$B$45)*(ReconPerAdj[CustClass]=F$46)*ReconPerAdj[ReconcilingPeriodAdj]) -> 9002.48 | G47: =E47-C47 -> 0 | H47: 0
B48: WEMO | C48: ='ARR Summary'!E61 -> 28581.56 | D48: ='ARR Summary'!F61 -> 3082.91 | E48: =SUMPRODUCT((ReconPerAdj[Year]=$C$4)*(ReconPerAdj[Region]=$B48)*(ReconPerAdj[RateName]=$B$45)*(ReconPerAdj[CustClass]=E$46)*ReconPerAdj[ReconcilingPeriodAdj]) -> 28581.56 | F48: =SUMPRODUCT((ReconPerAdj[Year]=$C$4)*(ReconPerAdj[Region]=$B48)*(ReconPerAdj[RateName]=$B$45)*(ReconPerAdj[CustClass]=F$46)*ReconPerAdj[ReconcilingPeriodAdj]) -> 3082.91 | G48: 0 | H48: 0
B49: SEMO | C49: ='ARR Summary'!G61 -> 113489.69 | D49: ='ARR Summary'!H61 -> 5181.4 | E49: =SUMPRODUCT((ReconPerAdj[Year]=$C$4)*(ReconPerAdj[Region]=$B49)*(ReconPerAdj[RateName]=$B$45)*(ReconPerAdj[CustClass]=E$46)*ReconPerAdj[ReconcilingPeriodAdj]) -> 113489.69 | F49: =SUMPRODUCT((ReconPerAdj[Year]=$C$4)*(ReconPerAdj[Region]=$B49)*(ReconPerAdj[RateName]=$B$45)*(ReconPerAdj[CustClass]=F$46)*ReconPerAdj[ReconcilingPeriodAdj]) -> 5181.4 | G49: 0 | H49: 0
B51: ARR Volumetric True-Ups
B52: ARR | C52: ARR Worksheets | E52: VolTrueUp Table | G52: Difference
B53: Region | C53: Res | D53: SGS | E53: Res | F53: SGS | G53: Res | H53: SGS
B54: NEMO | C54: ='ARR NEMO'!C22 -> -1819.58 | D54: ='ARR NEMO'!C37 -> -246.33 | E54: =SUMPRODUCT((VolTrueUp[Year]=$C$4)*(VolTrueUp[Region]=$B54)*(VolTrueUp[CustClass]=E$53)*VolTrueUp[TrueUp]) -> -1819.58 | F54: =SUMPRODUCT((VolTrueUp[Year]=$C$4)*(VolTrueUp[Region]=$B54)*(VolTrueUp[CustClass]=F$53)*VolTrueUp[TrueUp]) -> -246.33 | G54: =E54-C54 -> 0 | H54: 0
B55: WEMO | C55: ='ARR WEMO'!C22 -> -376.57 | D55: ='ARR WEMO'!C37 -> -123.42 | E55: =SUMPRODUCT((VolTrueUp[Year]=$C$4)*(VolTrueUp[Region]=$B55)*(VolTrueUp[CustClass]=E$53)*VolTrueUp[TrueUp]) -> -376.57 | F55: =SUMPRODUCT((VolTrueUp[Year]=$C$4)*(VolTrueUp[Region]=$B55)*(VolTrueUp[CustClass]=F$53)*VolTrueUp[TrueUp]) -> -123.42 | G55: 0 | H55: 0
B56: SEMO | C56: ='ARR SEMO'!C22 -> -2856.23 | D56: ='ARR SEMO'!C37 -> -289.85 | E56: =SUMPRODUCT((VolTrueUp[Year]=$C$4)*(VolTrueUp[Region]=$B56)*(VolTrueUp[CustClass]=E$53)*VolTrueUp[TrueUp]) -> -2856.23 | F56: =SUMPRODUCT((VolTrueUp[Year]=$C$4)*(VolTrueUp[Region]=$B56)*(VolTrueUp[CustClass]=F$53)*VolTrueUp[TrueUp]) -> -289.85 | G56: 0 | H56: 0
B58: WNAR Rates
B59: CWNA | C59: CWNA Summary Worksht | E59: WNAR Rates Table | G59: Difference
B60: Region | C60: Res | D60: SGS | E60: Res | F60: SGS | G60: Res | H60: SGS
B61: NEMO | C61: ='CWNA Summary'!C31 -> 0.05529 | D61: ='CWNA Summary'!D31 -> 0.02233 | E61: =SUMPRODUCT((WNARRates[Year]=$C$4)*(WNARRates[Region]=$B61)*(WNARRates[CustClass]=E$60)*WNARRates[AdjCAWNA]) -> 0.05529 | F61: =SUMPRODUCT((WNARRates[Year]=$C$4)*(WNARRates[Region]=$B61)*(WNARRates[CustClass]=F$60)*WNARRates[AdjCAWNA]) -> 0.02233 | G61: =E61-C61 -> 0 | H61: 0
B62: WEMO | C62: ='CWNA Summary'!E31 -> 0.06896 | D62: ='CWNA Summary'!F31 -> 0.02699 | E62: =SUMPRODUCT((WNARRates[Year]=$C$4)*(WNARRates[Region]=$B62)*(WNARRates[CustClass]=E$60)*WNARRates[AdjCAWNA]) -> 0.06896 | F62: =SUMPRODUCT((WNARRates[Year]=$C$4)*(WNARRates[Region]=$B62)*(WNARRates[CustClass]=F$60)*WNARRates[AdjCAWNA]) -> 0.02699 | G62: 0 | H62: 0
B63: SEMO | C63: ='CWNA Summary'!G31 -> 0.03223 | D63: ='CWNA Summary'!H31 -> 0.00782 | E63: =SUMPRODUCT((WNARRates[Year]=$C$4)*(WNARRates[Region]=$B63)*(WNARRates[CustClass]=E$60)*WNARRates[AdjCAWNA]) -> 0.03223 | F63: =SUMPRODUCT((WNARRates[Year]=$C$4)*(WNARRates[Region]=$B63)*(WNARRates[CustClass]=F$60)*WNARRates[AdjCAWNA]) -> 0.00782 | G63: 0 | H63: 0
B64: ARR | C64: ARR Summary Worksheet | E64: WNAR Rates Table | G64: Difference
B65: Region | C65: Res | D65: SGS | E65: Res | F65: SGS | G65: Res | H65: SGS
B66: NEMO | C66: ='ARR Summary'!C85 -> 0.0074 | D66: ='ARR Summary'!D85 -> 0.00232 | E66: =SUMPRODUCT((WNARRates[Year]=$C$4)*(WNARRates[Region]=$B66)*(WNARRates[CustClass]=E$65)*WNARRates[AdjSRR]) -> 0.0074 | F66: =SUMPRODUCT((WNARRates[Year]=$C$4)*(WNARRates[Region]=$B66)*(WNARRates[CustClass]=F$65)*WNARRates[AdjSRR]) -> 0.00232 | G66: =E66-C66 -> 0 | H66: 0
B67: WEMO | C67: ='ARR Summary'!E85 -> 0.01158 | D67: ='ARR Summary'!F85 -> 0.0034 | E67: =SUMPRODUCT((WNARRates[Year]=$C$4)*(WNARRates[Region]=$B67)*(WNARRates[CustClass]=E$65)*WNARRates[AdjSRR]) -> 0.01158 | F67: =SUMPRODUCT((WNARRates[Year]=$C$4)*(WNARRates[Region]=$B67)*(WNARRates[CustClass]=F$65)*WNARRates[AdjSRR]) -> 0.0034 | G67: 0 | H67: 0
B68: SEMO | C68: ='ARR Summary'!G85 -> 0.0066 | D68: ='ARR Summary'!H85 -> 0.00103 | E68: =SUMPRODUCT((WNARRates[Year]=$C$4)*(WNARRates[Region]=$B68)*(WNARRates[CustClass]=E$65)*WNARRates[AdjSRR]) -> 0.0066 | F68: =SUMPRODUCT((WNARRates[Year]=$C$4)*(WNARRates[Region]=$B68)*(WNARRates[CustClass]=F$65)*WNARRates[AdjSRR]) -> 0.00103 | G68: 0 | H68: 0

Sheet Rates - Sheets 67.2-67.5 (hidden)
D1: Liberty Utilities (Midstates Natural Gas) Corp.
D2: Weather Normalization Adjustment Rider
D3: Semiannual Adjustment Filing
D4: Tariff Rates
D5: Sheets 67.2 through 67.5
B9: Residential Rates for Northeast and West District (Sheet No. 67.2)
B11: CWNA Table: | H11: Lookup Criteria
B12: Period | C12: Rate First Effective | D12: Months | E12: Rate Ending Effective | F12: CSWNA (Annual) | H12: Region | I12: Cust Class | J12: Rate Name
B13: =DateSet!#REF! ->  | C13: =DateSet!#REF! ->  | D13: 12 | E13: =EOMONTH(C13,11) ->  | F13: =SUMPRODUCT((WNARRates[BeginDate]=C13)*(WNARRates[Region]=H13)*(WNARRates[CustClass]=I13)*WNARRates[AdjCAWNA]) ->  | H13: NEMO | I13: Res | J13: CSWNA
B14: =DateSet!#REF! ->  | C14: =DateSet!#REF! ->  | D14: 12 | E14: =EOMONTH(C14,11) ->  | F14: =SUMPRODUCT((WNARRates[BeginDate]=C14)*(WNARRates[Region]=H14)*(WNARRates[CustClass]=I14)*WNARRates[AdjCAWNA]) ->  | H14: NEMO | I14: Res | J14: CSWNA
B15: =DateSet!#REF! ->  | C15: =DateSet!#REF! ->  | D15: 12 | E15: =EOMONTH(C15,11) ->  | F15: =SUMPRODUCT((WNARRates[BeginDate]=C15)*(WNARRates[Region]=H15)*(WNARRates[CustClass]=I15)*WNARRates[AdjCAWNA]) ->  | H15: NEMO | I15: Res | J15: CSWNA
B17: SRR Table:
B18: Period | C18: Rate First Effective | D18: Months | E18: Rate Ending Effective | F18: SRR (Annual)
B19: =$B$13 ->  | C19: =$C$13 ->  | D19: 12 | E19: =EOMONTH(C19,11) ->  | F19: =SUMPRODUCT((WNARRates[BeginDate]=C19)*(WNARRates[Region]=H19)*(WNARRates[CustClass]=I19)*WNARRates[AdjSRR]) ->  | H19: NEMO | I19: Res | J19: SRR
B20: =$B$14 ->  | C20: =$C$14 ->  | D20: 12 | E20: =EOMONTH(C20,11) ->  | F20: =SUMPRODUCT((WNARRates[BeginDate]=C20)*(WNARRates[Region]=H20)*(WNARRates[CustClass]=I20)*WNARRates[AdjSRR]) ->  | H20: NEMO | I20: Res | J20: SRR
B21: =$B$15 ->  | C21: =$C$15 ->  | D21: 12 | E21: =EOMONTH(C21,11) ->  | F21: =SUMPRODUCT((WNARRates[BeginDate]=C21)*(WNARRates[Region]=H21)*(WNARRates[CustClass]=I21)*WNARRates[AdjSRR]) ->  | H21: NEMO | I21: Res | J21: SRR
B23: WNA Rider Rate:
B24: Period | C24: Rate First Effective | D24: Months | E24: Rate Ending Effective | F24: WNA (Semiannual)
B25: =$B$14 ->  | C25: =$C$14 ->  | D25: 6 | E25: =EOMONTH(C25,D25-1) ->  | F25: =SUMPRODUCT((WNARRates[BeginDate]<=C25)*(WNARRates[EndDate]>=C25)*(WNARRates[Region]=H25)*(WNARRates[CustClass]=I25)*WNARRates[AdjSRR])+SUMPRODUCT((WNARRates[BeginDate]<=C25)*(WNARRates[EndDate]>=C25)*(WNARRates[Region]=H25)*(WNARRates[CustClass]=I25)*WNARRates[AdjCAWNA]) ->  | H25: NEMO | I25: Res | J25: WNA
B26: =$B$15 ->  | C26: =$C$15 ->  | D26: 6 | E26: =EOMONTH(C26,D26-1) ->  | F26: =SUMPRODUCT((WNARRates[BeginDate]<=C26)*(WNARRates[EndDate]>=C26)*(WNARRates[Region]=H26)*(WNARRates[CustClass]=I26)*WNARRates[AdjSRR])+SUMPRODUCT((WNARRates[BeginDate]<=C26)*(WNARRates[EndDate]>=C26)*(WNARRates[Region]=H26)*(WNARRates[CustClass]=I26)*WNARRates[AdjCAWNA]) ->  | H26: NEMO | I26: Res | J26: WNA
B28: Residential Rates for Southeast District (Sheet No. 67.3)
B30: CWNA Table:
B31: Period | C31: Rate First Effective | D31: Months | E31: Rate Ending Effective | F31: CSWNA (Annual)
B32: =$B$13 ->  | C32: =$C$13 ->  | D32: 12 | E32: =EOMONTH(C32,11) ->  | F32: =SUMPRODUCT((WNARRates[BeginDate]=C32)*(WNARRates[Region]=H32)*(WNARRates[CustClass]=I32)*WNARRates[AdjCAWNA]) ->  | H32: SEMO | I32: Res | J32: CSWNA
B33: =$B$14 ->  | C33: =$C$14 ->  | D33: 12 | E33: =EOMONTH(C33,11) ->  | F33: =SUMPRODUCT((WNARRates[BeginDate]=C33)*(WNARRates[Region]=H33)*(WNARRates[CustClass]=I33)*WNARRates[AdjCAWNA]) ->  | H33: SEMO | I33: Res | J33: CSWNA
B34: =$B$15 ->  | C34: =$C$15 ->  | D34: 12 | E34: =EOMONTH(C34,11) ->  | F34: =SUMPRODUCT((WNARRates[BeginDate]=C34)*(WNARRates[Region]=H34)*(WNARRates[CustClass]=I34)*WNARRates[AdjCAWNA]) ->  | H34: SEMO | I34: Res | J34: CSWNA
B36: SRR Table:
B37: Period | C37: Rate First Effective | D37: Months | E37: Rate Ending Effective | F37: SRR (Annual)
B38: =$B$13 ->  | C38: =$C$13 ->  | D38: 12 | E38: =EOMONTH(C38,11) ->  | F38: =SUMPRODUCT((WNARRates[BeginDate]=C38)*(WNARRates[Region]=H38)*(WNARRates[CustClass]=I38)*WNARRates[AdjSRR]) ->  | H38: SEMO | I38: Res | J38: SRR
B39: =$B$14 ->  | C39: =$C$14 ->  | D39: 12 | E39: =EOMONTH(C39,11) ->  | F39: =SUMPRODUCT((WNARRates[BeginDate]=C39)*(WNARRates[Region]=H39)*(WNARRates[CustClass]=I39)*WNARRates[AdjSRR]) ->  | H39: SEMO | I39: Res | J39: SRR
B40: =$B$15 ->  | C40: =$C$15 ->  | D40: 12 | E40: =EOMONTH(C40,11) ->  | F40: =SUMPRODUCT((WNARRates[BeginDate]=C40)*(WNARRates[Region]=H40)*(WNARRates[CustClass]=I40)*WNARRates[AdjSRR]) ->  | H40: SEMO | I40: Res | J40: SRR
B42: WNA Rider Rate:
B43: Period | C43: Rate First Effective | D43: Months | E43: Rate Ending Effective | F43: WNA (Semiannual)
B44: =$B$14 ->  | C44: =$C$14 ->  | D44: 6 | E44: =EOMONTH(C44,D44-1) ->  | F44: =SUMPRODUCT((WNARRates[BeginDate]<=C44)*(WNARRates[EndDate]>=C44)*(WNARRates[Region]=H44)*(WNARRates[CustClass]=I44)*WNARRates[AdjSRR])+SUMPRODUCT((WNARRates[BeginDate]<=C44)*(WNARRates[EndDate]>=C44)*(WNARRates[Region]=H44)*(WNARRates[CustClass]=I44)*WNARRates[AdjCAWNA]) ->  | H44: SEMO | I44: Res | J44: WNA
B45: =$B$15 ->  | C45: =$C$15 ->  | D45: 6 | E45: =EOMONTH(C45,D45-1) ->  | F45: =SUMPRODUCT((WNARRates[BeginDate]<=C45)*(WNARRates[EndDate]>=C45)*(WNARRates[Region]=H45)*(WNARRates[CustClass]=I45)*WNARRates[AdjSRR])+SUMPRODUCT((WNARRates[BeginDate]<=C45)*(WNARRates[EndDate]>=C45)*(WNARRates[Region]=H45)*(WNARRates[CustClass]=I45)*WNARRates[AdjCAWNA]) ->  | H45: SEMO | I45: Res | J45: WNA
B48: SGS Rates for Northeast and West District (Sheet No. 67.4)
B50: CWNA Table:
B51: Period | C51: Rate First Effective | D51: Months | E51: Rate Ending Effective | F51: CSWNA (Annual)
B52: =$B$13 ->  | C52: =$C$13 ->  | D52: 12 | E52: =EOMONTH(C52,11) ->  | F52: =SUMPRODUCT((WNARRates[BeginDate]=C52)*(WNARRates[Region]=H52)*(WNARRates[CustClass]=I52)*WNARRates[AdjCAWNA]) ->  | H52: NEMO | I52: SGS | J52: CSWNA
B53: =$B$14 ->  | C53: =$C$14 ->  | D53: 12 | E53: =EOMONTH(C53,11) ->  | F53: =SUMPRODUCT((WNARRates[BeginDate]=C53)*(WNARRates[Region]=H53)*(WNARRates[CustClass]=I53)*WNARRates[AdjCAWNA]) ->  | H53: NEMO | I53: SGS | J53: CSWNA
B54: =$B$15 ->  | C54: =$C$15 ->  | D54: 12 | E54: =EOMONTH(C54,11) ->  | F54: =SUMPRODUCT((WNARRates[BeginDate]=C54)*(WNARRates[Region]=H54)*(WNARRates[CustClass]=I54)*WNARRates[AdjCAWNA]) ->  | H54: NEMO | I54: SGS | J54: CSWNA
B56: SRR Table:
B57: Period | C57: Rate First Effective | D57: Months | E57: Rate Ending Effective | F57: SRR (Annual)
B58: =$B$13 ->  | C58: =$C$13 ->  | D58: 12 | E58: =EOMONTH(C58,11) ->  | F58: =SUMPRODUCT((WNARRates[BeginDate]=C58)*(WNARRates[Region]=H58)*(WNARRates[CustClass]=I58)*WNARRates[AdjSRR]) ->  | H58: NEMO | I58: SGS | J58: SRR
B59: =$B$14 ->  | C59: =$C$14 ->  | D59: 12 | E59: =EOMONTH(C59,11) ->  | F59: =SUMPRODUCT((WNARRates[BeginDate]=C59)*(WNARRates[Region]=H59)*(WNARRates[CustClass]=I59)*WNARRates[AdjSRR]) ->  | H59: NEMO | I59: SGS | J59: SRR
B60: =$B$15 ->  | C60: =$C$15 ->  | D60: 12 | E60: =EOMONTH(C60,11) ->  | F60: =SUMPRODUCT((WNARRates[BeginDate]=C60)*(WNARRates[Region]=H60)*(WNARRates[CustClass]=I60)*WNARRates[AdjSRR]) ->  | H60: NEMO | I60: SGS | J60: SRR
B62: WNA Rider Rate:
B63: Period | C63: Rate First Effective | D63: Months | E63: Rate Ending Effective | F63: WNA (Semiannual)
B64: =$B$14 ->  | C64: =$C$14 ->  | D64: 6 | E64: =EOMONTH(C64,D64-1) ->  | F64: =SUMPRODUCT((WNARRates[BeginDate]<=C64)*(WNARRates[EndDate]>=C64)*(WNARRates[Region]=H64)*(WNARRates[CustClass]=I64)*WNARRates[AdjSRR])+SUMPRODUCT((WNARRates[BeginDate]<=C64)*(WNARRates[EndDate]>=C64)*(WNARRates[Region]=H64)*(WNARRates[CustClass]=I64)*WNARRates[AdjCAWNA]) ->  | H64: NEMO | I64: SGS | J64: WNA
B65: =$B$15 ->  | C65: =$C$15 ->  | D65: 6 | E65: =EOMONTH(C65,D65-1) ->  | F65: =SUMPRODUCT((WNARRates[BeginDate]<=C65)*(WNARRates[EndDate]>=C65)*(WNARRates[Region]=H65)*(WNARRates[CustClass]=I65)*WNARRates[AdjSRR])+SUMPRODUCT((WNARRates[BeginDate]<=C65)*(WNARRates[EndDate]>=C65)*(WNARRates[Region]=H65)*(WNARRates[CustClass]=I65)*WNARRates[AdjCAWNA]) ->  | H65: NEMO | I65: SGS | J65: WNA
B67: SGS Rates for Southeast District (Sheet No. 67.5)
B69: CWNA Table:
B70: Period | C70: Rate First Effective | D70: Months | E70: Rate Ending Effective | F70: CSWNA (Annual)
B71: =$B$13 ->  | C71: =$C$13 ->  | D71: 12 | E71: =EOMONTH(C71,11) ->  | F71: =SUMPRODUCT((WNARRates[BeginDate]=C71)*(WNARRates[Region]=H71)*(WNARRates[CustClass]=I71)*WNARRates[AdjCAWNA]) ->  | H71: SEMO | I71: SGS | J71: CSWNA
B72: =$B$14 ->  | C72: =$C$14 ->  | D72: 12 | E72: =EOMONTH(C72,11) ->  | F72: =SUMPRODUCT((WNARRates[BeginDate]=C72)*(WNARRates[Region]=H72)*(WNARRates[CustClass]=I72)*WNARRates[AdjCAWNA]) ->  | H72: SEMO | I72: SGS | J72: CSWNA
B73: =$B$15 ->  | C73: =$C$15 ->  | D73: 12 | E73: =EOMONTH(C73,11) ->  | F73: =SUMPRODUCT((WNARRates[BeginDate]=C73)*(WNARRates[Region]=H73)*(WNARRates[CustClass]=I73)*WNARRates[AdjCAWNA]) ->  | H73: SEMO | I73: SGS | J73: CSWNA
B75: SRR Table:
B76: Period | C76: Rate First Effective | D76: Months | E76: Rate Ending Effective | F76: SRR (Annual)
B77: =$B$13 ->  | C77: =$C$13 ->  | D77: 12 | E77: =EOMONTH(C77,11) ->  | F77: =SUMPRODUCT((WNARRates[BeginDate]=C77)*(WNARRates[Region]=H77)*(WNARRates[CustClass]=I77)*WNARRates[AdjSRR]) ->  | H77: SEMO | I77: SGS | J77: SRR
B78: =$B$14 ->  | C78: =$C$14 ->  | D78: 12 | E78: =EOMONTH(C78,11) ->  | F78: =SUMPRODUCT((WNARRates[BeginDate]=C78)*(WNARRates[Region]=H78)*(WNARRates[CustClass]=I78)*WNARRates[AdjSRR]) ->  | H78: SEMO | I78: SGS | J78: SRR
B79: =$B$15 ->  | C79: =$C$15 ->  | D79: 12 | E79: =EOMONTH(C79,11) ->  | F79: =SUMPRODUCT((WNARRates[BeginDate]=C79)*(WNARRates[Region]=H79)*(WNARRates[CustClass]=I79)*WNARRates[AdjSRR]) ->  | H79: SEMO | I79: SGS | J79: SRR
B81: WNA Rider Rate:
B82: Period | C82: Rate First Effective | D82: Months | E82: Rate Ending Effective | F82: WNA (Semiannual)
B83: =$B$14 ->  | C83: =$C$14 ->  | D83: 6 | E83: =EOMONTH(C83,D83-1) ->  | F83: =SUMPRODUCT((WNARRates[BeginDate]<=C83)*(WNARRates[EndDate]>=C83)*(WNARRates[Region]=H83)*(WNARRates[CustClass]=I83)*WNARRates[AdjSRR])+SUMPRODUCT((WNARRates[BeginDate]<=C83)*(WNARRates[EndDate]>=C83)*(WNARRates[Region]=H83)*(WNARRates[CustClass]=I83)*WNARRates[AdjCAWNA]) ->  | H83: SEMO | I83: SGS | J83: WNA
B84: =$B$15 ->  | C84: =$C$15 ->  | D84: 6 | E84: =EOMONTH(C84,D84-1) ->  | F84: =SUMPRODUCT((WNARRates[BeginDate]<=C84)*(WNARRates[EndDate]>=C84)*(WNARRates[Region]=H84)*(WNARRates[CustClass]=I84)*WNARRates[AdjSRR])+SUMPRODUCT((WNARRates[BeginDate]<=C84)*(WNARRates[EndDate]>=C84)*(WNARRates[Region]=H84)*(WNARRates[CustClass]=I84)*WNARRates[AdjCAWNA]) ->  | H84: SEMO | I84: SGS | J84: WNA

Sheet Rate Sheet 67.8
B6: WEATHER NORMALIZATION ADJUSTMENT RIDER (CONT'D)
E8: Effective Date: | F8: 46296
B11: Residential Class
B12: District | D12: Northeast | E12: West | F12: Southeast
B13: Sum of Monthly WNA | C13: a | D13: =SUMPRODUCT((ReconPerAdj[EffDate]=$F$8)*(ReconPerAdj[Region]="NEMO")*(ReconPerAdj[CustClass]="Res")*(ReconPerAdj[RateName]="CWNA")*ReconPerAdj[ReconcilingPeriodAdj]) -> 680464.54 | E13: =SUMPRODUCT((ReconPerAdj[EffDate]=$F$8)*(ReconPerAdj[Region]="WEMO")*(ReconPerAdj[CustClass]="Res")*(ReconPerAdj[RateName]="CWNA")*ReconPerAdj[ReconcilingPeriodAdj]) -> 170281.49 | F13: =SUMPRODUCT((ReconPerAdj[EffDate]=$F$8)*(ReconPerAdj[Region]="SEMO")*(ReconPerAdj[CustClass]="Res")*(ReconPerAdj[RateName]="CWNA")*ReconPerAdj[ReconcilingPeriodAdj]) -> 553951.03
B14: Rate Case Normalized Ccf | C14: b | D14: =SUMPRODUCT((BillDeter[Region]="NEMO")*(BillDeter[CustClass]="Res")*(BillDeter[BeginDate]<=$F$8)*(BillDeter[EndDate]>$F$8)*BillDeter[BillingDeterminants]) -> 12307679 | E14: =SUMPRODUCT((BillDeter[Region]="WEMO")*(BillDeter[CustClass]="Res")*(BillDeter[BeginDate]<=$F$8)*(BillDeter[EndDate]>$F$8)*BillDeter[BillingDeterminants]) -> 2469188 | F14: =SUMPRODUCT((BillDeter[Region]="SEMO")*(BillDeter[CustClass]="Res")*(BillDeter[BeginDate]<=$F$8)*(BillDeter[EndDate]>$F$8)*BillDeter[BillingDeterminants]) -> 17185669
B15: Current Annual WNA rate | C15: c =a/b | D15: =D13/D14 -> 0.05528780365 | E15: =E13/E14 -> 0.06896254558 | F15: 0.03223331195
B16: Annual Reconciliation Rate (ARR) | C16: d | D16: =SUMPRODUCT((WNARRates[BeginDate]=$F$8)*(WNARRates[Region]="NEMO")*(WNARRates[CustClass]="Res")*WNARRates[AdjSRR]) -> 0.0074 | E16: =SUMPRODUCT((WNARRates[BeginDate]=$F$8)*(WNARRates[Region]="WEMO")*(WNARRates[CustClass]="Res")*WNARRates[AdjSRR]) -> 0.01158 | F16: =SUMPRODUCT((WNARRates[BeginDate]=$F$8)*(WNARRates[Region]="SEMO")*(WNARRates[CustClass]="Res")*WNARRates[AdjSRR]) -> 0.0066
B17: WNA Rider Rate | C17: e = c + d | D17: =D15+D16 -> 0.06268780365 | E17: =E15+E16 -> 0.08054254558 | F17: 0.03883331195
B20: Small General Service Class
B21: District | D21: Northeast | E21: West | F21: Southeast
B22: Sum of Monthly WNA | C22: a | D22: =SUMPRODUCT((ReconPerAdj[EffDate]=$F$8)*(ReconPerAdj[Region]="NEMO")*(ReconPerAdj[CustClass]="SGS")*(ReconPerAdj[RateName]="CWNA")*ReconPerAdj[ReconcilingPeriodAdj]) -> 86641.92 | E22: =SUMPRODUCT((ReconPerAdj[EffDate]=$F$8)*(ReconPerAdj[Region]="WEMO")*(ReconPerAdj[CustClass]="SGS")*(ReconPerAdj[RateName]="CWNA")*ReconPerAdj[ReconcilingPeriodAdj]) -> 24486.91 | F22: =SUMPRODUCT((ReconPerAdj[EffDate]=$F$8)*(ReconPerAdj[Region]="SEMO")*(ReconPerAdj[CustClass]="SGS")*(ReconPerAdj[RateName]="CWNA")*ReconPerAdj[ReconcilingPeriodAdj]) -> 39180.63
B23: Rate Case Normalized Ccf | C23: b | D23: =SUMPRODUCT((BillDeter[Region]="NEMO")*(BillDeter[CustClass]="SGS")*(BillDeter[BeginDate]<=$F$8)*(BillDeter[EndDate]>$F$8)*BillDeter[BillingDeterminants]) -> 3880055 | E23: =SUMPRODUCT((BillDeter[Region]="WEMO")*(BillDeter[CustClass]="SGS")*(BillDeter[BeginDate]<=$F$8)*(BillDeter[EndDate]>$F$8)*BillDeter[BillingDeterminants]) -> 907146 | F23: =SUMPRODUCT((BillDeter[Region]="SEMO")*(BillDeter[CustClass]="SGS")*(BillDeter[BeginDate]<=$F$8)*(BillDeter[EndDate]>$F$8)*BillDeter[BillingDeterminants]) -> 5009348
B24: Current Annual WNA rate | C24: c =a/b | D24: =D22/D23 -> 0.02233007522 | E24: =E22/E23 -> 0.02699335057 | F24: =F22/F23 -> 0.007821502918
B25: Annual Reconciliation Rate (ARR) | C25: d | D25: =SUMPRODUCT((WNARRates[BeginDate]=$F$8)*(WNARRates[Region]="NEMO")*(WNARRates[CustClass]="SGS")*WNARRates[AdjSRR]) -> 0.00232 | E25: =SUMPRODUCT((WNARRates[BeginDate]=$F$8)*(WNARRates[Region]="WEMO")*(WNARRates[CustClass]="SGS")*WNARRates[AdjSRR]) -> 0.0034 | F25: =SUMPRODUCT((WNARRates[BeginDate]=$F$8)*(WNARRates[Region]="SEMO")*(WNARRates[CustClass]="SGS")*WNARRates[AdjSRR]) -> 0.00103
B26: WNA Rider Rate | C26: e = c + d | D26: =D24+D25 -> 0.02465007522 | E26: =E24+E25 -> 0.03039335057 | F26: =F24+F25 -> 0.008851502918

Sheet CWNA Summary
B2: Liberty Midstates | E2: Year
B3: WNAR Filing
B4: CWNA Summary
B5: Year | C5: =DateSet!C2 -> 2026
B6: CWNA Analysis | C6: =DateSet!D3 -> 45839
B7: New Rate Effec. | C7: =DateSet!$D$4 -> 46296
B9: Current Period Dollar Adjustment
B10: Customer Class | C10: NEMO | E10: WEMO | G10: SEMO | I10: Notes
B11: Month | C11: Res | D11: SGS | E11: Res | F11: SGS | G11: Res | H11: SGS
B12: =C6 -> 2025-07-01 | C12: =SUMPRODUCT((CAWNAAmounts[Month]=$B12)*(CAWNAAmounts[CustClass]=C$11)*(CAWNAAmounts[Region]=C$10)*CAWNAAmounts[CAWNA]) -> 846.4781774 | D12: =SUMPRODUCT((CAWNAAmounts[Month]=$B12)*(CAWNAAmounts[CustClass]=D$11)*(CAWNAAmounts[Region]=C$10)*CAWNAAmounts[CAWNA]) -> 36.74026345 | E12: =SUMPRODUCT((CAWNAAmounts[Month]=$B12)*(CAWNAAmounts[CustClass]=E$11)*(CAWNAAmounts[Region]=$E$10)*CAWNAAmounts[CAWNA]) -> 117.6683691 | F12: =SUMPRODUCT((CAWNAAmounts[Month]=$B12)*(CAWNAAmounts[CustClass]=F$11)*(CAWNAAmounts[Region]=$E$10)*CAWNAAmounts[CAWNA]) -> 0 | G12: =SUMPRODUCT((CAWNAAmounts[Month]=$B12)*(CAWNAAmounts[CustClass]=G$11)*(CAWNAAmounts[Region]=$G$10)*CAWNAAmounts[CAWNA]) -> 372.1216888 | H12: =SUMPRODUCT((CAWNAAmounts[Month]=$B12)*(CAWNAAmounts[CustClass]=H$11)*(CAWNAAmounts[Region]=$G$10)*CAWNAAmounts[CAWNA]) -> 0 | I12: From CWNAAmounts Table
B13: =EDATE(B12,1) -> 2025-08-01 | C13: =SUMPRODUCT((CAWNAAmounts[Month]=$B13)*(CAWNAAmounts[CustClass]=C$11)*(CAWNAAmounts[Region]=C$10)*CAWNAAmounts[CAWNA]) -> -19660.38625 | D13: =SUMPRODUCT((CAWNAAmounts[Month]=$B13)*(CAWNAAmounts[CustClass]=D$11)*(CAWNAAmounts[Region]=C$10)*CAWNAAmounts[CAWNA]) -> -643.8730314 | E13: =SUMPRODUCT((CAWNAAmounts[Month]=$B13)*(CAWNAAmounts[CustClass]=E$11)*(CAWNAAmounts[Region]=$E$10)*CAWNAAmounts[CAWNA]) -> -738.9524663 | F13: =SUMPRODUCT((CAWNAAmounts[Month]=$B13)*(CAWNAAmounts[CustClass]=F$11)*(CAWNAAmounts[Region]=$E$10)*CAWNAAmounts[CAWNA]) -> 33.60251987 | G13: =SUMPRODUCT((CAWNAAmounts[Month]=$B13)*(CAWNAAmounts[CustClass]=G$11)*(CAWNAAmounts[Region]=$G$10)*CAWNAAmounts[CAWNA]) -> -4890.268442 | H13: =SUMPRODUCT((CAWNAAmounts[Month]=$B13)*(CAWNAAmounts[CustClass]=H$11)*(CAWNAAmounts[Region]=$G$10)*CAWNAAmounts[CAWNA]) -> 11.67967487 | I13: From CWNAAmounts Table
B14: 2025-09-01 | C14: =SUMPRODUCT((CAWNAAmounts[Month]=$B14)*(CAWNAAmounts[CustClass]=C$11)*(CAWNAAmounts[Region]=C$10)*CAWNAAmounts[CAWNA]) -> 129674.7812 | D14: =SUMPRODUCT((CAWNAAmounts[Month]=$B14)*(CAWNAAmounts[CustClass]=D$11)*(CAWNAAmounts[Region]=C$10)*CAWNAAmounts[CAWNA]) -> 11844.6341 | E14: =SUMPRODUCT((CAWNAAmounts[Month]=$B14)*(CAWNAAmounts[CustClass]=E$11)*(CAWNAAmounts[Region]=$E$10)*CAWNAAmounts[CAWNA]) -> 26342.05843 | F14: =SUMPRODUCT((CAWNAAmounts[Month]=$B14)*(CAWNAAmounts[CustClass]=F$11)*(CAWNAAmounts[Region]=$E$10)*CAWNAAmounts[CAWNA]) -> 2341.216194 | G14: =SUMPRODUCT((CAWNAAmounts[Month]=$B14)*(CAWNAAmounts[CustClass]=G$11)*(CAWNAAmounts[Region]=$G$10)*CAWNAAmounts[CAWNA]) -> 64591.09632 | H14: =SUMPRODUCT((CAWNAAmounts[Month]=$B14)*(CAWNAAmounts[CustClass]=H$11)*(CAWNAAmounts[Region]=$G$10)*CAWNAAmounts[CAWNA]) -> 2859.400468 | I14: From CWNAAmounts Table
B15: 2025-10-01 | C15: =SUMPRODUCT((CAWNAAmounts[Month]=$B15)*(CAWNAAmounts[CustClass]=C$11)*(CAWNAAmounts[Region]=C$10)*CAWNAAmounts[CAWNA]) -> 67361.53054 | D15: =SUMPRODUCT((CAWNAAmounts[Month]=$B15)*(CAWNAAmounts[CustClass]=D$11)*(CAWNAAmounts[Region]=C$10)*CAWNAAmounts[CAWNA]) -> 9432.490041 | E15: =SUMPRODUCT((CAWNAAmounts[Month]=$B15)*(CAWNAAmounts[CustClass]=E$11)*(CAWNAAmounts[Region]=$E$10)*CAWNAAmounts[CAWNA]) -> 14945.94631 | F15: =SUMPRODUCT((CAWNAAmounts[Month]=$B15)*(CAWNAAmounts[CustClass]=F$11)*(CAWNAAmounts[Region]=$E$10)*CAWNAAmounts[CAWNA]) -> 2557.033487 | G15: =SUMPRODUCT((CAWNAAmounts[Month]=$B15)*(CAWNAAmounts[CustClass]=G$11)*(CAWNAAmounts[Region]=$G$10)*CAWNAAmounts[CAWNA]) -> 50111.94481 | H15: =SUMPRODUCT((CAWNAAmounts[Month]=$B15)*(CAWNAAmounts[CustClass]=H$11)*(CAWNAAmounts[Region]=$G$10)*CAWNAAmounts[CAWNA]) -> 4519.2365 | I15: From CWNAAmounts Table
B16: 2025-11-01 | C16: =SUMPRODUCT((CAWNAAmounts[Month]=$B16)*(CAWNAAmounts[CustClass]=C$11)*(CAWNAAmounts[Region]=C$10)*CAWNAAmounts[CAWNA]) -> -103451.2516 | D16: =SUMPRODUCT((CAWNAAmounts[Month]=$B16)*(CAWNAAmounts[CustClass]=D$11)*(CAWNAAmounts[Region]=C$10)*CAWNAAmounts[CAWNA]) -> -15588.15487 | E16: =SUMPRODUCT((CAWNAAmounts[Month]=$B16)*(CAWNAAmounts[CustClass]=E$11)*(CAWNAAmounts[Region]=$E$10)*CAWNAAmounts[CAWNA]) -> -19378.88932 | F16: =SUMPRODUCT((CAWNAAmounts[Month]=$B16)*(CAWNAAmounts[CustClass]=F$11)*(CAWNAAmounts[Region]=$E$10)*CAWNAAmounts[CAWNA]) -> -3229.081768 | G16: =SUMPRODUCT((CAWNAAmounts[Month]=$B16)*(CAWNAAmounts[CustClass]=G$11)*(CAWNAAmounts[Region]=$G$10)*CAWNAAmounts[CAWNA]) -> -38149.05302 | H16: =SUMPRODUCT((CAWNAAmounts[Month]=$B16)*(CAWNAAmounts[CustClass]=H$11)*(CAWNAAmounts[Region]=$G$10)*CAWNAAmounts[CAWNA]) -> -3521.023311 | I16: From CWNAAmounts Table
B17: 2025-12-01 | C17: =SUMPRODUCT((CAWNAAmounts[Month]=$B17)*(CAWNAAmounts[CustClass]=C$11)*(CAWNAAmounts[Region]=C$10)*CAWNAAmounts[CAWNA]) -> 177307.1296 | D17: =SUMPRODUCT((CAWNAAmounts[Month]=$B17)*(CAWNAAmounts[CustClass]=D$11)*(CAWNAAmounts[Region]=C$10)*CAWNAAmounts[CAWNA]) -> 26561.28868 | E17: =SUMPRODUCT((CAWNAAmounts[Month]=$B17)*(CAWNAAmounts[CustClass]=E$11)*(CAWNAAmounts[Region]=$E$10)*CAWNAAmounts[CAWNA]) -> 63174.25055 | F17: =SUMPRODUCT((CAWNAAmounts[Month]=$B17)*(CAWNAAmounts[CustClass]=F$11)*(CAWNAAmounts[Region]=$E$10)*CAWNAAmounts[CAWNA]) -> 10779.84448 | G17: =SUMPRODUCT((CAWNAAmounts[Month]=$B17)*(CAWNAAmounts[CustClass]=G$11)*(CAWNAAmounts[Region]=$G$10)*CAWNAAmounts[CAWNA]) -> 145302.886 | H17: =SUMPRODUCT((CAWNAAmounts[Month]=$B17)*(CAWNAAmounts[CustClass]=H$11)*(CAWNAAmounts[Region]=$G$10)*CAWNAAmounts[CAWNA]) -> 13212.45393 | I17: From CWNAAmounts Table
B18: 2026-01-01 | C18: =SUMPRODUCT((CAWNAAmounts[Month]=$B18)*(CAWNAAmounts[CustClass]=C$11)*(CAWNAAmounts[Region]=C$10)*CAWNAAmounts[CAWNA]) -> -46711.47527 | D18: =SUMPRODUCT((CAWNAAmounts[Month]=$B18)*(CAWNAAmounts[CustClass]=D$11)*(CAWNAAmounts[Region]=C$10)*CAWNAAmounts[CAWNA]) -> -5889.60023 | E18: =SUMPRODUCT((CAWNAAmounts[Month]=$B18)*(CAWNAAmounts[CustClass]=E$11)*(CAWNAAmounts[Region]=$E$10)*CAWNAAmounts[CAWNA]) -> 14194.38666 | F18: =SUMPRODUCT((CAWNAAmounts[Month]=$B18)*(CAWNAAmounts[CustClass]=F$11)*(CAWNAAmounts[Region]=$E$10)*CAWNAAmounts[CAWNA]) -> 2403.115796 | G18: =SUMPRODUCT((CAWNAAmounts[Month]=$B18)*(CAWNAAmounts[CustClass]=G$11)*(CAWNAAmounts[Region]=$G$10)*CAWNAAmounts[CAWNA]) -> -206292.0346 | H18: =SUMPRODUCT((CAWNAAmounts[Month]=$B18)*(CAWNAAmounts[CustClass]=H$11)*(CAWNAAmounts[Region]=$G$10)*CAWNAAmounts[CAWNA]) -> -19711.91897 | I18: From CWNAAmounts Table
B19: =EDATE(B18,1) -> 2026-02-01 | C19: =SUMPRODUCT((CAWNAAmounts[Month]=$B19)*(CAWNAAmounts[CustClass]=C$11)*(CAWNAAmounts[Region]=C$10)*CAWNAAmounts[CAWNA]) -> 235511.9354 | D19: =SUMPRODUCT((CAWNAAmounts[Month]=$B19)*(CAWNAAmounts[CustClass]=D$11)*(CAWNAAmounts[Region]=C$10)*CAWNAAmounts[CAWNA]) -> 33645.74805 | E19: =SUMPRODUCT((CAWNAAmounts[Month]=$B19)*(CAWNAAmounts[CustClass]=E$11)*(CAWNAAmounts[Region]=$E$10)*CAWNAAmounts[CAWNA]) -> 16695.86688 | F19: =SUMPRODUCT((CAWNAAmounts[Month]=$B19)*(CAWNAAmounts[CustClass]=F$11)*(CAWNAAmounts[Region]=$E$10)*CAWNAAmounts[CAWNA]) -> 2485.526512 | G19: =SUMPRODUCT((CAWNAAmounts[Month]=$B19)*(CAWNAAmounts[CustClass]=G$11)*(CAWNAAmounts[Region]=$G$10)*CAWNAAmounts[CAWNA]) -> 204749.4657 | H19: =SUMPRODUCT((CAWNAAmounts[Month]=$B19)*(CAWNAAmounts[CustClass]=H$11)*(CAWNAAmounts[Region]=$G$10)*CAWNAAmounts[CAWNA]) -> 18118.00199 | I19: From CWNAAmounts Table
B20: =EDATE(B19,1) -> 2026-03-01 | C20: =SUMPRODUCT((CAWNAAmounts[Month]=$B20)*(CAWNAAmounts[CustClass]=C$11)*(CAWNAAmounts[Region]=C$10)*CAWNAAmounts[CAWNA]) -> 127713.4461 | D20: =SUMPRODUCT((CAWNAAmounts[Month]=$B20)*(CAWNAAmounts[CustClass]=D$11)*(CAWNAAmounts[Region]=C$10)*CAWNAAmounts[CAWNA]) -> 16308.93683 | E20: =SUMPRODUCT((CAWNAAmounts[Month]=$B20)*(CAWNAAmounts[CustClass]=E$11)*(CAWNAAmounts[Region]=$E$10)*CAWNAAmounts[CAWNA]) -> 49876.1913 | F20: =SUMPRODUCT((CAWNAAmounts[Month]=$B20)*(CAWNAAmounts[CustClass]=F$11)*(CAWNAAmounts[Region]=$E$10)*CAWNAAmounts[CAWNA]) -> 6644.147442 | G20: =SUMPRODUCT((CAWNAAmounts[Month]=$B20)*(CAWNAAmounts[CustClass]=G$11)*(CAWNAAmounts[Region]=$G$10)*CAWNAAmounts[CAWNA]) -> 235720.0552 | H20: =SUMPRODUCT((CAWNAAmounts[Month]=$B20)*(CAWNAAmounts[CustClass]=H$11)*(CAWNAAmounts[Region]=$G$10)*CAWNAAmounts[CAWNA]) -> 17504.13145 | I20: From CWNAAmounts Table
B21: =EDATE(B20,1) -> 2026-04-01 | C21: =SUMPRODUCT((CAWNAAmounts[Month]=$B21)*(CAWNAAmounts[CustClass]=C$11)*(CAWNAAmounts[Region]=C$10)*CAWNAAmounts[CAWNA]) -> 77015.89777 | D21: =SUMPRODUCT((CAWNAAmounts[Month]=$B21)*(CAWNAAmounts[CustClass]=D$11)*(CAWNAAmounts[Region]=C$10)*CAWNAAmounts[CAWNA]) -> 8302.189625 | E21: =SUMPRODUCT((CAWNAAmounts[Month]=$B21)*(CAWNAAmounts[CustClass]=E$11)*(CAWNAAmounts[Region]=$E$10)*CAWNAAmounts[CAWNA]) -> 4939.742776 | F21: =SUMPRODUCT((CAWNAAmounts[Month]=$B21)*(CAWNAAmounts[CustClass]=F$11)*(CAWNAAmounts[Region]=$E$10)*CAWNAAmounts[CAWNA]) -> 507.3461107 | G21: =SUMPRODUCT((CAWNAAmounts[Month]=$B21)*(CAWNAAmounts[CustClass]=G$11)*(CAWNAAmounts[Region]=$G$10)*CAWNAAmounts[CAWNA]) -> 90580.31047 | H21: =SUMPRODUCT((CAWNAAmounts[Month]=$B21)*(CAWNAAmounts[CustClass]=H$11)*(CAWNAAmounts[Region]=$G$10)*CAWNAAmounts[CAWNA]) -> 5907.363418 | I21: From CWNAAmounts Table
B22: =EDATE(B21,1) -> 2026-05-01 | C22: =SUMPRODUCT((CAWNAAmounts[Month]=$B22)*(CAWNAAmounts[CustClass]=C$11)*(CAWNAAmounts[Region]=C$10)*CAWNAAmounts[CAWNA]) -> 34182.2343 | D22: =SUMPRODUCT((CAWNAAmounts[Month]=$B22)*(CAWNAAmounts[CustClass]=D$11)*(CAWNAAmounts[Region]=C$10)*CAWNAAmounts[CAWNA]) -> 2624.130411 | E22: =SUMPRODUCT((CAWNAAmounts[Month]=$B22)*(CAWNAAmounts[CustClass]=E$11)*(CAWNAAmounts[Region]=$E$10)*CAWNAAmounts[CAWNA]) -> -19.73768717 | F22: =SUMPRODUCT((CAWNAAmounts[Month]=$B22)*(CAWNAAmounts[CustClass]=F$11)*(CAWNAAmounts[Region]=$E$10)*CAWNAAmounts[CAWNA]) -> -35.84028849 | G22: =SUMPRODUCT((CAWNAAmounts[Month]=$B22)*(CAWNAAmounts[CustClass]=G$11)*(CAWNAAmounts[Region]=$G$10)*CAWNAAmounts[CAWNA]) -> 11704.65441 | H22: =SUMPRODUCT((CAWNAAmounts[Month]=$B22)*(CAWNAAmounts[CustClass]=H$11)*(CAWNAAmounts[Region]=$G$10)*CAWNAAmounts[CAWNA]) -> 281.3068317 | I22: From CWNAAmounts Table
B23: =EDATE(B22,1) -> 2026-06-01 | C23: =SUMPRODUCT((CAWNAAmounts[Month]=$B23)*(CAWNAAmounts[CustClass]=C$11)*(CAWNAAmounts[Region]=C$10)*CAWNAAmounts[CAWNA]) -> 674.2198867 | D23: =SUMPRODUCT((CAWNAAmounts[Month]=$B23)*(CAWNAAmounts[CustClass]=D$11)*(CAWNAAmounts[Region]=C$10)*CAWNAAmounts[CAWNA]) -> 7.392586343 | E23: =SUMPRODUCT((CAWNAAmounts[Month]=$B23)*(CAWNAAmounts[CustClass]=E$11)*(CAWNAAmounts[Region]=$E$10)*CAWNAAmounts[CAWNA]) -> 132.9624372 | F23: =SUMPRODUCT((CAWNAAmounts[Month]=$B23)*(CAWNAAmounts[CustClass]=F$11)*(CAWNAAmounts[Region]=$E$10)*CAWNAAmounts[CAWNA]) -> 0 | G23: =SUMPRODUCT((CAWNAAmounts[Month]=$B23)*(CAWNAAmounts[CustClass]=G$11)*(CAWNAAmounts[Region]=$G$10)*CAWNAAmounts[CAWNA]) -> 149.855537 | H23: =SUMPRODUCT((CAWNAAmounts[Month]=$B23)*(CAWNAAmounts[CustClass]=H$11)*(CAWNAAmounts[Region]=$G$10)*CAWNAAmounts[CAWNA]) -> 0 | I23: From CWNAAmounts Table
B24: Total Adjustment | C24: =SUM(C12:C23) -> 680464.5399 | D24: =SUM(D12:D23) -> 86641.92246 | E24: 170281.4942 | F24: 24486.91048 | G24: 553951.0341 | H24: 39180.63198
B26: CWNA Rate Calculation | C26: NEMO | E26: WEMO | G26: SEMO | I26: Notes
C27: Res | D27: SGS | E27: Res | F27: SGS | G27: Res | H27: SGS
B28: Billing Determinants | C28: =SUMPRODUCT((BillDeter[Region]=$C26)*(BillDeter[CustClass]=C27)*(BillDeter[BeginDate]<=$C$7)*(BillDeter[EndDate]>$C$7)*BillDeter[BillingDeterminants]) -> 12307679 | D28: =SUMPRODUCT((BillDeter[Region]=$C26)*(BillDeter[CustClass]=D27)*(BillDeter[BeginDate]<=$C$7)*(BillDeter[EndDate]>$C$7)*BillDeter[BillingDeterminants]) -> 3880055 | E28: =SUMPRODUCT((BillDeter[Region]=$E26)*(BillDeter[CustClass]=E27)*(BillDeter[BeginDate]<=$C$7)*(BillDeter[EndDate]>$C$7)*BillDeter[BillingDeterminants]) -> 2469188 | F28: =SUMPRODUCT((BillDeter[Region]=$E26)*(BillDeter[CustClass]=F27)*(BillDeter[BeginDate]<=$C$7)*(BillDeter[EndDate]>$C$7)*BillDeter[BillingDeterminants]) -> 907146 | G28: =SUMPRODUCT((BillDeter[Region]=$G26)*(BillDeter[CustClass]=G27)*(BillDeter[BeginDate]<=$C$7)*(BillDeter[EndDate]>$C$7)*BillDeter[BillingDeterminants]) -> 17185669 | H28: =SUMPRODUCT((BillDeter[Region]=$G26)*(BillDeter[CustClass]=H27)*(BillDeter[BeginDate]<=$C$7)*(BillDeter[EndDate]>$C$7)*BillDeter[BillingDeterminants]) -> 5009348 | I28: From BillDeter Table
B29: CAWNA Unadjusted | C29: =ROUND(C24/C28,5) -> 0.05529 | D29: 0.02233 | E29: =ROUND(E24/E28,5) -> 0.06896 | F29: 0.02699 | G29: =ROUND(G24/G28,5) -> 0.03223 | H29: =ROUND(H24/H28,5) -> 0.00782
B30: WNA Limit Adjust. | C30: =D46 -> 0 | D30: =E46 -> 0 | E30: 0 | F30: 0 | G30: 0 | H30: 0
B31: CAWNA Adjusted | C31: =C29+C30 -> 0.05529 | D31: =D29+D30 -> 0.02233 | E31: 0.06896 | F31: 0.02699 | G31: 0.03223 | H31: 0.00782
B32: Enter these rates in the CSWNA column of the WNAR Rates table.
B34: New WNA Rate Calculation | D34: NEMO | F34: WEMO | H34: SEMO
B35: Rate | C35: Eff. Date | D35: Res | E35: SGS | F35: Res | G35: SGS | H35: Res | I35: SGS
B36: CAWNA | C36: =$C$7 -> 46296 | D36: =SUMPRODUCT((WNARRates[BeginDate]=$C36)*(WNARRates[Region]=$D$34)*(WNARRates[CustClass]=D$35)*WNARRates[CAWNA]) -> 0.05529 | E36: =SUMPRODUCT((WNARRates[BeginDate]=$C36)*(WNARRates[Region]=$D$34)*(WNARRates[CustClass]=E$35)*WNARRates[CAWNA]) -> 0.02233 | F36: =SUMPRODUCT((WNARRates[BeginDate]=$C36)*(WNARRates[Region]=$F$34)*(WNARRates[CustClass]=F$35)*WNARRates[CAWNA]) -> 0.06896 | G36: =SUMPRODUCT((WNARRates[BeginDate]=$C36)*(WNARRates[Region]=$F$34)*(WNARRates[CustClass]=G$35)*WNARRates[CAWNA]) -> 0.02699 | H36: =SUMPRODUCT((WNARRates[BeginDate]=$C36)*(WNARRates[Region]=$H$34)*(WNARRates[CustClass]=H$35)*WNARRates[CAWNA]) -> 0.03223 | I36: =SUMPRODUCT((WNARRates[BeginDate]=$C36)*(WNARRates[Region]=$H$34)*(WNARRates[CustClass]=I$35)*WNARRates[CAWNA]) -> 0.00782
B37: ARR | C37: =$C$7 -> 46296 | D37: =SUMPRODUCT((WNARRates[BeginDate]=$C37)*(WNARRates[Region]="NEMO")*(WNARRates[CustClass]=D$35)*WNARRates[SRR]) -> 0.0074 | E37: =SUMPRODUCT((WNARRates[BeginDate]=$C37)*(WNARRates[Region]="NEMO")*(WNARRates[CustClass]=E$35)*WNARRates[SRR]) -> 0.00232 | F37: =SUMPRODUCT((WNARRates[BeginDate]=$C37)*(WNARRates[Region]=$F$34)*(WNARRates[CustClass]=F$35)*WNARRates[SRR]) -> 0.01158 | G37: =SUMPRODUCT((WNARRates[BeginDate]=$C37)*(WNARRates[Region]=$F$34)*(WNARRates[CustClass]=G$35)*WNARRates[SRR]) -> 0.0034 | H37: =SUMPRODUCT((WNARRates[BeginDate]=$C37)*(WNARRates[Region]=$H$34)*(WNARRates[CustClass]=H$35)*WNARRates[SRR]) -> 0.0066 | I37: =SUMPRODUCT((WNARRates[BeginDate]=$C37)*(WNARRates[Region]=$H$34)*(WNARRates[CustClass]=I$35)*WNARRates[SRR]) -> 0.00103
B38: Proposed WNA | D38: =SUM(D36:D37) -> 0.06269 | E38: 0.02465 | F38: 0.08054 | G38: 0.03039 | H38: 0.03883 | I38: 0.00885
B40: Change Limit Calculations | D40: NEMO | F40: WEMO | H40: SEMO
C41: Eff. Date | D41: Res | E41: SGS | F41: Res | G41: SGS | H41: Res | I41: SGS
B42: Prior Period WNA Rate | C42: =EDATE($C$7,-12) -> 45931 | D42: =SUMPRODUCT((WNARRates[BeginDate]<=$C$42)*(WNARRates[EndDate]>=$C$42)*(WNARRates[Region]=$D$40)*(WNARRates[CustClass]=D41)*WNARRates[Combined]) -> 0.035 | E42: =SUMPRODUCT((WNARRates[BeginDate]<=$C$42)*(WNARRates[EndDate]>=$C$42)*(WNARRates[Region]=$D$40)*(WNARRates[CustClass]=E41)*WNARRates[Combined]) -> 0.01357 | F42: =SUMPRODUCT((WNARRates[BeginDate]<=$C$42)*(WNARRates[EndDate]>=$C$42)*(WNARRates[Region]=$F$40)*(WNARRates[CustClass]=F41)*WNARRates[Combined]) -> 0.04113 | G42: =SUMPRODUCT((WNARRates[BeginDate]<=$C$42)*(WNARRates[EndDate]>=$C$42)*(WNARRates[Region]=$F$40)*(WNARRates[CustClass]=G41)*WNARRates[Combined]) -> 0.01539 | H42: =SUMPRODUCT((WNARRates[BeginDate]<=$C$42)*(WNARRates[EndDate]>=$C$42)*(WNARRates[Region]=$H$40)*(WNARRates[CustClass]=H41)*WNARRates[Combined]) -> 0.03042 | I42: =SUMPRODUCT((WNARRates[BeginDate]<=$C$42)*(WNARRates[EndDate]>=$C$42)*(WNARRates[Region]=$H$40)*(WNARRates[CustClass]=I41)*WNARRates[Combined]) -> 0.00583
B43: Current WNA Rate | D43: =D38 -> 0.06269 | E43: =E38 -> 0.02465 | F43: 0.08054 | G43: 0.03039 | H43: 0.03883 | I43: 0.00885
B44: Change from Prior Period | D44: =D43-D42 -> 0.02769 | E44: =E43-E42 -> 0.01108 | F44: 0.03941 | G44: 0.015 | H44: 0.00841 | I44: 0.00302
B45: Change Limit | D45: 0.05 | E45: 0.05 | F45: 0.05 | G45: 0.05 | H45: 0.05 | I45: 0.05
B46: Change Limit Adjustment | D46: =IF(D45>D44,0,D45-D44) -> 0 | E46: 0 | F46: 0 | G46: 0 | H46: 0 | I46: 0
B47: Excess Limit Amount | D47: =D46*C28 -> 0 | E47: =E46*D28 -> 0 | F47: 0 | G47: 0 | H47: 0 | I47: 0

Sheet ARR Summary
B2: Liberty Midstates | E2: Year
B3: WNAR Filing
B4: SRR Summary
B5: Year | C5: =DateSet!C2 -> 2026
B6: Billed Rev. From | C6: =EDATE(C7,-12) -> 45931
B7: New Rate Effec. | C7: =DateSet!$D$4 -> 46296
B10: Reconciliation Summary | C10: CWNA
B11: Region | C11: NEMO | E11: WEMO | G11: SEMO | I11: Notes
B12: Customer Class | C12: Res | D12: SGS | E12: Res | F12: SGS | G12: Res | H12: SGS
B13: Reconciling Period Adj. | C13: =SUMPRODUCT((ReconPerAdj[EffDate]=$C$6)*(ReconPerAdj[Region]=$C$11)*(ReconPerAdj[CustClass]=C$12)*(ReconPerAdj[RateName]=$C$10)*ReconPerAdj[ReconcilingPeriodAdj]) -> 329759.49 | D13: =SUMPRODUCT((ReconPerAdj[EffDate]=$C$6)*(ReconPerAdj[Region]=$C$11)*(ReconPerAdj[CustClass]=D$12)*(ReconPerAdj[RateName]=$C$10)*ReconPerAdj[ReconcilingPeriodAdj]) -> 39707.57 | E13: =SUMPRODUCT((ReconPerAdj[EffDate]=$C$6)*(ReconPerAdj[Region]=$E$11)*(ReconPerAdj[CustClass]=E$12)*(ReconPerAdj[RateName]=$C$10)*ReconPerAdj[ReconcilingPeriodAdj]) -> 58106.6 | F13: =SUMPRODUCT((ReconPerAdj[EffDate]=$C$6)*(ReconPerAdj[Region]=$E$11)*(ReconPerAdj[CustClass]=F$12)*(ReconPerAdj[RateName]=$C$10)*ReconPerAdj[ReconcilingPeriodAdj]) -> 8553.94 | G13: =SUMPRODUCT((ReconPerAdj[EffDate]=$C$6)*(ReconPerAdj[Region]=$G$11)*(ReconPerAdj[CustClass]=G$12)*(ReconPerAdj[RateName]=$C$10)*ReconPerAdj[ReconcilingPeriodAdj]) -> 394534.23 | H13: =SUMPRODUCT((ReconPerAdj[EffDate]=$C$6)*(ReconPerAdj[Region]=$G$11)*(ReconPerAdj[CustClass]=H$12)*(ReconPerAdj[RateName]=$C$10)*ReconPerAdj[ReconcilingPeriodAdj]) -> 30918.47 | I13: From ReconPerAdj Table
B14: PPA Correction | C14: =SUMPRODUCT((PPA[Year]=$C$5)*(PPA[Region]=$C$11)*(PPA[CustClass]=C$12)*(PPA[RateName]=$C$10)*PPA[Amount]) -> 0 | D14: =SUMPRODUCT((PPA[Year]=$C$5)*(PPA[Region]=$C$11)*(PPA[CustClass]=D$12)*(PPA[RateName]=$C$10)*PPA[Amount]) -> 0 | E14: =SUMPRODUCT((PPA[Year]=$C$5)*(PPA[Region]=$E$11)*(PPA[CustClass]=E$12)*(PPA[RateName]=$C$10)*PPA[Amount]) -> 0 | F14: =SUMPRODUCT((PPA[Year]=$C$5)*(PPA[Region]=$E$11)*(PPA[CustClass]=F$12)*(PPA[RateName]=$C$10)*PPA[Amount]) -> 0 | G14: =SUMPRODUCT((PPA[Year]=$C$5)*(PPA[Region]=$G$11)*(PPA[CustClass]=G$12)*(PPA[RateName]=$C$10)*PPA[Amount]) -> 0 | H14: =SUMPRODUCT((PPA[Year]=$C$5)*(PPA[Region]=$G$11)*(PPA[CustClass]=H$12)*(PPA[RateName]=$C$10)*PPA[Amount]) -> 0 | I14: From PriorPerAdj Table
B15: Net Reconciling Period Adj. | C15: =C13+C14 -> 329759.49 | D15: 39707.57 | E15: 58106.6 | F15: 8553.94 | G15: 394534.23 | H15: 30918.47
B16: Actual Revenues
B17: =C6 -> 2025-10-01 | C17: =-SUMPRODUCT((WNARevAlloc[MonthFlow]=$B17)*(WNARevAlloc[Region]=$C$11)*(WNARevAlloc[CustClass]=C$12)*WNARevAlloc[AdjCAWNARev]) -> -20007.0334 | D17: =-SUMPRODUCT((WNARevAlloc[MonthFlow]=$B17)*(WNARevAlloc[Region]=$C$11)*(WNARevAlloc[CustClass]=D$12)*WNARevAlloc[AdjCAWNARev]) -> -2194.411888 | E17: =-SUMPRODUCT((WNARevAlloc[MonthFlow]=$B17)*(WNARevAlloc[Region]=$E$11)*(WNARevAlloc[CustClass]=E$12)*WNARevAlloc[AdjCAWNARev]) -> -27.93173074 | F17: =-SUMPRODUCT((WNARevAlloc[MonthFlow]=$B17)*(WNARevAlloc[Region]=$E$11)*(WNARevAlloc[CustClass]=F$12)*WNARevAlloc[AdjCAWNARev]) -> 0 | G17: =-SUMPRODUCT((WNARevAlloc[MonthFlow]=$B17)*(WNARevAlloc[Region]=$G$11)*(WNARevAlloc[CustClass]=G$12)*WNARevAlloc[AdjCAWNARev]) -> -18259.91329 | H17: =-SUMPRODUCT((WNARevAlloc[MonthFlow]=$B17)*(WNARevAlloc[Region]=$G$11)*(WNARevAlloc[CustClass]=H$12)*WNARevAlloc[AdjCAWNARev]) -> -1260.884827 | I17: From WNARevAlloc Table
B18: =EDATE(B17,1) -> 2025-11-01 | C18: =-SUMPRODUCT((WNARevAlloc[MonthFlow]=$B18)*(WNARevAlloc[Region]=$C$11)*(WNARevAlloc[CustClass]=C$12)*WNARevAlloc[AdjCAWNARev]) -> -46088.54788 | D18: =-SUMPRODUCT((WNARevAlloc[MonthFlow]=$B18)*(WNARevAlloc[Region]=$C$11)*(WNARevAlloc[CustClass]=D$12)*WNARevAlloc[AdjCAWNARev]) -> -5600.785534 | E18: =-SUMPRODUCT((WNARevAlloc[MonthFlow]=$B18)*(WNARevAlloc[Region]=$E$11)*(WNARevAlloc[CustClass]=E$12)*WNARevAlloc[AdjCAWNARev]) -> -11046.25322 | F18: =-SUMPRODUCT((WNARevAlloc[MonthFlow]=$B18)*(WNARevAlloc[Region]=$E$11)*(WNARevAlloc[CustClass]=F$12)*WNARevAlloc[AdjCAWNARev]) -> -1657.161657 | G18: =-SUMPRODUCT((WNARevAlloc[MonthFlow]=$B18)*(WNARevAlloc[Region]=$G$11)*(WNARevAlloc[CustClass]=G$12)*WNARevAlloc[AdjCAWNARev]) -> -45338.08143 | H18: =-SUMPRODUCT((WNARevAlloc[MonthFlow]=$B18)*(WNARevAlloc[Region]=$G$11)*(WNARevAlloc[CustClass]=H$12)*WNARevAlloc[AdjCAWNARev]) -> -3600.559649 | I18: From WNARevAlloc Table
B19: =EDATE(B18,1) -> 2025-12-01 | C19: =-SUMPRODUCT((WNARevAlloc[MonthFlow]=$B19)*(WNARevAlloc[Region]=$C$11)*(WNARevAlloc[CustClass]=C$12)*WNARevAlloc[AdjCAWNARev]) -> -47842.94686 | D19: =-SUMPRODUCT((WNARevAlloc[MonthFlow]=$B19)*(WNARevAlloc[Region]=$C$11)*(WNARevAlloc[CustClass]=D$12)*WNARevAlloc[AdjCAWNARev]) -> -6173.872291 | E19: =-SUMPRODUCT((WNARevAlloc[MonthFlow]=$B19)*(WNARevAlloc[Region]=$E$11)*(WNARevAlloc[CustClass]=E$12)*WNARevAlloc[AdjCAWNARev]) -> -7156.343134 | F19: =-SUMPRODUCT((WNARevAlloc[MonthFlow]=$B19)*(WNARevAlloc[Region]=$E$11)*(WNARevAlloc[CustClass]=F$12)*WNARevAlloc[AdjCAWNARev]) -> -1138.645821 | G19: =-SUMPRODUCT((WNARevAlloc[MonthFlow]=$B19)*(WNARevAlloc[Region]=$G$11)*(WNARevAlloc[CustClass]=G$12)*WNARevAlloc[AdjCAWNARev]) -> -58711.53967 | H19: =-SUMPRODUCT((WNARevAlloc[MonthFlow]=$B19)*(WNARevAlloc[Region]=$G$11)*(WNARevAlloc[CustClass]=H$12)*WNARevAlloc[AdjCAWNARev]) -> -4918.209657 | I19: From WNARevAlloc Table
B20: 2026-01-01 | C20: =-SUMPRODUCT((WNARevAlloc[MonthFlow]=$B20)*(WNARevAlloc[Region]=$C$11)*(WNARevAlloc[CustClass]=C$12)*WNARevAlloc[AdjCAWNARev]) -> -64392.95605 | D20: =-SUMPRODUCT((WNARevAlloc[MonthFlow]=$B20)*(WNARevAlloc[Region]=$C$11)*(WNARevAlloc[CustClass]=D$12)*WNARevAlloc[AdjCAWNARev]) -> -8284.859161 | E20: =-SUMPRODUCT((WNARevAlloc[MonthFlow]=$B20)*(WNARevAlloc[Region]=$E$11)*(WNARevAlloc[CustClass]=E$12)*WNARevAlloc[AdjCAWNARev]) -> -11266.85966 | F20: =-SUMPRODUCT((WNARevAlloc[MonthFlow]=$B20)*(WNARevAlloc[Region]=$E$11)*(WNARevAlloc[CustClass]=F$12)*WNARevAlloc[AdjCAWNARev]) -> -1877.525867 | G20: =-SUMPRODUCT((WNARevAlloc[MonthFlow]=$B20)*(WNARevAlloc[Region]=$G$11)*(WNARevAlloc[CustClass]=G$12)*WNARevAlloc[AdjCAWNARev]) -> -86066.02446 | H20: =-SUMPRODUCT((WNARevAlloc[MonthFlow]=$B20)*(WNARevAlloc[Region]=$G$11)*(WNARevAlloc[CustClass]=H$12)*WNARevAlloc[AdjCAWNARev]) -> -7318.30979 | I20: From WNARevAlloc Table
B21: 2026-02-01 | C21: =-SUMPRODUCT((WNARevAlloc[MonthFlow]=$B21)*(WNARevAlloc[Region]=$C$11)*(WNARevAlloc[CustClass]=C$12)*WNARevAlloc[AdjCAWNARev]) -> -33651.38591 | D21: =-SUMPRODUCT((WNARevAlloc[MonthFlow]=$B21)*(WNARevAlloc[Region]=$C$11)*(WNARevAlloc[CustClass]=D$12)*WNARevAlloc[AdjCAWNARev]) -> -4222.707909 | E21: =-SUMPRODUCT((WNARevAlloc[MonthFlow]=$B21)*(WNARevAlloc[Region]=$E$11)*(WNARevAlloc[CustClass]=E$12)*WNARevAlloc[AdjCAWNARev]) -> -5870.501709 | F21: =-SUMPRODUCT((WNARevAlloc[MonthFlow]=$B21)*(WNARevAlloc[Region]=$E$11)*(WNARevAlloc[CustClass]=F$12)*WNARevAlloc[AdjCAWNARev]) -> -921.2172515 | G21: =-SUMPRODUCT((WNARevAlloc[MonthFlow]=$B21)*(WNARevAlloc[Region]=$G$11)*(WNARevAlloc[CustClass]=G$12)*WNARevAlloc[AdjCAWNARev]) -> -41651.8801 | H21: =-SUMPRODUCT((WNARevAlloc[MonthFlow]=$B21)*(WNARevAlloc[Region]=$G$11)*(WNARevAlloc[CustClass]=H$12)*WNARevAlloc[AdjCAWNARev]) -> -3427.080463 | I21: From WNARevAlloc Table
B22: 2026-03-01 | C22: =-SUMPRODUCT((WNARevAlloc[MonthFlow]=$B22)*(WNARevAlloc[Region]=$C$11)*(WNARevAlloc[CustClass]=C$12)*WNARevAlloc[AdjCAWNARev]) -> -20074.9127 | D22: =-SUMPRODUCT((WNARevAlloc[MonthFlow]=$B22)*(WNARevAlloc[Region]=$C$11)*(WNARevAlloc[CustClass]=D$12)*WNARevAlloc[AdjCAWNARev]) -> -2376.707178 | E22: =-SUMPRODUCT((WNARevAlloc[MonthFlow]=$B22)*(WNARevAlloc[Region]=$E$11)*(WNARevAlloc[CustClass]=E$12)*WNARevAlloc[AdjCAWNARev]) -> -1683.163396 | F22: =-SUMPRODUCT((WNARevAlloc[MonthFlow]=$B22)*(WNARevAlloc[Region]=$E$11)*(WNARevAlloc[CustClass]=F$12)*WNARevAlloc[AdjCAWNARev]) -> -260.4493697 | G22: =-SUMPRODUCT((WNARevAlloc[MonthFlow]=$B22)*(WNARevAlloc[Region]=$G$11)*(WNARevAlloc[CustClass]=G$12)*WNARevAlloc[AdjCAWNARev]) -> -18835.53697 | H22: =-SUMPRODUCT((WNARevAlloc[MonthFlow]=$B22)*(WNARevAlloc[Region]=$G$11)*(WNARevAlloc[CustClass]=H$12)*WNARevAlloc[AdjCAWNARev]) -> -1460.328751 | I22: From WNARevAlloc Table
B23: 2026-04-01 | C23: =-SUMPRODUCT((WNARevAlloc[MonthFlow]=$B23)*(WNARevAlloc[Region]=$C$11)*(WNARevAlloc[CustClass]=C$12)*WNARevAlloc[AdjCAWNARev]) -> -9099.246463 | D23: =-SUMPRODUCT((WNARevAlloc[MonthFlow]=$B23)*(WNARevAlloc[Region]=$C$11)*(WNARevAlloc[CustClass]=D$12)*WNARevAlloc[AdjCAWNARev]) -> -1051.56409 | E23: =-SUMPRODUCT((WNARevAlloc[MonthFlow]=$B23)*(WNARevAlloc[Region]=$E$11)*(WNARevAlloc[CustClass]=E$12)*WNARevAlloc[AdjCAWNARev]) -> -1406.536786 | F23: =-SUMPRODUCT((WNARevAlloc[MonthFlow]=$B23)*(WNARevAlloc[Region]=$E$11)*(WNARevAlloc[CustClass]=F$12)*WNARevAlloc[AdjCAWNARev]) -> -193.6244314 | G23: =-SUMPRODUCT((WNARevAlloc[MonthFlow]=$B23)*(WNARevAlloc[Region]=$G$11)*(WNARevAlloc[CustClass]=G$12)*WNARevAlloc[AdjCAWNARev]) -> -9522.93625 | H23: =-SUMPRODUCT((WNARevAlloc[MonthFlow]=$B23)*(WNARevAlloc[Region]=$G$11)*(WNARevAlloc[CustClass]=H$12)*WNARevAlloc[AdjCAWNARev]) -> -702.2793482 | I23: From WNARevAlloc Table
B24: 2026-05-01 | C24: =-SUMPRODUCT((WNARevAlloc[MonthFlow]=$B24)*(WNARevAlloc[Region]=$C$11)*(WNARevAlloc[CustClass]=C$12)*WNARevAlloc[AdjCAWNARev]) -> -3858.45654 | D24: =-SUMPRODUCT((WNARevAlloc[MonthFlow]=$B24)*(WNARevAlloc[Region]=$C$11)*(WNARevAlloc[CustClass]=D$12)*WNARevAlloc[AdjCAWNARev]) -> -586.8868828 | E24: =-SUMPRODUCT((WNARevAlloc[MonthFlow]=$B24)*(WNARevAlloc[Region]=$E$11)*(WNARevAlloc[CustClass]=E$12)*WNARevAlloc[AdjCAWNARev]) -> -657.4231439 | F24: =-SUMPRODUCT((WNARevAlloc[MonthFlow]=$B24)*(WNARevAlloc[Region]=$E$11)*(WNARevAlloc[CustClass]=F$12)*WNARevAlloc[AdjCAWNARev]) -> -107.1858285 | G24: =-SUMPRODUCT((WNARevAlloc[MonthFlow]=$B24)*(WNARevAlloc[Region]=$G$11)*(WNARevAlloc[CustClass]=G$12)*WNARevAlloc[AdjCAWNARev]) -> -6475.483488 | H24: =-SUMPRODUCT((WNARevAlloc[MonthFlow]=$B24)*(WNARevAlloc[Region]=$G$11)*(WNARevAlloc[CustClass]=H$12)*WNARevAlloc[AdjCAWNARev]) -> -526.7465523 | I24: From WNARevAlloc Table
B25: 2026-06-01 | C25: =-SUMPRODUCT((WNARevAlloc[MonthFlow]=$B25)*(WNARevAlloc[Region]=$C$11)*(WNARevAlloc[CustClass]=C$12)*WNARevAlloc[AdjCAWNARev]) -> -3594.506269 | D25: =-SUMPRODUCT((WNARevAlloc[MonthFlow]=$B25)*(WNARevAlloc[Region]=$C$11)*(WNARevAlloc[CustClass]=D$12)*WNARevAlloc[AdjCAWNARev]) -> -564.4668239 | E25: =-SUMPRODUCT((WNARevAlloc[MonthFlow]=$B25)*(WNARevAlloc[Region]=$E$11)*(WNARevAlloc[CustClass]=E$12)*WNARevAlloc[AdjCAWNARev]) -> -594.8576222 | F25: =-SUMPRODUCT((WNARevAlloc[MonthFlow]=$B25)*(WNARevAlloc[Region]=$E$11)*(WNARevAlloc[CustClass]=F$12)*WNARevAlloc[AdjCAWNARev]) -> -101.6528265 | G25: =-SUMPRODUCT((WNARevAlloc[MonthFlow]=$B25)*(WNARevAlloc[Region]=$G$11)*(WNARevAlloc[CustClass]=G$12)*WNARevAlloc[AdjCAWNARev]) -> -5811.426801 | H25: =-SUMPRODUCT((WNARevAlloc[MonthFlow]=$B25)*(WNARevAlloc[Region]=$G$11)*(WNARevAlloc[CustClass]=H$12)*WNARevAlloc[AdjCAWNARev]) -> -498.4840946 | I25: From WNARevAlloc Table
B26: Total Actual Revenues | C26: =SUM(C17:C25) -> -248609.9921 | D26: =SUM(D17:D25) -> -31056.26176 | E26: -39709.8704 | F26: -6257.463053 | G26: -290672.8224 | H26: -23712.88313
B27: Projected Revenues
B28: =EDATE(B25,1) -> 2026-07-01 | C28: =-SUMPRODUCT((CustEstVolRev[MonthFlow]=$B28)*(CustEstVolRev[Region]=$C$11)*(CustEstVolRev[CustClass]=C$12)*CustEstVolRev[CAWNARev]) -> -3127 | D28: =-SUMPRODUCT((CustEstVolRev[MonthFlow]=$B28)*(CustEstVolRev[Region]=$C$11)*(CustEstVolRev[CustClass]=D$12)*CustEstVolRev[CAWNARev]) -> -529 | E28: =-SUMPRODUCT((CustEstVolRev[MonthFlow]=$B28)*(CustEstVolRev[Region]=$E$11)*(CustEstVolRev[CustClass]=E$12)*CustEstVolRev[CAWNARev]) -> -596 | F28: =-SUMPRODUCT((CustEstVolRev[MonthFlow]=$B28)*(CustEstVolRev[Region]=$E$11)*(CustEstVolRev[CustClass]=F$12)*CustEstVolRev[CAWNARev]) -> -113 | G28: =-SUMPRODUCT((CustEstVolRev[MonthFlow]=$B28)*(CustEstVolRev[Region]=$G$11)*(CustEstVolRev[CustClass]=G$12)*CustEstVolRev[CAWNARev]) -> -5395 | H28: =-SUMPRODUCT((CustEstVolRev[MonthFlow]=$B28)*(CustEstVolRev[Region]=$G$11)*(CustEstVolRev[CustClass]=H$12)*CustEstVolRev[CAWNARev]) -> -479 | I28: From CustEstVolRev Table
B29: 2026-08-01 | C29: =-SUMPRODUCT((CustEstVolRev[MonthFlow]=$B29)*(CustEstVolRev[Region]=$C$11)*(CustEstVolRev[CustClass]=C$12)*CustEstVolRev[CAWNARev]) -> -3576 | D29: =-SUMPRODUCT((CustEstVolRev[MonthFlow]=$B29)*(CustEstVolRev[Region]=$C$11)*(CustEstVolRev[CustClass]=D$12)*CustEstVolRev[CAWNARev]) -> -605 | E29: =-SUMPRODUCT((CustEstVolRev[MonthFlow]=$B29)*(CustEstVolRev[Region]=$E$11)*(CustEstVolRev[CustClass]=E$12)*CustEstVolRev[CAWNARev]) -> -602 | F29: =-SUMPRODUCT((CustEstVolRev[MonthFlow]=$B29)*(CustEstVolRev[Region]=$E$11)*(CustEstVolRev[CustClass]=F$12)*CustEstVolRev[CAWNARev]) -> -110 | G29: =-SUMPRODUCT((CustEstVolRev[MonthFlow]=$B29)*(CustEstVolRev[Region]=$G$11)*(CustEstVolRev[CustClass]=G$12)*CustEstVolRev[CAWNARev]) -> -5200 | H29: =-SUMPRODUCT((CustEstVolRev[MonthFlow]=$B29)*(CustEstVolRev[Region]=$G$11)*(CustEstVolRev[CustClass]=H$12)*CustEstVolRev[CAWNARev]) -> -481 | I29: From CustEstVolRev Table
B30: 2026-09-01 | C30: =-SUMPRODUCT((CustEstVolRev[MonthFlow]=$B30)*(CustEstVolRev[Region]=$C$11)*(CustEstVolRev[CustClass]=C$12)*CustEstVolRev[CAWNARev]) -> -3327 | D30: =-SUMPRODUCT((CustEstVolRev[MonthFlow]=$B30)*(CustEstVolRev[Region]=$C$11)*(CustEstVolRev[CustClass]=D$12)*CustEstVolRev[CAWNARev]) -> -538 | E30: =-SUMPRODUCT((CustEstVolRev[MonthFlow]=$B30)*(CustEstVolRev[Region]=$E$11)*(CustEstVolRev[CustClass]=E$12)*CustEstVolRev[CAWNARev]) -> -599 | F30: =-SUMPRODUCT((CustEstVolRev[MonthFlow]=$B30)*(CustEstVolRev[Region]=$E$11)*(CustEstVolRev[CustClass]=F$12)*CustEstVolRev[CAWNARev]) -> -113 | G30: =-SUMPRODUCT((CustEstVolRev[MonthFlow]=$B30)*(CustEstVolRev[Region]=$G$11)*(CustEstVolRev[CustClass]=G$12)*CustEstVolRev[CAWNARev]) -> -5419 | H30: =-SUMPRODUCT((CustEstVolRev[MonthFlow]=$B30)*(CustEstVolRev[Region]=$G$11)*(CustEstVolRev[CustClass]=H$12)*CustEstVolRev[CAWNARev]) -> -469 | I30: From CustEstVolRev Table
B31: Total Projected Revenues | C31: =SUM(C28:C30) -> -10030 | D31: =SUM(D28:D30) -> -1672 | E31: -1797 | F31: -336 | G31: -16014 | H31: -1429
B32: Total Billings | C32: =C26+C31 -> -258639.9921 | D32: -32728.26176 | E32: -41506.8704 | F32: -6593.463053 | G32: -306686.8224 | H32: -25141.88313
B33: CWNA Net (Over)/Under Recov 1/ | C33: =ROUND(C15+C32,2) -> 71119.5 | D33: 6979.31 | E33: 16599.73 | F33: 1960.48 | G33: 87847.41 | H33: 5776.59
B35: Reconciliation Summary | C35: ARR
B36: Region | C36: NEMO | E36: WEMO | G36: SEMO | I36: Notes
B37: Customer Class | C37: Res | D37: SGS | E37: Res | F37: SGS | G37: Res | H37: SGS
B38: Reconciling Period Adj. | C38: =SUMPRODUCT((ReconPerAdj[EffDate]=$C$6)*(ReconPerAdj[Region]=$C$36)*(ReconPerAdj[CustClass]=C$37)*(ReconPerAdj[RateName]=$C$35)*ReconPerAdj[ReconcilingPeriodAdj]) -> 101053.54 | D38: =SUMPRODUCT((ReconPerAdj[EffDate]=$C$6)*(ReconPerAdj[Region]=$C$36)*(ReconPerAdj[CustClass]=D$37)*(ReconPerAdj[RateName]=$C$35)*ReconPerAdj[ReconcilingPeriodAdj]) -> 12960.61 | E38: =SUMPRODUCT((ReconPerAdj[EffDate]=$C$6)*(ReconPerAdj[Region]=$E$36)*(ReconPerAdj[CustClass]=E$37)*(ReconPerAdj[RateName]=$C$35)*ReconPerAdj[ReconcilingPeriodAdj]) -> 43447.34 | F38: =SUMPRODUCT((ReconPerAdj[EffDate]=$C$6)*(ReconPerAdj[Region]=$E$36)*(ReconPerAdj[CustClass]=F$37)*(ReconPerAdj[RateName]=$C$35)*ReconPerAdj[ReconcilingPeriodAdj]) -> 5408.42 | G38: =SUMPRODUCT((ReconPerAdj[EffDate]=$C$6)*(ReconPerAdj[Region]=$G$36)*(ReconPerAdj[CustClass]=G$37)*(ReconPerAdj[RateName]=$C$35)*ReconPerAdj[ReconcilingPeriodAdj]) -> 128120.06 | H38: =SUMPRODUCT((ReconPerAdj[EffDate]=$C$6)*(ReconPerAdj[Region]=$G$36)*(ReconPerAdj[CustClass]=H$37)*(ReconPerAdj[RateName]=$C$35)*ReconPerAdj[ReconcilingPeriodAdj]) -> -1689.93 | I38: From ReconPerAdj Table
B39: Volumetric True-Up | C39: =SUMPRODUCT((VolTrueUp[Year]=$C$5)*(VolTrueUp[Region]=$C36)*(VolTrueUp[CustClass]=C$37)*VolTrueUp[TrueUp]) -> -1819.58 | D39: =SUMPRODUCT((VolTrueUp[Year]=$C$5)*(VolTrueUp[Region]=$C36)*(VolTrueUp[CustClass]=D$37)*VolTrueUp[TrueUp]) -> -246.33 | E39: =SUMPRODUCT((VolTrueUp[Year]=$C$5)*(VolTrueUp[Region]=$E36)*(VolTrueUp[CustClass]=E$37)*VolTrueUp[TrueUp]) -> -376.57 | F39: =SUMPRODUCT((VolTrueUp[Year]=$C$5)*(VolTrueUp[Region]=$E36)*(VolTrueUp[CustClass]=F$37)*VolTrueUp[TrueUp]) -> -123.42 | G39: =SUMPRODUCT((VolTrueUp[Year]=$C$5)*(VolTrueUp[Region]=$G36)*(VolTrueUp[CustClass]=G$37)*VolTrueUp[TrueUp]) -> -2856.23 | H39: =SUMPRODUCT((VolTrueUp[Year]=$C$5)*(VolTrueUp[Region]=$G36)*(VolTrueUp[CustClass]=H$37)*VolTrueUp[TrueUp]) -> -289.85 | I39: From PriorPerAdj Table
B40: Adj. Amount to be Recovered | C40: =C38+C39 -> 99233.96 | D40: =D38+D39 -> 12714.28 | E40: 43070.77 | F40: 5285 | G40: 125263.83 | H40: -1979.78
B41: Actual Revenues
B42: =C6 -> 2025-10-01 | C42: =-ROUND(SUMPRODUCT((WNARevAlloc[MonthFlow]=$B42)*(WNARevAlloc[Region]=$C$36)*(WNARevAlloc[CustClass]=C$37)*WNARevAlloc[AdjARRRev]),2) -> -6138.14 | D42: =-ROUND(SUMPRODUCT((WNARevAlloc[MonthFlow]=$B42)*(WNARevAlloc[Region]=$C$36)*(WNARevAlloc[CustClass]=D$37)*WNARevAlloc[AdjARRRev]),2) -> -723.04 | E42: =-ROUND(SUMPRODUCT((WNARevAlloc[MonthFlow]=$B42)*(WNARevAlloc[Region]=$E$36)*(WNARevAlloc[CustClass]=E$37)*WNARevAlloc[AdjARRRev]),2) -> -17.37 | F42: =-ROUND(SUMPRODUCT((WNARevAlloc[MonthFlow]=$B42)*(WNARevAlloc[Region]=$E$36)*(WNARevAlloc[CustClass]=F$37)*WNARevAlloc[AdjARRRev]),2) -> 0 | G42: =-ROUND(SUMPRODUCT((WNARevAlloc[MonthFlow]=$B42)*(WNARevAlloc[Region]=$G$36)*(WNARevAlloc[CustClass]=G$37)*WNARevAlloc[AdjARRRev]),2) -> -5913.53 | H42: =-ROUND(SUMPRODUCT((WNARevAlloc[MonthFlow]=$B42)*(WNARevAlloc[Region]=$G$36)*(WNARevAlloc[CustClass]=H$37)*WNARevAlloc[AdjARRRev]),2) -> 69.47 | I42: From WNARevAlloc Table
B43: =EDATE(B42,1) -> 2025-11-01 | C43: =-ROUND(SUMPRODUCT((WNARevAlloc[MonthFlow]=$B43)*(WNARevAlloc[Region]=$C$36)*(WNARevAlloc[CustClass]=C$37)*WNARevAlloc[AdjARRRev]),2) -> -14124.03 | D43: =-ROUND(SUMPRODUCT((WNARevAlloc[MonthFlow]=$B43)*(WNARevAlloc[Region]=$C$36)*(WNARevAlloc[CustClass]=D$37)*WNARevAlloc[AdjARRRev]),2) -> -1828.6 | E43: =-ROUND(SUMPRODUCT((WNARevAlloc[MonthFlow]=$B43)*(WNARevAlloc[Region]=$E$36)*(WNARevAlloc[CustClass]=E$37)*WNARevAlloc[AdjARRRev]),2) -> -8262.42 | F43: =-ROUND(SUMPRODUCT((WNARevAlloc[MonthFlow]=$B43)*(WNARevAlloc[Region]=$E$36)*(WNARevAlloc[CustClass]=F$37)*WNARevAlloc[AdjARRRev]),2) -> -1047.37 | G43: =-ROUND(SUMPRODUCT((WNARevAlloc[MonthFlow]=$B43)*(WNARevAlloc[Region]=$G$36)*(WNARevAlloc[CustClass]=G$37)*WNARevAlloc[AdjARRRev]),2) -> -14704.96 | H43: =-ROUND(SUMPRODUCT((WNARevAlloc[MonthFlow]=$B43)*(WNARevAlloc[Region]=$G$36)*(WNARevAlloc[CustClass]=H$37)*WNARevAlloc[AdjARRRev]),2) -> 198.41 | I43: From WNARevAlloc Table
B44: =EDATE(B43,1) -> 2025-12-01 | C44: =-ROUND(SUMPRODUCT((WNARevAlloc[MonthFlow]=$B44)*(WNARevAlloc[Region]=$C$36)*(WNARevAlloc[CustClass]=C$37)*WNARevAlloc[AdjARRRev]),2) -> -14661.52 | D44: =-ROUND(SUMPRODUCT((WNARevAlloc[MonthFlow]=$B44)*(WNARevAlloc[Region]=$C$36)*(WNARevAlloc[CustClass]=D$37)*WNARevAlloc[AdjARRRev]),2) -> -2015.74 | E44: =-ROUND(SUMPRODUCT((WNARevAlloc[MonthFlow]=$B44)*(WNARevAlloc[Region]=$E$36)*(WNARevAlloc[CustClass]=E$37)*WNARevAlloc[AdjARRRev]),2) -> -5339.46 | F44: =-ROUND(SUMPRODUCT((WNARevAlloc[MonthFlow]=$B44)*(WNARevAlloc[Region]=$E$36)*(WNARevAlloc[CustClass]=F$37)*WNARevAlloc[AdjARRRev]),2) -> -715.35 | G44: =-ROUND(SUMPRODUCT((WNARevAlloc[MonthFlow]=$B44)*(WNARevAlloc[Region]=$G$36)*(WNARevAlloc[CustClass]=G$37)*WNARevAlloc[AdjARRRev]),2) -> -19057.68 | H44: =-ROUND(SUMPRODUCT((WNARevAlloc[MonthFlow]=$B44)*(WNARevAlloc[Region]=$G$36)*(WNARevAlloc[CustClass]=H$37)*WNARevAlloc[AdjARRRev]),2) -> 271.02 | I44: From WNARevAlloc Table
B45: 2026-01-01 | C45: =-ROUND(SUMPRODUCT((WNARevAlloc[MonthFlow]=$B45)*(WNARevAlloc[Region]=$C$36)*(WNARevAlloc[CustClass]=C$37)*WNARevAlloc[AdjARRRev]),2) -> -19747.28 | D45: =-ROUND(SUMPRODUCT((WNARevAlloc[MonthFlow]=$B45)*(WNARevAlloc[Region]=$C$36)*(WNARevAlloc[CustClass]=D$37)*WNARevAlloc[AdjARRRev]),2) -> -2704.88 | E45: =-ROUND(SUMPRODUCT((WNARevAlloc[MonthFlow]=$B45)*(WNARevAlloc[Region]=$E$36)*(WNARevAlloc[CustClass]=E$37)*WNARevAlloc[AdjARRRev]),2) -> -8427.4 | F45: =-ROUND(SUMPRODUCT((WNARevAlloc[MonthFlow]=$B45)*(WNARevAlloc[Region]=$E$36)*(WNARevAlloc[CustClass]=F$37)*WNARevAlloc[AdjARRRev]),2) -> -1186.64 | G45: =-ROUND(SUMPRODUCT((WNARevAlloc[MonthFlow]=$B45)*(WNARevAlloc[Region]=$G$36)*(WNARevAlloc[CustClass]=G$37)*WNARevAlloc[AdjARRRev]),2) -> -27969.87 | H45: =-ROUND(SUMPRODUCT((WNARevAlloc[MonthFlow]=$B45)*(WNARevAlloc[Region]=$G$36)*(WNARevAlloc[CustClass]=H$37)*WNARevAlloc[AdjARRRev]),2) -> 403.28 | I45: From WNARevAlloc Table
B46: 2026-02-01 | C46: =-ROUND(SUMPRODUCT((WNARevAlloc[MonthFlow]=$B46)*(WNARevAlloc[Region]=$C$36)*(WNARevAlloc[CustClass]=C$37)*WNARevAlloc[AdjARRRev]),2) -> -10312.72 | D46: =-ROUND(SUMPRODUCT((WNARevAlloc[MonthFlow]=$B46)*(WNARevAlloc[Region]=$C$36)*(WNARevAlloc[CustClass]=D$37)*WNARevAlloc[AdjARRRev]),2) -> -1378.65 | E46: =-ROUND(SUMPRODUCT((WNARevAlloc[MonthFlow]=$B46)*(WNARevAlloc[Region]=$E$36)*(WNARevAlloc[CustClass]=E$37)*WNARevAlloc[AdjARRRev]),2) -> -4396.88 | F46: =-ROUND(SUMPRODUCT((WNARevAlloc[MonthFlow]=$B46)*(WNARevAlloc[Region]=$E$36)*(WNARevAlloc[CustClass]=F$37)*WNARevAlloc[AdjARRRev]),2) -> -582.23 | G46: =-ROUND(SUMPRODUCT((WNARevAlloc[MonthFlow]=$B46)*(WNARevAlloc[Region]=$G$36)*(WNARevAlloc[CustClass]=G$37)*WNARevAlloc[AdjARRRev]),2) -> -13533.1 | H46: =-ROUND(SUMPRODUCT((WNARevAlloc[MonthFlow]=$B46)*(WNARevAlloc[Region]=$G$36)*(WNARevAlloc[CustClass]=H$37)*WNARevAlloc[AdjARRRev]),2) -> 188.85 | I46: From WNARevAlloc Table
B47: 2026-03-01 | C47: =-ROUND(SUMPRODUCT((WNARevAlloc[MonthFlow]=$B47)*(WNARevAlloc[Region]=$C$36)*(WNARevAlloc[CustClass]=C$37)*WNARevAlloc[AdjARRRev]),2) -> -6151.99 | D47: =-ROUND(SUMPRODUCT((WNARevAlloc[MonthFlow]=$B47)*(WNARevAlloc[Region]=$C$36)*(WNARevAlloc[CustClass]=D$37)*WNARevAlloc[AdjARRRev]),2) -> -775.97 | E47: =-ROUND(SUMPRODUCT((WNARevAlloc[MonthFlow]=$B47)*(WNARevAlloc[Region]=$E$36)*(WNARevAlloc[CustClass]=E$37)*WNARevAlloc[AdjARRRev]),2) -> -1310.54 | F47: =-ROUND(SUMPRODUCT((WNARevAlloc[MonthFlow]=$B47)*(WNARevAlloc[Region]=$E$36)*(WNARevAlloc[CustClass]=F$37)*WNARevAlloc[AdjARRRev]),2) -> -164.61 | G47: =-ROUND(SUMPRODUCT((WNARevAlloc[MonthFlow]=$B47)*(WNARevAlloc[Region]=$G$36)*(WNARevAlloc[CustClass]=G$37)*WNARevAlloc[AdjARRRev]),2) -> -6120.63 | H47: =-ROUND(SUMPRODUCT((WNARevAlloc[MonthFlow]=$B47)*(WNARevAlloc[Region]=$G$36)*(WNARevAlloc[CustClass]=H$37)*WNARevAlloc[AdjARRRev]),2) -> 80.37 | I47: From WNARevAlloc Table
B48: 2026-04-01 | C48: =-ROUND(SUMPRODUCT((WNARevAlloc[MonthFlow]=$B48)*(WNARevAlloc[Region]=$C$36)*(WNARevAlloc[CustClass]=C$37)*WNARevAlloc[AdjARRRev]),2) -> -2788.53 | D48: =-ROUND(SUMPRODUCT((WNARevAlloc[MonthFlow]=$B48)*(WNARevAlloc[Region]=$C$36)*(WNARevAlloc[CustClass]=D$37)*WNARevAlloc[AdjARRRev]),2) -> -343.33 | E48: =-ROUND(SUMPRODUCT((WNARevAlloc[MonthFlow]=$B48)*(WNARevAlloc[Region]=$E$36)*(WNARevAlloc[CustClass]=E$37)*WNARevAlloc[AdjARRRev]),2) -> -1052.06 | F48: =-ROUND(SUMPRODUCT((WNARevAlloc[MonthFlow]=$B48)*(WNARevAlloc[Region]=$E$36)*(WNARevAlloc[CustClass]=F$37)*WNARevAlloc[AdjARRRev]),2) -> -122.38 | G48: =-ROUND(SUMPRODUCT((WNARevAlloc[MonthFlow]=$B48)*(WNARevAlloc[Region]=$G$36)*(WNARevAlloc[CustClass]=G$37)*WNARevAlloc[AdjARRRev]),2) -> -3116.33 | H48: =-ROUND(SUMPRODUCT((WNARevAlloc[MonthFlow]=$B48)*(WNARevAlloc[Region]=$G$36)*(WNARevAlloc[CustClass]=H$37)*WNARevAlloc[AdjARRRev]),2) -> 38.7 | I48: From WNARevAlloc Table
B49: 2026-05-01 | C49: =-ROUND(SUMPRODUCT((WNARevAlloc[MonthFlow]=$B49)*(WNARevAlloc[Region]=$C$36)*(WNARevAlloc[CustClass]=C$37)*WNARevAlloc[AdjARRRev]),2) -> -1182.45 | D49: =-ROUND(SUMPRODUCT((WNARevAlloc[MonthFlow]=$B49)*(WNARevAlloc[Region]=$C$36)*(WNARevAlloc[CustClass]=D$37)*WNARevAlloc[AdjARRRev]),2) -> -191.61 | E49: =-ROUND(SUMPRODUCT((WNARevAlloc[MonthFlow]=$B49)*(WNARevAlloc[Region]=$E$36)*(WNARevAlloc[CustClass]=E$37)*WNARevAlloc[AdjARRRev]),2) -> -493.87 | F49: =-ROUND(SUMPRODUCT((WNARevAlloc[MonthFlow]=$B49)*(WNARevAlloc[Region]=$E$36)*(WNARevAlloc[CustClass]=F$37)*WNARevAlloc[AdjARRRev]),2) -> -67.74 | G49: =-ROUND(SUMPRODUCT((WNARevAlloc[MonthFlow]=$B49)*(WNARevAlloc[Region]=$G$36)*(WNARevAlloc[CustClass]=G$37)*WNARevAlloc[AdjARRRev]),2) -> -2114.46 | H49: =-ROUND(SUMPRODUCT((WNARevAlloc[MonthFlow]=$B49)*(WNARevAlloc[Region]=$G$36)*(WNARevAlloc[CustClass]=H$37)*WNARevAlloc[AdjARRRev]),2) -> 29.03 | I49: From WNARevAlloc Table
B50: 2026-06-01 | C50: =-ROUND(SUMPRODUCT((WNARevAlloc[MonthFlow]=$B50)*(WNARevAlloc[Region]=$C$36)*(WNARevAlloc[CustClass]=C$37)*WNARevAlloc[AdjARRRev]),2) -> -1094.75 | D50: =-ROUND(SUMPRODUCT((WNARevAlloc[MonthFlow]=$B50)*(WNARevAlloc[Region]=$C$36)*(WNARevAlloc[CustClass]=D$37)*WNARevAlloc[AdjARRRev]),2) -> -184.29 | E50: =-ROUND(SUMPRODUCT((WNARevAlloc[MonthFlow]=$B50)*(WNARevAlloc[Region]=$E$36)*(WNARevAlloc[CustClass]=E$37)*WNARevAlloc[AdjARRRev]),2) -> -444.94 | F50: =-ROUND(SUMPRODUCT((WNARevAlloc[MonthFlow]=$B50)*(WNARevAlloc[Region]=$E$36)*(WNARevAlloc[CustClass]=F$37)*WNARevAlloc[AdjARRRev]),2) -> -64.25 | G50: =-ROUND(SUMPRODUCT((WNARevAlloc[MonthFlow]=$B50)*(WNARevAlloc[Region]=$G$36)*(WNARevAlloc[CustClass]=G$37)*WNARevAlloc[AdjARRRev]),2) -> -1887.99 | H50: =-ROUND(SUMPRODUCT((WNARevAlloc[MonthFlow]=$B50)*(WNARevAlloc[Region]=$G$36)*(WNARevAlloc[CustClass]=H$37)*WNARevAlloc[AdjARRRev]),2) -> 27.46 | I50: From WNARevAlloc Table
B51: Total Actual Revenues | C51: =SUM(C42:C50) -> -76201.41 | D51: =SUM(D42:D50) -> -10146.11 | E51: -29744.94 | F51: -3950.57 | G51: -94418.55 | H51: 1306.59
B52: Projected Revenues
B53: =EDATE(B50,1) -> 2026-07-01 | C53: =-ROUND(SUMPRODUCT((CustEstVolRev[MonthFlow]=$B53)*(CustEstVolRev[Region]=$C$36)*(CustEstVolRev[CustClass]=C$37)*CustEstVolRev[ARRRev]),2) -> -958 | D53: =-ROUND(SUMPRODUCT((CustEstVolRev[MonthFlow]=$B53)*(CustEstVolRev[Region]=$C$36)*(CustEstVolRev[CustClass]=D$37)*CustEstVolRev[ARRRev]),2) -> -173 | E53: =-ROUND(SUMPRODUCT((CustEstVolRev[MonthFlow]=$B53)*(CustEstVolRev[Region]=$E$36)*(CustEstVolRev[CustClass]=E$37)*CustEstVolRev[ARRRev]),2) -> -446 | F53: =-ROUND(SUMPRODUCT((CustEstVolRev[MonthFlow]=$B53)*(CustEstVolRev[Region]=$E$36)*(CustEstVolRev[CustClass]=F$37)*CustEstVolRev[ARRRev]),2) -> -71 | G53: =-ROUND(SUMPRODUCT((CustEstVolRev[MonthFlow]=$B53)*(CustEstVolRev[Region]=$G$36)*(CustEstVolRev[CustClass]=G$37)*CustEstVolRev[ARRRev]),2) -> -1753 | H53: =-ROUND(SUMPRODUCT((CustEstVolRev[MonthFlow]=$B53)*(CustEstVolRev[Region]=$G$36)*(CustEstVolRev[CustClass]=H$37)*CustEstVolRev[ARRRev]),2) -> 26 | I53: From CustEstVolRev Table
B54: =EDATE(B53,1) -> 2026-08-01 | C54: =-ROUND(SUMPRODUCT((CustEstVolRev[MonthFlow]=$B54)*(CustEstVolRev[Region]=$C$36)*(CustEstVolRev[CustClass]=C$37)*CustEstVolRev[ARRRev]),2) -> -1096 | D54: =-ROUND(SUMPRODUCT((CustEstVolRev[MonthFlow]=$B54)*(CustEstVolRev[Region]=$C$36)*(CustEstVolRev[CustClass]=D$37)*CustEstVolRev[ARRRev]),2) -> -197 | E54: =-ROUND(SUMPRODUCT((CustEstVolRev[MonthFlow]=$B54)*(CustEstVolRev[Region]=$E$36)*(CustEstVolRev[CustClass]=E$37)*CustEstVolRev[ARRRev]),2) -> -450 | F54: =-ROUND(SUMPRODUCT((CustEstVolRev[MonthFlow]=$B54)*(CustEstVolRev[Region]=$E$36)*(CustEstVolRev[CustClass]=F$37)*CustEstVolRev[ARRRev]),2) -> -70 | G54: =-ROUND(SUMPRODUCT((CustEstVolRev[MonthFlow]=$B54)*(CustEstVolRev[Region]=$G$36)*(CustEstVolRev[CustClass]=G$37)*CustEstVolRev[ARRRev]),2) -> -1689 | H54: =-ROUND(SUMPRODUCT((CustEstVolRev[MonthFlow]=$B54)*(CustEstVolRev[Region]=$G$36)*(CustEstVolRev[CustClass]=H$37)*CustEstVolRev[ARRRev]),2) -> 26 | I54: From CustEstVolRev Table
B55: =EDATE(B54,1) -> 2026-09-01 | C55: =-ROUND(SUMPRODUCT((CustEstVolRev[MonthFlow]=$B55)*(CustEstVolRev[Region]=$C$36)*(CustEstVolRev[CustClass]=C$37)*CustEstVolRev[ARRRev]),2) -> -1019 | D55: =-ROUND(SUMPRODUCT((CustEstVolRev[MonthFlow]=$B55)*(CustEstVolRev[Region]=$C$36)*(CustEstVolRev[CustClass]=D$37)*CustEstVolRev[ARRRev]),2) -> -175 | E55: =-ROUND(SUMPRODUCT((CustEstVolRev[MonthFlow]=$B55)*(CustEstVolRev[Region]=$E$36)*(CustEstVolRev[CustClass]=E$37)*CustEstVolRev[ARRRev]),2) -> -448 | F55: =-ROUND(SUMPRODUCT((CustEstVolRev[MonthFlow]=$B55)*(CustEstVolRev[Region]=$E$36)*(CustEstVolRev[CustClass]=F$37)*CustEstVolRev[ARRRev]),2) -> -71 | G55: =-ROUND(SUMPRODUCT((CustEstVolRev[MonthFlow]=$B55)*(CustEstVolRev[Region]=$G$36)*(CustEstVolRev[CustClass]=G$37)*CustEstVolRev[ARRRev]),2) -> -1761 | H55: =-ROUND(SUMPRODUCT((CustEstVolRev[MonthFlow]=$B55)*(CustEstVolRev[Region]=$G$36)*(CustEstVolRev[CustClass]=H$37)*CustEstVolRev[ARRRev]),2) -> 26 | I55: From CustEstVolRev Table
B56: Total Projected Revenues | C56: =SUM(C53:C55) -> -3073 | D56: -545 | E56: -1344 | F56: -212 | G56: -5203 | H56: 78
B57: Total Billings | C57: =C51+C56 -> -79274.41 | D57: -10691.11 | E57: -31088.94 | F57: -4162.57 | G57: -99621.55 | H57: 1384.59
B58: Total WNA Recovery | C58: =ROUND(C32+C57,2) -> -337914.4 | D58: =ROUND(D32+D57,2) -> -43419.37 | E58: =ROUND(E32+E57,2) -> -72595.81 | F58: =ROUND(F32+F57,2) -> -10756.03 | G58: =ROUND(G32+G57,2) -> -406308.37 | H58: =ROUND(G32+H57,2) -> -305302.23
B59: ARR Net (Over)/Under Recov 1/ | C59: =ROUND(C57+C40,2) -> 19959.55 | D59: =ROUND(D57+D40,2) -> 2023.17 | E59: 11981.83 | F59: 1122.43 | G59: 25642.28 | H59: -595.19
B60: CWNA Net (Over)/Under Recov 1/ | C60: =C33 -> 71119.5 | D60: 6979.31 | E60: 16599.73 | F60: 1960.48 | G60: 87847.41 | H60: 5776.59
B61: Total Net O/U for SRR ReconPerAdj | C61: =C59+C60 -> 91079.05 | D61: =D59+D60 -> 9002.48 | E61: 28581.56 | F61: 3082.91 | G61: 113489.69 | H61: 5181.4
B62: Enter These Amounts in the ReconPerAdj Table
B64: Region | C64: NEMO | E64: WEMO | G64: SEMO
B65: Customer Class | C65: Res | D65: SGS | E65: Res | F65: SGS | G65: Res | H65: SGS
B66: WNA to be Recovered
B67: CAWNA | C67: =C15 -> 329759.49 | D67: 39707.57 | E67: 58106.6 | F67: 8553.94 | G67: 394534.23 | H67: 30918.47
B68: ARR | C68: =C40 -> 99233.96 | D68: =D40 -> 12714.28 | E68: 43070.77 | F68: 5285 | G68: 125263.83 | H68: -1979.78
B69: Total | C69: =SUM(C67:C68) -> 428993.45 | D69: =SUM(D67:D68) -> 52421.85 | E69: 101177.37 | F69: 13838.94 | G69: 519798.06 | H69: 28938.69
B70: WNA Actually Recovered
B71: CAWNA | C71: =C32 -> -258639.9921 | D71: -32728.26176 | E71: -41506.8704 | F71: -6593.463053 | G71: -306686.8224 | H71: -25141.88313
B72: ARR | C72: =C57 -> -79274.41 | D72: =D57 -> -10691.11 | E72: -31088.94 | F72: -4162.57 | G72: -99621.55 | H72: 1384.59
B73: Total | C73: =SUM(C71:C72) -> -337914.4021 | D73: =SUM(D71:D72) -> -43419.37176 | E73: -72595.8104 | F73: -10756.03305 | G73: -406308.3724 | H73: -23757.29313
B74: WNA Net Difference
B75: CAWNA | C75: =C67+C71 -> 71119.49793 | D75: =D67+D71 -> 6979.308243 | E75: 16599.7296 | F75: 1960.476947 | G75: 87847.40755 | H75: 5776.586868
B76: ARR | C76: 19959.55 | D76: =D68+D72 -> 2023.17 | E76: 11981.83 | F76: 1122.43 | G76: 25642.28 | H76: -595.19
B77: Total | C77: =SUM(C75:C76) -> 91079.04793 | D77: =SUM(D75:D76) -> 9002.478243 | E77: 28581.5596 | F77: 3082.906947 | G77: 113489.6876 | H77: 5181.396868
B79: WNA Deferred Balance 1/ | C79: 0 | D79: 0 | E79: 0 | F79: 0 | G79: 0 | H79: 0
B80: ARR Adjustment | C80: =C77+C79 -> 91079.04793 | D80: =D77+D79 -> 9002.478243 | E80: 28581.5596 | F80: 3082.906947 | G80: 113489.6876 | H80: 5181.396868
B81: Total ARR Adjustment | C81: =SUM(C79:C80) -> 91079.04793 | D81: 9002.478243 | E81: 28581.5596 | F81: 3082.906947 | G81: 113489.6876 | H81: 5181.396868
B83: Billing Determinants | C83: =SUMPRODUCT((BillDeter[Region]=$C$64)*(BillDeter[CustClass]=C65)*(BillDeter[BeginDate]<=$C$7)*(BillDeter[EndDate]>$C$7)*BillDeter[BillingDeterminants]) -> 12307679 | D83: =SUMPRODUCT((BillDeter[Region]=$C$64)*(BillDeter[CustClass]=D65)*(BillDeter[BeginDate]<=$C$7)*(BillDeter[EndDate]>$C$7)*BillDeter[BillingDeterminants]) -> 3880055 | E83: =SUMPRODUCT((BillDeter[Region]=$E$64)*(BillDeter[CustClass]=E65)*(BillDeter[BeginDate]<=$C$7)*(BillDeter[EndDate]>$C$7)*BillDeter[BillingDeterminants]) -> 2469188 | F83: =SUMPRODUCT((BillDeter[Region]=$E$64)*(BillDeter[CustClass]=F65)*(BillDeter[BeginDate]<=$C$7)*(BillDeter[EndDate]>$C$7)*BillDeter[BillingDeterminants]) -> 907146 | G83: =SUMPRODUCT((BillDeter[Region]=$G$64)*(BillDeter[CustClass]=G65)*(BillDeter[BeginDate]<=$C$7)*(BillDeter[EndDate]>$C$7)*BillDeter[BillingDeterminants]) -> 17185669 | H83: =SUMPRODUCT((BillDeter[Region]=$G$64)*(BillDeter[CustClass]=H65)*(BillDeter[BeginDate]<=$C$7)*(BillDeter[EndDate]>$C$7)*BillDeter[BillingDeterminants]) -> 5009348
B85: Rate | C85: =ROUND(C81/C83,5) -> 0.0074 | D85: =ROUND(D81/D83,5) -> 0.00232 | E85: 0.01158 | F85: 0.0034 | G85: 0.0066 | H85: 0.00103
B86: Enter these rates in the ARR column of the WNAR Rates table.
B88: 1/ Negative amount = Due Customer, Positive amount = Due Company

Sheet ARR SEMO
B2: Liberty Midstates | F2: Year | I2: SAP Rate Cat. | J2: Territory | K2: Cust. Class
B3: Semi-Annual Reconciliation Rate | I3: SMGR_RFS | J3: SEMO | K3: Res
B4: Region | C4: SEMO | I4: SMGC_SFGS | J4: SEMO | K4: SGS
B5: Year | C5: =DateSet!C2 -> 2026
B6: Analysis Start | C6: =DateSet!$D$3 -> 2025-07-01
B9: SAP Rate Category | C9: SMGR_RFS | D9: Res
B10: Residential | C10: True-Up Period | F10: Actual Period* | O10: Projected Period
B11: Month | C11: =C6 -> 45839 | D11: =EDATE(C11,1) -> 45870 | E11: =EDATE(D11,1) -> 45901 | F11: 45931 | G11: 45962 | H11: 45992 | I11: 46023 | J11: 46054 | K11: 46082 | L11: 46113 | M11: 46143 | N11: 46174 | O11: 46204 | P11: 46235 | Q11: 46266
B12: Est. Volume | C12: =SUMPRODUCT((CustEstVolRev[MonthFlow]=C11)*(CustEstVolRev[SAPRateCategory]=$C9)*CustEstVolRev[NormVol]) -> 242241.33 | D12: =SUMPRODUCT((CustEstVolRev[MonthFlow]=D11)*(CustEstVolRev[SAPRateCategory]=$C9)*CustEstVolRev[NormVol]) -> 270213.386 | E12: =SUMPRODUCT((CustEstVolRev[MonthFlow]=E11)*(CustEstVolRev[SAPRateCategory]=$C9)*CustEstVolRev[NormVol]) -> 271291.763 | O12: =SUMPRODUCT((CustEstVolRev[MonthFlow]=O11)*(CustEstVolRev[SAPRateCategory]=$C9)*CustEstVolRev[NormVol]) -> 234957.892 | P12: =SUMPRODUCT((CustEstVolRev[MonthFlow]=P11)*(CustEstVolRev[SAPRateCategory]=$C9)*CustEstVolRev[NormVol]) -> 226469.365 | Q12: =SUMPRODUCT((CustEstVolRev[MonthFlow]=Q11)*(CustEstVolRev[SAPRateCategory]=$C9)*CustEstVolRev[NormVol]) -> 236002.166
B13: Actual Volume | C13: =SUMPRODUCT((WNARevAlloc[MonthFlow]=C11)*(WNARevAlloc[SAPRateCategory]=$C9)*WNARevAlloc[Consumption]) -> 234957.892 | D13: =SUMPRODUCT((WNARevAlloc[MonthFlow]=D11)*(WNARevAlloc[SAPRateCategory]=$C9)*WNARevAlloc[Consumption]) -> 226469.365 | E13: =SUMPRODUCT((WNARevAlloc[MonthFlow]=E11)*(WNARevAlloc[SAPRateCategory]=$C9)*WNARevAlloc[Consumption]) -> 236002.166 | F13: =SUMPRODUCT((WNARevAlloc[MonthFlow]=F11)*(WNARevAlloc[SAPRateCategory]=$C9)*WNARevAlloc[Consumption]) -> 795227.63 | G13: =SUMPRODUCT((WNARevAlloc[MonthFlow]=G11)*(WNARevAlloc[SAPRateCategory]=$C9)*WNARevAlloc[Consumption]) -> 1973675.663 | H13: =SUMPRODUCT((WNARevAlloc[MonthFlow]=H11)*(WNARevAlloc[SAPRateCategory]=$C9)*WNARevAlloc[Consumption]) -> 2556467.147 | I13: =SUMPRODUCT((WNARevAlloc[MonthFlow]=I11)*(WNARevAlloc[SAPRateCategory]=$C9)*WNARevAlloc[Consumption]) -> 3748852.995 | J13: =SUMPRODUCT((WNARevAlloc[MonthFlow]=J11)*(WNARevAlloc[SAPRateCategory]=$C9)*WNARevAlloc[Consumption]) -> 1814140.74 | K13: =SUMPRODUCT((WNARevAlloc[MonthFlow]=K11)*(WNARevAlloc[SAPRateCategory]=$C9)*WNARevAlloc[Consumption]) -> 820376.995 | L13: =SUMPRODUCT((WNARevAlloc[MonthFlow]=L11)*(WNARevAlloc[SAPRateCategory]=$C9)*WNARevAlloc[Consumption]) -> 415214.601 | M13: =SUMPRODUCT((WNARevAlloc[MonthFlow]=M11)*(WNARevAlloc[SAPRateCategory]=$C9)*WNARevAlloc[Consumption]) -> 282774.883 | N13: =SUMPRODUCT((WNARevAlloc[MonthFlow]=N11)*(WNARevAlloc[SAPRateCategory]=$C9)*WNARevAlloc[Consumption]) -> 253524.751
B14: Vol True-Up | C14: =C13-C12 -> -7283.438 | D14: =D13-D12 -> -43744.021 | E14: =E13-E12 -> -35289.597
B15: Rates in Effect
B16: CAWNA | C16: =SUMPRODUCT((WNARRates[BeginDate]<=C$11)*(WNARRates[EndDate]>=C$11)*(WNARRates[Region]=$C$4)*(WNARRates[CustClass]=$D$9)*WNARRates[CAWNA]) -> 0.02935 | D16: =SUMPRODUCT((WNARRates[BeginDate]<=D$11)*(WNARRates[EndDate]>=D$11)*(WNARRates[Region]=$C$4)*(WNARRates[CustClass]=$D$9)*WNARRates[CAWNA]) -> 0.02935 | E16: =SUMPRODUCT((WNARRates[BeginDate]<=E$11)*(WNARRates[EndDate]>=E$11)*(WNARRates[Region]=$C$4)*(WNARRates[CustClass]=$D$9)*WNARRates[CAWNA]) -> 0.02935 | F16: =SUMPRODUCT((WNARRates[BeginDate]<=F$11)*(WNARRates[EndDate]>=F$11)*(WNARRates[Region]=$C$4)*(WNARRates[CustClass]=$D$9)*WNARRates[CAWNA]) -> 0.02296 | G16: =SUMPRODUCT((WNARRates[BeginDate]<=G$11)*(WNARRates[EndDate]>=G$11)*(WNARRates[Region]=$C$4)*(WNARRates[CustClass]=$D$9)*WNARRates[CAWNA]) -> 0.02296 | H16: =SUMPRODUCT((WNARRates[BeginDate]<=H$11)*(WNARRates[EndDate]>=H$11)*(WNARRates[Region]=$C$4)*(WNARRates[CustClass]=$D$9)*WNARRates[CAWNA]) -> 0.02296 | I16: =SUMPRODUCT((WNARRates[BeginDate]<=I$11)*(WNARRates[EndDate]>=I$11)*(WNARRates[Region]=$C$4)*(WNARRates[CustClass]=$D$9)*WNARRates[CAWNA]) -> 0.02296 | J16: =SUMPRODUCT((WNARRates[BeginDate]<=J$11)*(WNARRates[EndDate]>=J$11)*(WNARRates[Region]=$C$4)*(WNARRates[CustClass]=$D$9)*WNARRates[CAWNA]) -> 0.02296 | K16: =SUMPRODUCT((WNARRates[BeginDate]<=K$11)*(WNARRates[EndDate]>=K$11)*(WNARRates[Region]=$C$4)*(WNARRates[CustClass]=$D$9)*WNARRates[CAWNA]) -> 0.02296 | L16: =SUMPRODUCT((WNARRates[BeginDate]<=L$11)*(WNARRates[EndDate]>=L$11)*(WNARRates[Region]=$C$4)*(WNARRates[CustClass]=$D$9)*WNARRates[CAWNA]) -> 0.02296 | M16: =SUMPRODUCT((WNARRates[BeginDate]<=M$11)*(WNARRates[EndDate]>=M$11)*(WNARRates[Region]=$C$4)*(WNARRates[CustClass]=$D$9)*WNARRates[CAWNA]) -> 0.02296 | N16: =SUMPRODUCT((WNARRates[BeginDate]<=N$11)*(WNARRates[EndDate]>=N$11)*(WNARRates[Region]=$C$4)*(WNARRates[CustClass]=$D$9)*WNARRates[CAWNA]) -> 0.02296 | O16: =SUMPRODUCT((WNARRates[BeginDate]<=O$11)*(WNARRates[EndDate]>=O$11)*(WNARRates[Region]=$C$4)*(WNARRates[CustClass]=$D$9)*WNARRates[CAWNA]) -> 0.02296 | P16: =SUMPRODUCT((WNARRates[BeginDate]<=P$11)*(WNARRates[EndDate]>=P$11)*(WNARRates[Region]=$C$4)*(WNARRates[CustClass]=$D$9)*WNARRates[CAWNA]) -> 0.02296 | Q16: =SUMPRODUCT((WNARRates[BeginDate]<=Q$11)*(WNARRates[EndDate]>=Q$11)*(WNARRates[Region]=$C$4)*(WNARRates[CustClass]=$D$9)*WNARRates[CAWNA]) -> 0.02296
B17: ARR | C17: =SUMPRODUCT((WNARRates[BeginDate]<=C$11)*(WNARRates[EndDate]>=C$11)*(WNARRates[Region]=$C$4)*(WNARRates[CustClass]=$D$9)*WNARRates[SRR]) -> 0.00374 | D17: =SUMPRODUCT((WNARRates[BeginDate]<=D$11)*(WNARRates[EndDate]>=D$11)*(WNARRates[Region]=$C$4)*(WNARRates[CustClass]=$D$9)*WNARRates[SRR]) -> 0.00374 | E17: =SUMPRODUCT((WNARRates[BeginDate]<=E$11)*(WNARRates[EndDate]>=E$11)*(WNARRates[Region]=$C$4)*(WNARRates[CustClass]=$D$9)*WNARRates[SRR]) -> 0.00374 | F17: =SUMPRODUCT((WNARRates[BeginDate]<=F$11)*(WNARRates[EndDate]>=F$11)*(WNARRates[Region]=$C$4)*(WNARRates[CustClass]=$D$9)*WNARRates[SRR]) -> 0.00746 | G17: =SUMPRODUCT((WNARRates[BeginDate]<=G$11)*(WNARRates[EndDate]>=G$11)*(WNARRates[Region]=$C$4)*(WNARRates[CustClass]=$D$9)*WNARRates[SRR]) -> 0.00746 | H17: =SUMPRODUCT((WNARRates[BeginDate]<=H$11)*(WNARRates[EndDate]>=H$11)*(WNARRates[Region]=$C$4)*(WNARRates[CustClass]=$D$9)*WNARRates[SRR]) -> 0.00746 | I17: =SUMPRODUCT((WNARRates[BeginDate]<=I$11)*(WNARRates[EndDate]>=I$11)*(WNARRates[Region]=$C$4)*(WNARRates[CustClass]=$D$9)*WNARRates[SRR]) -> 0.00746 | J17: =SUMPRODUCT((WNARRates[BeginDate]<=J$11)*(WNARRates[EndDate]>=J$11)*(WNARRates[Region]=$C$4)*(WNARRates[CustClass]=$D$9)*WNARRates[SRR]) -> 0.00746 | K17: =SUMPRODUCT((WNARRates[BeginDate]<=K$11)*(WNARRates[EndDate]>=K$11)*(WNARRates[Region]=$C$4)*(WNARRates[CustClass]=$D$9)*WNARRates[SRR]) -> 0.00746 | L17: =SUMPRODUCT((WNARRates[BeginDate]<=L$11)*(WNARRates[EndDate]>=L$11)*(WNARRates[Region]=$C$4)*(WNARRates[CustClass]=$D$9)*WNARRates[SRR]) -> 0.00746 | M17: =SUMPRODUCT((WNARRates[BeginDate]<=M$11)*(WNARRates[EndDate]>=M$11)*(WNARRates[Region]=$C$4)*(WNARRates[CustClass]=$D$9)*WNARRates[SRR]) -> 0.00746 | N17: =SUMPRODUCT((WNARRates[BeginDate]<=N$11)*(WNARRates[EndDate]>=N$11)*(WNARRates[Region]=$C$4)*(WNARRates[CustClass]=$D$9)*WNARRates[SRR]) -> 0.00746 | O17: =SUMPRODUCT((WNARRates[BeginDate]<=O$11)*(WNARRates[EndDate]>=O$11)*(WNARRates[Region]=$C$4)*(WNARRates[CustClass]=$D$9)*WNARRates[SRR]) -> 0.00746 | P17: =SUMPRODUCT((WNARRates[BeginDate]<=P$11)*(WNARRates[EndDate]>=P$11)*(WNARRates[Region]=$C$4)*(WNARRates[CustClass]=$D$9)*WNARRates[SRR]) -> 0.00746 | Q17: =SUMPRODUCT((WNARRates[BeginDate]<=Q$11)*(WNARRates[EndDate]>=Q$11)*(WNARRates[Region]=$C$4)*(WNARRates[CustClass]=$D$9)*WNARRates[SRR]) -> 0.00746
B18: Total | C18: =SUM(C16:C17) -> 0.03309 | D18: =SUM(D16:D17) -> 0.03309 | E18: 0.03309 | F18: 0.03042 | G18: 0.03042 | H18: 0.03042 | I18: 0.03042 | J18: 0.03042 | K18: 0.03042 | L18: 0.03042 | M18: 0.03042 | N18: 0.03042
B19: CAWNA and ARR Revenue for Period
B20: CAWNA $ | F20: =SUMPRODUCT((WNARevAlloc[MonthFlow]=F$11)*(WNARevAlloc[Region]=$C$4)*(WNARevAlloc[CustClass]=$D$9)*WNARevAlloc[AdjCAWNARev]) -> 18259.91329 | G20: =SUMPRODUCT((WNARevAlloc[MonthFlow]=G$11)*(WNARevAlloc[Region]=$C$4)*(WNARevAlloc[CustClass]=$D$9)*WNARevAlloc[AdjCAWNARev]) -> 45338.08143 | H20: =SUMPRODUCT((WNARevAlloc[MonthFlow]=H$11)*(WNARevAlloc[Region]=$C$4)*(WNARevAlloc[CustClass]=$D$9)*WNARevAlloc[AdjCAWNARev]) -> 58711.53967 | I20: =SUMPRODUCT((WNARevAlloc[MonthFlow]=I$11)*(WNARevAlloc[Region]=$C$4)*(WNARevAlloc[CustClass]=$D$9)*WNARevAlloc[AdjCAWNARev]) -> 86066.02446 | J20: =SUMPRODUCT((WNARevAlloc[MonthFlow]=J$11)*(WNARevAlloc[Region]=$C$4)*(WNARevAlloc[CustClass]=$D$9)*WNARevAlloc[AdjCAWNARev]) -> 41651.8801 | K20: =SUMPRODUCT((WNARevAlloc[MonthFlow]=K$11)*(WNARevAlloc[Region]=$C$4)*(WNARevAlloc[CustClass]=$D$9)*WNARevAlloc[AdjCAWNARev]) -> 18835.53697 | L20: =SUMPRODUCT((WNARevAlloc[MonthFlow]=L$11)*(WNARevAlloc[Region]=$C$4)*(WNARevAlloc[CustClass]=$D$9)*WNARevAlloc[AdjCAWNARev]) -> 9522.93625 | M20: =SUMPRODUCT((WNARevAlloc[MonthFlow]=M$11)*(WNARevAlloc[Region]=$C$4)*(WNARevAlloc[CustClass]=$D$9)*WNARevAlloc[AdjCAWNARev]) -> 6475.483488 | N20: =SUMPRODUCT((WNARevAlloc[MonthFlow]=N$11)*(WNARevAlloc[Region]=$C$4)*(WNARevAlloc[CustClass]=$D$9)*WNARevAlloc[AdjCAWNARev]) -> 5811.426801 | O20: =ROUND(O$12*O16,0) -> 5395 | P20: 5200 | Q20: 5419
B21: ARR $ | C21: =ROUND(C14*C18,2) -> -241.01 | D21: =ROUND(D14*D18,2) -> -1447.49 | E21: =ROUND(E14*E18,2) -> -1167.73 | F21: =SUMPRODUCT((WNARevAlloc[MonthFlow]=F$11)*(WNARevAlloc[Region]=$C$4)*(WNARevAlloc[CustClass]=$D$9)*WNARevAlloc[AdjARRRev]) -> 5913.526713 | G21: =SUMPRODUCT((WNARevAlloc[MonthFlow]=G$11)*(WNARevAlloc[Region]=$C$4)*(WNARevAlloc[CustClass]=$D$9)*WNARevAlloc[AdjARRRev]) -> 14704.95857 | H21: =SUMPRODUCT((WNARevAlloc[MonthFlow]=H$11)*(WNARevAlloc[Region]=$C$4)*(WNARevAlloc[CustClass]=$D$9)*WNARevAlloc[AdjARRRev]) -> 19057.68033 | I21: =SUMPRODUCT((WNARevAlloc[MonthFlow]=I$11)*(WNARevAlloc[Region]=$C$4)*(WNARevAlloc[CustClass]=$D$9)*WNARevAlloc[AdjARRRev]) -> 27969.86554 | J21: =SUMPRODUCT((WNARevAlloc[MonthFlow]=J$11)*(WNARevAlloc[Region]=$C$4)*(WNARevAlloc[CustClass]=$D$9)*WNARevAlloc[AdjARRRev]) -> 13533.0999 | K21: =SUMPRODUCT((WNARevAlloc[MonthFlow]=K$11)*(WNARevAlloc[Region]=$C$4)*(WNARevAlloc[CustClass]=$D$9)*WNARevAlloc[AdjARRRev]) -> 6120.633033 | L21: =SUMPRODUCT((WNARevAlloc[MonthFlow]=L$11)*(WNARevAlloc[Region]=$C$4)*(WNARevAlloc[CustClass]=$D$9)*WNARevAlloc[AdjARRRev]) -> 3116.33375 | M21: =SUMPRODUCT((WNARevAlloc[MonthFlow]=M$11)*(WNARevAlloc[Region]=$C$4)*(WNARevAlloc[CustClass]=$D$9)*WNARevAlloc[AdjARRRev]) -> 2114.456512 | N21: =SUMPRODUCT((WNARevAlloc[MonthFlow]=N$11)*(WNARevAlloc[Region]=$C$4)*(WNARevAlloc[CustClass]=$D$9)*WNARevAlloc[AdjARRRev]) -> 1887.993199 | O21: 1753 | P21: 1689 | Q21: 1761
B22: Total True-Up | C22: =SUM(C21:E21) -> -2856.23 | D22: Enter in VolTrueUp Table
B24: SAP Rate Category | C24: SMGC_SFGS | D24: SGS
B25: Small Comm. | C25: True-Up Period | F25: Actual Period* | O25: Projected Period
B26: Month | C26: =C6 -> 45839 | D26: =EDATE(C26,1) -> 45870 | E26: =EDATE(D26,1) -> 45901 | F26: 45931 | G26: 45962 | H26: 45992 | I26: 46023 | J26: 46054 | K26: 46082 | L26: 46113 | M26: 46143 | N26: 46174 | O26: 46204 | P26: 46235 | Q26: 46266
B27: Est. Volume | C27: =SUMPRODUCT((CustEstVolRev[MonthFlow]=C26)*(CustEstVolRev[SAPRateCategory]=$C24)*CustEstVolRev[NormVol]) -> 74491.135 | D27: =SUMPRODUCT((CustEstVolRev[MonthFlow]=D26)*(CustEstVolRev[SAPRateCategory]=$C24)*CustEstVolRev[NormVol]) -> 101191.98 | E27: =SUMPRODUCT((CustEstVolRev[MonthFlow]=E26)*(CustEstVolRev[SAPRateCategory]=$C24)*CustEstVolRev[NormVol]) -> 83357.971 | O27: =SUMPRODUCT((CustEstVolRev[MonthFlow]=O26)*(CustEstVolRev[SAPRateCategory]=$C24)*CustEstVolRev[NormVol]) -> 77647.728 | P27: =SUMPRODUCT((CustEstVolRev[MonthFlow]=P26)*(CustEstVolRev[SAPRateCategory]=$C24)*CustEstVolRev[NormVol]) -> 77927.914 | Q27: =SUMPRODUCT((CustEstVolRev[MonthFlow]=Q26)*(CustEstVolRev[SAPRateCategory]=$C24)*CustEstVolRev[NormVol]) -> 75992.203
B28: Actual Volume | C28: =SUMPRODUCT((WNARevAlloc[MonthFlow]=C26)*(WNARevAlloc[SAPRateCategory]=$C24)*WNARevAlloc[Consumption]) -> 77647.728 | D28: =SUMPRODUCT((WNARevAlloc[MonthFlow]=D26)*(WNARevAlloc[SAPRateCategory]=$C24)*WNARevAlloc[Consumption]) -> 77927.914 | E28: =SUMPRODUCT((WNARevAlloc[MonthFlow]=E26)*(WNARevAlloc[SAPRateCategory]=$C24)*WNARevAlloc[Consumption]) -> 75992.203 | F28: =SUMPRODUCT((WNARevAlloc[MonthFlow]=F26)*(WNARevAlloc[SAPRateCategory]=$C24)*WNARevAlloc[Consumption]) -> 204432.178 | G28: =SUMPRODUCT((WNARevAlloc[MonthFlow]=G26)*(WNARevAlloc[SAPRateCategory]=$C24)*WNARevAlloc[Consumption]) -> 583618.438 | H28: =SUMPRODUCT((WNARevAlloc[MonthFlow]=H26)*(WNARevAlloc[SAPRateCategory]=$C24)*WNARevAlloc[Consumption]) -> 797113.798 | I28: =SUMPRODUCT((WNARevAlloc[MonthFlow]=I26)*(WNARevAlloc[SAPRateCategory]=$C24)*WNARevAlloc[Consumption]) -> 1186071.992 | J28: =SUMPRODUCT((WNARevAlloc[MonthFlow]=J26)*(WNARevAlloc[SAPRateCategory]=$C24)*WNARevAlloc[Consumption]) -> 555468.263 | K28: =SUMPRODUCT((WNARevAlloc[MonthFlow]=K26)*(WNARevAlloc[SAPRateCategory]=$C24)*WNARevAlloc[Consumption]) -> 236554.698 | L28: =SUMPRODUCT((WNARevAlloc[MonthFlow]=L26)*(WNARevAlloc[SAPRateCategory]=$C24)*WNARevAlloc[Consumption]) -> 113860.027 | M28: =SUMPRODUCT((WNARevAlloc[MonthFlow]=M26)*(WNARevAlloc[SAPRateCategory]=$C24)*WNARevAlloc[Consumption]) -> 85374.904 | N28: =SUMPRODUCT((WNARevAlloc[MonthFlow]=N26)*(WNARevAlloc[SAPRateCategory]=$C24)*WNARevAlloc[Consumption]) -> 80817.689
B29: Vol True-Up | C29: =C28-C27 -> 3156.593 | D29: =D28-D27 -> -23264.066 | E29: =E28-E27 -> -7365.768
B30: Rates in Effect
B31: CAWNA | C31: =SUMPRODUCT((WNARRates[BeginDate]<=C$26)*(WNARRates[EndDate]>=C$26)*(WNARRates[Region]=$C$4)*(WNARRates[CustClass]=$D$24)*WNARRates[CAWNA]) -> 0.01021 | D31: =SUMPRODUCT((WNARRates[BeginDate]<=D$26)*(WNARRates[EndDate]>=D$26)*(WNARRates[Region]=$C$4)*(WNARRates[CustClass]=$D$24)*WNARRates[CAWNA]) -> 0.01021 | E31: =SUMPRODUCT((WNARRates[BeginDate]<=E$26)*(WNARRates[EndDate]>=E$26)*(WNARRates[Region]=$C$4)*(WNARRates[CustClass]=$D$24)*WNARRates[CAWNA]) -> 0.01021 | F31: =SUMPRODUCT((WNARRates[BeginDate]<=F$26)*(WNARRates[EndDate]>=F$26)*(WNARRates[Region]=$C$4)*(WNARRates[CustClass]=$D$24)*WNARRates[CAWNA]) -> 0.00617 | G31: =SUMPRODUCT((WNARRates[BeginDate]<=G$26)*(WNARRates[EndDate]>=G$26)*(WNARRates[Region]=$C$4)*(WNARRates[CustClass]=$D$24)*WNARRates[CAWNA]) -> 0.00617 | H31: =SUMPRODUCT((WNARRates[BeginDate]<=H$26)*(WNARRates[EndDate]>=H$26)*(WNARRates[Region]=$C$4)*(WNARRates[CustClass]=$D$24)*WNARRates[CAWNA]) -> 0.00617 | I31: =SUMPRODUCT((WNARRates[BeginDate]<=I$26)*(WNARRates[EndDate]>=I$26)*(WNARRates[Region]=$C$4)*(WNARRates[CustClass]=$D$24)*WNARRates[CAWNA]) -> 0.00617 | J31: =SUMPRODUCT((WNARRates[BeginDate]<=J$26)*(WNARRates[EndDate]>=J$26)*(WNARRates[Region]=$C$4)*(WNARRates[CustClass]=$D$24)*WNARRates[CAWNA]) -> 0.00617 | K31: =SUMPRODUCT((WNARRates[BeginDate]<=K$26)*(WNARRates[EndDate]>=K$26)*(WNARRates[Region]=$C$4)*(WNARRates[CustClass]=$D$24)*WNARRates[CAWNA]) -> 0.00617 | L31: =SUMPRODUCT((WNARRates[BeginDate]<=L$26)*(WNARRates[EndDate]>=L$26)*(WNARRates[Region]=$C$4)*(WNARRates[CustClass]=$D$24)*WNARRates[CAWNA]) -> 0.00617 | M31: =SUMPRODUCT((WNARRates[BeginDate]<=M$26)*(WNARRates[EndDate]>=M$26)*(WNARRates[Region]=$C$4)*(WNARRates[CustClass]=$D$24)*WNARRates[CAWNA]) -> 0.00617 | N31: =SUMPRODUCT((WNARRates[BeginDate]<=N$26)*(WNARRates[EndDate]>=N$26)*(WNARRates[Region]=$C$4)*(WNARRates[CustClass]=$D$24)*WNARRates[CAWNA]) -> 0.00617 | O31: =SUMPRODUCT((WNARRates[BeginDate]<=O$26)*(WNARRates[EndDate]>=O$26)*(WNARRates[Region]=$C$4)*(WNARRates[CustClass]=$D$24)*WNARRates[CAWNA]) -> 0.00617 | P31: =SUMPRODUCT((WNARRates[BeginDate]<=P$26)*(WNARRates[EndDate]>=P$26)*(WNARRates[Region]=$C$4)*(WNARRates[CustClass]=$D$24)*WNARRates[CAWNA]) -> 0.00617 | Q31: =SUMPRODUCT((WNARRates[BeginDate]<=Q$26)*(WNARRates[EndDate]>=Q$26)*(WNARRates[Region]=$C$4)*(WNARRates[CustClass]=$D$24)*WNARRates[CAWNA]) -> 0.00617
B32: ARR | C32: =SUMPRODUCT((WNARRates[BeginDate]<=C$26)*(WNARRates[EndDate]>=C$26)*(WNARRates[Region]=$C$4)*(WNARRates[CustClass]=$D$24)*WNARRates[SRR]) -> 0.00034 | D32: =SUMPRODUCT((WNARRates[BeginDate]<=D$26)*(WNARRates[EndDate]>=D$26)*(WNARRates[Region]=$C$4)*(WNARRates[CustClass]=$D$24)*WNARRates[SRR]) -> 0.00034 | E32: =SUMPRODUCT((WNARRates[BeginDate]<=E$26)*(WNARRates[EndDate]>=E$26)*(WNARRates[Region]=$C$4)*(WNARRates[CustClass]=$D$24)*WNARRates[SRR]) -> 0.00034 | F32: =SUMPRODUCT((WNARRates[BeginDate]<=F$26)*(WNARRates[EndDate]>=F$26)*(WNARRates[Region]=$C$4)*(WNARRates[CustClass]=$D$24)*WNARRates[SRR]) -> -0.00034 | G32: =SUMPRODUCT((WNARRates[BeginDate]<=G$26)*(WNARRates[EndDate]>=G$26)*(WNARRates[Region]=$C$4)*(WNARRates[CustClass]=$D$24)*WNARRates[SRR]) -> -0.00034 | H32: =SUMPRODUCT((WNARRates[BeginDate]<=H$26)*(WNARRates[EndDate]>=H$26)*(WNARRates[Region]=$C$4)*(WNARRates[CustClass]=$D$24)*WNARRates[SRR]) -> -0.00034 | I32: =SUMPRODUCT((WNARRates[BeginDate]<=I$26)*(WNARRates[EndDate]>=I$26)*(WNARRates[Region]=$C$4)*(WNARRates[CustClass]=$D$24)*WNARRates[SRR]) -> -0.00034 | J32: =SUMPRODUCT((WNARRates[BeginDate]<=J$26)*(WNARRates[EndDate]>=J$26)*(WNARRates[Region]=$C$4)*(WNARRates[CustClass]=$D$24)*WNARRates[SRR]) -> -0.00034 | K32: =SUMPRODUCT((WNARRates[BeginDate]<=K$26)*(WNARRates[EndDate]>=K$26)*(WNARRates[Region]=$C$4)*(WNARRates[CustClass]=$D$24)*WNARRates[SRR]) -> -0.00034 | L32: =SUMPRODUCT((WNARRates[BeginDate]<=L$26)*(WNARRates[EndDate]>=L$26)*(WNARRates[Region]=$C$4)*(WNARRates[CustClass]=$D$24)*WNARRates[SRR]) -> -0.00034 | M32: =SUMPRODUCT((WNARRates[BeginDate]<=M$26)*(WNARRates[EndDate]>=M$26)*(WNARRates[Region]=$C$4)*(WNARRates[CustClass]=$D$24)*WNARRates[SRR]) -> -0.00034 | N32: =SUMPRODUCT((WNARRates[BeginDate]<=N$26)*(WNARRates[EndDate]>=N$26)*(WNARRates[Region]=$C$4)*(WNARRates[CustClass]=$D$24)*WNARRates[SRR]) -> -0.00034 | O32: =SUMPRODUCT((WNARRates[BeginDate]<=O$26)*(WNARRates[EndDate]>=O$26)*(WNARRates[Region]=$C$4)*(WNARRates[CustClass]=$D$24)*WNARRates[SRR]) -> -0.00034 | P32: =SUMPRODUCT((WNARRates[BeginDate]<=P$26)*(WNARRates[EndDate]>=P$26)*(WNARRates[Region]=$C$4)*(WNARRates[CustClass]=$D$24)*WNARRates[SRR]) -> -0.00034 | Q32: =SUMPRODUCT((WNARRates[BeginDate]<=Q$26)*(WNARRates[EndDate]>=Q$26)*(WNARRates[Region]=$C$4)*(WNARRates[CustClass]=$D$24)*WNARRates[SRR]) -> -0.00034
B33: Total | C33: =SUM(C31:C32) -> 0.01055 | D33: =SUM(D31:D32) -> 0.01055 | E33: =SUM(E31:E32) -> 0.01055 | F33: 0.00583 | G33: 0.00583 | H33: 0.00583 | I33: 0.00583 | J33: 0.00583 | K33: 0.00583 | L33: 0.00583 | M33: 0.00583 | N33: 0.00583
B34: CAWNA and ARR Revenue for Period
B35: CAWNA $ | F35: =SUMPRODUCT((WNARevAlloc[MonthFlow]=F$11)*(WNARevAlloc[Region]=$C$4)*(WNARevAlloc[CustClass]=$D$24)*WNARevAlloc[AdjCAWNARev]) -> 1260.884827 | G35: =SUMPRODUCT((WNARevAlloc[MonthFlow]=G$11)*(WNARevAlloc[Region]=$C$4)*(WNARevAlloc[CustClass]=$D$24)*WNARevAlloc[AdjCAWNARev]) -> 3600.559649 | H35: =SUMPRODUCT((WNARevAlloc[MonthFlow]=H$11)*(WNARevAlloc[Region]=$C$4)*(WNARevAlloc[CustClass]=$D$24)*WNARevAlloc[AdjCAWNARev]) -> 4918.209657 | I35: =SUMPRODUCT((WNARevAlloc[MonthFlow]=I$11)*(WNARevAlloc[Region]=$C$4)*(WNARevAlloc[CustClass]=$D$24)*WNARevAlloc[AdjCAWNARev]) -> 7318.30979 | J35: =SUMPRODUCT((WNARevAlloc[MonthFlow]=J$11)*(WNARevAlloc[Region]=$C$4)*(WNARevAlloc[CustClass]=$D$24)*WNARevAlloc[AdjCAWNARev]) -> 3427.080463 | K35: =SUMPRODUCT((WNARevAlloc[MonthFlow]=K$11)*(WNARevAlloc[Region]=$C$4)*(WNARevAlloc[CustClass]=$D$24)*WNARevAlloc[AdjCAWNARev]) -> 1460.328751 | L35: =SUMPRODUCT((WNARevAlloc[MonthFlow]=L$11)*(WNARevAlloc[Region]=$C$4)*(WNARevAlloc[CustClass]=$D$24)*WNARevAlloc[AdjCAWNARev]) -> 702.2793482 | M35: =SUMPRODUCT((WNARevAlloc[MonthFlow]=M$11)*(WNARevAlloc[Region]=$C$4)*(WNARevAlloc[CustClass]=$D$24)*WNARevAlloc[AdjCAWNARev]) -> 526.7465523 | N35: =SUMPRODUCT((WNARevAlloc[MonthFlow]=N$11)*(WNARevAlloc[Region]=$C$4)*(WNARevAlloc[CustClass]=$D$24)*WNARevAlloc[AdjCAWNARev]) -> 498.4840946 | O35: =ROUND(O$27*O31,0) -> 479 | P35: 481 | Q35: 469
B36: ARR $ | C36: =ROUND(C29*C33,2) -> 33.3 | D36: =ROUND(D29*D33,2) -> -245.44 | E36: =ROUND(E29*E33,2) -> -77.71 | F36: =SUMPRODUCT((WNARevAlloc[MonthFlow]=F$11)*(WNARevAlloc[Region]=$C$4)*(WNARevAlloc[CustClass]=$D$24)*WNARevAlloc[AdjARRRev]) -> -69.47482704 | G36: =SUMPRODUCT((WNARevAlloc[MonthFlow]=G$11)*(WNARevAlloc[Region]=$C$4)*(WNARevAlloc[CustClass]=$D$24)*WNARevAlloc[AdjARRRev]) -> -198.4096494 | H36: =SUMPRODUCT((WNARevAlloc[MonthFlow]=H$11)*(WNARevAlloc[Region]=$C$4)*(WNARevAlloc[CustClass]=$D$24)*WNARevAlloc[AdjARRRev]) -> -271.0196569 | I36: =SUMPRODUCT((WNARevAlloc[MonthFlow]=I$11)*(WNARevAlloc[Region]=$C$4)*(WNARevAlloc[CustClass]=$D$24)*WNARevAlloc[AdjARRRev]) -> -403.27979 | J36: =SUMPRODUCT((WNARevAlloc[MonthFlow]=J$11)*(WNARevAlloc[Region]=$C$4)*(WNARevAlloc[CustClass]=$D$24)*WNARevAlloc[AdjARRRev]) -> -188.8504631 | K36: =SUMPRODUCT((WNARevAlloc[MonthFlow]=K$11)*(WNARevAlloc[Region]=$C$4)*(WNARevAlloc[CustClass]=$D$24)*WNARevAlloc[AdjARRRev]) -> -80.36875083 | L36: =SUMPRODUCT((WNARevAlloc[MonthFlow]=L$11)*(WNARevAlloc[Region]=$C$4)*(WNARevAlloc[CustClass]=$D$24)*WNARevAlloc[AdjARRRev]) -> -38.6993482 | M36: =SUMPRODUCT((WNARevAlloc[MonthFlow]=M$11)*(WNARevAlloc[Region]=$C$4)*(WNARevAlloc[CustClass]=$D$24)*WNARevAlloc[AdjARRRev]) -> -29.02655232 | N36: =SUMPRODUCT((WNARevAlloc[MonthFlow]=N$11)*(WNARevAlloc[Region]=$C$4)*(WNARevAlloc[CustClass]=$D$24)*WNARevAlloc[AdjARRRev]) -> -27.46409464 | O36: -26 | P36: -26 | Q36: -26
B37: Total True-Up | C37: =SUM(C36:E36) -> -289.85 | D37: Enter in VolTrueUp Table
B39: * Actual Period revenues were calculated using actual rates, and then adjusted for actual revenues billed.
B40: (See worksheet WNARRevAlloc)

Sheet ARR WEMO
B2: Liberty Midstates | F2: Year | I2: SAP Rate Cat. | J2: Territory | K2: Cust. Class
B3: Semi-Annual Reconciliation Rate | I3: WMGR_RFS | J3: WEMO | K3: Res
B4: Region | C4: WEMO | I4: WMGC_SFGS | J4: WEMO | K4: SGS
B5: Year | C5: =DateSet!C2 -> 2026
B6: Analysis Start | C6: =DateSet!$D$3 -> 2025-07-01
B9: SAP Rate Category | C9: WMGR_RFS | D9: Res
B10: Residential | C10: True-Up Period | F10: Actual Period* | O10: Projected Period
B11: Month | C11: =C6 -> 45839 | D11: =EDATE(C11,1) -> 45870 | E11: =EDATE(D11,1) -> 45901 | F11: 45931 | G11: 45962 | H11: 45992 | I11: 46023 | J11: 46054 | K11: 46082 | L11: 46113 | M11: 46143 | N11: 46174 | O11: 46204 | P11: 46235 | Q11: 46266
B12: Est. Volume | C12: =SUMPRODUCT((CustEstVolRev[MonthFlow]=C$11)*(CustEstVolRev[SAPRateCategory]=$C$9)*CustEstVolRev[NormVol]) -> 23008.062 | D12: =SUMPRODUCT((CustEstVolRev[MonthFlow]=D$11)*(CustEstVolRev[SAPRateCategory]=$C$9)*CustEstVolRev[NormVol]) -> 27009.54 | E12: =SUMPRODUCT((CustEstVolRev[MonthFlow]=E$11)*(CustEstVolRev[SAPRateCategory]=$C$9)*CustEstVolRev[NormVol]) -> 37247.467 | O12: =SUMPRODUCT((CustEstVolRev[MonthFlow]=O$11)*(CustEstVolRev[SAPRateCategory]=$C$9)*CustEstVolRev[NormVol]) -> 25329.823 | P12: =SUMPRODUCT((CustEstVolRev[MonthFlow]=P$11)*(CustEstVolRev[SAPRateCategory]=$C$9)*CustEstVolRev[NormVol]) -> 25591.092 | Q12: =SUMPRODUCT((CustEstVolRev[MonthFlow]=Q$11)*(CustEstVolRev[SAPRateCategory]=$C$9)*CustEstVolRev[NormVol]) -> 25466.863
B13: Actual Volume | C13: =SUMPRODUCT((WNARevAlloc[MonthFlow]=C11)*(WNARevAlloc[SAPRateCategory]=$C9)*WNARevAlloc[Consumption]) -> 25329.823 | D13: =SUMPRODUCT((WNARevAlloc[MonthFlow]=D11)*(WNARevAlloc[SAPRateCategory]=$C9)*WNARevAlloc[Consumption]) -> 25591.092 | E13: =SUMPRODUCT((WNARevAlloc[MonthFlow]=E11)*(WNARevAlloc[SAPRateCategory]=$C9)*WNARevAlloc[Consumption]) -> 25466.863 | F13: =SUMPRODUCT((WNARevAlloc[MonthFlow]=F11)*(WNARevAlloc[SAPRateCategory]=$C9)*WNARevAlloc[Consumption]) -> 1084 | G13: =SUMPRODUCT((WNARevAlloc[MonthFlow]=G11)*(WNARevAlloc[SAPRateCategory]=$C9)*WNARevAlloc[Consumption]) -> 469452.722 | H13: =SUMPRODUCT((WNARevAlloc[MonthFlow]=H11)*(WNARevAlloc[SAPRateCategory]=$C9)*WNARevAlloc[Consumption]) -> 303747.035 | I13: =SUMPRODUCT((WNARevAlloc[MonthFlow]=I11)*(WNARevAlloc[SAPRateCategory]=$C9)*WNARevAlloc[Consumption]) -> 478834.753 | J13: =SUMPRODUCT((WNARevAlloc[MonthFlow]=J11)*(WNARevAlloc[SAPRateCategory]=$C9)*WNARevAlloc[Consumption]) -> 249654.803 | K13: =SUMPRODUCT((WNARevAlloc[MonthFlow]=K11)*(WNARevAlloc[SAPRateCategory]=$C9)*WNARevAlloc[Consumption]) -> 73060.113 | L13: =SUMPRODUCT((WNARevAlloc[MonthFlow]=L11)*(WNARevAlloc[SAPRateCategory]=$C9)*WNARevAlloc[Consumption]) -> 59785.515 | M13: =SUMPRODUCT((WNARevAlloc[MonthFlow]=M11)*(WNARevAlloc[SAPRateCategory]=$C9)*WNARevAlloc[Consumption]) -> 28024.211 | N13: =SUMPRODUCT((WNARevAlloc[MonthFlow]=N11)*(WNARevAlloc[SAPRateCategory]=$C9)*WNARevAlloc[Consumption]) -> 25284.778
B14: Vol True-Up | C14: =C13-C12 -> 2321.761 | D14: =D13-D12 -> -1418.448 | E14: =E13-E12 -> -11780.604
B15: Rates in Effect
B16: CAWNA | C16: =SUMPRODUCT((WNARRates[BeginDate]<=C$11)*(WNARRates[EndDate]>=C$11)*(WNARRates[Region]=$C$4)*(WNARRates[CustClass]=$D$9)*WNARRates[CAWNA]) -> 0.03215 | D16: =SUMPRODUCT((WNARRates[BeginDate]<=D$11)*(WNARRates[EndDate]>=D$11)*(WNARRates[Region]=$C$4)*(WNARRates[CustClass]=$D$9)*WNARRates[CAWNA]) -> 0.03215 | E16: =SUMPRODUCT((WNARRates[BeginDate]<=E$11)*(WNARRates[EndDate]>=E$11)*(WNARRates[Region]=$C$4)*(WNARRates[CustClass]=$D$9)*WNARRates[CAWNA]) -> 0.03215 | F16: =SUMPRODUCT((WNARRates[BeginDate]<=F$11)*(WNARRates[EndDate]>=F$11)*(WNARRates[Region]=$C$4)*(WNARRates[CustClass]=$D$9)*WNARRates[CAWNA]) -> 0.02353 | G16: =SUMPRODUCT((WNARRates[BeginDate]<=G$11)*(WNARRates[EndDate]>=G$11)*(WNARRates[Region]=$C$4)*(WNARRates[CustClass]=$D$9)*WNARRates[CAWNA]) -> 0.02353 | H16: =SUMPRODUCT((WNARRates[BeginDate]<=H$11)*(WNARRates[EndDate]>=H$11)*(WNARRates[Region]=$C$4)*(WNARRates[CustClass]=$D$9)*WNARRates[CAWNA]) -> 0.02353 | I16: =SUMPRODUCT((WNARRates[BeginDate]<=I$11)*(WNARRates[EndDate]>=I$11)*(WNARRates[Region]=$C$4)*(WNARRates[CustClass]=$D$9)*WNARRates[CAWNA]) -> 0.02353 | J16: =SUMPRODUCT((WNARRates[BeginDate]<=J$11)*(WNARRates[EndDate]>=J$11)*(WNARRates[Region]=$C$4)*(WNARRates[CustClass]=$D$9)*WNARRates[CAWNA]) -> 0.02353 | K16: =SUMPRODUCT((WNARRates[BeginDate]<=K$11)*(WNARRates[EndDate]>=K$11)*(WNARRates[Region]=$C$4)*(WNARRates[CustClass]=$D$9)*WNARRates[CAWNA]) -> 0.02353 | L16: =SUMPRODUCT((WNARRates[BeginDate]<=L$11)*(WNARRates[EndDate]>=L$11)*(WNARRates[Region]=$C$4)*(WNARRates[CustClass]=$D$9)*WNARRates[CAWNA]) -> 0.02353 | M16: =SUMPRODUCT((WNARRates[BeginDate]<=M$11)*(WNARRates[EndDate]>=M$11)*(WNARRates[Region]=$C$4)*(WNARRates[CustClass]=$D$9)*WNARRates[CAWNA]) -> 0.02353 | N16: =SUMPRODUCT((WNARRates[BeginDate]<=N$11)*(WNARRates[EndDate]>=N$11)*(WNARRates[Region]=$C$4)*(WNARRates[CustClass]=$D$9)*WNARRates[CAWNA]) -> 0.02353 | O16: =SUMPRODUCT((WNARRates[BeginDate]<=O$11)*(WNARRates[EndDate]>=O$11)*(WNARRates[Region]=$C$4)*(WNARRates[CustClass]=$D$9)*WNARRates[CAWNA]) -> 0.02353 | P16: =SUMPRODUCT((WNARRates[BeginDate]<=P$11)*(WNARRates[EndDate]>=P$11)*(WNARRates[Region]=$C$4)*(WNARRates[CustClass]=$D$9)*WNARRates[CAWNA]) -> 0.02353 | Q16: =SUMPRODUCT((WNARRates[BeginDate]<=Q$11)*(WNARRates[EndDate]>=Q$11)*(WNARRates[Region]=$C$4)*(WNARRates[CustClass]=$D$9)*WNARRates[CAWNA]) -> 0.02353
B17: ARR | C17: =SUMPRODUCT((WNARRates[BeginDate]<=C$11)*(WNARRates[EndDate]>=C$11)*(WNARRates[Region]=$C$4)*(WNARRates[CustClass]=$D$9)*WNARRates[SRR]) -> 0.00247 | D17: =SUMPRODUCT((WNARRates[BeginDate]<=D$11)*(WNARRates[EndDate]>=D$11)*(WNARRates[Region]=$C$4)*(WNARRates[CustClass]=$D$9)*WNARRates[SRR]) -> 0.00247 | E17: =SUMPRODUCT((WNARRates[BeginDate]<=E$11)*(WNARRates[EndDate]>=E$11)*(WNARRates[Region]=$C$4)*(WNARRates[CustClass]=$D$9)*WNARRates[SRR]) -> 0.00247 | F17: =SUMPRODUCT((WNARRates[BeginDate]<=F$11)*(WNARRates[EndDate]>=F$11)*(WNARRates[Region]=$C$4)*(WNARRates[CustClass]=$D$9)*WNARRates[SRR]) -> 0.0176 | G17: =SUMPRODUCT((WNARRates[BeginDate]<=G$11)*(WNARRates[EndDate]>=G$11)*(WNARRates[Region]=$C$4)*(WNARRates[CustClass]=$D$9)*WNARRates[SRR]) -> 0.0176 | H17: =SUMPRODUCT((WNARRates[BeginDate]<=H$11)*(WNARRates[EndDate]>=H$11)*(WNARRates[Region]=$C$4)*(WNARRates[CustClass]=$D$9)*WNARRates[SRR]) -> 0.0176 | I17: =SUMPRODUCT((WNARRates[BeginDate]<=I$11)*(WNARRates[EndDate]>=I$11)*(WNARRates[Region]=$C$4)*(WNARRates[CustClass]=$D$9)*WNARRates[SRR]) -> 0.0176 | J17: =SUMPRODUCT((WNARRates[BeginDate]<=J$11)*(WNARRates[EndDate]>=J$11)*(WNARRates[Region]=$C$4)*(WNARRates[CustClass]=$D$9)*WNARRates[SRR]) -> 0.0176 | K17: =SUMPRODUCT((WNARRates[BeginDate]<=K$11)*(WNARRates[EndDate]>=K$11)*(WNARRates[Region]=$C$4)*(WNARRates[CustClass]=$D$9)*WNARRates[SRR]) -> 0.0176 | L17: =SUMPRODUCT((WNARRates[BeginDate]<=L$11)*(WNARRates[EndDate]>=L$11)*(WNARRates[Region]=$C$4)*(WNARRates[CustClass]=$D$9)*WNARRates[SRR]) -> 0.0176 | M17: =SUMPRODUCT((WNARRates[BeginDate]<=M$11)*(WNARRates[EndDate]>=M$11)*(WNARRates[Region]=$C$4)*(WNARRates[CustClass]=$D$9)*WNARRates[SRR]) -> 0.0176 | N17: =SUMPRODUCT((WNARRates[BeginDate]<=N$11)*(WNARRates[EndDate]>=N$11)*(WNARRates[Region]=$C$4)*(WNARRates[CustClass]=$D$9)*WNARRates[SRR]) -> 0.0176 | O17: =SUMPRODUCT((WNARRates[BeginDate]<=O$11)*(WNARRates[EndDate]>=O$11)*(WNARRates[Region]=$C$4)*(WNARRates[CustClass]=$D$9)*WNARRates[SRR]) -> 0.0176 | P17: =SUMPRODUCT((WNARRates[BeginDate]<=P$11)*(WNARRates[EndDate]>=P$11)*(WNARRates[Region]=$C$4)*(WNARRates[CustClass]=$D$9)*WNARRates[SRR]) -> 0.0176 | Q17: =SUMPRODUCT((WNARRates[BeginDate]<=Q$11)*(WNARRates[EndDate]>=Q$11)*(WNARRates[Region]=$C$4)*(WNARRates[CustClass]=$D$9)*WNARRates[SRR]) -> 0.0176
B18: Total | C18: =SUM(C16:C17) -> 0.03462 | D18: =SUM(D16:D17) -> 0.03462 | E18: =SUM(E16:E17) -> 0.03462
B19: CAWNA and ARR Revenue for Period
B20: CAWNA $ | F20: =SUMPRODUCT((WNARevAlloc[MonthFlow]=F$11)*(WNARevAlloc[Region]=$C$4)*(WNARevAlloc[CustClass]=$D$9)*WNARevAlloc[AdjCAWNARev]) -> 27.93173074 | G20: =SUMPRODUCT((WNARevAlloc[MonthFlow]=G$11)*(WNARevAlloc[Region]=$C$4)*(WNARevAlloc[CustClass]=$D$9)*WNARevAlloc[AdjCAWNARev]) -> 11046.25322 | H20: =SUMPRODUCT((WNARevAlloc[MonthFlow]=H$11)*(WNARevAlloc[Region]=$C$4)*(WNARevAlloc[CustClass]=$D$9)*WNARevAlloc[AdjCAWNARev]) -> 7156.343134 | I20: =SUMPRODUCT((WNARevAlloc[MonthFlow]=I$11)*(WNARevAlloc[Region]=$C$4)*(WNARevAlloc[CustClass]=$D$9)*WNARevAlloc[AdjCAWNARev]) -> 11266.85966 | J20: =SUMPRODUCT((WNARevAlloc[MonthFlow]=J$11)*(WNARevAlloc[Region]=$C$4)*(WNARevAlloc[CustClass]=$D$9)*WNARevAlloc[AdjCAWNARev]) -> 5870.501709 | K20: =SUMPRODUCT((WNARevAlloc[MonthFlow]=K$11)*(WNARevAlloc[Region]=$C$4)*(WNARevAlloc[CustClass]=$D$9)*WNARevAlloc[AdjCAWNARev]) -> 1683.163396 | L20: =SUMPRODUCT((WNARevAlloc[MonthFlow]=L$11)*(WNARevAlloc[Region]=$C$4)*(WNARevAlloc[CustClass]=$D$9)*WNARevAlloc[AdjCAWNARev]) -> 1406.536786 | M20: =SUMPRODUCT((WNARevAlloc[MonthFlow]=M$11)*(WNARevAlloc[Region]=$C$4)*(WNARevAlloc[CustClass]=$D$9)*WNARevAlloc[AdjCAWNARev]) -> 657.4231439 | N20: =SUMPRODUCT((WNARevAlloc[MonthFlow]=N$11)*(WNARevAlloc[Region]=$C$4)*(WNARevAlloc[CustClass]=$D$9)*WNARevAlloc[AdjCAWNARev]) -> 594.8576222 | O20: =ROUND(O$12*O16,0) -> 596 | P20: 602 | Q20: 599
B21: ARR $ | C21: =ROUND(C14*C18,2) -> 80.38 | D21: =ROUND(D14*D18,2) -> -49.11 | E21: =ROUND(E14*E18,2) -> -407.84 | F21: =SUMPRODUCT((WNARevAlloc[MonthFlow]=F$11)*(WNARevAlloc[Region]=$C$4)*(WNARevAlloc[CustClass]=$D$9)*WNARevAlloc[AdjARRRev]) -> 17.36826926 | G21: =SUMPRODUCT((WNARevAlloc[MonthFlow]=G$11)*(WNARevAlloc[Region]=$C$4)*(WNARevAlloc[CustClass]=$D$9)*WNARevAlloc[AdjARRRev]) -> 8262.416782 | H21: =SUMPRODUCT((WNARevAlloc[MonthFlow]=H$11)*(WNARevAlloc[Region]=$C$4)*(WNARevAlloc[CustClass]=$D$9)*WNARevAlloc[AdjARRRev]) -> 5339.456866 | I21: =SUMPRODUCT((WNARevAlloc[MonthFlow]=I$11)*(WNARevAlloc[Region]=$C$4)*(WNARevAlloc[CustClass]=$D$9)*WNARevAlloc[AdjARRRev]) -> 8427.40034 | J21: =SUMPRODUCT((WNARevAlloc[MonthFlow]=J$11)*(WNARevAlloc[Region]=$C$4)*(WNARevAlloc[CustClass]=$D$9)*WNARevAlloc[AdjARRRev]) -> 4396.878291 | K21: =SUMPRODUCT((WNARevAlloc[MonthFlow]=K$11)*(WNARevAlloc[Region]=$C$4)*(WNARevAlloc[CustClass]=$D$9)*WNARevAlloc[AdjARRRev]) -> 1310.536604 | L21: =SUMPRODUCT((WNARevAlloc[MonthFlow]=L$11)*(WNARevAlloc[Region]=$C$4)*(WNARevAlloc[CustClass]=$D$9)*WNARevAlloc[AdjARRRev]) -> 1052.063214 | M21: =SUMPRODUCT((WNARevAlloc[MonthFlow]=M$11)*(WNARevAlloc[Region]=$C$4)*(WNARevAlloc[CustClass]=$D$9)*WNARevAlloc[AdjARRRev]) -> 493.8668561 | N21: =SUMPRODUCT((WNARevAlloc[MonthFlow]=N$11)*(WNARevAlloc[Region]=$C$4)*(WNARevAlloc[CustClass]=$D$9)*WNARevAlloc[AdjARRRev]) -> 444.9423778 | O21: 446 | P21: 450 | Q21: 448
B22: Total True-Up | C22: =SUM(C21:E21) -> -376.57 | D22: Enter in VolTrueUp Table
B24: SAP Rate Category | C24: WMGC_SFGS | D24: SGS
B25: Small Comm. | C25: True-Up Period | F25: Actual Period* | O25: Projected Period
B26: Month | C26: =C6 -> 45839 | D26: =EDATE(C26,1) -> 45870 | E26: =EDATE(D26,1) -> 45901 | F26: 45931 | G26: 45962 | H26: 45992 | I26: 46023 | J26: 46054 | K26: 46082 | L26: 46113 | M26: 46143 | N26: 46174 | O26: 46204 | P26: 46235 | Q26: 46266
B27: Est. Volume | C27: =SUMPRODUCT((CustEstVolRev[MonthFlow]=C$26)*(CustEstVolRev[SAPRateCategory]=$C$24)*CustEstVolRev[NormVol]) -> 11077.552 | D27: =SUMPRODUCT((CustEstVolRev[MonthFlow]=D$26)*(CustEstVolRev[SAPRateCategory]=$C$24)*CustEstVolRev[NormVol]) -> 17565.867 | E27: =SUMPRODUCT((CustEstVolRev[MonthFlow]=E$26)*(CustEstVolRev[SAPRateCategory]=$C$24)*CustEstVolRev[NormVol]) -> 15764.77 | O27: =SUMPRODUCT((CustEstVolRev[MonthFlow]=O$26)*(CustEstVolRev[SAPRateCategory]=$C$24)*CustEstVolRev[NormVol]) -> 11962.716 | P27: =SUMPRODUCT((CustEstVolRev[MonthFlow]=P$26)*(CustEstVolRev[SAPRateCategory]=$C$24)*CustEstVolRev[NormVol]) -> 11698.314 | Q27: =SUMPRODUCT((CustEstVolRev[MonthFlow]=Q$26)*(CustEstVolRev[SAPRateCategory]=$C$24)*CustEstVolRev[NormVol]) -> 11943.955
B28: Actual Volume | C28: =SUMPRODUCT((WNARevAlloc[MonthFlow]=C26)*(WNARevAlloc[SAPRateCategory]=$C24)*WNARevAlloc[Consumption]) -> 11962.716 | D28: =SUMPRODUCT((WNARevAlloc[MonthFlow]=D26)*(WNARevAlloc[SAPRateCategory]=$C24)*WNARevAlloc[Consumption]) -> 11698.314 | E28: =SUMPRODUCT((WNARevAlloc[MonthFlow]=E26)*(WNARevAlloc[SAPRateCategory]=$C24)*WNARevAlloc[Consumption]) -> 11943.955 | F28: =SUMPRODUCT((WNARevAlloc[MonthFlow]=F26)*(WNARevAlloc[SAPRateCategory]=$C24)*WNARevAlloc[Consumption]) -> 0 | G28: =SUMPRODUCT((WNARevAlloc[MonthFlow]=G26)*(WNARevAlloc[SAPRateCategory]=$C24)*WNARevAlloc[Consumption]) -> 175739.586 | H28: =SUMPRODUCT((WNARevAlloc[MonthFlow]=H26)*(WNARevAlloc[SAPRateCategory]=$C24)*WNARevAlloc[Consumption]) -> 120160.461 | I28: =SUMPRODUCT((WNARevAlloc[MonthFlow]=I26)*(WNARevAlloc[SAPRateCategory]=$C24)*WNARevAlloc[Consumption]) -> 199098.191 | J28: =SUMPRODUCT((WNARevAlloc[MonthFlow]=J26)*(WNARevAlloc[SAPRateCategory]=$C24)*WNARevAlloc[Consumption]) -> 97688.931 | K28: =SUMPRODUCT((WNARevAlloc[MonthFlow]=K26)*(WNARevAlloc[SAPRateCategory]=$C24)*WNARevAlloc[Consumption]) -> 27615.269 | L28: =SUMPRODUCT((WNARevAlloc[MonthFlow]=L26)*(WNARevAlloc[SAPRateCategory]=$C24)*WNARevAlloc[Consumption]) -> 20527.423 | M28: =SUMPRODUCT((WNARevAlloc[MonthFlow]=M26)*(WNARevAlloc[SAPRateCategory]=$C24)*WNARevAlloc[Consumption]) -> 11354.481 | N28: =SUMPRODUCT((WNARevAlloc[MonthFlow]=N26)*(WNARevAlloc[SAPRateCategory]=$C24)*WNARevAlloc[Consumption]) -> 10773.193
B29: Vol True-Up | C29: =C28-C27 -> 885.164 | D29: =D28-D27 -> -5867.553 | E29: =E28-E27 -> -3820.815
B30: Rates in Effect
B31: CAWNA | C31: =SUMPRODUCT((WNARRates[BeginDate]<=C$26)*(WNARRates[EndDate]>=C$26)*(WNARRates[Region]=$C$4)*(WNARRates[CustClass]=$D$24)*WNARRates[CAWNA]) -> 0.01328 | D31: =SUMPRODUCT((WNARRates[BeginDate]<=D$26)*(WNARRates[EndDate]>=D$26)*(WNARRates[Region]=$C$4)*(WNARRates[CustClass]=$D$24)*WNARRates[CAWNA]) -> 0.01328 | E31: =SUMPRODUCT((WNARRates[BeginDate]<=E$26)*(WNARRates[EndDate]>=E$26)*(WNARRates[Region]=$C$4)*(WNARRates[CustClass]=$D$24)*WNARRates[CAWNA]) -> 0.01328 | F31: =SUMPRODUCT((WNARRates[BeginDate]<=F$26)*(WNARRates[EndDate]>=F$26)*(WNARRates[Region]=$C$4)*(WNARRates[CustClass]=$D$24)*WNARRates[CAWNA]) -> 0.00943 | G31: =SUMPRODUCT((WNARRates[BeginDate]<=G$26)*(WNARRates[EndDate]>=G$26)*(WNARRates[Region]=$C$4)*(WNARRates[CustClass]=$D$24)*WNARRates[CAWNA]) -> 0.00943 | H31: =SUMPRODUCT((WNARRates[BeginDate]<=H$26)*(WNARRates[EndDate]>=H$26)*(WNARRates[Region]=$C$4)*(WNARRates[CustClass]=$D$24)*WNARRates[CAWNA]) -> 0.00943 | I31: =SUMPRODUCT((WNARRates[BeginDate]<=I$26)*(WNARRates[EndDate]>=I$26)*(WNARRates[Region]=$C$4)*(WNARRates[CustClass]=$D$24)*WNARRates[CAWNA]) -> 0.00943 | J31: =SUMPRODUCT((WNARRates[BeginDate]<=J$26)*(WNARRates[EndDate]>=J$26)*(WNARRates[Region]=$C$4)*(WNARRates[CustClass]=$D$24)*WNARRates[CAWNA]) -> 0.00943 | K31: =SUMPRODUCT((WNARRates[BeginDate]<=K$26)*(WNARRates[EndDate]>=K$26)*(WNARRates[Region]=$C$4)*(WNARRates[CustClass]=$D$24)*WNARRates[CAWNA]) -> 0.00943 | L31: =SUMPRODUCT((WNARRates[BeginDate]<=L$26)*(WNARRates[EndDate]>=L$26)*(WNARRates[Region]=$C$4)*(WNARRates[CustClass]=$D$24)*WNARRates[CAWNA]) -> 0.00943 | M31: =SUMPRODUCT((WNARRates[BeginDate]<=M$26)*(WNARRates[EndDate]>=M$26)*(WNARRates[Region]=$C$4)*(WNARRates[CustClass]=$D$24)*WNARRates[CAWNA]) -> 0.00943 | N31: =SUMPRODUCT((WNARRates[BeginDate]<=N$26)*(WNARRates[EndDate]>=N$26)*(WNARRates[Region]=$C$4)*(WNARRates[CustClass]=$D$24)*WNARRates[CAWNA]) -> 0.00943 | O31: =SUMPRODUCT((WNARRates[BeginDate]<=O$26)*(WNARRates[EndDate]>=O$26)*(WNARRates[Region]=$C$4)*(WNARRates[CustClass]=$D$24)*WNARRates[CAWNA]) -> 0.00943 | P31: =SUMPRODUCT((WNARRates[BeginDate]<=P$26)*(WNARRates[EndDate]>=P$26)*(WNARRates[Region]=$C$4)*(WNARRates[CustClass]=$D$24)*WNARRates[CAWNA]) -> 0.00943 | Q31: =SUMPRODUCT((WNARRates[BeginDate]<=Q$26)*(WNARRates[EndDate]>=Q$26)*(WNARRates[Region]=$C$4)*(WNARRates[CustClass]=$D$24)*WNARRates[CAWNA]) -> 0.00943
B32: ARR | C32: =SUMPRODUCT((WNARRates[BeginDate]<=C$26)*(WNARRates[EndDate]>=C$26)*(WNARRates[Region]=$C$4)*(WNARRates[CustClass]=$D$24)*WNARRates[SRR]) -> 0.00074 | D32: =SUMPRODUCT((WNARRates[BeginDate]<=D$26)*(WNARRates[EndDate]>=D$26)*(WNARRates[Region]=$C$4)*(WNARRates[CustClass]=$D$24)*WNARRates[SRR]) -> 0.00074 | E32: =SUMPRODUCT((WNARRates[BeginDate]<=E$26)*(WNARRates[EndDate]>=E$26)*(WNARRates[Region]=$C$4)*(WNARRates[CustClass]=$D$24)*WNARRates[SRR]) -> 0.00074 | F32: =SUMPRODUCT((WNARRates[BeginDate]<=F$26)*(WNARRates[EndDate]>=F$26)*(WNARRates[Region]=$C$4)*(WNARRates[CustClass]=$D$24)*WNARRates[SRR]) -> 0.00596 | G32: =SUMPRODUCT((WNARRates[BeginDate]<=G$26)*(WNARRates[EndDate]>=G$26)*(WNARRates[Region]=$C$4)*(WNARRates[CustClass]=$D$24)*WNARRates[SRR]) -> 0.00596 | H32: =SUMPRODUCT((WNARRates[BeginDate]<=H$26)*(WNARRates[EndDate]>=H$26)*(WNARRates[Region]=$C$4)*(WNARRates[CustClass]=$D$24)*WNARRates[SRR]) -> 0.00596 | I32: =SUMPRODUCT((WNARRates[BeginDate]<=I$26)*(WNARRates[EndDate]>=I$26)*(WNARRates[Region]=$C$4)*(WNARRates[CustClass]=$D$24)*WNARRates[SRR]) -> 0.00596 | J32: =SUMPRODUCT((WNARRates[BeginDate]<=J$26)*(WNARRates[EndDate]>=J$26)*(WNARRates[Region]=$C$4)*(WNARRates[CustClass]=$D$24)*WNARRates[SRR]) -> 0.00596 | K32: =SUMPRODUCT((WNARRates[BeginDate]<=K$26)*(WNARRates[EndDate]>=K$26)*(WNARRates[Region]=$C$4)*(WNARRates[CustClass]=$D$24)*WNARRates[SRR]) -> 0.00596 | L32: =SUMPRODUCT((WNARRates[BeginDate]<=L$26)*(WNARRates[EndDate]>=L$26)*(WNARRates[Region]=$C$4)*(WNARRates[CustClass]=$D$24)*WNARRates[SRR]) -> 0.00596 | M32: =SUMPRODUCT((WNARRates[BeginDate]<=M$26)*(WNARRates[EndDate]>=M$26)*(WNARRates[Region]=$C$4)*(WNARRates[CustClass]=$D$24)*WNARRates[SRR]) -> 0.00596 | N32: =SUMPRODUCT((WNARRates[BeginDate]<=N$26)*(WNARRates[EndDate]>=N$26)*(WNARRates[Region]=$C$4)*(WNARRates[CustClass]=$D$24)*WNARRates[SRR]) -> 0.00596 | O32: =SUMPRODUCT((WNARRates[BeginDate]<=O$26)*(WNARRates[EndDate]>=O$26)*(WNARRates[Region]=$C$4)*(WNARRates[CustClass]=$D$24)*WNARRates[SRR]) -> 0.00596 | P32: =SUMPRODUCT((WNARRates[BeginDate]<=P$26)*(WNARRates[EndDate]>=P$26)*(WNARRates[Region]=$C$4)*(WNARRates[CustClass]=$D$24)*WNARRates[SRR]) -> 0.00596 | Q32: =SUMPRODUCT((WNARRates[BeginDate]<=Q$26)*(WNARRates[EndDate]>=Q$26)*(WNARRates[Region]=$C$4)*(WNARRates[CustClass]=$D$24)*WNARRates[SRR]) -> 0.00596
B33: Total | C33: =SUM(C31:C32) -> 0.01402 | D33: =SUM(D31:D32) -> 0.01402 | E33: =SUM(E31:E32) -> 0.01402
B34: CAWNA and ARR Revenue for Period
B35: CAWNA $ | F35: =SUMPRODUCT((WNARevAlloc[MonthFlow]=F$11)*(WNARevAlloc[Region]=$C$4)*(WNARevAlloc[CustClass]=$D$24)*WNARevAlloc[AdjCAWNARev]) -> 0 | G35: =SUMPRODUCT((WNARevAlloc[MonthFlow]=G$11)*(WNARevAlloc[Region]=$C$4)*(WNARevAlloc[CustClass]=$D$24)*WNARevAlloc[AdjCAWNARev]) -> 1657.161657 | H35: =SUMPRODUCT((WNARevAlloc[MonthFlow]=H$11)*(WNARevAlloc[Region]=$C$4)*(WNARevAlloc[CustClass]=$D$24)*WNARevAlloc[AdjCAWNARev]) -> 1138.645821 | I35: =SUMPRODUCT((WNARevAlloc[MonthFlow]=I$11)*(WNARevAlloc[Region]=$C$4)*(WNARevAlloc[CustClass]=$D$24)*WNARevAlloc[AdjCAWNARev]) -> 1877.525867 | J35: =SUMPRODUCT((WNARevAlloc[MonthFlow]=J$11)*(WNARevAlloc[Region]=$C$4)*(WNARevAlloc[CustClass]=$D$24)*WNARevAlloc[AdjCAWNARev]) -> 921.2172515 | K35: =SUMPRODUCT((WNARevAlloc[MonthFlow]=K$11)*(WNARevAlloc[Region]=$C$4)*(WNARevAlloc[CustClass]=$D$24)*WNARevAlloc[AdjCAWNARev]) -> 260.4493697 | L35: =SUMPRODUCT((WNARevAlloc[MonthFlow]=L$11)*(WNARevAlloc[Region]=$C$4)*(WNARevAlloc[CustClass]=$D$24)*WNARevAlloc[AdjCAWNARev]) -> 193.6244314 | M35: =SUMPRODUCT((WNARevAlloc[MonthFlow]=M$11)*(WNARevAlloc[Region]=$C$4)*(WNARevAlloc[CustClass]=$D$24)*WNARevAlloc[AdjCAWNARev]) -> 107.1858285 | N35: =SUMPRODUCT((WNARevAlloc[MonthFlow]=N$11)*(WNARevAlloc[Region]=$C$4)*(WNARevAlloc[CustClass]=$D$24)*WNARevAlloc[AdjCAWNARev]) -> 101.6528265 | O35: =ROUND(O$27*O31,0) -> 113 | P35: 110 | Q35: 113
B36: ARR $ | C36: =ROUND(C29*C33,2) -> 12.41 | D36: =ROUND(D29*D33,2) -> -82.26 | E36: =ROUND(E29*E33,2) -> -53.57 | F36: =SUMPRODUCT((WNARevAlloc[MonthFlow]=F$11)*(WNARevAlloc[Region]=$C$4)*(WNARevAlloc[CustClass]=$D$24)*WNARevAlloc[AdjARRRev]) -> 0 | G36: =SUMPRODUCT((WNARevAlloc[MonthFlow]=G$11)*(WNARevAlloc[Region]=$C$4)*(WNARevAlloc[CustClass]=$D$24)*WNARevAlloc[AdjARRRev]) -> 1047.368343 | H36: =SUMPRODUCT((WNARevAlloc[MonthFlow]=H$11)*(WNARevAlloc[Region]=$C$4)*(WNARevAlloc[CustClass]=$D$24)*WNARevAlloc[AdjARRRev]) -> 715.3541789 | I36: =SUMPRODUCT((WNARevAlloc[MonthFlow]=I$11)*(WNARevAlloc[Region]=$C$4)*(WNARevAlloc[CustClass]=$D$24)*WNARevAlloc[AdjARRRev]) -> 1186.644133 | J36: =SUMPRODUCT((WNARevAlloc[MonthFlow]=J$11)*(WNARevAlloc[Region]=$C$4)*(WNARevAlloc[CustClass]=$D$24)*WNARevAlloc[AdjARRRev]) -> 582.2327485 | K36: =SUMPRODUCT((WNARevAlloc[MonthFlow]=K$11)*(WNARevAlloc[Region]=$C$4)*(WNARevAlloc[CustClass]=$D$24)*WNARevAlloc[AdjARRRev]) -> 164.6106303 | L36: =SUMPRODUCT((WNARevAlloc[MonthFlow]=L$11)*(WNARevAlloc[Region]=$C$4)*(WNARevAlloc[CustClass]=$D$24)*WNARevAlloc[AdjARRRev]) -> 122.3755686 | M36: =SUMPRODUCT((WNARevAlloc[MonthFlow]=M$11)*(WNARevAlloc[Region]=$C$4)*(WNARevAlloc[CustClass]=$D$24)*WNARevAlloc[AdjARRRev]) -> 67.74417154 | N36: =SUMPRODUCT((WNARevAlloc[MonthFlow]=N$11)*(WNARevAlloc[Region]=$C$4)*(WNARevAlloc[CustClass]=$D$24)*WNARevAlloc[AdjARRRev]) -> 64.24717349 | O36: 71 | P36: 70 | Q36: 71
B37: Total True-Up | C37: =SUM(C36:E36) -> -123.42 | D37: Enter in VolTrueUp Table
B39: * Actual Period revenues were calculated using actual rates, and then adjusted for actual revenues billed.
B40: (See worksheet WNARRevAlloc)

Sheet ARR NEMO
B2: Liberty Midstates | F2: Year | I2: SAP Rate Cat. | J2: Territory | K2: Cust. Class
B3: Semi-Annual Reconciliation Rate | I3: KMGR_RFS | J3: KIRK | K3: Res
B4: Region | C4: NEMO | I4: NMGR_RFS | J4: NEMO | K4: Res
B5: Year | C5: =DateSet!C2 -> 2026 | I5: KMGC_SFGS | J5: KIRK | K5: SGS
B6: Analysis Start | C6: =DateSet!$D$3 -> 2025-07-01 | I6: NMGC_SFGS | J6: NEMO | K6: SGS
B9: SAP Rate Category | C9: KMGR_RFS | D9: NMGR_RFS | E9: Res
B10: Residential | C10: True-Up Period | F10: Actual Period* | O10: Projected Period
B11: Month | C11: =C6 -> 45839 | D11: =EDATE(C11,1) -> 45870 | E11: =EDATE(D11,1) -> 45901 | F11: 45931 | G11: 45962 | H11: 45992 | I11: 46023 | J11: 46054 | K11: 46082 | L11: 46113 | M11: 46143 | N11: 46174 | O11: 46204 | P11: 46235 | Q11: 46266
B12: Est. Volume | C12: =SUMPRODUCT((CustEstVolRev[MonthFlow]=C11)*(CustEstVolRev[SAPRateCategory]=$C9)*CustEstVolRev[NormVol])+SUMPRODUCT((CustEstVolRev[MonthFlow]=C11)*(CustEstVolRev[SAPRateCategory]=$D9)*CustEstVolRev[NormVol]) -> 123637.471 | D12: =SUMPRODUCT((CustEstVolRev[MonthFlow]=D11)*(CustEstVolRev[SAPRateCategory]=$C9)*CustEstVolRev[NormVol])+SUMPRODUCT((CustEstVolRev[MonthFlow]=D11)*(CustEstVolRev[SAPRateCategory]=$D9)*CustEstVolRev[NormVol]) -> 143776.547 | E12: =SUMPRODUCT((CustEstVolRev[MonthFlow]=E11)*(CustEstVolRev[SAPRateCategory]=$C9)*CustEstVolRev[NormVol])+SUMPRODUCT((CustEstVolRev[MonthFlow]=E11)*(CustEstVolRev[SAPRateCategory]=$D9)*CustEstVolRev[NormVol]) -> 159543.38 | O12: =SUMPRODUCT((CustEstVolRev[MonthFlow]=O11)*(CustEstVolRev[SAPRateCategory]=$C9)*CustEstVolRev[NormVol])+SUMPRODUCT((CustEstVolRev[MonthFlow]=O11)*(CustEstVolRev[SAPRateCategory]=$D9)*CustEstVolRev[NormVol]) -> 116718.782 | P12: =SUMPRODUCT((CustEstVolRev[MonthFlow]=P11)*(CustEstVolRev[SAPRateCategory]=$C9)*CustEstVolRev[NormVol])+SUMPRODUCT((CustEstVolRev[MonthFlow]=P11)*(CustEstVolRev[SAPRateCategory]=$D9)*CustEstVolRev[NormVol]) -> 133492.511 | Q12: =SUMPRODUCT((CustEstVolRev[MonthFlow]=Q11)*(CustEstVolRev[SAPRateCategory]=$C9)*CustEstVolRev[NormVol])+SUMPRODUCT((CustEstVolRev[MonthFlow]=Q11)*(CustEstVolRev[SAPRateCategory]=$D9)*CustEstVolRev[NormVol]) -> 124187.441
B13: Actual Volume | C13: =SUMPRODUCT((WNARevAlloc[MonthFlow]=C11)*(WNARevAlloc[SAPRateCategory]=$C9)*WNARevAlloc[Consumption])+SUMPRODUCT((WNARevAlloc[MonthFlow]=C11)*(WNARevAlloc[SAPRateCategory]=$D9)*WNARevAlloc[Consumption]) -> 116718.782 | D13: =SUMPRODUCT((WNARevAlloc[MonthFlow]=D11)*(WNARevAlloc[SAPRateCategory]=$C9)*WNARevAlloc[Consumption])+SUMPRODUCT((WNARevAlloc[MonthFlow]=D11)*(WNARevAlloc[SAPRateCategory]=$D9)*WNARevAlloc[Consumption]) -> 133492.511 | E13: =SUMPRODUCT((WNARevAlloc[MonthFlow]=E11)*(WNARevAlloc[SAPRateCategory]=$C9)*WNARevAlloc[Consumption])+SUMPRODUCT((WNARevAlloc[MonthFlow]=E11)*(WNARevAlloc[SAPRateCategory]=$D9)*WNARevAlloc[Consumption]) -> 124187.441 | F13: =SUMPRODUCT((WNARevAlloc[MonthFlow]=F11)*(WNARevAlloc[SAPRateCategory]=$C9)*WNARevAlloc[Consumption])+SUMPRODUCT((WNARevAlloc[MonthFlow]=F11)*(WNARevAlloc[SAPRateCategory]=$D9)*WNARevAlloc[Consumption]) -> 745561.037 | G13: =SUMPRODUCT((WNARevAlloc[MonthFlow]=G11)*(WNARevAlloc[SAPRateCategory]=$C9)*WNARevAlloc[Consumption])+SUMPRODUCT((WNARevAlloc[MonthFlow]=G11)*(WNARevAlloc[SAPRateCategory]=$D9)*WNARevAlloc[Consumption]) -> 1719368.946 | H13: =SUMPRODUCT((WNARevAlloc[MonthFlow]=H11)*(WNARevAlloc[SAPRateCategory]=$C9)*WNARevAlloc[Consumption])+SUMPRODUCT((WNARevAlloc[MonthFlow]=H11)*(WNARevAlloc[SAPRateCategory]=$D9)*WNARevAlloc[Consumption]) -> 1784462.091 | I13: =SUMPRODUCT((WNARevAlloc[MonthFlow]=I11)*(WNARevAlloc[SAPRateCategory]=$C9)*WNARevAlloc[Consumption])+SUMPRODUCT((WNARevAlloc[MonthFlow]=I11)*(WNARevAlloc[SAPRateCategory]=$D9)*WNARevAlloc[Consumption]) -> 2402649.905 | J13: =SUMPRODUCT((WNARevAlloc[MonthFlow]=J11)*(WNARevAlloc[SAPRateCategory]=$C9)*WNARevAlloc[Consumption])+SUMPRODUCT((WNARevAlloc[MonthFlow]=J11)*(WNARevAlloc[SAPRateCategory]=$D9)*WNARevAlloc[Consumption]) -> 1255150.79 | K13: =SUMPRODUCT((WNARevAlloc[MonthFlow]=K11)*(WNARevAlloc[SAPRateCategory]=$C9)*WNARevAlloc[Consumption])+SUMPRODUCT((WNARevAlloc[MonthFlow]=K11)*(WNARevAlloc[SAPRateCategory]=$D9)*WNARevAlloc[Consumption]) -> 748358.685 | L13: =SUMPRODUCT((WNARevAlloc[MonthFlow]=L11)*(WNARevAlloc[SAPRateCategory]=$C9)*WNARevAlloc[Consumption])+SUMPRODUCT((WNARevAlloc[MonthFlow]=L11)*(WNARevAlloc[SAPRateCategory]=$D9)*WNARevAlloc[Consumption]) -> 338706.347 | M13: =SUMPRODUCT((WNARevAlloc[MonthFlow]=M11)*(WNARevAlloc[SAPRateCategory]=$C9)*WNARevAlloc[Consumption])+SUMPRODUCT((WNARevAlloc[MonthFlow]=M11)*(WNARevAlloc[SAPRateCategory]=$D9)*WNARevAlloc[Consumption]) -> 143166.458 | N13: =SUMPRODUCT((WNARevAlloc[MonthFlow]=N11)*(WNARevAlloc[SAPRateCategory]=$C9)*WNARevAlloc[Consumption])+SUMPRODUCT((WNARevAlloc[MonthFlow]=N11)*(WNARevAlloc[SAPRateCategory]=$D9)*WNARevAlloc[Consumption]) -> 132957.04
B14: Vol True-Up | C14: =C13-C12 -> -6918.689 | D14: =D13-D12 -> -10284.036 | E14: =E13-E12 -> -35355.939
B15: Rates in Effect
B16: CAWNA | C16: =SUMPRODUCT((WNARRates[BeginDate]<=C$11)*(WNARRates[EndDate]>=C$11)*(WNARRates[Region]=$C$4)*(WNARRates[CustClass]=$E$9)*WNARRates[CAWNA]) -> 0.03215 | D16: =SUMPRODUCT((WNARRates[BeginDate]<=D$11)*(WNARRates[EndDate]>=D$11)*(WNARRates[Region]=$C$4)*(WNARRates[CustClass]=$E$9)*WNARRates[CAWNA]) -> 0.03215 | E16: =SUMPRODUCT((WNARRates[BeginDate]<=E$11)*(WNARRates[EndDate]>=E$11)*(WNARRates[Region]=$C$4)*(WNARRates[CustClass]=$E$9)*WNARRates[CAWNA]) -> 0.03215 | F16: =SUMPRODUCT((WNARRates[BeginDate]<=F$11)*(WNARRates[EndDate]>=F$11)*(WNARRates[Region]=$C$4)*(WNARRates[CustClass]=$E$9)*WNARRates[CAWNA]) -> 0.02679 | G16: =SUMPRODUCT((WNARRates[BeginDate]<=G$11)*(WNARRates[EndDate]>=G$11)*(WNARRates[Region]=$C$4)*(WNARRates[CustClass]=$E$9)*WNARRates[CAWNA]) -> 0.02679 | H16: =SUMPRODUCT((WNARRates[BeginDate]<=H$11)*(WNARRates[EndDate]>=H$11)*(WNARRates[Region]=$C$4)*(WNARRates[CustClass]=$E$9)*WNARRates[CAWNA]) -> 0.02679 | I16: =SUMPRODUCT((WNARRates[BeginDate]<=I$11)*(WNARRates[EndDate]>=I$11)*(WNARRates[Region]=$C$4)*(WNARRates[CustClass]=$E$9)*WNARRates[CAWNA]) -> 0.02679 | J16: =SUMPRODUCT((WNARRates[BeginDate]<=J$11)*(WNARRates[EndDate]>=J$11)*(WNARRates[Region]=$C$4)*(WNARRates[CustClass]=$E$9)*WNARRates[CAWNA]) -> 0.02679 | K16: =SUMPRODUCT((WNARRates[BeginDate]<=K$11)*(WNARRates[EndDate]>=K$11)*(WNARRates[Region]=$C$4)*(WNARRates[CustClass]=$E$9)*WNARRates[CAWNA]) -> 0.02679 | L16: =SUMPRODUCT((WNARRates[BeginDate]<=L$11)*(WNARRates[EndDate]>=L$11)*(WNARRates[Region]=$C$4)*(WNARRates[CustClass]=$E$9)*WNARRates[CAWNA]) -> 0.02679 | M16: =SUMPRODUCT((WNARRates[BeginDate]<=M$11)*(WNARRates[EndDate]>=M$11)*(WNARRates[Region]=$C$4)*(WNARRates[CustClass]=$E$9)*WNARRates[CAWNA]) -> 0.02679 | N16: =SUMPRODUCT((WNARRates[BeginDate]<=N$11)*(WNARRates[EndDate]>=N$11)*(WNARRates[Region]=$C$4)*(WNARRates[CustClass]=$E$9)*WNARRates[CAWNA]) -> 0.02679 | O16: =SUMPRODUCT((WNARRates[BeginDate]<=O$11)*(WNARRates[EndDate]>=O$11)*(WNARRates[Region]=$C$4)*(WNARRates[CustClass]=$E$9)*WNARRates[CAWNA]) -> 0.02679 | P16: =SUMPRODUCT((WNARRates[BeginDate]<=P$11)*(WNARRates[EndDate]>=P$11)*(WNARRates[Region]=$C$4)*(WNARRates[CustClass]=$E$9)*WNARRates[CAWNA]) -> 0.02679 | Q16: =SUMPRODUCT((WNARRates[BeginDate]<=Q$11)*(WNARRates[EndDate]>=Q$11)*(WNARRates[Region]=$C$4)*(WNARRates[CustClass]=$E$9)*WNARRates[CAWNA]) -> 0.02679
B17: ARR | C17: =SUMPRODUCT((WNARRates[BeginDate]<=C$11)*(WNARRates[EndDate]>=C$11)*(WNARRates[Region]=$C$4)*(WNARRates[CustClass]=$E$9)*WNARRates[SRR]) -> 0.00247 | D17: =SUMPRODUCT((WNARRates[BeginDate]<=D$11)*(WNARRates[EndDate]>=D$11)*(WNARRates[Region]=$C$4)*(WNARRates[CustClass]=$E$9)*WNARRates[SRR]) -> 0.00247 | E17: =SUMPRODUCT((WNARRates[BeginDate]<=E$11)*(WNARRates[EndDate]>=E$11)*(WNARRates[Region]=$C$4)*(WNARRates[CustClass]=$E$9)*WNARRates[SRR]) -> 0.00247 | F17: =SUMPRODUCT((WNARRates[BeginDate]<=F$11)*(WNARRates[EndDate]>=F$11)*(WNARRates[Region]=$C$4)*(WNARRates[CustClass]=$E$9)*WNARRates[SRR]) -> 0.00821 | G17: =SUMPRODUCT((WNARRates[BeginDate]<=G$11)*(WNARRates[EndDate]>=G$11)*(WNARRates[Region]=$C$4)*(WNARRates[CustClass]=$E$9)*WNARRates[SRR]) -> 0.00821 | H17: =SUMPRODUCT((WNARRates[BeginDate]<=H$11)*(WNARRates[EndDate]>=H$11)*(WNARRates[Region]=$C$4)*(WNARRates[CustClass]=$E$9)*WNARRates[SRR]) -> 0.00821 | I17: =SUMPRODUCT((WNARRates[BeginDate]<=I$11)*(WNARRates[EndDate]>=I$11)*(WNARRates[Region]=$C$4)*(WNARRates[CustClass]=$E$9)*WNARRates[SRR]) -> 0.00821 | J17: =SUMPRODUCT((WNARRates[BeginDate]<=J$11)*(WNARRates[EndDate]>=J$11)*(WNARRates[Region]=$C$4)*(WNARRates[CustClass]=$E$9)*WNARRates[SRR]) -> 0.00821 | K17: =SUMPRODUCT((WNARRates[BeginDate]<=K$11)*(WNARRates[EndDate]>=K$11)*(WNARRates[Region]=$C$4)*(WNARRates[CustClass]=$E$9)*WNARRates[SRR]) -> 0.00821 | L17: =SUMPRODUCT((WNARRates[BeginDate]<=L$11)*(WNARRates[EndDate]>=L$11)*(WNARRates[Region]=$C$4)*(WNARRates[CustClass]=$E$9)*WNARRates[SRR]) -> 0.00821 | M17: =SUMPRODUCT((WNARRates[BeginDate]<=M$11)*(WNARRates[EndDate]>=M$11)*(WNARRates[Region]=$C$4)*(WNARRates[CustClass]=$E$9)*WNARRates[SRR]) -> 0.00821 | N17: =SUMPRODUCT((WNARRates[BeginDate]<=N$11)*(WNARRates[EndDate]>=N$11)*(WNARRates[Region]=$C$4)*(WNARRates[CustClass]=$E$9)*WNARRates[SRR]) -> 0.00821 | O17: =SUMPRODUCT((WNARRates[BeginDate]<=O$11)*(WNARRates[EndDate]>=O$11)*(WNARRates[Region]=$C$4)*(WNARRates[CustClass]=$E$9)*WNARRates[SRR]) -> 0.00821 | P17: =SUMPRODUCT((WNARRates[BeginDate]<=P$11)*(WNARRates[EndDate]>=P$11)*(WNARRates[Region]=$C$4)*(WNARRates[CustClass]=$E$9)*WNARRates[SRR]) -> 0.00821 | Q17: =SUMPRODUCT((WNARRates[BeginDate]<=Q$11)*(WNARRates[EndDate]>=Q$11)*(WNARRates[Region]=$C$4)*(WNARRates[CustClass]=$E$9)*WNARRates[SRR]) -> 0.00821
B18: Total | C18: =SUM(C16:C17) -> 0.03462 | D18: =SUM(D16:D17) -> 0.03462 | E18: 0.03462 | F18: 0.035 | G18: 0.035 | H18: 0.035 | I18: 0.035 | J18: 0.035 | K18: 0.035 | L18: 0.035 | M18: 0.035 | N18: 0.035 | O18: 0.035 | P18: 0.035 | Q18: 0.035
B19: CAWNA and ARR Revenue for Period
B20: CAWNA $ | F20: =SUMPRODUCT((WNARevAlloc[MonthFlow]=F$11)*(WNARevAlloc[Region]=$C$4)*(WNARevAlloc[CustClass]=$E$9)*WNARevAlloc[AdjCAWNARev]) -> 20007.0334 | G20: =SUMPRODUCT((WNARevAlloc[MonthFlow]=G$11)*(WNARevAlloc[Region]=$C$4)*(WNARevAlloc[CustClass]=$E$9)*WNARevAlloc[AdjCAWNARev]) -> 46088.54788 | H20: =SUMPRODUCT((WNARevAlloc[MonthFlow]=H$11)*(WNARevAlloc[Region]=$C$4)*(WNARevAlloc[CustClass]=$E$9)*WNARevAlloc[AdjCAWNARev]) -> 47842.94686 | I20: =SUMPRODUCT((WNARevAlloc[MonthFlow]=I$11)*(WNARevAlloc[Region]=$C$4)*(WNARevAlloc[CustClass]=$E$9)*WNARevAlloc[AdjCAWNARev]) -> 64392.95605 | J20: =SUMPRODUCT((WNARevAlloc[MonthFlow]=J$11)*(WNARevAlloc[Region]=$C$4)*(WNARevAlloc[CustClass]=$E$9)*WNARevAlloc[AdjCAWNARev]) -> 33651.38591 | K20: =SUMPRODUCT((WNARevAlloc[MonthFlow]=K$11)*(WNARevAlloc[Region]=$C$4)*(WNARevAlloc[CustClass]=$E$9)*WNARevAlloc[AdjCAWNARev]) -> 20074.9127 | L20: =SUMPRODUCT((WNARevAlloc[MonthFlow]=L$11)*(WNARevAlloc[Region]=$C$4)*(WNARevAlloc[CustClass]=$E$9)*WNARevAlloc[AdjCAWNARev]) -> 9099.246463 | M20: =SUMPRODUCT((WNARevAlloc[MonthFlow]=M$11)*(WNARevAlloc[Region]=$C$4)*(WNARevAlloc[CustClass]=$E$9)*WNARevAlloc[AdjCAWNARev]) -> 3858.45654 | N20: =SUMPRODUCT((WNARevAlloc[MonthFlow]=N$11)*(WNARevAlloc[Region]=$C$4)*(WNARevAlloc[CustClass]=$E$9)*WNARevAlloc[AdjCAWNARev]) -> 3594.506269 | O20: =ROUND(O$12*O16,0) -> 3127 | P20: 3576 | Q20: 3327
B21: ARR $ | C21: =ROUND(C14*C18,2) -> -239.53 | D21: =ROUND(D14*D18,2) -> -356.03 | E21: =ROUND(E14*E18,2) -> -1224.02 | F21: =SUMPRODUCT((WNARevAlloc[MonthFlow]=F$11)*(WNARevAlloc[Region]=$C$4)*(WNARevAlloc[CustClass]=$E$9)*WNARevAlloc[AdjARRRev]) -> 6138.1366 | G21: =SUMPRODUCT((WNARevAlloc[MonthFlow]=G$11)*(WNARevAlloc[Region]=$C$4)*(WNARevAlloc[CustClass]=$E$9)*WNARevAlloc[AdjARRRev]) -> 14124.03212 | H21: =SUMPRODUCT((WNARevAlloc[MonthFlow]=H$11)*(WNARevAlloc[Region]=$C$4)*(WNARevAlloc[CustClass]=$E$9)*WNARevAlloc[AdjARRRev]) -> 14661.52314 | I21: =SUMPRODUCT((WNARevAlloc[MonthFlow]=I$11)*(WNARevAlloc[Region]=$C$4)*(WNARevAlloc[CustClass]=$E$9)*WNARevAlloc[AdjARRRev]) -> 19747.28395 | J21: =SUMPRODUCT((WNARevAlloc[MonthFlow]=J$11)*(WNARevAlloc[Region]=$C$4)*(WNARevAlloc[CustClass]=$E$9)*WNARevAlloc[AdjARRRev]) -> 10312.72409 | K21: =SUMPRODUCT((WNARevAlloc[MonthFlow]=K$11)*(WNARevAlloc[Region]=$C$4)*(WNARevAlloc[CustClass]=$E$9)*WNARevAlloc[AdjARRRev]) -> 6151.987297 | L21: =SUMPRODUCT((WNARevAlloc[MonthFlow]=L$11)*(WNARevAlloc[Region]=$C$4)*(WNARevAlloc[CustClass]=$E$9)*WNARevAlloc[AdjARRRev]) -> 2788.533537 | M21: =SUMPRODUCT((WNARevAlloc[MonthFlow]=M$11)*(WNARevAlloc[Region]=$C$4)*(WNARevAlloc[CustClass]=$E$9)*WNARevAlloc[AdjARRRev]) -> 1182.45346 | N21: =SUMPRODUCT((WNARevAlloc[MonthFlow]=N$11)*(WNARevAlloc[Region]=$C$4)*(WNARevAlloc[CustClass]=$E$9)*WNARevAlloc[AdjARRRev]) -> 1094.753731 | O21: 958 | P21: 1096 | Q21: 1020
B22: Total True-Up | C22: =SUM(C21:E21) -> -1819.58 | D22: Enter in VolTrueUp Table
B24: SAP Rate Category | C24: KMGC_SFGS | D24: NMGC_SFGS | E24: SGS
B25: Small Comm. | C25: True-Up Period | F25: Actual Period* | O25: Projected Period
B26: Month | C26: =C6 -> 45839 | D26: =EDATE(C26,1) -> 45870 | E26: =EDATE(D26,1) -> 45901 | F26: 45931 | G26: 45962 | H26: 45992 | I26: 46023 | J26: 46054 | K26: 46082 | L26: 46113 | M26: 46143 | N26: 46174 | O26: 46204 | P26: 46235 | Q26: 46266
B27: Est. Volume | C27: =SUMPRODUCT((CustEstVolRev[MonthFlow]=C26)*(CustEstVolRev[SAPRateCategory]=$C24)*CustEstVolRev[NormVol])+SUMPRODUCT((CustEstVolRev[MonthFlow]=C26)*(CustEstVolRev[SAPRateCategory]=$D24)*CustEstVolRev[NormVol]) -> 54586.802 | D27: =SUMPRODUCT((CustEstVolRev[MonthFlow]=D26)*(CustEstVolRev[SAPRateCategory]=$C24)*CustEstVolRev[NormVol])+SUMPRODUCT((CustEstVolRev[MonthFlow]=D26)*(CustEstVolRev[SAPRateCategory]=$D24)*CustEstVolRev[NormVol]) -> 64984.565 | E27: =SUMPRODUCT((CustEstVolRev[MonthFlow]=E26)*(CustEstVolRev[SAPRateCategory]=$C24)*CustEstVolRev[NormVol])+SUMPRODUCT((CustEstVolRev[MonthFlow]=E26)*(CustEstVolRev[SAPRateCategory]=$D24)*CustEstVolRev[NormVol]) -> 61465.108 | O27: =SUMPRODUCT((CustEstVolRev[MonthFlow]=O26)*(CustEstVolRev[SAPRateCategory]=$C24)*CustEstVolRev[NormVol])+SUMPRODUCT((CustEstVolRev[MonthFlow]=O26)*(CustEstVolRev[SAPRateCategory]=$D24)*CustEstVolRev[NormVol]) -> 51712.555 | P27: =SUMPRODUCT((CustEstVolRev[MonthFlow]=P26)*(CustEstVolRev[SAPRateCategory]=$C24)*CustEstVolRev[NormVol])+SUMPRODUCT((CustEstVolRev[MonthFlow]=P26)*(CustEstVolRev[SAPRateCategory]=$D24)*CustEstVolRev[NormVol]) -> 59170.211 | Q27: =SUMPRODUCT((CustEstVolRev[MonthFlow]=Q26)*(CustEstVolRev[SAPRateCategory]=$C24)*CustEstVolRev[NormVol])+SUMPRODUCT((CustEstVolRev[MonthFlow]=Q26)*(CustEstVolRev[SAPRateCategory]=$D24)*CustEstVolRev[NormVol]) -> 52584.185
B28: Actual Volume | C28: =SUMPRODUCT((WNARevAlloc[MonthFlow]=C26)*(WNARevAlloc[SAPRateCategory]=$C24)*WNARevAlloc[Consumption])+SUMPRODUCT((WNARevAlloc[MonthFlow]=C26)*(WNARevAlloc[SAPRateCategory]=$D24)*WNARevAlloc[Consumption]) -> 51712.555 | D28: =SUMPRODUCT((WNARevAlloc[MonthFlow]=D26)*(WNARevAlloc[SAPRateCategory]=$C24)*WNARevAlloc[Consumption])+SUMPRODUCT((WNARevAlloc[MonthFlow]=D26)*(WNARevAlloc[SAPRateCategory]=$D24)*WNARevAlloc[Consumption]) -> 59170.211 | E28: =SUMPRODUCT((WNARevAlloc[MonthFlow]=E26)*(WNARevAlloc[SAPRateCategory]=$C24)*WNARevAlloc[Consumption])+SUMPRODUCT((WNARevAlloc[MonthFlow]=E26)*(WNARevAlloc[SAPRateCategory]=$D24)*WNARevAlloc[Consumption]) -> 52584.185 | F28: =SUMPRODUCT((WNARevAlloc[MonthFlow]=F26)*(WNARevAlloc[SAPRateCategory]=$C24)*WNARevAlloc[Consumption])+SUMPRODUCT((WNARevAlloc[MonthFlow]=F26)*(WNARevAlloc[SAPRateCategory]=$D24)*WNARevAlloc[Consumption]) -> 214548.24 | G28: =SUMPRODUCT((WNARevAlloc[MonthFlow]=G26)*(WNARevAlloc[SAPRateCategory]=$C24)*WNARevAlloc[Consumption])+SUMPRODUCT((WNARevAlloc[MonthFlow]=G26)*(WNARevAlloc[SAPRateCategory]=$D24)*WNARevAlloc[Consumption]) -> 547494.866 | H28: =SUMPRODUCT((WNARevAlloc[MonthFlow]=H26)*(WNARevAlloc[SAPRateCategory]=$C24)*WNARevAlloc[Consumption])+SUMPRODUCT((WNARevAlloc[MonthFlow]=H26)*(WNARevAlloc[SAPRateCategory]=$D24)*WNARevAlloc[Consumption]) -> 603536.057 | I28: =SUMPRODUCT((WNARevAlloc[MonthFlow]=I26)*(WNARevAlloc[SAPRateCategory]=$C24)*WNARevAlloc[Consumption])+SUMPRODUCT((WNARevAlloc[MonthFlow]=I26)*(WNARevAlloc[SAPRateCategory]=$D24)*WNARevAlloc[Consumption]) -> 809832.33 | J28: =SUMPRODUCT((WNARevAlloc[MonthFlow]=J26)*(WNARevAlloc[SAPRateCategory]=$C24)*WNARevAlloc[Consumption])+SUMPRODUCT((WNARevAlloc[MonthFlow]=J26)*(WNARevAlloc[SAPRateCategory]=$D24)*WNARevAlloc[Consumption]) -> 412790.896 | K28: =SUMPRODUCT((WNARevAlloc[MonthFlow]=K26)*(WNARevAlloc[SAPRateCategory]=$C24)*WNARevAlloc[Consumption])+SUMPRODUCT((WNARevAlloc[MonthFlow]=K26)*(WNARevAlloc[SAPRateCategory]=$D24)*WNARevAlloc[Consumption]) -> 232346.184 | L28: =SUMPRODUCT((WNARevAlloc[MonthFlow]=L26)*(WNARevAlloc[SAPRateCategory]=$C24)*WNARevAlloc[Consumption])+SUMPRODUCT((WNARevAlloc[MonthFlow]=L26)*(WNARevAlloc[SAPRateCategory]=$D24)*WNARevAlloc[Consumption]) -> 102821.178 | M28: =SUMPRODUCT((WNARevAlloc[MonthFlow]=M26)*(WNARevAlloc[SAPRateCategory]=$C24)*WNARevAlloc[Consumption])+SUMPRODUCT((WNARevAlloc[MonthFlow]=M26)*(WNARevAlloc[SAPRateCategory]=$D24)*WNARevAlloc[Consumption]) -> 57401.552 | N28: =SUMPRODUCT((WNARevAlloc[MonthFlow]=N26)*(WNARevAlloc[SAPRateCategory]=$C24)*WNARevAlloc[Consumption])+SUMPRODUCT((WNARevAlloc[MonthFlow]=N26)*(WNARevAlloc[SAPRateCategory]=$D24)*WNARevAlloc[Consumption]) -> 55217.496
B29: Vol True-Up | C29: =C28-C27 -> -2874.247 | D29: =D28-D27 -> -5814.354 | E29: =E28-E27 -> -8880.923
B30: Rates in Effect
B31: CAWNA | C31: =SUMPRODUCT((WNARRates[BeginDate]<=C$26)*(WNARRates[EndDate]>=C$26)*(WNARRates[Region]=$C$4)*(WNARRates[CustClass]=$E$24)*WNARRates[CAWNA]) -> 0.01328 | D31: =SUMPRODUCT((WNARRates[BeginDate]<=D$26)*(WNARRates[EndDate]>=D$26)*(WNARRates[Region]=$C$4)*(WNARRates[CustClass]=$E$24)*WNARRates[CAWNA]) -> 0.01328 | E31: =SUMPRODUCT((WNARRates[BeginDate]<=E$26)*(WNARRates[EndDate]>=E$26)*(WNARRates[Region]=$C$4)*(WNARRates[CustClass]=$E$24)*WNARRates[CAWNA]) -> 0.01328 | F31: =SUMPRODUCT((WNARRates[BeginDate]<=F$26)*(WNARRates[EndDate]>=F$26)*(WNARRates[Region]=$C$4)*(WNARRates[CustClass]=$E$24)*WNARRates[AdjCAWNA]) -> 0.01023 | G31: =SUMPRODUCT((WNARRates[BeginDate]<=G$26)*(WNARRates[EndDate]>=G$26)*(WNARRates[Region]=$C$4)*(WNARRates[CustClass]=$E$24)*WNARRates[AdjCAWNA]) -> 0.01023 | H31: =SUMPRODUCT((WNARRates[BeginDate]<=H$26)*(WNARRates[EndDate]>=H$26)*(WNARRates[Region]=$C$4)*(WNARRates[CustClass]=$E$24)*WNARRates[AdjCAWNA]) -> 0.01023 | I31: =SUMPRODUCT((WNARRates[BeginDate]<=I$26)*(WNARRates[EndDate]>=I$26)*(WNARRates[Region]=$C$4)*(WNARRates[CustClass]=$E$24)*WNARRates[AdjCAWNA]) -> 0.01023 | J31: =SUMPRODUCT((WNARRates[BeginDate]<=J$26)*(WNARRates[EndDate]>=J$26)*(WNARRates[Region]=$C$4)*(WNARRates[CustClass]=$E$24)*WNARRates[AdjCAWNA]) -> 0.01023 | K31: =SUMPRODUCT((WNARRates[BeginDate]<=K$26)*(WNARRates[EndDate]>=K$26)*(WNARRates[Region]=$C$4)*(WNARRates[CustClass]=$E$24)*WNARRates[AdjCAWNA]) -> 0.01023 | L31: =SUMPRODUCT((WNARRates[BeginDate]<=L$26)*(WNARRates[EndDate]>=L$26)*(WNARRates[Region]=$C$4)*(WNARRates[CustClass]=$E$24)*WNARRates[AdjCAWNA]) -> 0.01023 | M31: =SUMPRODUCT((WNARRates[BeginDate]<=M$26)*(WNARRates[EndDate]>=M$26)*(WNARRates[Region]=$C$4)*(WNARRates[CustClass]=$E$24)*WNARRates[AdjCAWNA]) -> 0.01023 | N31: =SUMPRODUCT((WNARRates[BeginDate]<=N$26)*(WNARRates[EndDate]>=N$26)*(WNARRates[Region]=$C$4)*(WNARRates[CustClass]=$E$24)*WNARRates[AdjCAWNA]) -> 0.01023 | O31: =SUMPRODUCT((WNARRates[BeginDate]<=O$26)*(WNARRates[EndDate]>=O$26)*(WNARRates[Region]=$C$4)*(WNARRates[CustClass]=$E$24)*WNARRates[AdjCAWNA]) -> 0.01023 | P31: =SUMPRODUCT((WNARRates[BeginDate]<=P$26)*(WNARRates[EndDate]>=P$26)*(WNARRates[Region]=$C$4)*(WNARRates[CustClass]=$E$24)*WNARRates[AdjCAWNA]) -> 0.01023 | Q31: =SUMPRODUCT((WNARRates[BeginDate]<=Q$26)*(WNARRates[EndDate]>=Q$26)*(WNARRates[Region]=$C$4)*(WNARRates[CustClass]=$E$24)*WNARRates[AdjCAWNA]) -> 0.01023
B32: ARR | C32: =SUMPRODUCT((WNARRates[BeginDate]<=C$26)*(WNARRates[EndDate]>=C$26)*(WNARRates[Region]=$C$4)*(WNARRates[CustClass]=$E$24)*WNARRates[SRR]) -> 0.00074 | D32: =SUMPRODUCT((WNARRates[BeginDate]<=D$26)*(WNARRates[EndDate]>=D$26)*(WNARRates[Region]=$C$4)*(WNARRates[CustClass]=$E$24)*WNARRates[SRR]) -> 0.00074 | E32: =SUMPRODUCT((WNARRates[BeginDate]<=E$26)*(WNARRates[EndDate]>=E$26)*(WNARRates[Region]=$C$4)*(WNARRates[CustClass]=$E$24)*WNARRates[SRR]) -> 0.00074 | F32: =SUMPRODUCT((WNARRates[BeginDate]<=F$26)*(WNARRates[EndDate]>=F$26)*(WNARRates[Region]=$C$4)*(WNARRates[CustClass]=$E$24)*WNARRates[AdjSRR]) -> 0.00334 | G32: =SUMPRODUCT((WNARRates[BeginDate]<=G$26)*(WNARRates[EndDate]>=G$26)*(WNARRates[Region]=$C$4)*(WNARRates[CustClass]=$E$24)*WNARRates[AdjSRR]) -> 0.00334 | H32: =SUMPRODUCT((WNARRates[BeginDate]<=H$26)*(WNARRates[EndDate]>=H$26)*(WNARRates[Region]=$C$4)*(WNARRates[CustClass]=$E$24)*WNARRates[AdjSRR]) -> 0.00334 | I32: =SUMPRODUCT((WNARRates[BeginDate]<=I$26)*(WNARRates[EndDate]>=I$26)*(WNARRates[Region]=$C$4)*(WNARRates[CustClass]=$E$24)*WNARRates[AdjSRR]) -> 0.00334 | J32: =SUMPRODUCT((WNARRates[BeginDate]<=J$26)*(WNARRates[EndDate]>=J$26)*(WNARRates[Region]=$C$4)*(WNARRates[CustClass]=$E$24)*WNARRates[AdjSRR]) -> 0.00334 | K32: =SUMPRODUCT((WNARRates[BeginDate]<=K$26)*(WNARRates[EndDate]>=K$26)*(WNARRates[Region]=$C$4)*(WNARRates[CustClass]=$E$24)*WNARRates[AdjSRR]) -> 0.00334 | L32: =SUMPRODUCT((WNARRates[BeginDate]<=L$26)*(WNARRates[EndDate]>=L$26)*(WNARRates[Region]=$C$4)*(WNARRates[CustClass]=$E$24)*WNARRates[AdjSRR]) -> 0.00334 | M32: =SUMPRODUCT((WNARRates[BeginDate]<=M$26)*(WNARRates[EndDate]>=M$26)*(WNARRates[Region]=$C$4)*(WNARRates[CustClass]=$E$24)*WNARRates[AdjSRR]) -> 0.00334 | N32: =SUMPRODUCT((WNARRates[BeginDate]<=N$26)*(WNARRates[EndDate]>=N$26)*(WNARRates[Region]=$C$4)*(WNARRates[CustClass]=$E$24)*WNARRates[AdjSRR]) -> 0.00334 | O32: =SUMPRODUCT((WNARRates[BeginDate]<=O$26)*(WNARRates[EndDate]>=O$26)*(WNARRates[Region]=$C$4)*(WNARRates[CustClass]=$E$24)*WNARRates[AdjSRR]) -> 0.00334 | P32: =SUMPRODUCT((WNARRates[BeginDate]<=P$26)*(WNARRates[EndDate]>=P$26)*(WNARRates[Region]=$C$4)*(WNARRates[CustClass]=$E$24)*WNARRates[AdjSRR]) -> 0.00334 | Q32: =SUMPRODUCT((WNARRates[BeginDate]<=Q$26)*(WNARRates[EndDate]>=Q$26)*(WNARRates[Region]=$C$4)*(WNARRates[CustClass]=$E$24)*WNARRates[AdjSRR]) -> 0.00334
B33: Total | C33: =SUM(C31:C32) -> 0.01402 | D33: =SUM(D31:D32) -> 0.01402 | E33: 0.01402 | F33: 0.01357 | G33: 0.01357 | H33: 0.01357 | I33: 0.01357 | J33: 0.01357 | K33: 0.01357 | L33: 0.01357 | M33: 0.01357 | N33: 0.01357 | O33: 0.01357 | P33: 0.01357 | Q33: 0.01357
B34: CSWNA and SRR Revenue for Period
B35: CAWNA $ | F35: =SUMPRODUCT((WNARevAlloc[MonthFlow]=F$11)*(WNARevAlloc[Region]=$C$4)*(WNARevAlloc[CustClass]=$E$24)*WNARevAlloc[AdjCAWNARev]) -> 2194.411888 | G35: =SUMPRODUCT((WNARevAlloc[MonthFlow]=G$11)*(WNARevAlloc[Region]=$C$4)*(WNARevAlloc[CustClass]=$E$24)*WNARevAlloc[AdjCAWNARev]) -> 5600.785534 | H35: =SUMPRODUCT((WNARevAlloc[MonthFlow]=H$11)*(WNARevAlloc[Region]=$C$4)*(WNARevAlloc[CustClass]=$E$24)*WNARevAlloc[AdjCAWNARev]) -> 6173.872291 | I35: =SUMPRODUCT((WNARevAlloc[MonthFlow]=I$11)*(WNARevAlloc[Region]=$C$4)*(WNARevAlloc[CustClass]=$E$24)*WNARevAlloc[AdjCAWNARev]) -> 8284.859161 | J35: =SUMPRODUCT((WNARevAlloc[MonthFlow]=J$11)*(WNARevAlloc[Region]=$C$4)*(WNARevAlloc[CustClass]=$E$24)*WNARevAlloc[AdjCAWNARev]) -> 4222.707909 | K35: =SUMPRODUCT((WNARevAlloc[MonthFlow]=K$11)*(WNARevAlloc[Region]=$C$4)*(WNARevAlloc[CustClass]=$E$24)*WNARevAlloc[AdjCAWNARev]) -> 2376.707178 | L35: =SUMPRODUCT((WNARevAlloc[MonthFlow]=L$11)*(WNARevAlloc[Region]=$C$4)*(WNARevAlloc[CustClass]=$E$24)*WNARevAlloc[AdjCAWNARev]) -> 1051.56409 | M35: =SUMPRODUCT((WNARevAlloc[MonthFlow]=M$11)*(WNARevAlloc[Region]=$C$4)*(WNARevAlloc[CustClass]=$E$24)*WNARevAlloc[AdjCAWNARev]) -> 586.8868828 | N35: =SUMPRODUCT((WNARevAlloc[MonthFlow]=N$11)*(WNARevAlloc[Region]=$C$4)*(WNARevAlloc[CustClass]=$E$24)*WNARevAlloc[AdjCAWNARev]) -> 564.4668239 | O35: =ROUND(O$27*O31,0) -> 529 | P35: 605 | Q35: 538
B36: ARR $ | C36: =ROUND(C29*C33,2) -> -40.3 | D36: =ROUND(D29*D33,2) -> -81.52 | E36: =ROUND(E29*E33,2) -> -124.51 | F36: =SUMPRODUCT((WNARevAlloc[MonthFlow]=F$11)*(WNARevAlloc[Region]=$C$4)*(WNARevAlloc[CustClass]=$E$24)*WNARevAlloc[AdjARRRev]) -> 723.0381119 | G36: =SUMPRODUCT((WNARevAlloc[MonthFlow]=G$11)*(WNARevAlloc[Region]=$C$4)*(WNARevAlloc[CustClass]=$E$24)*WNARevAlloc[AdjARRRev]) -> 1828.604466 | H36: =SUMPRODUCT((WNARevAlloc[MonthFlow]=H$11)*(WNARevAlloc[Region]=$C$4)*(WNARevAlloc[CustClass]=$E$24)*WNARevAlloc[AdjARRRev]) -> 2015.737709 | I36: =SUMPRODUCT((WNARevAlloc[MonthFlow]=I$11)*(WNARevAlloc[Region]=$C$4)*(WNARevAlloc[CustClass]=$E$24)*WNARevAlloc[AdjARRRev]) -> 2704.880839 | J36: =SUMPRODUCT((WNARevAlloc[MonthFlow]=J$11)*(WNARevAlloc[Region]=$C$4)*(WNARevAlloc[CustClass]=$E$24)*WNARevAlloc[AdjARRRev]) -> 1378.652091 | K36: =SUMPRODUCT((WNARevAlloc[MonthFlow]=K$11)*(WNARevAlloc[Region]=$C$4)*(WNARevAlloc[CustClass]=$E$24)*WNARevAlloc[AdjARRRev]) -> 775.9728224 | L36: =SUMPRODUCT((WNARevAlloc[MonthFlow]=L$11)*(WNARevAlloc[Region]=$C$4)*(WNARevAlloc[CustClass]=$E$24)*WNARevAlloc[AdjARRRev]) -> 343.3259101 | M36: =SUMPRODUCT((WNARevAlloc[MonthFlow]=M$11)*(WNARevAlloc[Region]=$C$4)*(WNARevAlloc[CustClass]=$E$24)*WNARevAlloc[AdjARRRev]) -> 191.6131172 | N36: =SUMPRODUCT((WNARevAlloc[MonthFlow]=N$11)*(WNARevAlloc[Region]=$C$4)*(WNARevAlloc[CustClass]=$E$24)*WNARevAlloc[AdjARRRev]) -> 184.2931761 | O36: 173 | P36: 198 | Q36: 176
B37: Total True-Up | C37: =SUM(C36:E36) -> -246.33 | D37: Enter in VolTrueUp Table
B39: * Actual Period revenues were calculated using actual rates, and then adjusted for actual revenues billed.
B40: (See worksheet WNARRevAlloc)

Sheet CWNA SEMO
B2: Liberty Midstates | E2: Year
B3: Billing Cycle and HDD Data Summary
B4: Region | C4: SEMO
B5: Year | C5: =DateSet!$C$2 -> 2026
B6: Start Month | C6: =DateSet!$D$3 -> 2025-07-01
B8: Cust Class | C8: Res
B9: WNA factor = HDD Diff * No. of Bills * Beta Coefficient (See SEMO Cycles)
B10: Flow Month | C10: WNA Factor | D10: Vol. Rate | E10: WNAi
B11: =$C$6 -> 45839 | C11: =SUMPRODUCT((SEMOCycles[MonthFlow]=$B11)*(SEMOCycles[Region]=$C$4)*(SEMOCycles[CustClass]=$C$8)*SEMOCycles[WNAFactor]) -> 1189.685376 | D11: =IFERROR(E11/C11,0) -> 0.31279 | E11: =SUMPRODUCT((SEMOCycles[MonthFlow]=$B11)*(SEMOCycles[Region]=$C$4)*(SEMOCycles[CustClass]=$C$8)*SEMOCycles[WNA]) -> 372.1216888
B12: =EDATE(B11,1) -> 45870 | C12: =SUMPRODUCT((SEMOCycles[MonthFlow]=$B12)*(SEMOCycles[Region]=$C$4)*(SEMOCycles[CustClass]=$C$8)*SEMOCycles[WNAFactor]) -> -15634.35034 | D12: =IFERROR(E12/C12,0) -> 0.31279 | E12: =SUMPRODUCT((SEMOCycles[MonthFlow]=$B12)*(SEMOCycles[Region]=$C$4)*(SEMOCycles[CustClass]=$C$8)*SEMOCycles[WNA]) -> -4890.268442
B13: =EDATE(B12,1) -> 45901 | C13: =SUMPRODUCT((SEMOCycles[MonthFlow]=$B13)*(SEMOCycles[Region]=$C$4)*(SEMOCycles[CustClass]=$C$8)*SEMOCycles[WNAFactor]) -> 206499.8764 | D13: 0.31279 | E13: =SUMPRODUCT((SEMOCycles[MonthFlow]=$B13)*(SEMOCycles[Region]=$C$4)*(SEMOCycles[CustClass]=$C$8)*SEMOCycles[WNA]) -> 64591.09632
B14: 45931 | C14: =SUMPRODUCT((SEMOCycles[MonthFlow]=$B14)*(SEMOCycles[Region]=$C$4)*(SEMOCycles[CustClass]=$C$8)*SEMOCycles[WNAFactor]) -> 160209.5489 | D14: 0.31279 | E14: =SUMPRODUCT((SEMOCycles[MonthFlow]=$B14)*(SEMOCycles[Region]=$C$4)*(SEMOCycles[CustClass]=$C$8)*SEMOCycles[WNA]) -> 50111.94481
B15: 45962 | C15: =SUMPRODUCT((SEMOCycles[MonthFlow]=$B15)*(SEMOCycles[Region]=$C$4)*(SEMOCycles[CustClass]=$C$8)*SEMOCycles[WNAFactor]) -> -121963.7873 | D15: 0.31279 | E15: =SUMPRODUCT((SEMOCycles[MonthFlow]=$B15)*(SEMOCycles[Region]=$C$4)*(SEMOCycles[CustClass]=$C$8)*SEMOCycles[WNA]) -> -38149.05302
B16: 45992 | C16: =SUMPRODUCT((SEMOCycles[MonthFlow]=$B16)*(SEMOCycles[Region]=$C$4)*(SEMOCycles[CustClass]=$C$8)*SEMOCycles[WNAFactor]) -> 464538.1439 | D16: 0.31279 | E16: =SUMPRODUCT((SEMOCycles[MonthFlow]=$B16)*(SEMOCycles[Region]=$C$4)*(SEMOCycles[CustClass]=$C$8)*SEMOCycles[WNA]) -> 145302.886
B17: 46023 | C17: =SUMPRODUCT((SEMOCycles[MonthFlow]=$B17)*(SEMOCycles[Region]=$C$4)*(SEMOCycles[CustClass]=$C$8)*SEMOCycles[WNAFactor]) -> -659522.474 | D17: 0.31279 | E17: =SUMPRODUCT((SEMOCycles[MonthFlow]=$B17)*(SEMOCycles[Region]=$C$4)*(SEMOCycles[CustClass]=$C$8)*SEMOCycles[WNA]) -> -206292.0346
B18: 46054 | C18: =SUMPRODUCT((SEMOCycles[MonthFlow]=$B18)*(SEMOCycles[Region]=$C$4)*(SEMOCycles[CustClass]=$C$8)*SEMOCycles[WNAFactor]) -> 654590.8301 | D18: 0.31279 | E18: =SUMPRODUCT((SEMOCycles[MonthFlow]=$B18)*(SEMOCycles[Region]=$C$4)*(SEMOCycles[CustClass]=$C$8)*SEMOCycles[WNA]) -> 204749.4657
B19: =EDATE(B18,1) -> 46082 | C19: =SUMPRODUCT((SEMOCycles[MonthFlow]=$B19)*(SEMOCycles[Region]=$C$4)*(SEMOCycles[CustClass]=$C$8)*SEMOCycles[WNAFactor]) -> 753604.8312 | D19: 0.31279 | E19: =SUMPRODUCT((SEMOCycles[MonthFlow]=$B19)*(SEMOCycles[Region]=$C$4)*(SEMOCycles[CustClass]=$C$8)*SEMOCycles[WNA]) -> 235720.0552
B20: =EDATE(B19,1) -> 46113 | C20: =SUMPRODUCT((SEMOCycles[MonthFlow]=$B20)*(SEMOCycles[Region]=$C$4)*(SEMOCycles[CustClass]=$C$8)*SEMOCycles[WNAFactor]) -> 289588.2556 | D20: 0.31279 | E20: =SUMPRODUCT((SEMOCycles[MonthFlow]=$B20)*(SEMOCycles[Region]=$C$4)*(SEMOCycles[CustClass]=$C$8)*SEMOCycles[WNA]) -> 90580.31047
B21: =EDATE(B20,1) -> 46143 | C21: =SUMPRODUCT((SEMOCycles[MonthFlow]=$B21)*(SEMOCycles[Region]=$C$4)*(SEMOCycles[CustClass]=$C$8)*SEMOCycles[WNAFactor]) -> 37420.16819 | D21: 0.31279 | E21: =SUMPRODUCT((SEMOCycles[MonthFlow]=$B21)*(SEMOCycles[Region]=$C$4)*(SEMOCycles[CustClass]=$C$8)*SEMOCycles[WNA]) -> 11704.65441
B22: =EDATE(B21,1) -> 46174 | C22: =SUMPRODUCT((SEMOCycles[MonthFlow]=$B22)*(SEMOCycles[Region]=$C$4)*(SEMOCycles[CustClass]=$C$8)*SEMOCycles[WNAFactor]) -> 479.09312 | D22: 0.31279 | E22: =SUMPRODUCT((SEMOCycles[MonthFlow]=$B22)*(SEMOCycles[Region]=$C$4)*(SEMOCycles[CustClass]=$C$8)*SEMOCycles[WNA]) -> 149.855537
B23: Totals | C23: =SUM(C11:C22) -> 1770999.821 | D23: 0.3127899977 | E23: =ROUND(SUM(E11:E22),2) -> 553951.03
B24: Recon Per Adj. | C24: =E23 -> 553951.03
B25: Enter in Reconciling Period Adjustment Table (ReconPerAdj)
B26: Enter WNA Amounts in CAWNA Amounts Table
B28: Cust Class | C28: SGS
B29: WNA factor = HDD Diff * No. of Bills * Beta Coefficient (See SEMO Cycles)
B30: Flow Month | C30: WNA Factor | D30: Vol. Rate | E30: WNAi
B31: =$C$6 -> 45839 | C31: =SUMPRODUCT((SEMOCycles[MonthFlow]=$B31)*(SEMOCycles[Region]=$C$4)*(SEMOCycles[CustClass]=$C$28)*SEMOCycles[WNAFactor]) -> 0 | D31: =IFERROR(E31/C31,0) -> 0 | E31: =SUMPRODUCT((SEMOCycles[MonthFlow]=$B31)*(SEMOCycles[Region]=$C$4)*(SEMOCycles[CustClass]=$C$28)*SEMOCycles[WNA]) -> 0
B32: =EDATE(B31,1) -> 45870 | C32: =SUMPRODUCT((SEMOCycles[MonthFlow]=$B32)*(SEMOCycles[Region]=$C$4)*(SEMOCycles[CustClass]=$C$28)*SEMOCycles[WNAFactor]) -> 109.6580121 | D32: 0.10651 | E32: =SUMPRODUCT((SEMOCycles[MonthFlow]=$B32)*(SEMOCycles[Region]=$C$4)*(SEMOCycles[CustClass]=$C$28)*SEMOCycles[WNA]) -> 11.67967487
B33: =EDATE(B32,1) -> 45901 | C33: =SUMPRODUCT((SEMOCycles[MonthFlow]=$B33)*(SEMOCycles[Region]=$C$4)*(SEMOCycles[CustClass]=$C$28)*SEMOCycles[WNAFactor]) -> 26846.30991 | D33: 0.10651 | E33: =SUMPRODUCT((SEMOCycles[MonthFlow]=$B33)*(SEMOCycles[Region]=$C$4)*(SEMOCycles[CustClass]=$C$28)*SEMOCycles[WNA]) -> 2859.400468
B34: 45931 | C34: =SUMPRODUCT((SEMOCycles[MonthFlow]=$B34)*(SEMOCycles[Region]=$C$4)*(SEMOCycles[CustClass]=$C$28)*SEMOCycles[WNAFactor]) -> 42430.16149 | D34: 0.10651 | E34: =SUMPRODUCT((SEMOCycles[MonthFlow]=$B34)*(SEMOCycles[Region]=$C$4)*(SEMOCycles[CustClass]=$C$28)*SEMOCycles[WNA]) -> 4519.2365
B35: 45962 | C35: =SUMPRODUCT((SEMOCycles[MonthFlow]=$B35)*(SEMOCycles[Region]=$C$4)*(SEMOCycles[CustClass]=$C$28)*SEMOCycles[WNAFactor]) -> -33058.1477 | D35: 0.10651 | E35: =SUMPRODUCT((SEMOCycles[MonthFlow]=$B35)*(SEMOCycles[Region]=$C$4)*(SEMOCycles[CustClass]=$C$28)*SEMOCycles[WNA]) -> -3521.023311
B36: 45992 | C36: =SUMPRODUCT((SEMOCycles[MonthFlow]=$B36)*(SEMOCycles[Region]=$C$4)*(SEMOCycles[CustClass]=$C$28)*SEMOCycles[WNAFactor]) -> 124048.9525 | D36: 0.10651 | E36: =SUMPRODUCT((SEMOCycles[MonthFlow]=$B36)*(SEMOCycles[Region]=$C$4)*(SEMOCycles[CustClass]=$C$28)*SEMOCycles[WNA]) -> 13212.45393
B37: 46023 | C37: =SUMPRODUCT((SEMOCycles[MonthFlow]=$B37)*(SEMOCycles[Region]=$C$4)*(SEMOCycles[CustClass]=$C$28)*SEMOCycles[WNAFactor]) -> -185071.0635 | D37: 0.10651 | E37: =SUMPRODUCT((SEMOCycles[MonthFlow]=$B37)*(SEMOCycles[Region]=$C$4)*(SEMOCycles[CustClass]=$C$28)*SEMOCycles[WNA]) -> -19711.91897
B38: 46054 | C38: =SUMPRODUCT((SEMOCycles[MonthFlow]=$B38)*(SEMOCycles[Region]=$C$4)*(SEMOCycles[CustClass]=$C$28)*SEMOCycles[WNAFactor]) -> 170106.112 | D38: 0.10651 | E38: =SUMPRODUCT((SEMOCycles[MonthFlow]=$B38)*(SEMOCycles[Region]=$C$4)*(SEMOCycles[CustClass]=$C$28)*SEMOCycles[WNA]) -> 18118.00199
B39: 46082 | C39: =SUMPRODUCT((SEMOCycles[MonthFlow]=$B39)*(SEMOCycles[Region]=$C$4)*(SEMOCycles[CustClass]=$C$28)*SEMOCycles[WNAFactor]) -> 164342.6105 | D39: 0.10651 | E39: =SUMPRODUCT((SEMOCycles[MonthFlow]=$B39)*(SEMOCycles[Region]=$C$4)*(SEMOCycles[CustClass]=$C$28)*SEMOCycles[WNA]) -> 17504.13145
B40: 46113 | C40: =SUMPRODUCT((SEMOCycles[MonthFlow]=$B40)*(SEMOCycles[Region]=$C$4)*(SEMOCycles[CustClass]=$C$28)*SEMOCycles[WNAFactor]) -> 55462.99332 | D40: 0.10651 | E40: =SUMPRODUCT((SEMOCycles[MonthFlow]=$B40)*(SEMOCycles[Region]=$C$4)*(SEMOCycles[CustClass]=$C$28)*SEMOCycles[WNA]) -> 5907.363418
B41: 46143 | C41: =SUMPRODUCT((SEMOCycles[MonthFlow]=$B41)*(SEMOCycles[Region]=$C$4)*(SEMOCycles[CustClass]=$C$28)*SEMOCycles[WNAFactor]) -> 2641.130708 | D41: 0.10651 | E41: =SUMPRODUCT((SEMOCycles[MonthFlow]=$B41)*(SEMOCycles[Region]=$C$4)*(SEMOCycles[CustClass]=$C$28)*SEMOCycles[WNA]) -> 281.3068317
B42: 46174 | C42: =SUMPRODUCT((SEMOCycles[MonthFlow]=$B42)*(SEMOCycles[Region]=$C$4)*(SEMOCycles[CustClass]=$C$28)*SEMOCycles[WNAFactor]) -> 0 | D42: 0 | E42: =SUMPRODUCT((SEMOCycles[MonthFlow]=$B42)*(SEMOCycles[Region]=$C$4)*(SEMOCycles[CustClass]=$C$28)*SEMOCycles[WNA]) -> 0
B43: Totals | C43: =SUM(C31:C42) -> 367858.7173 | D43: 0.1065099946 | E43: =ROUND(SUM(E31:E42),2) -> 39180.63
B44: Recon Per Adj. | C44: =E43 -> 39180.63
B45: Enter in Reconciling Period Adjustment Table (ReconPerAdj)
B46: Enter WNA Amounts in CAWNA Amounts Table

Sheet CWNA WEMO
B2: Liberty Midstates | E2: Year
B3: Billing Cycle and HDD Data Summary
B4: Region | C4: WEMO
B5: Year | C5: =DateSet!C2 -> 2026
B6: Start Month | C6: =DateSet!D3 -> 2025-07-01
B8: Cust Class | C8: Res
B9: WNA factor = HDD Diff * No. of Bills * Beta Coefficient (See WEMO Cycles)
B10: Flow Month | C10: WNA Factor | D10: Vol. Rate | E10: WNAi
B11: =$C$6 -> 45839 | C11: =SUMPRODUCT((WEMOCycles[MonthFlow]=$B11)*(WEMOCycles[Region]=$C$4)*(WEMOCycles[CustClass]=$C$8)*WEMOCycles[WNAFactor]) -> 265.7610648 | D11: =IFERROR(E11/C11,0) -> 0.44276 | E11: =SUMPRODUCT((WEMOCycles[MonthFlow]=$B11)*(WEMOCycles[Region]=$C$4)*(WEMOCycles[CustClass]=$C$8)*WEMOCycles[WNA]) -> 117.6683691
B12: =EDATE(B11,1) -> 45870 | C12: =SUMPRODUCT((WEMOCycles[MonthFlow]=$B12)*(WEMOCycles[Region]=$C$4)*(WEMOCycles[CustClass]=$C$8)*WEMOCycles[WNAFactor]) -> -1668.96844 | D12: =IFERROR(E12/C12,0) -> 0.44276 | E12: =SUMPRODUCT((WEMOCycles[MonthFlow]=$B12)*(WEMOCycles[Region]=$C$4)*(WEMOCycles[CustClass]=$C$8)*WEMOCycles[WNA]) -> -738.9524663
B13: =EDATE(B12,1) -> 45901 | C13: =SUMPRODUCT((WEMOCycles[MonthFlow]=$B13)*(WEMOCycles[Region]=$C$4)*(WEMOCycles[CustClass]=$C$8)*WEMOCycles[WNAFactor]) -> 59495.11796 | D13: 0.44276 | E13: =SUMPRODUCT((WEMOCycles[MonthFlow]=$B13)*(WEMOCycles[Region]=$C$4)*(WEMOCycles[CustClass]=$C$8)*WEMOCycles[WNA]) -> 26342.05843
B14: 45931 | C14: =SUMPRODUCT((WEMOCycles[MonthFlow]=$B14)*(WEMOCycles[Region]=$C$4)*(WEMOCycles[CustClass]=$C$8)*WEMOCycles[WNAFactor]) -> 33756.31564 | D14: 0.44276 | E14: =SUMPRODUCT((WEMOCycles[MonthFlow]=$B14)*(WEMOCycles[Region]=$C$4)*(WEMOCycles[CustClass]=$C$8)*WEMOCycles[WNA]) -> 14945.94631
B15: 45962 | C15: =SUMPRODUCT((WEMOCycles[MonthFlow]=$B15)*(WEMOCycles[Region]=$C$4)*(WEMOCycles[CustClass]=$C$8)*WEMOCycles[WNAFactor]) -> -43768.38315 | D15: 0.44276 | E15: =SUMPRODUCT((WEMOCycles[MonthFlow]=$B15)*(WEMOCycles[Region]=$C$4)*(WEMOCycles[CustClass]=$C$8)*WEMOCycles[WNA]) -> -19378.88932
B16: 45992 | C16: =SUMPRODUCT((WEMOCycles[MonthFlow]=$B16)*(WEMOCycles[Region]=$C$4)*(WEMOCycles[CustClass]=$C$8)*WEMOCycles[WNAFactor]) -> 142682.8317 | D16: 0.44276 | E16: =SUMPRODUCT((WEMOCycles[MonthFlow]=$B16)*(WEMOCycles[Region]=$C$4)*(WEMOCycles[CustClass]=$C$8)*WEMOCycles[WNA]) -> 63174.25055
B17: 46023 | C17: =SUMPRODUCT((WEMOCycles[MonthFlow]=$B17)*(WEMOCycles[Region]=$C$4)*(WEMOCycles[CustClass]=$C$8)*WEMOCycles[WNAFactor]) -> 32058.87312 | D17: 0.44276 | E17: =SUMPRODUCT((WEMOCycles[MonthFlow]=$B17)*(WEMOCycles[Region]=$C$4)*(WEMOCycles[CustClass]=$C$8)*WEMOCycles[WNA]) -> 14194.38666
B18: 46054 | C18: =SUMPRODUCT((WEMOCycles[MonthFlow]=$B18)*(WEMOCycles[Region]=$C$4)*(WEMOCycles[CustClass]=$C$8)*WEMOCycles[WNAFactor]) -> 37708.61615 | D18: 0.44276 | E18: =SUMPRODUCT((WEMOCycles[MonthFlow]=$B18)*(WEMOCycles[Region]=$C$4)*(WEMOCycles[CustClass]=$C$8)*WEMOCycles[WNA]) -> 16695.86688
B19: =EDATE(B18,1) -> 46082 | C19: =SUMPRODUCT((WEMOCycles[MonthFlow]=$B19)*(WEMOCycles[Region]=$C$4)*(WEMOCycles[CustClass]=$C$8)*WEMOCycles[WNAFactor]) -> 112648.3677 | D19: 0.44276 | E19: =SUMPRODUCT((WEMOCycles[MonthFlow]=$B19)*(WEMOCycles[Region]=$C$4)*(WEMOCycles[CustClass]=$C$8)*WEMOCycles[WNA]) -> 49876.1913
B20: =EDATE(B19,1) -> 46113 | C20: =SUMPRODUCT((WEMOCycles[MonthFlow]=$B20)*(WEMOCycles[Region]=$C$4)*(WEMOCycles[CustClass]=$C$8)*WEMOCycles[WNAFactor]) -> 11156.70516 | D20: 0.44276 | E20: =SUMPRODUCT((WEMOCycles[MonthFlow]=$B20)*(WEMOCycles[Region]=$C$4)*(WEMOCycles[CustClass]=$C$8)*WEMOCycles[WNA]) -> 4939.742776
B21: =EDATE(B20,1) -> 46143 | C21: =SUMPRODUCT((WEMOCycles[MonthFlow]=$B21)*(WEMOCycles[Region]=$C$4)*(WEMOCycles[CustClass]=$C$8)*WEMOCycles[WNAFactor]) -> -44.5787496 | D21: 0.44276 | E21: =SUMPRODUCT((WEMOCycles[MonthFlow]=$B21)*(WEMOCycles[Region]=$C$4)*(WEMOCycles[CustClass]=$C$8)*WEMOCycles[WNA]) -> -19.73768717
B22: =EDATE(B21,1) -> 46174 | C22: =SUMPRODUCT((WEMOCycles[MonthFlow]=$B22)*(WEMOCycles[Region]=$C$4)*(WEMOCycles[CustClass]=$C$8)*WEMOCycles[WNAFactor]) -> 300.3036344 | D22: =IFERROR(E22/C22,0) -> 0.44276 | E22: =SUMPRODUCT((WEMOCycles[MonthFlow]=$B22)*(WEMOCycles[Region]=$C$4)*(WEMOCycles[CustClass]=$C$8)*WEMOCycles[WNA]) -> 132.9624372
B23: Totals | C23: =SUM(C11:C22) -> 384590.9618 | D23: 0.442759989 | E23: =ROUND(SUM(E11:E22),2) -> 170281.49
B24: Recon Per Adj. | C24: =E23 -> 170281.49
B25: Enter in Reconciling Period Adjustment Table (ReconPerAdj)
B26: Enter WNA Amounts in CAWNA Amounts Table
B28: Cust Class | C28: SGS
B29: WNA factor = HDD Diff * No. of Bills * Beta Coefficient (See WEMO Cycles)
B30: Flow Month | C30: WNA Factor | D30: Vol. Rate | E30: WNAi
B31: =$C$6 -> 45839 | C31: =SUMPRODUCT((WEMOCycles[MonthFlow]=$B31)*(WEMOCycles[Region]=$C$4)*(WEMOCycles[CustClass]=$C$28)*WEMOCycles[WNAFactor]) -> 0 | D31: =IFERROR(E31/C31,0) -> 0 | E31: =SUMPRODUCT((WEMOCycles[MonthFlow]=$B31)*(WEMOCycles[Region]=$C$4)*(WEMOCycles[CustClass]=$C$28)*WEMOCycles[WNA]) -> 0
B32: =EDATE(B31,1) -> 45870 | C32: =SUMPRODUCT((WEMOCycles[MonthFlow]=$B32)*(WEMOCycles[Region]=$C$4)*(WEMOCycles[CustClass]=$C$28)*WEMOCycles[WNAFactor]) -> 180.7170048 | D32: 0.18594 | E32: =SUMPRODUCT((WEMOCycles[MonthFlow]=$B32)*(WEMOCycles[Region]=$C$4)*(WEMOCycles[CustClass]=$C$28)*WEMOCycles[WNA]) -> 33.60251987
B33: =EDATE(B32,1) -> 45901 | C33: =SUMPRODUCT((WEMOCycles[MonthFlow]=$B33)*(WEMOCycles[Region]=$C$4)*(WEMOCycles[CustClass]=$C$28)*WEMOCycles[WNAFactor]) -> 12591.24553 | D33: 0.18594 | E33: =SUMPRODUCT((WEMOCycles[MonthFlow]=$B33)*(WEMOCycles[Region]=$C$4)*(WEMOCycles[CustClass]=$C$28)*WEMOCycles[WNA]) -> 2341.216194
B34: 45931 | C34: =SUMPRODUCT((WEMOCycles[MonthFlow]=$B34)*(WEMOCycles[Region]=$C$4)*(WEMOCycles[CustClass]=$C$28)*WEMOCycles[WNAFactor]) -> 13751.92797 | D34: 0.18594 | E34: =SUMPRODUCT((WEMOCycles[MonthFlow]=$B34)*(WEMOCycles[Region]=$C$4)*(WEMOCycles[CustClass]=$C$28)*WEMOCycles[WNA]) -> 2557.033487
B35: 45962 | C35: =SUMPRODUCT((WEMOCycles[MonthFlow]=$B35)*(WEMOCycles[Region]=$C$4)*(WEMOCycles[CustClass]=$C$28)*WEMOCycles[WNAFactor]) -> -17366.25668 | D35: 0.18594 | E35: =SUMPRODUCT((WEMOCycles[MonthFlow]=$B35)*(WEMOCycles[Region]=$C$4)*(WEMOCycles[CustClass]=$C$28)*WEMOCycles[WNA]) -> -3229.081768
B36: 45992 | C36: =SUMPRODUCT((WEMOCycles[MonthFlow]=$B36)*(WEMOCycles[Region]=$C$4)*(WEMOCycles[CustClass]=$C$28)*WEMOCycles[WNAFactor]) -> 57974.85466 | D36: 0.18594 | E36: =SUMPRODUCT((WEMOCycles[MonthFlow]=$B36)*(WEMOCycles[Region]=$C$4)*(WEMOCycles[CustClass]=$C$28)*WEMOCycles[WNA]) -> 10779.84448
B37: 46023 | C37: =SUMPRODUCT((WEMOCycles[MonthFlow]=$B37)*(WEMOCycles[Region]=$C$4)*(WEMOCycles[CustClass]=$C$28)*WEMOCycles[WNAFactor]) -> 12924.14648 | D37: 0.18594 | E37: =SUMPRODUCT((WEMOCycles[MonthFlow]=$B37)*(WEMOCycles[Region]=$C$4)*(WEMOCycles[CustClass]=$C$28)*WEMOCycles[WNA]) -> 2403.115796
B38: 46054 | C38: =SUMPRODUCT((WEMOCycles[MonthFlow]=$B38)*(WEMOCycles[Region]=$C$4)*(WEMOCycles[CustClass]=$C$28)*WEMOCycles[WNAFactor]) -> 13367.35781 | D38: 0.18594 | E38: =SUMPRODUCT((WEMOCycles[MonthFlow]=$B38)*(WEMOCycles[Region]=$C$4)*(WEMOCycles[CustClass]=$C$28)*WEMOCycles[WNA]) -> 2485.526512
B39: 46082 | C39: =SUMPRODUCT((WEMOCycles[MonthFlow]=$B39)*(WEMOCycles[Region]=$C$4)*(WEMOCycles[CustClass]=$C$28)*WEMOCycles[WNAFactor]) -> 35732.7495 | D39: 0.18594 | E39: =SUMPRODUCT((WEMOCycles[MonthFlow]=$B39)*(WEMOCycles[Region]=$C$4)*(WEMOCycles[CustClass]=$C$28)*WEMOCycles[WNA]) -> 6644.147442
B40: 46113 | C40: =SUMPRODUCT((WEMOCycles[MonthFlow]=$B40)*(WEMOCycles[Region]=$C$4)*(WEMOCycles[CustClass]=$C$28)*WEMOCycles[WNAFactor]) -> 2728.547438 | D40: 0.18594 | E40: =SUMPRODUCT((WEMOCycles[MonthFlow]=$B40)*(WEMOCycles[Region]=$C$4)*(WEMOCycles[CustClass]=$C$28)*WEMOCycles[WNA]) -> 507.3461107
B41: 46143 | C41: =SUMPRODUCT((WEMOCycles[MonthFlow]=$B41)*(WEMOCycles[Region]=$C$4)*(WEMOCycles[CustClass]=$C$28)*WEMOCycles[WNAFactor]) -> -192.7519011 | D41: 0.18594 | E41: =SUMPRODUCT((WEMOCycles[MonthFlow]=$B41)*(WEMOCycles[Region]=$C$4)*(WEMOCycles[CustClass]=$C$28)*WEMOCycles[WNA]) -> -35.84028849
B42: 46174 | C42: =SUMPRODUCT((WEMOCycles[MonthFlow]=$B42)*(WEMOCycles[Region]=$C$4)*(WEMOCycles[CustClass]=$C$28)*WEMOCycles[WNAFactor]) -> 0 | D42: 0 | E42: =SUMPRODUCT((WEMOCycles[MonthFlow]=$B42)*(WEMOCycles[Region]=$C$4)*(WEMOCycles[CustClass]=$C$28)*WEMOCycles[WNA]) -> 0
B43: Totals | C43: =SUM(C31:C42) -> 131692.5378 | D43: 0.1859399963 | E43: =ROUND(SUM(E31:E42),2) -> 24486.91
B44: Recon Per Adj. | C44: =E43 -> 24486.91
B45: Enter in Reconciling Period Adjustment Table (ReconPerAdj)
B46: Enter WNA Amounts in CAWNA Amounts Table

Sheet CWNA NEMO
B2: Liberty Midstates | E2: Year
B3: Billing Cycle and HDD Data Summary
B4: Region | C4: NEMO
B5: Year | C5: =DateSet!C2 -> 2026
B6: Start Month | C6: =DateSet!D3 -> 2025-07-01
B8: Cust Class | C8: Res
B9: WNA factor = HDD Diff * No. of Bills * Beta Coefficient (See NEMO Cycles)
B10: Flow Month | C10: WNA Factor | D10: Vol. Rate | E10: WNAi
B11: =$C$6 -> 45839 | C11: =SUMPRODUCT((NEMOCycles[MonthFlow]=$B11)*(NEMOCycles[Region]=$C$4)*(NEMOCycles[CustClass]=$C$8)*NEMOCycles[WNAFactor]) -> 1911.821703 | D11: =IFERROR(E11/C11,0) -> 0.44276 | E11: =SUMPRODUCT((NEMOCycles[MonthFlow]=$B11)*(NEMOCycles[Region]=$C$4)*(NEMOCycles[CustClass]=$C$8)*NEMOCycles[WNA]) -> 846.4781774
B12: =EDATE(B11,1) -> 45870 | C12: =SUMPRODUCT((NEMOCycles[MonthFlow]=$B12)*(NEMOCycles[Region]=$C$4)*(NEMOCycles[CustClass]=$C$8)*NEMOCycles[WNAFactor]) -> -44404.16084 | D12: =IFERROR(E12/C12,0) -> 0.44276 | E12: =SUMPRODUCT((NEMOCycles[MonthFlow]=$B12)*(NEMOCycles[Region]=$C$4)*(NEMOCycles[CustClass]=$C$8)*NEMOCycles[WNA]) -> -19660.38625
B13: =EDATE(B12,1) -> 45901 | C13: =SUMPRODUCT((NEMOCycles[MonthFlow]=$B13)*(NEMOCycles[Region]=$C$4)*(NEMOCycles[CustClass]=$C$8)*NEMOCycles[WNAFactor]) -> 292878.2664 | D13: 0.44276 | E13: =SUMPRODUCT((NEMOCycles[MonthFlow]=$B13)*(NEMOCycles[Region]=$C$4)*(NEMOCycles[CustClass]=$C$8)*NEMOCycles[WNA]) -> 129674.7812
B14: 45931 | C14: =SUMPRODUCT((NEMOCycles[MonthFlow]=$B14)*(NEMOCycles[Region]=$C$4)*(NEMOCycles[CustClass]=$C$8)*NEMOCycles[WNAFactor]) -> 152140.0545 | D14: 0.44276 | E14: =SUMPRODUCT((NEMOCycles[MonthFlow]=$B14)*(NEMOCycles[Region]=$C$4)*(NEMOCycles[CustClass]=$C$8)*NEMOCycles[WNA]) -> 67361.53054
B15: 45962 | C15: =SUMPRODUCT((NEMOCycles[MonthFlow]=$B15)*(NEMOCycles[Region]=$C$4)*(NEMOCycles[CustClass]=$C$8)*NEMOCycles[WNAFactor]) -> -233650.8529 | D15: 0.44276 | E15: =SUMPRODUCT((NEMOCycles[MonthFlow]=$B15)*(NEMOCycles[Region]=$C$4)*(NEMOCycles[CustClass]=$C$8)*NEMOCycles[WNA]) -> -103451.2516
B16: 45992 | C16: =SUMPRODUCT((NEMOCycles[MonthFlow]=$B16)*(NEMOCycles[Region]=$C$4)*(NEMOCycles[CustClass]=$C$8)*NEMOCycles[WNAFactor]) -> 400458.7804 | D16: 0.44276 | E16: =SUMPRODUCT((NEMOCycles[MonthFlow]=$B16)*(NEMOCycles[Region]=$C$4)*(NEMOCycles[CustClass]=$C$8)*NEMOCycles[WNA]) -> 177307.1296
B17: 46023 | C17: =SUMPRODUCT((NEMOCycles[MonthFlow]=$B17)*(NEMOCycles[Region]=$C$4)*(NEMOCycles[CustClass]=$C$8)*NEMOCycles[WNAFactor]) -> -105500.6669 | D17: 0.44276 | E17: =SUMPRODUCT((NEMOCycles[MonthFlow]=$B17)*(NEMOCycles[Region]=$C$4)*(NEMOCycles[CustClass]=$C$8)*NEMOCycles[WNA]) -> -46711.47527
B18: 46054 | C18: =SUMPRODUCT((NEMOCycles[MonthFlow]=$B18)*(NEMOCycles[Region]=$C$4)*(NEMOCycles[CustClass]=$C$8)*NEMOCycles[WNAFactor]) -> 531917.8232 | D18: 0.44276 | E18: =SUMPRODUCT((NEMOCycles[MonthFlow]=$B18)*(NEMOCycles[Region]=$C$4)*(NEMOCycles[CustClass]=$C$8)*NEMOCycles[WNA]) -> 235511.9354
B19: =EDATE(B18,1) -> 46082 | C19: =SUMPRODUCT((NEMOCycles[MonthFlow]=$B19)*(NEMOCycles[Region]=$C$4)*(NEMOCycles[CustClass]=$C$8)*NEMOCycles[WNAFactor]) -> 288448.4735 | D19: 0.44276 | E19: =SUMPRODUCT((NEMOCycles[MonthFlow]=$B19)*(NEMOCycles[Region]=$C$4)*(NEMOCycles[CustClass]=$C$8)*NEMOCycles[WNA]) -> 127713.4461
B20: 46113 | C20: =SUMPRODUCT((NEMOCycles[MonthFlow]=$B20)*(NEMOCycles[Region]=$C$4)*(NEMOCycles[CustClass]=$C$8)*NEMOCycles[WNAFactor]) -> 173945.0216 | D20: 0.44276 | E20: =SUMPRODUCT((NEMOCycles[MonthFlow]=$B20)*(NEMOCycles[Region]=$C$4)*(NEMOCycles[CustClass]=$C$8)*NEMOCycles[WNA]) -> 77015.89777
B21: 46143 | C21: =SUMPRODUCT((NEMOCycles[MonthFlow]=$B21)*(NEMOCycles[Region]=$C$4)*(NEMOCycles[CustClass]=$C$8)*NEMOCycles[WNAFactor]) -> 77202.62512 | D21: 0.44276 | E21: =SUMPRODUCT((NEMOCycles[MonthFlow]=$B21)*(NEMOCycles[Region]=$C$4)*(NEMOCycles[CustClass]=$C$8)*NEMOCycles[WNA]) -> 34182.2343
B22: 46174 | C22: =SUMPRODUCT((NEMOCycles[MonthFlow]=$B22)*(NEMOCycles[Region]=$C$4)*(NEMOCycles[CustClass]=$C$8)*NEMOCycles[WNAFactor]) -> 1522.766028 | D22: 0.44276 | E22: =SUMPRODUCT((NEMOCycles[MonthFlow]=$B22)*(NEMOCycles[Region]=$C$4)*(NEMOCycles[CustClass]=$C$8)*NEMOCycles[WNA]) -> 674.2198867
B23: Totals | C23: =SUM(C11:C22) -> 1536869.952 | D23: 0.4427600001 | E23: =ROUND(SUM(E11:E22),2) -> 680464.54
B24: Recon Per Adj. | C24: =E23 -> 680464.54
B25: Enter in Reconciling Period Adjustment Table (ReconPerAdj)
B26: Enter WNA Amounts in CAWNA Amounts Table
B28: Cust Class | C28: SGS
B29: WNA factor = HDD Diff * No. of Bills * Beta Coefficient (See NEMO Cycles)
B30: Flow Month | C30: WNA Factor | D30: Vol. Rate | E30: WNAi
B31: =$C$6 -> 45839 | C31: =SUMPRODUCT((NEMOCycles[MonthFlow]=$B31)*(NEMOCycles[Region]=$C$4)*(NEMOCycles[CustClass]=$C$28)*NEMOCycles[WNAFactor]) -> 197.5920375 | D31: =IFERROR(E31/C31,0) -> 0.18594 | E31: =SUMPRODUCT((NEMOCycles[MonthFlow]=$B31)*(NEMOCycles[Region]=$C$4)*(NEMOCycles[CustClass]=$C$28)*NEMOCycles[WNA]) -> 36.74026345
B32: =EDATE(B31,1) -> 45870 | C32: =SUMPRODUCT((NEMOCycles[MonthFlow]=$B32)*(NEMOCycles[Region]=$C$4)*(NEMOCycles[CustClass]=$C$28)*NEMOCycles[WNAFactor]) -> -3462.799997 | D32: 0.18594 | E32: =SUMPRODUCT((NEMOCycles[MonthFlow]=$B32)*(NEMOCycles[Region]=$C$4)*(NEMOCycles[CustClass]=$C$28)*NEMOCycles[WNA]) -> -643.8730314
B33: =EDATE(B32,1) -> 45901 | C33: =SUMPRODUCT((NEMOCycles[MonthFlow]=$B33)*(NEMOCycles[Region]=$C$4)*(NEMOCycles[CustClass]=$C$28)*NEMOCycles[WNAFactor]) -> 63701.37732 | D33: 0.18594 | E33: =SUMPRODUCT((NEMOCycles[MonthFlow]=$B33)*(NEMOCycles[Region]=$C$4)*(NEMOCycles[CustClass]=$C$28)*NEMOCycles[WNA]) -> 11844.6341
B34: 45931 | C34: =SUMPRODUCT((NEMOCycles[MonthFlow]=$B34)*(NEMOCycles[Region]=$C$4)*(NEMOCycles[CustClass]=$C$28)*NEMOCycles[WNAFactor]) -> 50728.67614 | D34: 0.18594 | E34: =SUMPRODUCT((NEMOCycles[MonthFlow]=$B34)*(NEMOCycles[Region]=$C$4)*(NEMOCycles[CustClass]=$C$28)*NEMOCycles[WNA]) -> 9432.490041
B35: 45962 | C35: =SUMPRODUCT((NEMOCycles[MonthFlow]=$B35)*(NEMOCycles[Region]=$C$4)*(NEMOCycles[CustClass]=$C$28)*NEMOCycles[WNAFactor]) -> -83834.32756 | D35: 0.18594 | E35: =SUMPRODUCT((NEMOCycles[MonthFlow]=$B35)*(NEMOCycles[Region]=$C$4)*(NEMOCycles[CustClass]=$C$28)*NEMOCycles[WNA]) -> -15588.15487
B36: 45992 | C36: =SUMPRODUCT((NEMOCycles[MonthFlow]=$B36)*(NEMOCycles[Region]=$C$4)*(NEMOCycles[CustClass]=$C$28)*NEMOCycles[WNAFactor]) -> 142848.7075 | D36: 0.18594 | E36: =SUMPRODUCT((NEMOCycles[MonthFlow]=$B36)*(NEMOCycles[Region]=$C$4)*(NEMOCycles[CustClass]=$C$28)*NEMOCycles[WNA]) -> 26561.28868
B37: 46023 | C37: =SUMPRODUCT((NEMOCycles[MonthFlow]=$B37)*(NEMOCycles[Region]=$C$4)*(NEMOCycles[CustClass]=$C$28)*NEMOCycles[WNAFactor]) -> -31674.73502 | D37: 0.18594 | E37: =SUMPRODUCT((NEMOCycles[MonthFlow]=$B37)*(NEMOCycles[Region]=$C$4)*(NEMOCycles[CustClass]=$C$28)*NEMOCycles[WNA]) -> -5889.60023
B38: 46054 | C38: =SUMPRODUCT((NEMOCycles[MonthFlow]=$B38)*(NEMOCycles[Region]=$C$4)*(NEMOCycles[CustClass]=$C$28)*NEMOCycles[WNAFactor]) -> 180949.4893 | D38: 0.18594 | E38: =SUMPRODUCT((NEMOCycles[MonthFlow]=$B38)*(NEMOCycles[Region]=$C$4)*(NEMOCycles[CustClass]=$C$28)*NEMOCycles[WNA]) -> 33645.74805
B39: 46082 | C39: =SUMPRODUCT((NEMOCycles[MonthFlow]=$B39)*(NEMOCycles[Region]=$C$4)*(NEMOCycles[CustClass]=$C$28)*NEMOCycles[WNAFactor]) -> 87710.74987 | D39: 0.18594 | E39: =SUMPRODUCT((NEMOCycles[MonthFlow]=$B39)*(NEMOCycles[Region]=$C$4)*(NEMOCycles[CustClass]=$C$28)*NEMOCycles[WNA]) -> 16308.93683
B40: 46113 | C40: =SUMPRODUCT((NEMOCycles[MonthFlow]=$B40)*(NEMOCycles[Region]=$C$4)*(NEMOCycles[CustClass]=$C$28)*NEMOCycles[WNAFactor]) -> 44649.83126 | D40: 0.18594 | E40: =SUMPRODUCT((NEMOCycles[MonthFlow]=$B40)*(NEMOCycles[Region]=$C$4)*(NEMOCycles[CustClass]=$C$28)*NEMOCycles[WNA]) -> 8302.189625
B41: 46143 | C41: =SUMPRODUCT((NEMOCycles[MonthFlow]=$B41)*(NEMOCycles[Region]=$C$4)*(NEMOCycles[CustClass]=$C$28)*NEMOCycles[WNAFactor]) -> 14112.78052 | D41: 0.18594 | E41: =SUMPRODUCT((NEMOCycles[MonthFlow]=$B41)*(NEMOCycles[Region]=$C$4)*(NEMOCycles[CustClass]=$C$28)*NEMOCycles[WNA]) -> 2624.130411
B42: 46174 | C42: =SUMPRODUCT((NEMOCycles[MonthFlow]=$B42)*(NEMOCycles[Region]=$C$4)*(NEMOCycles[CustClass]=$C$28)*NEMOCycles[WNAFactor]) -> 39.757913 | D42: 0.18594 | E42: =SUMPRODUCT((NEMOCycles[MonthFlow]=$B42)*(NEMOCycles[Region]=$C$4)*(NEMOCycles[CustClass]=$C$28)*NEMOCycles[WNA]) -> 7.392586343
B43: Totals | C43: =SUM(C31:C42) -> 465967.0994 | D43: 0.1859399947 | E43: =ROUND(SUM(E31:E42),2) -> 86641.92
B44: Recon Per Adj. | C44: =E43 -> 86641.92
B45: Enter in Reconciling Period Adjustment Table (ReconPerAdj)
B46: Enter WNA Amounts in CAWNA Amounts Table

Sheet CWNA Check
B2: Check on Reasonableness of CWNA Amounts
B3: Begin Date | C3: 45853
B4: End Date | C4: 46218
B6: Region | C6: ResHDD | D6: SGSHDD | E6: ResNHDD | F6: SGSNHDD | G6: ResDiff | H6: SGSDiff
B7: NEMO | C7: =SUMPRODUCT((NEMOTempAct[Date]>=$C$3)*(NEMOTempAct[Date]<=$C$4)*NEMOTempAct[KIRKResHDD65]) -> 5040.5 | D7: =SUMPRODUCT((NEMOTempAct[Date]>=$C$3)*(NEMOTempAct[Date]<=$C$4)*NEMOTempAct[KIRKSGSHDD60]) -> 4016 | E7: =SUMPRODUCT((NEMOTempAct[Date]>=$C$3)*(NEMOTempAct[Date]<=$C$4)*NEMOTempAct[KIRKResNHDD65]) -> 5719.68 | F7: =SUMPRODUCT((NEMOTempAct[Date]>=$C$3)*(NEMOTempAct[Date]<=$C$4)*NEMOTempAct[KIRKSGSNHDD60]) -> 4587.14 | G7: =E7-C7 -> 679.18 | H7: =F7-D7 -> 571.14
B8: SEMO | C8: =SUMPRODUCT((SEMOTempAct[Date]>=$C$3)*(SEMOTempAct[Date]<=$C$4)*SEMOTempAct[CGIResHDD65]) -> 3735.5 | D8: =SUMPRODUCT((SEMOTempAct[Date]>=$C$3)*(SEMOTempAct[Date]<=$C$4)*SEMOTempAct[CGISGSHDD60]) -> 2855.5 | E8: =SUMPRODUCT((SEMOTempAct[Date]>=$C$3)*(SEMOTempAct[Date]<=$C$4)*SEMOTempAct[CGIResNHDD65]) -> 4202.64 | F8: =SUMPRODUCT((SEMOTempAct[Date]>=$C$3)*(SEMOTempAct[Date]<=$C$4)*SEMOTempAct[CGISGSNHDD60]) -> 3199.87 | G8: =E8-C8 -> 467.14 | H8: 344.37
B9: WEMO | C9: =SUMPRODUCT((WEMOTempAct[Date]>=$C$3)*(WEMOTempAct[Date]<=$C$4)*WEMOTempAct[KCIResHDD65]) -> 4177 | D9: =SUMPRODUCT((WEMOTempAct[Date]>=$C$3)*(WEMOTempAct[Date]<=$C$4)*WEMOTempAct[KCISGSHDD60]) -> 3247.5 | E9: =SUMPRODUCT((WEMOTempAct[Date]>=$C$3)*(WEMOTempAct[Date]<=$C$4)*WEMOTempAct[KCIResNHDD65]) -> 4946.74 | F9: =SUMPRODUCT((WEMOTempAct[Date]>=$C$3)*(WEMOTempAct[Date]<=$C$4)*WEMOTempAct[KCISGSNHDD60]) -> 3897.43 | G9: 769.74 | H9: 649.93
D11: Monthly Cust Chgs | E11: Total HDD Diff | H11: Calculated WNA | I11: Worksheet CWNA
B12: Region | C12: Cust Class | F12: Beta Coeff | G12: Vol Rate
B13: WEMO | C13: Res | D13: 3320 | E13: =G9 -> 769.74 | F13: 0.15092 | G13: 0.44276 | H13: =D13*E13*F13*G13 -> 170764.3914 | I13: ='CWNA WEMO'!C24 -> 170281.49
B14: WEMO | C14: SGS | D14: 525 | E14: =H9 -> 649.93 | F14: 0.37953 | G14: 0.18594 | H14: =D14*E14*F14*G14 -> 24079.35361 | I14: ='CWNA WEMO'!C44 -> 24486.91
B15: NEMO | C15: Res | D15: 16050 | E15: =G7 -> 679.18 | F15: 0.14109 | G15: 0.44276 | H15: =D15*E15*F15*G15 -> 680964.6031 | I15: ='CWNA NEMO'!C24 -> 680464.54
B16: NEMO | C16: SGS | D16: 2220 | E16: =H7 -> 571.14 | F16: 0.36847 | G16: 0.18594 | H16: 86870.13824 | I16: ='CWNA NEMO'!C44 -> 86641.92
B17: SEMO | C17: Res | D17: 27000 | E17: =G8 -> 467.14 | F17: 0.1408 | G17: 0.31279 | H17: =D17*E17*F17*G17 -> 555477.325 | I17: ='CWNA SEMO'!C24 -> 553951.03
B18: SEMO | C18: SGS | D18: 3250 | E18: =H8 -> 344.37 | F18: 0.32963 | G18: 0.10651 | H18: =D18*E18*F18*G18 -> 39293.95892 | I18: ='CWNA SEMO'!C44 -> 39180.63

Sheet SEMO Cycles
A1: MonthFlow | B1: MonthBill | C1: SAPRateCategory | D1: Cycle | E1: NoOfBills | F1: FlowBegin | G1: FlowEnd | H1: NHDD | I1: AHDD | J1: HDDDiff | K1: Diff*NoOfBills | L1: BetaCoeff | M1: WNAFactor | N1: VolRate | O1: WNA | P1: Territory | Q1: Region | R1: CustClass | S1: ProfitCenter | T1: Preparer's Notes | U1: Reviewer's Notes
A2: =EDATE(SEMOCycles[[#This Row],[MonthBill]],-1) -> 45839 | B2: 45870 | C2: SMGC_SFGS | D2: 6 | E2: 1091 | F2: =SUMPRODUCT((MeterReadSch[MonthBill]=SEMOCycles[[#This Row],[MonthBill]])*(MeterReadSch[Cycle]=SEMOCycles[[#This Row],[Cycle]])*MeterReadSch[Begin Bill Period]) -> 45842 | G2: =SUMPRODUCT((MeterReadSch[MonthBill]=SEMOCycles[[#This Row],[MonthBill]])*(MeterReadSch[Cycle]=SEMOCycles[[#This Row],[Cycle]])*MeterReadSch[End Bill Period]) -> 45874 | H2: =IF(SEMOCycles[[#This Row],[CustClass]]="Res",SUMPRODUCT((SEMOTempAct[Date]>=SEMOCycles[[#This Row],[FlowBegin]])*(SEMOTempAct[Date]<=SEMOCycles[[#This Row],[FlowEnd]])*SEMOTempAct[CGIResNHDD65]),SUMPRODUCT((SEMOTempAct[Date]>=SEMOCycles[[#This Row],[FlowBegin]])*(SEMOTempAct[Date]<=SEMOCycles[[#This Row],[FlowEnd]])*SEMOTempAct[CGISGSNHDD60])) -> 0 | I2: =IF(SEMOCycles[[#This Row],[CustClass]]="Res",SUMPRODUCT((SEMOTempAct[Date]>=SEMOCycles[[#This Row],[FlowBegin]])*(SEMOTempAct[Date]<=SEMOCycles[[#This Row],[FlowEnd]])*SEMOTempAct[CGIResHDD65]),SUMPRODUCT((SEMOTempAct[Date]>=SEMOCycles[[#This Row],[FlowBegin]])*(SEMOTempAct[Date]<=SEMOCycles[[#This Row],[FlowEnd]])*SEMOTempAct[CGISGSHDD60])) -> 0 | J2: =SEMOCycles[[#This Row],[NHDD]]-SEMOCycles[[#This Row],[AHDD]] -> 0 | K2: =SEMOCycles[[#This Row],[NoOfBills]]*SEMOCycles[[#This Row],[HDDDiff]] -> 0 | L2: =SUMPRODUCT((BetaCoeff[BeginDate]<=SEMOCycles[[#This Row],[FlowBegin]])*(BetaCoeff[EndDate]>=SEMOCycles[[#This Row],[FlowEnd]])*(BetaCoeff[SAPRateCategory]=SEMOCycles[[#This Row],[SAPRateCategory]])*BetaCoeff[BetaCoeff]) -> 0.32963 | M2: =SEMOCycles[[#This Row],[Diff*NoOfBills]]*SEMOCycles[[#This Row],[BetaCoeff]] -> 0 | N2: =SUMPRODUCT((SEMOCycles[[#This Row],[FlowBegin]]>=VolRates[BeginDate])*(SEMOCycles[[#This Row],[FlowEnd]]<=VolRates[EndDate])*(SEMOCycles[[#This Row],[Region]]=VolRates[Region])*(SEMOCycles[[#This Row],[CustClass]]=VolRates[CustClass])*VolRates[VolRate]) -> 0.10651 | O2: =SEMOCycles[[#This Row],[WNAFactor]]*SEMOCycles[[#This Row],[VolRate]] -> 0 | P2: =INDEX(RateSched[Territory],MATCH(SEMOCycles[[#This Row],[SAPRateCategory]],RateSched[SAPRateCategory],0)) -> SEMO | Q2: =INDEX(RateSched[Region],MATCH(SEMOCycles[[#This Row],[SAPRateCategory]],RateSched[SAPRateCategory],0)) -> SEMO | R2: =INDEX(RateSched[CustClassShort],MATCH(SEMOCycles[[#This Row],[SAPRateCategory]],RateSched[SAPRateCategory],0)) -> SGS | S2: =INDEX(RateSched[ProfitCenter],MATCH(SEMOCycles[[#This Row],[SAPRateCategory]],RateSched[SAPRateCategory],0)) -> 10244
A3: =EDATE(SEMOCycles[[#This Row],[MonthBill]],-1) -> 45839 | B3: 45870 | C3: SMGC_SFGS | D3: 7 | E3: 986 | F3: =SUMPRODUCT((MeterReadSch[MonthBill]=SEMOCycles[[#This Row],[MonthBill]])*(MeterReadSch[Cycle]=SEMOCycles[[#This Row],[Cycle]])*MeterReadSch[Begin Bill Period]) -> 45846 | G3: =SUMPRODUCT((MeterReadSch[MonthBill]=SEMOCycles[[#This Row],[MonthBill]])*(MeterReadSch[Cycle]=SEMOCycles[[#This Row],[Cycle]])*MeterReadSch[End Bill Period]) -> 45876 | H3: =IF(SEMOCycles[[#This Row],[CustClass]]="Res",SUMPRODUCT((SEMOTempAct[Date]>=SEMOCycles[[#This Row],[FlowBegin]])*(SEMOTempAct[Date]<=SEMOCycles[[#This Row],[FlowEnd]])*SEMOTempAct[CGIResNHDD65]),SUMPRODUCT((SEMOTempAct[Date]>=SEMOCycles[[#This Row],[FlowBegin]])*(SEMOTempAct[Date]<=SEMOCycles[[#This Row],[FlowEnd]])*SEMOTempAct[CGISGSNHDD60])) -> 0 | I3: =IF(SEMOCycles[[#This Row],[CustClass]]="Res",SUMPRODUCT((SEMOTempAct[Date]>=SEMOCycles[[#This Row],[FlowBegin]])*(SEMOTempAct[Date]<=SEMOCycles[[#This Row],[FlowEnd]])*SEMOTempAct[CGIResHDD65]),SUMPRODUCT((SEMOTempAct[Date]>=SEMOCycles[[#This Row],[FlowBegin]])*(SEMOTempAct[Date]<=SEMOCycles[[#This Row],[FlowEnd]])*SEMOTempAct[CGISGSHDD60])) -> 0 | J3: =SEMOCycles[[#This Row],[NHDD]]-SEMOCycles[[#This Row],[AHDD]] -> 0 | K3: =SEMOCycles[[#This Row],[NoOfBills]]*SEMOCycles[[#This Row],[HDDDiff]] -> 0 | L3: =SUMPRODUCT((BetaCoeff[BeginDate]<=SEMOCycles[[#This Row],[FlowBegin]])*(BetaCoeff[EndDate]>=SEMOCycles[[#This Row],[FlowEnd]])*(BetaCoeff[SAPRateCategory]=SEMOCycles[[#This Row],[SAPRateCategory]])*BetaCoeff[BetaCoeff]) -> 0.32963 | M3: =SEMOCycles[[#This Row],[Diff*NoOfBills]]*SEMOCycles[[#This Row],[BetaCoeff]] -> 0 | N3: =SUMPRODUCT((SEMOCycles[[#This Row],[FlowBegin]]>=VolRates[BeginDate])*(SEMOCycles[[#This Row],[FlowEnd]]<=VolRates[EndDate])*(SEMOCycles[[#This Row],[Region]]=VolRates[Region])*(SEMOCycles[[#This Row],[CustClass]]=VolRates[CustClass])*VolRates[VolRate]) -> 0.10651 | O3: =SEMOCycles[[#This Row],[WNAFactor]]*SEMOCycles[[#This Row],[VolRate]] -> 0 | P3: =INDEX(RateSched[Territory],MATCH(SEMOCycles[[#This Row],[SAPRateCategory]],RateSched[SAPRateCategory],0)) -> SEMO | Q3: =INDEX(RateSched[Region],MATCH(SEMOCycles[[#This Row],[SAPRateCategory]],RateSched[SAPRateCategory],0)) -> SEMO | R3: =INDEX(RateSched[CustClassShort],MATCH(SEMOCycles[[#This Row],[SAPRateCategory]],RateSched[SAPRateCategory],0)) -> SGS | S3: =INDEX(RateSched[ProfitCenter],MATCH(SEMOCycles[[#This Row],[SAPRateCategory]],RateSched[SAPRateCategory],0)) -> 10244
A4: =EDATE(SEMOCycles[[#This Row],[MonthBill]],-1) -> 45839 | B4: 45870 | C4: SMGC_SFGS | D4: 15 | E4: 1110 | F4: =SUMPRODUCT((MeterReadSch[MonthBill]=SEMOCycles[[#This Row],[MonthBill]])*(MeterReadSch[Cycle]=SEMOCycles[[#This Row],[Cycle]])*MeterReadSch[Begin Bill Period]) -> 45856 | G4: =SUMPRODUCT((MeterReadSch[MonthBill]=SEMOCycles[[#This Row],[MonthBill]])*(MeterReadSch[Cycle]=SEMOCycles[[#This Row],[Cycle]])*MeterReadSch[End Bill Period]) -> 45887 | H4: =IF(SEMOCycles[[#This Row],[CustClass]]="Res",SUMPRODUCT((SEMOTempAct[Date]>=SEMOCycles[[#This Row],[FlowBegin]])*(SEMOTempAct[Date]<=SEMOCycles[[#This Row],[FlowEnd]])*SEMOTempAct[CGIResNHDD65]),SUMPRODUCT((SEMOTempAct[Date]>=SEMOCycles[[#This Row],[FlowBegin]])*(SEMOTempAct[Date]<=SEMOCycles[[#This Row],[FlowEnd]])*SEMOTempAct[CGISGSNHDD60])) -> 0 | I4: =IF(SEMOCycles[[#This Row],[CustClass]]="Res",SUMPRODUCT((SEMOTempAct[Date]>=SEMOCycles[[#This Row],[FlowBegin]])*(SEMOTempAct[Date]<=SEMOCycles[[#This Row],[FlowEnd]])*SEMOTempAct[CGIResHDD65]),SUMPRODUCT((SEMOTempAct[Date]>=SEMOCycles[[#This Row],[FlowBegin]])*(SEMOTempAct[Date]<=SEMOCycles[[#This Row],[FlowEnd]])*SEMOTempAct[CGISGSHDD60])) -> 0 | J4: =SEMOCycles[[#This Row],[NHDD]]-SEMOCycles[[#This Row],[AHDD]] -> 0 | K4: =SEMOCycles[[#This Row],[NoOfBills]]*SEMOCycles[[#This Row],[HDDDiff]] -> 0 | L4: =SUMPRODUCT((BetaCoeff[BeginDate]<=SEMOCycles[[#This Row],[FlowBegin]])*(BetaCoeff[EndDate]>=SEMOCycles[[#This Row],[FlowEnd]])*(BetaCoeff[SAPRateCategory]=SEMOCycles[[#This Row],[SAPRateCategory]])*BetaCoeff[BetaCoeff]) -> 0.32963 | M4: =SEMOCycles[[#This Row],[Diff*NoOfBills]]*SEMOCycles[[#This Row],[BetaCoeff]] -> 0 | N4: =SUMPRODUCT((SEMOCycles[[#This Row],[FlowBegin]]>=VolRates[BeginDate])*(SEMOCycles[[#This Row],[FlowEnd]]<=VolRates[EndDate])*(SEMOCycles[[#This Row],[Region]]=VolRates[Region])*(SEMOCycles[[#This Row],[CustClass]]=VolRates[CustClass])*VolRates[VolRate]) -> 0.10651 | O4: =SEMOCycles[[#This Row],[WNAFactor]]*SEMOCycles[[#This Row],[VolRate]] -> 0 | P4: =INDEX(RateSched[Territory],MATCH(SEMOCycles[[#This Row],[SAPRateCategory]],RateSched[SAPRateCategory],0)) -> SEMO | Q4: =INDEX(RateSched[Region],MATCH(SEMOCycles[[#This Row],[SAPRateCategory]],RateSched[SAPRateCategory],0)) -> SEMO | R4: =INDEX(RateSched[CustClassShort],MATCH(SEMOCycles[[#This Row],[SAPRateCategory]],RateSched[SAPRateCategory],0)) -> SGS | S4: =INDEX(RateSched[ProfitCenter],MATCH(SEMOCycles[[#This Row],[SAPRateCategory]],RateSched[SAPRateCategory],0)) -> 10244
A5: =EDATE(SEMOCycles[[#This Row],[MonthBill]],-1) -> 45839 | B5: 45870 | C5: SMGC_SFGS | D5: 20 | E5: 2 | F5: =SUMPRODUCT((MeterReadSch[MonthBill]=SEMOCycles[[#This Row],[MonthBill]])*(MeterReadSch[Cycle]=SEMOCycles[[#This Row],[Cycle]])*MeterReadSch[Begin Bill Period]) -> 45870 | G5: =SUMPRODUCT((MeterReadSch[MonthBill]=SEMOCycles[[#This Row],[MonthBill]])*(MeterReadSch[Cycle]=SEMOCycles[[#This Row],[Cycle]])*MeterReadSch[End Bill Period]) -> 45898 | H5: =IF(SEMOCycles[[#This Row],[CustClass]]="Res",SUMPRODUCT((SEMOTempAct[Date]>=SEMOCycles[[#This Row],[FlowBegin]])*(SEMOTempAct[Date]<=SEMOCycles[[#This Row],[FlowEnd]])*SEMOTempAct[CGIResNHDD65]),SUMPRODUCT((SEMOTempAct[Date]>=SEMOCycles[[#This Row],[FlowBegin]])*(SEMOTempAct[Date]<=SEMOCycles[[#This Row],[FlowEnd]])*SEMOTempAct[CGISGSNHDD60])) -> 0 | I5: =IF(SEMOCycles[[#This Row],[CustClass]]="Res",SUMPRODUCT((SEMOTempAct[Date]>=SEMOCycles[[#This Row],[FlowBegin]])*(SEMOTempAct[Date]<=SEMOCycles[[#This Row],[FlowEnd]])*SEMOTempAct[CGIResHDD65]),SUMPRODUCT((SEMOTempAct[Date]>=SEMOCycles[[#This Row],[FlowBegin]])*(SEMOTempAct[Date]<=SEMOCycles[[#This Row],[FlowEnd]])*SEMOTempAct[CGISGSHDD60])) -> 0 | J5: =SEMOCycles[[#This Row],[NHDD]]-SEMOCycles[[#This Row],[AHDD]] -> 0 | K5: =SEMOCycles[[#This Row],[NoOfBills]]*SEMOCycles[[#This Row],[HDDDiff]] -> 0 | L5: =SUMPRODUCT((BetaCoeff[BeginDate]<=SEMOCycles[[#This Row],[FlowBegin]])*(BetaCoeff[EndDate]>=SEMOCycles[[#This Row],[FlowEnd]])*(BetaCoeff[SAPRateCategory]=SEMOCycles[[#This Row],[SAPRateCategory]])*BetaCoeff[BetaCoeff]) -> 0.32963 | M5: =SEMOCycles[[#This Row],[Diff*NoOfBills]]*SEMOCycles[[#This Row],[BetaCoeff]] -> 0 | N5: =SUMPRODUCT((SEMOCycles[[#This Row],[FlowBegin]]>=VolRates[BeginDate])*(SEMOCycles[[#This Row],[FlowEnd]]<=VolRates[EndDate])*(SEMOCycles[[#This Row],[Region]]=VolRates[Region])*(SEMOCycles[[#This Row],[CustClass]]=VolRates[CustClass])*VolRates[VolRate]) -> 0.10651 | O5: =SEMOCycles[[#This Row],[WNAFactor]]*SEMOCycles[[#This Row],[VolRate]] -> 0 | P5: =INDEX(RateSched[Territory],MATCH(SEMOCycles[[#This Row],[SAPRateCategory]],RateSched[SAPRateCategory],0)) -> SEMO | Q5: =INDEX(RateSched[Region],MATCH(SEMOCycles[[#This Row],[SAPRateCategory]],RateSched[SAPRateCategory],0)) -> SEMO | R5: =INDEX(RateSched[CustClassShort],MATCH(SEMOCycles[[#This Row],[SAPRateCategory]],RateSched[SAPRateCategory],0)) -> SGS | S5: =INDEX(RateSched[ProfitCenter],MATCH(SEMOCycles[[#This Row],[SAPRateCategory]],RateSched[SAPRateCategory],0)) -> 10244
A6: =EDATE(SEMOCycles[[#This Row],[MonthBill]],-1) -> 45839 | B6: 45870 | C6: SMGR_RFS | D6: 6 | E6: 7529 | F6: =SUMPRODUCT((MeterReadSch[MonthBill]=SEMOCycles[[#This Row],[MonthBill]])*(MeterReadSch[Cycle]=SEMOCycles[[#This Row],[Cycle]])*MeterReadSch[Begin Bill Period]) -> 45842 | G6: =SUMPRODUCT((MeterReadSch[MonthBill]=SEMOCycles[[#This Row],[MonthBill]])*(MeterReadSch[Cycle]=SEMOCycles[[#This Row],[Cycle]])*MeterReadSch[End Bill Period]) -> 45874 | H6: =IF(SEMOCycles[[#This Row],[CustClass]]="Res",SUMPRODUCT((SEMOTempAct[Date]>=SEMOCycles[[#This Row],[FlowBegin]])*(SEMOTempAct[Date]<=SEMOCycles[[#This Row],[FlowEnd]])*SEMOTempAct[CGIResNHDD65]),SUMPRODUCT((SEMOTempAct[Date]>=SEMOCycles[[#This Row],[FlowBegin]])*(SEMOTempAct[Date]<=SEMOCycles[[#This Row],[FlowEnd]])*SEMOTempAct[CGISGSNHDD60])) -> 0.03 | I6: =IF(SEMOCycles[[#This Row],[CustClass]]="Res",SUMPRODUCT((SEMOTempAct[Date]>=SEMOCycles[[#This Row],[FlowBegin]])*(SEMOTempAct[Date]<=SEMOCycles[[#This Row],[FlowEnd]])*SEMOTempAct[CGIResHDD65]),SUMPRODUCT((SEMOTempAct[Date]>=SEMOCycles[[#This Row],[FlowBegin]])*(SEMOTempAct[Date]<=SEMOCycles[[#This Row],[FlowEnd]])*SEMOTempAct[CGISGSHDD60])) -> 0 | J6: =SEMOCycles[[#This Row],[NHDD]]-SEMOCycles[[#This Row],[AHDD]] -> 0.03 | K6: =SEMOCycles[[#This Row],[NoOfBills]]*SEMOCycles[[#This Row],[HDDDiff]] -> 225.87 | L6: =SUMPRODUCT((BetaCoeff[BeginDate]<=SEMOCycles[[#This Row],[FlowBegin]])*(BetaCoeff[EndDate]>=SEMOCycles[[#This Row],[FlowEnd]])*(BetaCoeff[SAPRateCategory]=SEMOCycles[[#This Row],[SAPRateCategory]])*BetaCoeff[BetaCoeff]) -> 0.1408 | M6: =SEMOCycles[[#This Row],[Diff*NoOfBills]]*SEMOCycles[[#This Row],[BetaCoeff]] -> 31.802496 | N6: =SUMPRODUCT((SEMOCycles[[#This Row],[FlowBegin]]>=VolRates[BeginDate])*(SEMOCycles[[#This Row],[FlowEnd]]<=VolRates[EndDate])*(SEMOCycles[[#This Row],[Region]]=VolRates[Region])*(SEMOCycles[[#This Row],[CustClass]]=VolRates[CustClass])*VolRates[VolRate]) -> 0.31279 | O6: =SEMOCycles[[#This Row],[WNAFactor]]*SEMOCycles[[#This Row],[VolRate]] -> 9.947502724 | P6: =INDEX(RateSched[Territory],MATCH(SEMOCycles[[#This Row],[SAPRateCategory]],RateSched[SAPRateCategory],0)) -> SEMO | Q6: =INDEX(RateSched[Region],MATCH(SEMOCycles[[#This Row],[SAPRateCategory]],RateSched[SAPRateCategory],0)) -> SEMO | R6: =INDEX(RateSched[CustClassShort],MATCH(SEMOCycles[[#This Row],[SAPRateCategory]],RateSched[SAPRateCategory],0)) -> Res | S6: =INDEX(RateSched[ProfitCenter],MATCH(SEMOCycles[[#This Row],[SAPRateCategory]],RateSched[SAPRateCategory],0)) -> 10244
A7: =EDATE(SEMOCycles[[#This Row],[MonthBill]],-1) -> 45839 | B7: 45870 | C7: SMGR_RFS | D7: 7 | E7: 9552 | F7: =SUMPRODUCT((MeterReadSch[MonthBill]=SEMOCycles[[#This Row],[MonthBill]])*(MeterReadSch[Cycle]=SEMOCycles[[#This Row],[Cycle]])*MeterReadSch[Begin Bill Period]) -> 45846 | G7: =SUMPRODUCT((MeterReadSch[MonthBill]=SEMOCycles[[#This Row],[MonthBill]])*(MeterReadSch[Cycle]=SEMOCycles[[#This Row],[Cycle]])*MeterReadSch[End Bill Period]) -> 45876 | H7: =IF(SEMOCycles[[#This Row],[CustClass]]="Res",SUMPRODUCT((SEMOTempAct[Date]>=SEMOCycles[[#This Row],[FlowBegin]])*(SEMOTempAct[Date]<=SEMOCycles[[#This Row],[FlowEnd]])*SEMOTempAct[CGIResNHDD65]),SUMPRODUCT((SEMOTempAct[Date]>=SEMOCycles[[#This Row],[FlowBegin]])*(SEMOTempAct[Date]<=SEMOCycles[[#This Row],[FlowEnd]])*SEMOTempAct[CGISGSNHDD60])) -> 0.06 | I7: =IF(SEMOCycles[[#This Row],[CustClass]]="Res",SUMPRODUCT((SEMOTempAct[Date]>=SEMOCycles[[#This Row],[FlowBegin]])*(SEMOTempAct[Date]<=SEMOCycles[[#This Row],[FlowEnd]])*SEMOTempAct[CGIResHDD65]),SUMPRODUCT((SEMOTempAct[Date]>=SEMOCycles[[#This Row],[FlowBegin]])*(SEMOTempAct[Date]<=SEMOCycles[[#This Row],[FlowEnd]])*SEMOTempAct[CGISGSHDD60])) -> 0 | J7: =SEMOCycles[[#This Row],[NHDD]]-SEMOCycles[[#This Row],[AHDD]] -> 0.06 | K7: =SEMOCycles[[#This Row],[NoOfBills]]*SEMOCycles[[#This Row],[HDDDiff]] -> 573.12 | L7: =SUMPRODUCT((BetaCoeff[BeginDate]<=SEMOCycles[[#This Row],[FlowBegin]])*(BetaCoeff[EndDate]>=SEMOCycles[[#This Row],[FlowEnd]])*(BetaCoeff[SAPRateCategory]=SEMOCycles[[#This Row],[SAPRateCategory]])*BetaCoeff[BetaCoeff]) -> 0.1408 | M7: =SEMOCycles[[#This Row],[Diff*NoOfBills]]*SEMOCycles[[#This Row],[BetaCoeff]] -> 80.695296 | N7: =SUMPRODUCT((SEMOCycles[[#This Row],[FlowBegin]]>=VolRates[BeginDate])*(SEMOCycles[[#This Row],[FlowEnd]]<=VolRates[EndDate])*(SEMOCycles[[#This Row],[Region]]=VolRates[Region])*(SEMOCycles[[#This Row],[CustClass]]=VolRates[CustClass])*VolRates[VolRate]) -> 0.31279 | O7: =SEMOCycles[[#This Row],[WNAFactor]]*SEMOCycles[[#This Row],[VolRate]] -> 25.24068164 | P7: =INDEX(RateSched[Territory],MATCH(SEMOCycles[[#This Row],[SAPRateCategory]],RateSched[SAPRateCategory],0)) -> SEMO | Q7: =INDEX(RateSched[Region],MATCH(SEMOCycles[[#This Row],[SAPRateCategory]],RateSched[SAPRateCategory],0)) -> SEMO | R7: =INDEX(RateSched[CustClassShort],MATCH(SEMOCycles[[#This Row],[SAPRateCategory]],RateSched[SAPRateCategory],0)) -> Res | S7: =INDEX(RateSched[ProfitCenter],MATCH(SEMOCycles[[#This Row],[SAPRateCategory]],RateSched[SAPRateCategory],0)) -> 10244
A8: =EDATE(SEMOCycles[[#This Row],[MonthBill]],-1) -> 45839 | B8: 45870 | C8: SMGR_RFS | D8: 15 | E8: 9445 | F8: =SUMPRODUCT((MeterReadSch[MonthBill]=SEMOCycles[[#This Row],[MonthBill]])*(MeterReadSch[Cycle]=SEMOCycles[[#This Row],[Cycle]])*MeterReadSch[Begin Bill Period]) -> 45856 | G8: =SUMPRODUCT((MeterReadSch[MonthBill]=SEMOCycles[[#This Row],[MonthBill]])*(MeterReadSch[Cycle]=SEMOCycles[[#This Row],[Cycle]])*MeterReadSch[End Bill Period]) -> 45887 | H8: =IF(SEMOCycles[[#This Row],[CustClass]]="Res",SUMPRODUCT((SEMOTempAct[Date]>=SEMOCycles[[#This Row],[FlowBegin]])*(SEMOTempAct[Date]<=SEMOCycles[[#This Row],[FlowEnd]])*SEMOTempAct[CGIResNHDD65]),SUMPRODUCT((SEMOTempAct[Date]>=SEMOCycles[[#This Row],[FlowBegin]])*(SEMOTempAct[Date]<=SEMOCycles[[#This Row],[FlowEnd]])*SEMOTempAct[CGISGSNHDD60])) -> 0.81 | I8: =IF(SEMOCycles[[#This Row],[CustClass]]="Res",SUMPRODUCT((SEMOTempAct[Date]>=SEMOCycles[[#This Row],[FlowBegin]])*(SEMOTempAct[Date]<=SEMOCycles[[#This Row],[FlowEnd]])*SEMOTempAct[CGIResHDD65]),SUMPRODUCT((SEMOTempAct[Date]>=SEMOCycles[[#This Row],[FlowBegin]])*(SEMOTempAct[Date]<=SEMOCycles[[#This Row],[FlowEnd]])*SEMOTempAct[CGISGSHDD60])) -> 0 | J8: =SEMOCycles[[#This Row],[NHDD]]-SEMOCycles[[#This Row],[AHDD]] -> 0.81 | K8: =SEMOCycles[[#This Row],[NoOfBills]]*SEMOCycles[[#This Row],[HDDDiff]] -> 7650.45 | L8: =SUMPRODUCT((BetaCoeff[BeginDate]<=SEMOCycles[[#This Row],[FlowBegin]])*(BetaCoeff[EndDate]>=SEMOCycles[[#This Row],[FlowEnd]])*(BetaCoeff[SAPRateCategory]=SEMOCycles[[#This Row],[SAPRateCategory]])*BetaCoeff[BetaCoeff]) -> 0.1408 | M8: =SEMOCycles[[#This Row],[Diff*NoOfBills]]*SEMOCycles[[#This Row],[BetaCoeff]] -> 1077.18336 | N8: =SUMPRODUCT((SEMOCycles[[#This Row],[FlowBegin]]>=VolRates[BeginDate])*(SEMOCycles[[#This Row],[FlowEnd]]<=VolRates[EndDate])*(SEMOCycles[[#This Row],[Region]]=VolRates[Region])*(SEMOCycles[[#This Row],[CustClass]]=VolRates[CustClass])*VolRates[VolRate]) -> 0.31279 | O8: =SEMOCycles[[#This Row],[WNAFactor]]*SEMOCycles[[#This Row],[VolRate]] -> 336.9321832 | P8: =INDEX(RateSched[Territory],MATCH(SEMOCycles[[#This Row],[SAPRateCategory]],RateSched[SAPRateCategory],0)) -> SEMO | Q8: =INDEX(RateSched[Region],MATCH(SEMOCycles[[#This Row],[SAPRateCategory]],RateSched[SAPRateCategory],0)) -> SEMO | R8: =INDEX(RateSched[CustClassShort],MATCH(SEMOCycles[[#This Row],[SAPRateCategory]],RateSched[SAPRateCategory],0)) -> Res | S8: =INDEX(RateSched[ProfitCenter],MATCH(SEMOCycles[[#This Row],[SAPRateCategory]],RateSched[SAPRateCategory],0)) -> 10244
A9: =EDATE(SEMOCycles[[#This Row],[MonthBill]],-1) -> 45839 | B9: 45870 | C9: SMGR_RFS | D9: 21 | E9: 1 | F9: =SUMPRODUCT((MeterReadSch[MonthBill]=SEMOCycles[[#This Row],[MonthBill]])*(MeterReadSch[Cycle]=SEMOCycles[[#This Row],[Cycle]])*MeterReadSch[Begin Bill Period]) -> 45835 | G9: =SUMPRODUCT((MeterReadSch[MonthBill]=SEMOCycles[[#This Row],[MonthBill]])*(MeterReadSch[Cycle]=SEMOCycles[[#This Row],[Cycle]])*MeterReadSch[End Bill Period]) -> 45869 | H9: =IF(SEMOCycles[[#This Row],[CustClass]]="Res",SUMPRODUCT((SEMOTempAct[Date]>=SEMOCycles[[#This Row],[FlowBegin]])*(SEMOTempAct[Date]<=SEMOCycles[[#This Row],[FlowEnd]])*SEMOTempAct[CGIResNHDD65]),SUMPRODUCT((SEMOTempAct[Date]>=SEMOCycles[[#This Row],[FlowBegin]])*(SEMOTempAct[Date]<=SEMOCycles[[#This Row],[FlowEnd]])*SEMOTempAct[CGISGSNHDD60])) -> 0.03 | I9: =IF(SEMOCycles[[#This Row],[CustClass]]="Res",SUMPRODUCT((SEMOTempAct[Date]>=SEMOCycles[[#This Row],[FlowBegin]])*(SEMOTempAct[Date]<=SEMOCycles[[#This Row],[FlowEnd]])*SEMOTempAct[CGIResHDD65]),SUMPRODUCT((SEMOTempAct[Date]>=SEMOCycles[[#This Row],[FlowBegin]])*(SEMOTempAct[Date]<=SEMOCycles[[#This Row],[FlowEnd]])*SEMOTempAct[CGISGSHDD60])) -> 0 | J9: =SEMOCycles[[#This Row],[NHDD]]-SEMOCycles[[#This Row],[AHDD]] -> 0.03 | K9: =SEMOCycles[[#This Row],[NoOfBills]]*SEMOCycles[[#This Row],[HDDDiff]] -> 0.03 | L9: =SUMPRODUCT((BetaCoeff[BeginDate]<=SEMOCycles[[#This Row],[FlowBegin]])*(BetaCoeff[EndDate]>=SEMOCycles[[#This Row],[FlowEnd]])*(BetaCoeff[SAPRateCategory]=SEMOCycles[[#This Row],[SAPRateCategory]])*BetaCoeff[BetaCoeff]) -> 0.1408 | M9: =SEMOCycles[[#This Row],[Diff*NoOfBills]]*SEMOCycles[[#This Row],[BetaCoeff]] -> 0.004224 | N9: =SUMPRODUCT((SEMOCycles[[#This Row],[FlowBegin]]>=VolRates[BeginDate])*(SEMOCycles[[#This Row],[FlowEnd]]<=VolRates[EndDate])*(SEMOCycles[[#This Row],[Region]]=VolRates[Region])*(SEMOCycles[[#This Row],[CustClass]]=VolRates[CustClass])*VolRates[VolRate]) -> 0.31279 | O9: =SEMOCycles[[#This Row],[WNAFactor]]*SEMOCycles[[#This Row],[VolRate]] -> 0.00132122496 | P9: =INDEX(RateSched[Territory],MATCH(SEMOCycles[[#This Row],[SAPRateCategory]],RateSched[SAPRateCategory],0)) -> SEMO | Q9: =INDEX(RateSched[Region],MATCH(SEMOCycles[[#This Row],[SAPRateCategory]],RateSched[SAPRateCategory],0)) -> SEMO | R9: =INDEX(RateSched[CustClassShort],MATCH(SEMOCycles[[#This Row],[SAPRateCategory]],RateSched[SAPRateCategory],0)) -> Res | S9: =INDEX(RateSched[ProfitCenter],MATCH(SEMOCycles[[#This Row],[SAPRateCategory]],RateSched[SAPRateCategory],0)) -> 10244
A10: =EDATE(SEMOCycles[[#This Row],[MonthBill]],-1) -> 45870 | B10: 45901 | C10: SMGC_SFGS | D10: 6 | E10: 1107 | F10: =SUMPRODUCT((MeterReadSch[MonthBill]=SEMOCycles[[#This Row],[MonthBill]])*(MeterReadSch[Cycle]=SEMOCycles[[#This Row],[Cycle]])*MeterReadSch[Begin Bill Period]) -> 45875 | G10: =SUMPRODUCT((MeterReadSch[MonthBill]=SEMOCycles[[#This Row],[MonthBill]])*(MeterReadSch[Cycle]=SEMOCycles[[#This Row],[Cycle]])*MeterReadSch[End Bill Period]) -> 45904 | H10: =IF(SEMOCycles[[#This Row],[CustClass]]="Res",SUMPRODUCT((SEMOTempAct[Date]>=SEMOCycles[[#This Row],[FlowBegin]])*(SEMOTempAct[Date]<=SEMOCycles[[#This Row],[FlowEnd]])*SEMOTempAct[CGIResNHDD65]),SUMPRODUCT((SEMOTempAct[Date]>=SEMOCycles[[#This Row],[FlowBegin]])*(SEMOTempAct[Date]<=SEMOCycles[[#This Row],[FlowEnd]])*SEMOTempAct[CGISGSNHDD60])) -> 0 | I10: =IF(SEMOCycles[[#This Row],[CustClass]]="Res",SUMPRODUCT((SEMOTempAct[Date]>=SEMOCycles[[#This Row],[FlowBegin]])*(SEMOTempAct[Date]<=SEMOCycles[[#This Row],[FlowEnd]])*SEMOTempAct[CGIResHDD65]),SUMPRODUCT((SEMOTempAct[Date]>=SEMOCycles[[#This Row],[FlowBegin]])*(SEMOTempAct[Date]<=SEMOCycles[[#This Row],[FlowEnd]])*SEMOTempAct[CGISGSHDD60])) -> 0 | J10: =SEMOCycles[[#This Row],[NHDD]]-SEMOCycles[[#This Row],[AHDD]] -> 0 | K10: =SEMOCycles[[#This Row],[NoOfBills]]*SEMOCycles[[#This Row],[HDDDiff]] -> 0 | L10: =SUMPRODUCT((BetaCoeff[BeginDate]<=SEMOCycles[[#This Row],[FlowBegin]])*(BetaCoeff[EndDate]>=SEMOCycles[[#This Row],[FlowEnd]])*(BetaCoeff[SAPRateCategory]=SEMOCycles[[#This Row],[SAPRateCategory]])*BetaCoeff[BetaCoeff]) -> 0.32963 | M10: =SEMOCycles[[#This Row],[Diff*NoOfBills]]*SEMOCycles[[#This Row],[BetaCoeff]] -> 0 | N10: =SUMPRODUCT((SEMOCycles[[#This Row],[FlowBegin]]>=VolRates[BeginDate])*(SEMOCycles[[#This Row],[FlowEnd]]<=VolRates[EndDate])*(SEMOCycles[[#This Row],[Region]]=VolRates[Region])*(SEMOCycles[[#This Row],[CustClass]]=VolRates[CustClass])*VolRates[VolRate]) -> 0.10651 | O10: =SEMOCycles[[#This Row],[WNAFactor]]*SEMOCycles[[#This Row],[VolRate]] -> 0 | P10: =INDEX(RateSched[Territory],MATCH(SEMOCycles[[#This Row],[SAPRateCategory]],RateSched[SAPRateCategory],0)) -> SEMO | Q10: =INDEX(RateSched[Region],MATCH(SEMOCycles[[#This Row],[SAPRateCategory]],RateSched[SAPRateCategory],0)) -> SEMO | R10: =INDEX(RateSched[CustClassShort],MATCH(SEMOCycles[[#This Row],[SAPRateCategory]],RateSched[SAPRateCategory],0)) -> SGS | S10: =INDEX(RateSched[ProfitCenter],MATCH(SEMOCycles[[#This Row],[SAPRateCategory]],RateSched[SAPRateCategory],0)) -> 10244
A11: =EDATE(SEMOCycles[[#This Row],[MonthBill]],-1) -> 45870 | B11: 45901 | C11: SMGC_SFGS | D11: 7 | E11: 985 | F11: =SUMPRODUCT((MeterReadSch[MonthBill]=SEMOCycles[[#This Row],[MonthBill]])*(MeterReadSch[Cycle]=SEMOCycles[[#This Row],[Cycle]])*MeterReadSch[Begin Bill Period]) -> 45877 | G11: =SUMPRODUCT((MeterReadSch[MonthBill]=SEMOCycles[[#This Row],[MonthBill]])*(MeterReadSch[Cycle]=SEMOCycles[[#This Row],[Cycle]])*MeterReadSch[End Bill Period]) -> 45905 | H11: =IF(SEMOCycles[[#This Row],[CustClass]]="Res",SUMPRODUCT((SEMOTempAct[Date]>=SEMOCycles[[#This Row],[FlowBegin]])*(SEMOTempAct[Date]<=SEMOCycles[[#This Row],[FlowEnd]])*SEMOTempAct[CGIResNHDD65]),SUMPRODUCT((SEMOTempAct[Date]>=SEMOCycles[[#This Row],[FlowBegin]])*(SEMOTempAct[Date]<=SEMOCycles[[#This Row],[FlowEnd]])*SEMOTempAct[CGISGSNHDD60])) -> 0 | I11: =IF(SEMOCycles[[#This Row],[CustClass]]="Res",SUMPRODUCT((SEMOTempAct[Date]>=SEMOCycles[[#This Row],[FlowBegin]])*(SEMOTempAct[Date]<=SEMOCycles[[#This Row],[FlowEnd]])*SEMOTempAct[CGIResHDD65]),SUMPRODUCT((SEMOTempAct[Date]>=SEMOCycles[[#This Row],[FlowBegin]])*(SEMOTempAct[Date]<=SEMOCycles[[#This Row],[FlowEnd]])*SEMOTempAct[CGISGSHDD60])) -> 0 | J11: =SEMOCycles[[#This Row],[NHDD]]-SEMOCycles[[#This Row],[AHDD]] -> 0 | K11: =SEMOCycles[[#This Row],[NoOfBills]]*SEMOCycles[[#This Row],[HDDDiff]] -> 0 | L11: =SUMPRODUCT((BetaCoeff[BeginDate]<=SEMOCycles[[#This Row],[FlowBegin]])*(BetaCoeff[EndDate]>=SEMOCycles[[#This Row],[FlowEnd]])*(BetaCoeff[SAPRateCategory]=SEMOCycles[[#This Row],[SAPRateCategory]])*BetaCoeff[BetaCoeff]) -> 0.32963 | M11: =SEMOCycles[[#This Row],[Diff*NoOfBills]]*SEMOCycles[[#This Row],[BetaCoeff]] -> 0 | N11: =SUMPRODUCT((SEMOCycles[[#This Row],[FlowBegin]]>=VolRates[BeginDate])*(SEMOCycles[[#This Row],[FlowEnd]]<=VolRates[EndDate])*(SEMOCycles[[#This Row],[Region]]=VolRates[Region])*(SEMOCycles[[#This Row],[CustClass]]=VolRates[CustClass])*VolRates[VolRate]) -> 0.10651 | O11: =SEMOCycles[[#This Row],[WNAFactor]]*SEMOCycles[[#This Row],[VolRate]] -> 0 | P11: =INDEX(RateSched[Territory],MATCH(SEMOCycles[[#This Row],[SAPRateCategory]],RateSched[SAPRateCategory],0)) -> SEMO | Q11: =INDEX(RateSched[Region],MATCH(SEMOCycles[[#This Row],[SAPRateCategory]],RateSched[SAPRateCategory],0)) -> SEMO | R11: =INDEX(RateSched[CustClassShort],MATCH(SEMOCycles[[#This Row],[SAPRateCategory]],RateSched[SAPRateCategory],0)) -> SGS | S11: =INDEX(RateSched[ProfitCenter],MATCH(SEMOCycles[[#This Row],[SAPRateCategory]],RateSched[SAPRateCategory],0)) -> 10244
A12: =EDATE(SEMOCycles[[#This Row],[MonthBill]],-1) -> 45870 | B12: 45901 | C12: SMGC_SFGS | D12: 15 | E12: 1101 | F12: =SUMPRODUCT((MeterReadSch[MonthBill]=SEMOCycles[[#This Row],[MonthBill]])*(MeterReadSch[Cycle]=SEMOCycles[[#This Row],[Cycle]])*MeterReadSch[Begin Bill Period]) -> 45888 | G12: =SUMPRODUCT((MeterReadSch[MonthBill]=SEMOCycles[[#This Row],[MonthBill]])*(MeterReadSch[Cycle]=SEMOCycles[[#This Row],[Cycle]])*MeterReadSch[End Bill Period]) -> 45917 | H12: =IF(SEMOCycles[[#This Row],[CustClass]]="Res",SUMPRODUCT((SEMOTempAct[Date]>=SEMOCycles[[#This Row],[FlowBegin]])*(SEMOTempAct[Date]<=SEMOCycles[[#This Row],[FlowEnd]])*SEMOTempAct[CGIResNHDD65]),SUMPRODUCT((SEMOTempAct[Date]>=SEMOCycles[[#This Row],[FlowBegin]])*(SEMOTempAct[Date]<=SEMOCycles[[#This Row],[FlowEnd]])*SEMOTempAct[CGISGSNHDD60])) -> 0.79 | I12: =IF(SEMOCycles[[#This Row],[CustClass]]="Res",SUMPRODUCT((SEMOTempAct[Date]>=SEMOCycles[[#This Row],[FlowBegin]])*(SEMOTempAct[Date]<=SEMOCycles[[#This Row],[FlowEnd]])*SEMOTempAct[CGIResHDD65]),SUMPRODUCT((SEMOTempAct[Date]>=SEMOCycles[[#This Row],[FlowBegin]])*(SEMOTempAct[Date]<=SEMOCycles[[#This Row],[FlowEnd]])*SEMOTempAct[CGISGSHDD60])) -> 0.5 | J12: =SEMOCycles[[#This Row],[NHDD]]-SEMOCycles[[#This Row],[AHDD]] -> 0.29 | K12: =SEMOCycles[[#This Row],[NoOfBills]]*SEMOCycles[[#This Row],[HDDDiff]] -> 319.29 | L12: =SUMPRODUCT((BetaCoeff[BeginDate]<=SEMOCycles[[#This Row],[FlowBegin]])*(BetaCoeff[EndDate]>=SEMOCycles[[#This Row],[FlowEnd]])*(BetaCoeff[SAPRateCategory]=SEMOCycles[[#This Row],[SAPRateCategory]])*BetaCoeff[BetaCoeff]) -> 0.32963 | M12: =SEMOCycles[[#This Row],[Diff*NoOfBills]]*SEMOCycles[[#This Row],[BetaCoeff]] -> 105.2475627 | N12: =SUMPRODUCT((SEMOCycles[[#This Row],[FlowBegin]]>=VolRates[BeginDate])*(SEMOCycles[[#This Row],[FlowEnd]]<=VolRates[EndDate])*(SEMOCycles[[#This Row],[Region]]=VolRates[Region])*(SEMOCycles[[#This Row],[CustClass]]=VolRates[CustClass])*VolRates[VolRate]) -> 0.10651 | O12: =SEMOCycles[[#This Row],[WNAFactor]]*SEMOCycles[[#This Row],[VolRate]] -> 11.2099179 | P12: =INDEX(RateSched[Territory],MATCH(SEMOCycles[[#This Row],[SAPRateCategory]],RateSched[SAPRateCategory],0)) -> SEMO | Q12: =INDEX(RateSched[Region],MATCH(SEMOCycles[[#This Row],[SAPRateCategory]],RateSched[SAPRateCategory],0)) -> SEMO | R12: =INDEX(RateSched[CustClassShort],MATCH(SEMOCycles[[#This Row],[SAPRateCategory]],RateSched[SAPRateCategory],0)) -> SGS | S12: =INDEX(RateSched[ProfitCenter],MATCH(SEMOCycles[[#This Row],[SAPRateCategory]],RateSched[SAPRateCategory],0)) -> 10244
A13: =EDATE(SEMOCycles[[#This Row],[MonthBill]],-1) -> 45870 | B13: 45901 | C13: SMGC_SFGS | D13: 20 | E13: 2 | F13: =SUMPRODUCT((MeterReadSch[MonthBill]=SEMOCycles[[#This Row],[MonthBill]])*(MeterReadSch[Cycle]=SEMOCycles[[#This Row],[Cycle]])*MeterReadSch[Begin Bill Period]) -> 45899 | G13: =SUMPRODUCT((MeterReadSch[MonthBill]=SEMOCycles[[#This Row],[MonthBill]])*(MeterReadSch[Cycle]=SEMOCycles[[#This Row],[Cycle]])*MeterReadSch[End Bill Period]) -> 45930 | H13: =IF(SEMOCycles[[#This Row],[CustClass]]="Res",SUMPRODUCT((SEMOTempAct[Date]>=SEMOCycles[[#This Row],[FlowBegin]])*(SEMOTempAct[Date]<=SEMOCycles[[#This Row],[FlowEnd]])*SEMOTempAct[CGIResNHDD65]),SUMPRODUCT((SEMOTempAct[Date]>=SEMOCycles[[#This Row],[FlowBegin]])*(SEMOTempAct[Date]<=SEMOCycles[[#This Row],[FlowEnd]])*SEMOTempAct[CGISGSNHDD60])) -> 7.19 | I13: =IF(SEMOCycles[[#This Row],[CustClass]]="Res",SUMPRODUCT((SEMOTempAct[Date]>=SEMOCycles[[#This Row],[FlowBegin]])*(SEMOTempAct[Date]<=SEMOCycles[[#This Row],[FlowEnd]])*SEMOTempAct[CGIResHDD65]),SUMPRODUCT((SEMOTempAct[Date]>=SEMOCycles[[#This Row],[FlowBegin]])*(SEMOTempAct[Date]<=SEMOCycles[[#This Row],[FlowEnd]])*SEMOTempAct[CGISGSHDD60])) -> 0.5 | J13: =SEMOCycles[[#This Row],[NHDD]]-SEMOCycles[[#This Row],[AHDD]] -> 6.69 | K13: =SEMOCycles[[#This Row],[NoOfBills]]*SEMOCycles[[#This Row],[HDDDiff]] -> 13.38 | L13: =SUMPRODUCT((BetaCoeff[BeginDate]<=SEMOCycles[[#This Row],[FlowBegin]])*(BetaCoeff[EndDate]>=SEMOCycles[[#This Row],[FlowEnd]])*(BetaCoeff[SAPRateCategory]=SEMOCycles[[#This Row],[SAPRateCategory]])*BetaCoeff[BetaCoeff]) -> 0.32963 | M13: =SEMOCycles[[#This Row],[Diff*NoOfBills]]*SEMOCycles[[#This Row],[BetaCoeff]] -> 4.4104494 | N13: =SUMPRODUCT((SEMOCycles[[#This Row],[FlowBegin]]>=VolRates[BeginDate])*(SEMOCycles[[#This Row],[FlowEnd]]<=VolRates[EndDate])*(SEMOCycles[[#This Row],[Region]]=VolRates[Region])*(SEMOCycles[[#This Row],[CustClass]]=VolRates[CustClass])*VolRates[VolRate]) -> 0.10651 | O13: =SEMOCycles[[#This Row],[WNAFactor]]*SEMOCycles[[#This Row],[VolRate]] -> 0.4697569656 | P13: =INDEX(RateSched[Territory],MATCH(SEMOCycles[[#This Row],[SAPRateCategory]],RateSched[SAPRateCategory],0)) -> SEMO | Q13: =INDEX(RateSched[Region],MATCH(SEMOCycles[[#This Row],[SAPRateCategory]],RateSched[SAPRateCategory],0)) -> SEMO | R13: =INDEX(RateSched[CustClassShort],MATCH(SEMOCycles[[#This Row],[SAPRateCategory]],RateSched[SAPRateCategory],0)) -> SGS | S13: =INDEX(RateSched[ProfitCenter],MATCH(SEMOCycles[[#This Row],[SAPRateCategory]],RateSched[SAPRateCategory],0)) -> 10244
A14: =EDATE(SEMOCycles[[#This Row],[MonthBill]],-1) -> 45870 | B14: 45901 | C14: SMGR_RFS | D14: 6 | E14: 7508 | F14: =SUMPRODUCT((MeterReadSch[MonthBill]=SEMOCycles[[#This Row],[MonthBill]])*(MeterReadSch[Cycle]=SEMOCycles[[#This Row],[Cycle]])*MeterReadSch[Begin Bill Period]) -> 45875 | G14: =SUMPRODUCT((MeterReadSch[MonthBill]=SEMOCycles[[#This Row],[MonthBill]])*(MeterReadSch[Cycle]=SEMOCycles[[#This Row],[Cycle]])*MeterReadSch[End Bill Period]) -> 45904 | H14: =IF(SEMOCycles[[#This Row],[CustClass]]="Res",SUMPRODUCT((SEMOTempAct[Date]>=SEMOCycles[[#This Row],[FlowBegin]])*(SEMOTempAct[Date]<=SEMOCycles[[#This Row],[FlowEnd]])*SEMOTempAct[CGIResNHDD65]),SUMPRODUCT((SEMOTempAct[Date]>=SEMOCycles[[#This Row],[FlowBegin]])*(SEMOTempAct[Date]<=SEMOCycles[[#This Row],[FlowEnd]])*SEMOTempAct[CGISGSNHDD60])) -> 1.02 | I14: =IF(SEMOCycles[[#This Row],[CustClass]]="Res",SUMPRODUCT((SEMOTempAct[Date]>=SEMOCycles[[#This Row],[FlowBegin]])*(SEMOTempAct[Date]<=SEMOCycles[[#This Row],[FlowEnd]])*SEMOTempAct[CGIResHDD65]),SUMPRODUCT((SEMOTempAct[Date]>=SEMOCycles[[#This Row],[FlowBegin]])*(SEMOTempAct[Date]<=SEMOCycles[[#This Row],[FlowEnd]])*SEMOTempAct[CGISGSHDD60])) -> 2.5 | J14: =SEMOCycles[[#This Row],[NHDD]]-SEMOCycles[[#This Row],[AHDD]] -> -1.48 | K14: =SEMOCycles[[#This Row],[NoOfBills]]*SEMOCycles[[#This Row],[HDDDiff]] -> -11111.84 | L14: =SUMPRODUCT((BetaCoeff[BeginDate]<=SEMOCycles[[#This Row],[FlowBegin]])*(BetaCoeff[EndDate]>=SEMOCycles[[#This Row],[FlowEnd]])*(BetaCoeff[SAPRateCategory]=SEMOCycles[[#This Row],[SAPRateCategory]])*BetaCoeff[BetaCoeff]) -> 0.1408 | M14: =SEMOCycles[[#This Row],[Diff*NoOfBills]]*SEMOCycles[[#This Row],[BetaCoeff]] -> -1564.547072 | N14: =SUMPRODUCT((SEMOCycles[[#This Row],[FlowBegin]]>=VolRates[BeginDate])*(SEMOCycles[[#This Row],[FlowEnd]]<=VolRates[EndDate])*(SEMOCycles[[#This Row],[Region]]=VolRates[Region])*(SEMOCycles[[#This Row],[CustClass]]=VolRates[CustClass])*VolRates[VolRate]) -> 0.31279 | O14: =SEMOCycles[[#This Row],[WNAFactor]]*SEMOCycles[[#This Row],[VolRate]] -> -489.3746787 | P14: =INDEX(RateSched[Territory],MATCH(SEMOCycles[[#This Row],[SAPRateCategory]],RateSched[SAPRateCategory],0)) -> SEMO | Q14: =INDEX(RateSched[Region],MATCH(SEMOCycles[[#This Row],[SAPRateCategory]],RateSched[SAPRateCategory],0)) -> SEMO | R14: =INDEX(RateSched[CustClassShort],MATCH(SEMOCycles[[#This Row],[SAPRateCategory]],RateSched[SAPRateCategory],0)) -> Res | S14: =INDEX(RateSched[ProfitCenter],MATCH(SEMOCycles[[#This Row],[SAPRateCategory]],RateSched[SAPRateCategory],0)) -> 10244
A15: =EDATE(SEMOCycles[[#This Row],[MonthBill]],-1) -> 45870 | B15: 45901 | C15: SMGR_RFS | D15: 7 | E15: 9831 | F15: =SUMPRODUCT((MeterReadSch[MonthBill]=SEMOCycles[[#This Row],[MonthBill]])*(MeterReadSch[Cycle]=SEMOCycles[[#This Row],[Cycle]])*MeterReadSch[Begin Bill Period]) -> 45877 | G15: =SUMPRODUCT((MeterReadSch[MonthBill]=SEMOCycles[[#This Row],[MonthBill]])*(MeterReadSch[Cycle]=SEMOCycles[[#This Row],[Cycle]])*MeterReadSch[End Bill Period]) -> 45905 | H15: =IF(SEMOCycles[[#This Row],[CustClass]]="Res",SUMPRODUCT((SEMOTempAct[Date]>=SEMOCycles[[#This Row],[FlowBegin]])*(SEMOTempAct[Date]<=SEMOCycles[[#This Row],[FlowEnd]])*SEMOTempAct[CGIResNHDD65]),SUMPRODUCT((SEMOTempAct[Date]>=SEMOCycles[[#This Row],[FlowBegin]])*(SEMOTempAct[Date]<=SEMOCycles[[#This Row],[FlowEnd]])*SEMOTempAct[CGISGSNHDD60])) -> 1.02 | I15: =IF(SEMOCycles[[#This Row],[CustClass]]="Res",SUMPRODUCT((SEMOTempAct[Date]>=SEMOCycles[[#This Row],[FlowBegin]])*(SEMOTempAct[Date]<=SEMOCycles[[#This Row],[FlowEnd]])*SEMOTempAct[CGIResHDD65]),SUMPRODUCT((SEMOTempAct[Date]>=SEMOCycles[[#This Row],[FlowBegin]])*(SEMOTempAct[Date]<=SEMOCycles[[#This Row],[FlowEnd]])*SEMOTempAct[CGISGSHDD60])) -> 2.5 | J15: =SEMOCycles[[#This Row],[NHDD]]-SEMOCycles[[#This Row],[AHDD]] -> -1.48 | K15: =SEMOCycles[[#This Row],[NoOfBills]]*SEMOCycles[[#This Row],[HDDDiff]] -> -14549.88 | L15: =SUMPRODUCT((BetaCoeff[BeginDate]<=SEMOCycles[[#This Row],[FlowBegin]])*(BetaCoeff[EndDate]>=SEMOCycles[[#This Row],[FlowEnd]])*(BetaCoeff[SAPRateCategory]=SEMOCycles[[#This Row],[SAPRateCategory]])*BetaCoeff[BetaCoeff]) -> 0.1408 | M15: =SEMOCycles[[#This Row],[Diff*NoOfBills]]*SEMOCycles[[#This Row],[BetaCoeff]] -> -2048.623104 | N15: =SUMPRODUCT((SEMOCycles[[#This Row],[FlowBegin]]>=VolRates[BeginDate])*(SEMOCycles[[#This Row],[FlowEnd]]<=VolRates[EndDate])*(SEMOCycles[[#This Row],[Region]]=VolRates[Region])*(SEMOCycles[[#This Row],[CustClass]]=VolRates[CustClass])*VolRates[VolRate]) -> 0.31279 | O15: =SEMOCycles[[#This Row],[WNAFactor]]*SEMOCycles[[#This Row],[VolRate]] -> -640.7888207 | P15: =INDEX(RateSched[Territory],MATCH(SEMOCycles[[#This Row],[SAPRateCategory]],RateSched[SAPRateCategory],0)) -> SEMO | Q15: =INDEX(RateSched[Region],MATCH(SEMOCycles[[#This Row],[SAPRateCategory]],RateSched[SAPRateCategory],0)) -> SEMO | R15: =INDEX(RateSched[CustClassShort],MATCH(SEMOCycles[[#This Row],[SAPRateCategory]],RateSched[SAPRateCategory],0)) -> Res | S15: =INDEX(RateSched[ProfitCenter],MATCH(SEMOCycles[[#This Row],[SAPRateCategory]],RateSched[SAPRateCategory],0)) -> 10244
A16: =EDATE(SEMOCycles[[#This Row],[MonthBill]],-1) -> 45870 | B16: 45901 | C16: SMGR_RFS | D16: 15 | E16: 9434 | F16: =SUMPRODUCT((MeterReadSch[MonthBill]=SEMOCycles[[#This Row],[MonthBill]])*(MeterReadSch[Cycle]=SEMOCycles[[#This Row],[Cycle]])*MeterReadSch[Begin Bill Period]) -> 45888 | G16: =SUMPRODUCT((MeterReadSch[MonthBill]=SEMOCycles[[#This Row],[MonthBill]])*(MeterReadSch[Cycle]=SEMOCycles[[#This Row],[Cycle]])*MeterReadSch[End Bill Period]) -> 45917 | H16: =IF(SEMOCycles[[#This Row],[CustClass]]="Res",SUMPRODUCT((SEMOTempAct[Date]>=SEMOCycles[[#This Row],[FlowBegin]])*(SEMOTempAct[Date]<=SEMOCycles[[#This Row],[FlowEnd]])*SEMOTempAct[CGIResNHDD65]),SUMPRODUCT((SEMOTempAct[Date]>=SEMOCycles[[#This Row],[FlowBegin]])*(SEMOTempAct[Date]<=SEMOCycles[[#This Row],[FlowEnd]])*SEMOTempAct[CGISGSNHDD60])) -> 5.95 | I16: =IF(SEMOCycles[[#This Row],[CustClass]]="Res",SUMPRODUCT((SEMOTempAct[Date]>=SEMOCycles[[#This Row],[FlowBegin]])*(SEMOTempAct[Date]<=SEMOCycles[[#This Row],[FlowEnd]])*SEMOTempAct[CGIResHDD65]),SUMPRODUCT((SEMOTempAct[Date]>=SEMOCycles[[#This Row],[FlowBegin]])*(SEMOTempAct[Date]<=SEMOCycles[[#This Row],[FlowEnd]])*SEMOTempAct[CGISGSHDD60])) -> 15 | J16: =SEMOCycles[[#This Row],[NHDD]]-SEMOCycles[[#This Row],[AHDD]] -> -9.05 | K16: =SEMOCycles[[#This Row],[NoOfBills]]*SEMOCycles[[#This Row],[HDDDiff]] -> -85377.7 | L16: =SUMPRODUCT((BetaCoeff[BeginDate]<=SEMOCycles[[#This Row],[FlowBegin]])*(BetaCoeff[EndDate]>=SEMOCycles[[#This Row],[FlowEnd]])*(BetaCoeff[SAPRateCategory]=SEMOCycles[[#This Row],[SAPRateCategory]])*BetaCoeff[BetaCoeff]) -> 0.1408 | M16: =SEMOCycles[[#This Row],[Diff*NoOfBills]]*SEMOCycles[[#This Row],[BetaCoeff]] -> -12021.18016 | N16: =SUMPRODUCT((SEMOCycles[[#This Row],[FlowBegin]]>=VolRates[BeginDate])*(SEMOCycles[[#This Row],[FlowEnd]]<=VolRates[EndDate])*(SEMOCycles[[#This Row],[Region]]=VolRates[Region])*(SEMOCycles[[#This Row],[CustClass]]=VolRates[CustClass])*VolRates[VolRate]) -> 0.31279 | O16: =SEMOCycles[[#This Row],[WNAFactor]]*SEMOCycles[[#This Row],[VolRate]] -> -3760.104942 | P16: =INDEX(RateSched[Territory],MATCH(SEMOCycles[[#This Row],[SAPRateCategory]],RateSched[SAPRateCategory],0)) -> SEMO | Q16: =INDEX(RateSched[Region],MATCH(SEMOCycles[[#This Row],[SAPRateCategory]],RateSched[SAPRateCategory],0)) -> SEMO | R16: =INDEX(RateSched[CustClassShort],MATCH(SEMOCycles[[#This Row],[SAPRateCategory]],RateSched[SAPRateCategory],0)) -> Res | S16: =INDEX(RateSched[ProfitCenter],MATCH(SEMOCycles[[#This Row],[SAPRateCategory]],RateSched[SAPRateCategory],0)) -> 10244
A17: =EDATE(SEMOCycles[[#This Row],[MonthBill]],-1) -> 45901 | B17: 45931 | C17: SMGC_SFGS | D17: 6 | E17: 1090 | F17: =SUMPRODUCT((MeterReadSch[MonthBill]=SEMOCycles[[#This Row],[MonthBill]])*(MeterReadSch[Cycle]=SEMOCycles[[#This Row],[Cycle]])*MeterReadSch[Begin Bill Period]) -> 45905 | G17: =SUMPRODUCT((MeterReadSch[MonthBill]=SEMOCycles[[#This Row],[MonthBill]])*(MeterReadSch[Cycle]=SEMOCycles[[#This Row],[Cycle]])*MeterReadSch[End Bill Period]) -> 45932 | H17: =IF(SEMOCycles[[#This Row],[CustClass]]="Res",SUMPRODUCT((SEMOTempAct[Date]>=SEMOCycles[[#This Row],[FlowBegin]])*(SEMOTempAct[Date]<=SEMOCycles[[#This Row],[FlowEnd]])*SEMOTempAct[CGIResNHDD65]),SUMPRODUCT((SEMOTempAct[Date]>=SEMOCycles[[#This Row],[FlowBegin]])*(SEMOTempAct[Date]<=SEMOCycles[[#This Row],[FlowEnd]])*SEMOTempAct[CGISGSNHDD60])) -> 10.94 | I17: =IF(SEMOCycles[[#This Row],[CustClass]]="Res",SUMPRODUCT((SEMOTempAct[Date]>=SEMOCycles[[#This Row],[FlowBegin]])*(SEMOTempAct[Date]<=SEMOCycles[[#This Row],[FlowEnd]])*SEMOTempAct[CGIResHDD65]),SUMPRODUCT((SEMOTempAct[Date]>=SEMOCycles[[#This Row],[FlowBegin]])*(SEMOTempAct[Date]<=SEMOCycles[[#This Row],[FlowEnd]])*SEMOTempAct[CGISGSHDD60])) -> 0.5 | J17: =SEMOCycles[[#This Row],[NHDD]]-SEMOCycles[[#This Row],[AHDD]] -> 10.44 | K17: =SEMOCycles[[#This Row],[NoOfBills]]*SEMOCycles[[#This Row],[HDDDiff]] -> 11379.6 | L17: =SUMPRODUCT((BetaCoeff[BeginDate]<=SEMOCycles[[#This Row],[FlowBegin]])*(BetaCoeff[EndDate]>=SEMOCycles[[#This Row],[FlowEnd]])*(BetaCoeff[SAPRateCategory]=SEMOCycles[[#This Row],[SAPRateCategory]])*BetaCoeff[BetaCoeff]) -> 0.32963 | M17: =SEMOCycles[[#This Row],[Diff*NoOfBills]]*SEMOCycles[[#This Row],[BetaCoeff]] -> 3751.057548 | N17: =SUMPRODUCT((SEMOCycles[[#This Row],[FlowBegin]]>=VolRates[BeginDate])*(SEMOCycles[[#This Row],[FlowEnd]]<=VolRates[EndDate])*(SEMOCycles[[#This Row],[Region]]=VolRates[Region])*(SEMOCycles[[#This Row],[CustClass]]=VolRates[CustClass])*VolRates[VolRate]) -> 0.10651 | O17: =SEMOCycles[[#This Row],[WNAFactor]]*SEMOCycles[[#This Row],[VolRate]] -> 399.5251394 | P17: =INDEX(RateSched[Territory],MATCH(SEMOCycles[[#This Row],[SAPRateCategory]],RateSched[SAPRateCategory],0)) -> SEMO | Q17: =INDEX(RateSched[Region],MATCH(SEMOCycles[[#This Row],[SAPRateCategory]],RateSched[SAPRateCategory],0)) -> SEMO | R17: =INDEX(RateSched[CustClassShort],MATCH(SEMOCycles[[#This Row],[SAPRateCategory]],RateSched[SAPRateCategory],0)) -> SGS | S17: =INDEX(RateSched[ProfitCenter],MATCH(SEMOCycles[[#This Row],[SAPRateCategory]],RateSched[SAPRateCategory],0)) -> 10244
A18: =EDATE(SEMOCycles[[#This Row],[MonthBill]],-1) -> 45901 | B18: 45931 | C18: SMGC_SFGS | D18: 7 | E18: 981 | F18: =SUMPRODUCT((MeterReadSch[MonthBill]=SEMOCycles[[#This Row],[MonthBill]])*(MeterReadSch[Cycle]=SEMOCycles[[#This Row],[Cycle]])*MeterReadSch[Begin Bill Period]) -> 45906 | G18: =SUMPRODUCT((MeterReadSch[MonthBill]=SEMOCycles[[#This Row],[MonthBill]])*(MeterReadSch[Cycle]=SEMOCycles[[#This Row],[Cycle]])*MeterReadSch[End Bill Period]) -> 45937 | H18: =IF(SEMOCycles[[#This Row],[CustClass]]="Res",SUMPRODUCT((SEMOTempAct[Date]>=SEMOCycles[[#This Row],[FlowBegin]])*(SEMOTempAct[Date]<=SEMOCycles[[#This Row],[FlowEnd]])*SEMOTempAct[CGIResNHDD65]),SUMPRODUCT((SEMOTempAct[Date]>=SEMOCycles[[#This Row],[FlowBegin]])*(SEMOTempAct[Date]<=SEMOCycles[[#This Row],[FlowEnd]])*SEMOTempAct[CGISGSNHDD60])) -> 22.1 | I18: =IF(SEMOCycles[[#This Row],[CustClass]]="Res",SUMPRODUCT((SEMOTempAct[Date]>=SEMOCycles[[#This Row],[FlowBegin]])*(SEMOTempAct[Date]<=SEMOCycles[[#This Row],[FlowEnd]])*SEMOTempAct[CGIResHDD65]),SUMPRODUCT((SEMOTempAct[Date]>=SEMOCycles[[#This Row],[FlowBegin]])*(SEMOTempAct[Date]<=SEMOCycles[[#This Row],[FlowEnd]])*SEMOTempAct[CGISGSHDD60])) -> 0.5 | J18: =SEMOCycles[[#This Row],[NHDD]]-SEMOCycles[[#This Row],[AHDD]] -> 21.6 | K18: =SEMOCycles[[#This Row],[NoOfBills]]*SEMOCycles[[#This Row],[HDDDiff]] -> 21189.6 | L18: =SUMPRODUCT((BetaCoeff[BeginDate]<=SEMOCycles[[#This Row],[FlowBegin]])*(BetaCoeff[EndDate]>=SEMOCycles[[#This Row],[FlowEnd]])*(BetaCoeff[SAPRateCategory]=SEMOCycles[[#This Row],[SAPRateCategory]])*BetaCoeff[BetaCoeff]) -> 0.32963 | M18: =SEMOCycles[[#This Row],[Diff*NoOfBills]]*SEMOCycles[[#This Row],[BetaCoeff]] -> 6984.727848 | N18: =SUMPRODUCT((SEMOCycles[[#This Row],[FlowBegin]]>=VolRates[BeginDate])*(SEMOCycles[[#This Row],[FlowEnd]]<=VolRates[EndDate])*(SEMOCycles[[#This Row],[Region]]=VolRates[Region])*(SEMOCycles[[#This Row],[CustClass]]=VolRates[CustClass])*VolRates[VolRate]) -> 0.10651 | O18: =SEMOCycles[[#This Row],[WNAFactor]]*SEMOCycles[[#This Row],[VolRate]] -> 743.9433631 | P18: =INDEX(RateSched[Territory],MATCH(SEMOCycles[[#This Row],[SAPRateCategory]],RateSched[SAPRateCategory],0)) -> SEMO | Q18: =INDEX(RateSched[Region],MATCH(SEMOCycles[[#This Row],[SAPRateCategory]],RateSched[SAPRateCategory],0)) -> SEMO | R18: =INDEX(RateSched[CustClassShort],MATCH(SEMOCycles[[#This Row],[SAPRateCategory]],RateSched[SAPRateCategory],0)) -> SGS | S18: =INDEX(RateSched[ProfitCenter],MATCH(SEMOCycles[[#This Row],[SAPRateCategory]],RateSched[SAPRateCategory],0)) -> 10244
A19: =EDATE(SEMOCycles[[#This Row],[MonthBill]],-1) -> 45901 | B19: 45931 | C19: SMGC_SFGS | D19: 15 | E19: 1105 | F19: =SUMPRODUCT((MeterReadSch[MonthBill]=SEMOCycles[[#This Row],[MonthBill]])*(MeterReadSch[Cycle]=SEMOCycles[[#This Row],[Cycle]])*MeterReadSch[Begin Bill Period]) -> 45918 | G19: =SUMPRODUCT((MeterReadSch[MonthBill]=SEMOCycles[[#This Row],[MonthBill]])*(MeterReadSch[Cycle]=SEMOCycles[[#This Row],[Cycle]])*MeterReadSch[End Bill Period]) -> 45946 | H19: =IF(SEMOCycles[[#This Row],[CustClass]]="Res",SUMPRODUCT((SEMOTempAct[Date]>=SEMOCycles[[#This Row],[FlowBegin]])*(SEMOTempAct[Date]<=SEMOCycles[[#This Row],[FlowEnd]])*SEMOTempAct[CGIResNHDD65]),SUMPRODUCT((SEMOTempAct[Date]>=SEMOCycles[[#This Row],[FlowBegin]])*(SEMOTempAct[Date]<=SEMOCycles[[#This Row],[FlowEnd]])*SEMOTempAct[CGISGSNHDD60])) -> 49.65 | I19: =IF(SEMOCycles[[#This Row],[CustClass]]="Res",SUMPRODUCT((SEMOTempAct[Date]>=SEMOCycles[[#This Row],[FlowBegin]])*(SEMOTempAct[Date]<=SEMOCycles[[#This Row],[FlowEnd]])*SEMOTempAct[CGIResHDD65]),SUMPRODUCT((SEMOTempAct[Date]>=SEMOCycles[[#This Row],[FlowBegin]])*(SEMOTempAct[Date]<=SEMOCycles[[#This Row],[FlowEnd]])*SEMOTempAct[CGISGSHDD60])) -> 5.5 | J19: =SEMOCycles[[#This Row],[NHDD]]-SEMOCycles[[#This Row],[AHDD]] -> 44.15 | K19: =SEMOCycles[[#This Row],[NoOfBills]]*SEMOCycles[[#This Row],[HDDDiff]] -> 48785.75 | L19: =SUMPRODUCT((BetaCoeff[BeginDate]<=SEMOCycles[[#This Row],[FlowBegin]])*(BetaCoeff[EndDate]>=SEMOCycles[[#This Row],[FlowEnd]])*(BetaCoeff[SAPRateCategory]=SEMOCycles[[#This Row],[SAPRateCategory]])*BetaCoeff[BetaCoeff]) -> 0.32963 | M19: =SEMOCycles[[#This Row],[Diff*NoOfBills]]*SEMOCycles[[#This Row],[BetaCoeff]] -> 16081.24677 | N19: =SUMPRODUCT((SEMOCycles[[#This Row],[FlowBegin]]>=VolRates[BeginDate])*(SEMOCycles[[#This Row],[FlowEnd]]<=VolRates[EndDate])*(SEMOCycles[[#This Row],[Region]]=VolRates[Region])*(SEMOCycles[[#This Row],[CustClass]]=VolRates[CustClass])*VolRates[VolRate]) -> 0.10651 | O19: =SEMOCycles[[#This Row],[WNAFactor]]*SEMOCycles[[#This Row],[VolRate]] -> 1712.813594 | P19: =INDEX(RateSched[Territory],MATCH(SEMOCycles[[#This Row],[SAPRateCategory]],RateSched[SAPRateCategory],0)) -> SEMO | Q19: =INDEX(RateSched[Region],MATCH(SEMOCycles[[#This Row],[SAPRateCategory]],RateSched[SAPRateCategory],0)) -> SEMO | R19: =INDEX(RateSched[CustClassShort],MATCH(SEMOCycles[[#This Row],[SAPRateCategory]],RateSched[SAPRateCategory],0)) -> SGS | S19: =INDEX(RateSched[ProfitCenter],MATCH(SEMOCycles[[#This Row],[SAPRateCategory]],RateSched[SAPRateCategory],0)) -> 10244
A20: =EDATE(SEMOCycles[[#This Row],[MonthBill]],-1) -> 45901 | B20: 45931 | C20: SMGC_SFGS | D20: 20 | E20: 2 | F20: =SUMPRODUCT((MeterReadSch[MonthBill]=SEMOCycles[[#This Row],[MonthBill]])*(MeterReadSch[Cycle]=SEMOCycles[[#This Row],[Cycle]])*MeterReadSch[Begin Bill Period]) -> 45931 | G20: =SUMPRODUCT((MeterReadSch[MonthBill]=SEMOCycles[[#This Row],[MonthBill]])*(MeterReadSch[Cycle]=SEMOCycles[[#This Row],[Cycle]])*MeterReadSch[End Bill Period]) -> 45961 | H20: =IF(SEMOCycles[[#This Row],[CustClass]]="Res",SUMPRODUCT((SEMOTempAct[Date]>=SEMOCycles[[#This Row],[FlowBegin]])*(SEMOTempAct[Date]<=SEMOCycles[[#This Row],[FlowEnd]])*SEMOTempAct[CGIResNHDD65]),SUMPRODUCT((SEMOTempAct[Date]>=SEMOCycles[[#This Row],[FlowBegin]])*(SEMOTempAct[Date]<=SEMOCycles[[#This Row],[FlowEnd]])*SEMOTempAct[CGISGSNHDD60])) -> 139.41 | I20: =IF(SEMOCycles[[#This Row],[CustClass]]="Res",SUMPRODUCT((SEMOTempAct[Date]>=SEMOCycles[[#This Row],[FlowBegin]])*(SEMOTempAct[Date]<=SEMOCycles[[#This Row],[FlowEnd]])*SEMOTempAct[CGIResHDD65]),SUMPRODUCT((SEMOTempAct[Date]>=SEMOCycles[[#This Row],[FlowBegin]])*(SEMOTempAct[Date]<=SEMOCycles[[#This Row],[FlowEnd]])*SEMOTempAct[CGISGSHDD60])) -> 95 | J20: =SEMOCycles[[#This Row],[NHDD]]-SEMOCycles[[#This Row],[AHDD]] -> 44.41 | K20: =SEMOCycles[[#This Row],[NoOfBills]]*SEMOCycles[[#This Row],[HDDDiff]] -> 88.82 | L20: =SUMPRODUCT((BetaCoeff[BeginDate]<=SEMOCycles[[#This Row],[FlowBegin]])*(BetaCoeff[EndDate]>=SEMOCycles[[#This Row],[FlowEnd]])*(BetaCoeff[SAPRateCategory]=SEMOCycles[[#This Row],[SAPRateCategory]])*BetaCoeff[BetaCoeff]) -> 0.32963 | M20: =SEMOCycles[[#This Row],[Diff*NoOfBills]]*SEMOCycles[[#This Row],[BetaCoeff]] -> 29.2777366 | N20: =SUMPRODUCT((SEMOCycles[[#This Row],[FlowBegin]]>=VolRates[BeginDate])*(SEMOCycles[[#This Row],[FlowEnd]]<=VolRates[EndDate])*(SEMOCycles[[#This Row],[Region]]=VolRates[Region])*(SEMOCycles[[#This Row],[CustClass]]=VolRates[CustClass])*VolRates[VolRate]) -> 0.10651 | O20: =SEMOCycles[[#This Row],[WNAFactor]]*SEMOCycles[[#This Row],[VolRate]] -> 3.118371725 | P20: =INDEX(RateSched[Territory],MATCH(SEMOCycles[[#This Row],[SAPRateCategory]],RateSched[SAPRateCategory],0)) -> SEMO | Q20: =INDEX(RateSched[Region],MATCH(SEMOCycles[[#This Row],[SAPRateCategory]],RateSched[SAPRateCategory],0)) -> SEMO | R20: =INDEX(RateSched[CustClassShort],MATCH(SEMOCycles[[#This Row],[SAPRateCategory]],RateSched[SAPRateCategory],0)) -> SGS | S20: =INDEX(RateSched[ProfitCenter],MATCH(SEMOCycles[[#This Row],[SAPRateCategory]],RateSched[SAPRateCategory],0)) -> 10244
A21: =EDATE(SEMOCycles[[#This Row],[MonthBill]],-1) -> 45901 | B21: 45931 | C21: SMGR_RFS | D21: 6 | E21: 7519 | F21: =SUMPRODUCT((MeterReadSch[MonthBill]=SEMOCycles[[#This Row],[MonthBill]])*(MeterReadSch[Cycle]=SEMOCycles[[#This Row],[Cycle]])*MeterReadSch[Begin Bill Period]) -> 45905 | G21: =SUMPRODUCT((MeterReadSch[MonthBill]=SEMOCycles[[#This Row],[MonthBill]])*(MeterReadSch[Cycle]=SEMOCycles[[#This Row],[Cycle]])*MeterReadSch[End Bill Period]) -> 45932 | H21: =IF(SEMOCycles[[#This Row],[CustClass]]="Res",SUMPRODUCT((SEMOTempAct[Date]>=SEMOCycles[[#This Row],[FlowBegin]])*(SEMOTempAct[Date]<=SEMOCycles[[#This Row],[FlowEnd]])*SEMOTempAct[CGIResNHDD65]),SUMPRODUCT((SEMOTempAct[Date]>=SEMOCycles[[#This Row],[FlowBegin]])*(SEMOTempAct[Date]<=SEMOCycles[[#This Row],[FlowEnd]])*SEMOTempAct[CGISGSNHDD60])) -> 37.27 | I21: =IF(SEMOCycles[[#This Row],[CustClass]]="Res",SUMPRODUCT((SEMOTempAct[Date]>=SEMOCycles[[#This Row],[FlowBegin]])*(SEMOTempAct[Date]<=SEMOCycles[[#This Row],[FlowEnd]])*SEMOTempAct[CGIResHDD65]),SUMPRODUCT((SEMOTempAct[Date]>=SEMOCycles[[#This Row],[FlowBegin]])*(SEMOTempAct[Date]<=SEMOCycles[[#This Row],[FlowEnd]])*SEMOTempAct[CGISGSHDD60])) -> 12.5 | J21: =SEMOCycles[[#This Row],[NHDD]]-SEMOCycles[[#This Row],[AHDD]] -> 24.77 | K21: =SEMOCycles[[#This Row],[NoOfBills]]*SEMOCycles[[#This Row],[HDDDiff]] -> 186245.63 | L21: =SUMPRODUCT((BetaCoeff[BeginDate]<=SEMOCycles[[#This Row],[FlowBegin]])*(BetaCoeff[EndDate]>=SEMOCycles[[#This Row],[FlowEnd]])*(BetaCoeff[SAPRateCategory]=SEMOCycles[[#This Row],[SAPRateCategory]])*BetaCoeff[BetaCoeff]) -> 0.1408 | M21: =SEMOCycles[[#This Row],[Diff*NoOfBills]]*SEMOCycles[[#This Row],[BetaCoeff]] -> 26223.3847 | N21: =SUMPRODUCT((SEMOCycles[[#This Row],[FlowBegin]]>=VolRates[BeginDate])*(SEMOCycles[[#This Row],[FlowEnd]]<=VolRates[EndDate])*(SEMOCycles[[#This Row],[Region]]=VolRates[Region])*(SEMOCycles[[#This Row],[CustClass]]=VolRates[CustClass])*VolRates[VolRate]) -> 0.31279 | O21: =SEMOCycles[[#This Row],[WNAFactor]]*SEMOCycles[[#This Row],[VolRate]] -> 8202.412502 | P21: =INDEX(RateSched[Territory],MATCH(SEMOCycles[[#This Row],[SAPRateCategory]],RateSched[SAPRateCategory],0)) -> SEMO | Q21: =INDEX(RateSched[Region],MATCH(SEMOCycles[[#This Row],[SAPRateCategory]],RateSched[SAPRateCategory],0)) -> SEMO | R21: =INDEX(RateSched[CustClassShort],MATCH(SEMOCycles[[#This Row],[SAPRateCategory]],RateSched[SAPRateCategory],0)) -> Res | S21: =INDEX(RateSched[ProfitCenter],MATCH(SEMOCycles[[#This Row],[SAPRateCategory]],RateSched[SAPRateCategory],0)) -> 10244
A22: =EDATE(SEMOCycles[[#This Row],[MonthBill]],-1) -> 45901 | B22: 45931 | C22: SMGR_RFS | D22: 7 | E22: 9601 | F22: =SUMPRODUCT((MeterReadSch[MonthBill]=SEMOCycles[[#This Row],[MonthBill]])*(MeterReadSch[Cycle]=SEMOCycles[[#This Row],[Cycle]])*MeterReadSch[Begin Bill Period]) -> 45906 | G22: =SUMPRODUCT((MeterReadSch[MonthBill]=SEMOCycles[[#This Row],[MonthBill]])*(MeterReadSch[Cycle]=SEMOCycles[[#This Row],[Cycle]])*MeterReadSch[End Bill Period]) -> 45937 | H22: =IF(SEMOCycles[[#This Row],[CustClass]]="Res",SUMPRODUCT((SEMOTempAct[Date]>=SEMOCycles[[#This Row],[FlowBegin]])*(SEMOTempAct[Date]<=SEMOCycles[[#This Row],[FlowEnd]])*SEMOTempAct[CGIResNHDD65]),SUMPRODUCT((SEMOTempAct[Date]>=SEMOCycles[[#This Row],[FlowBegin]])*(SEMOTempAct[Date]<=SEMOCycles[[#This Row],[FlowEnd]])*SEMOTempAct[CGISGSNHDD60])) -> 60.11 | I22: =IF(SEMOCycles[[#This Row],[CustClass]]="Res",SUMPRODUCT((SEMOTempAct[Date]>=SEMOCycles[[#This Row],[FlowBegin]])*(SEMOTempAct[Date]<=SEMOCycles[[#This Row],[FlowEnd]])*SEMOTempAct[CGIResHDD65]),SUMPRODUCT((SEMOTempAct[Date]>=SEMOCycles[[#This Row],[FlowBegin]])*(SEMOTempAct[Date]<=SEMOCycles[[#This Row],[FlowEnd]])*SEMOTempAct[CGISGSHDD60])) -> 12.5 | J22: =SEMOCycles[[#This Row],[NHDD]]-SEMOCycles[[#This Row],[AHDD]] -> 47.61 | K22: =SEMOCycles[[#This Row],[NoOfBills]]*SEMOCycles[[#This Row],[HDDDiff]] -> 457103.61 | L22: =SUMPRODUCT((BetaCoeff[BeginDate]<=SEMOCycles[[#This Row],[FlowBegin]])*(BetaCoeff[EndDate]>=SEMOCycles[[#This Row],[FlowEnd]])*(BetaCoeff[SAPRateCategory]=SEMOCycles[[#This Row],[SAPRateCategory]])*BetaCoeff[BetaCoeff]) -> 0.1408 | M22: =SEMOCycles[[#This Row],[Diff*NoOfBills]]*SEMOCycles[[#This Row],[BetaCoeff]] -> 64360.18829 | N22: =SUMPRODUCT((SEMOCycles[[#This Row],[FlowBegin]]>=VolRates[BeginDate])*(SEMOCycles[[#This Row],[FlowEnd]]<=VolRates[EndDate])*(SEMOCycles[[#This Row],[Region]]=VolRates[Region])*(SEMOCycles[[#This Row],[CustClass]]=VolRates[CustClass])*VolRates[VolRate]) -> 0.31279 | O22: =SEMOCycles[[#This Row],[WNAFactor]]*SEMOCycles[[#This Row],[VolRate]] -> 20131.22329 | P22: =INDEX(RateSched[Territory],MATCH(SEMOCycles[[#This Row],[SAPRateCategory]],RateSched[SAPRateCategory],0)) -> SEMO | Q22: =INDEX(RateSched[Region],MATCH(SEMOCycles[[#This Row],[SAPRateCategory]],RateSched[SAPRateCategory],0)) -> SEMO | R22: =INDEX(RateSched[CustClassShort],MATCH(SEMOCycles[[#This Row],[SAPRateCategory]],RateSched[SAPRateCategory],0)) -> Res | S22: =INDEX(RateSched[ProfitCenter],MATCH(SEMOCycles[[#This Row],[SAPRateCategory]],RateSched[SAPRateCategory],0)) -> 10244
A23: =EDATE(SEMOCycles[[#This Row],[MonthBill]],-1) -> 45901 | B23: 45931 | C23: SMGR_RFS | D23: 15 | E23: 9452 | F23: =SUMPRODUCT((MeterReadSch[MonthBill]=SEMOCycles[[#This Row],[MonthBill]])*(MeterReadSch[Cycle]=SEMOCycles[[#This Row],[Cycle]])*MeterReadSch[Begin Bill Period]) -> 45918 | G23: =SUMPRODUCT((MeterReadSch[MonthBill]=SEMOCycles[[#This Row],[MonthBill]])*(MeterReadSch[Cycle]=SEMOCycles[[#This Row],[Cycle]])*MeterReadSch[End Bill Period]) -> 45946 | H23: =IF(SEMOCycles[[#This Row],[CustClass]]="Res",SUMPRODUCT((SEMOTempAct[Date]>=SEMOCycles[[#This Row],[FlowBegin]])*(SEMOTempAct[Date]<=SEMOCycles[[#This Row],[FlowEnd]])*SEMOTempAct[CGIResNHDD65]),SUMPRODUCT((SEMOTempAct[Date]>=SEMOCycles[[#This Row],[FlowBegin]])*(SEMOTempAct[Date]<=SEMOCycles[[#This Row],[FlowEnd]])*SEMOTempAct[CGISGSNHDD60])) -> 110.6 | I23: =IF(SEMOCycles[[#This Row],[CustClass]]="Res",SUMPRODUCT((SEMOTempAct[Date]>=SEMOCycles[[#This Row],[FlowBegin]])*(SEMOTempAct[Date]<=SEMOCycles[[#This Row],[FlowEnd]])*SEMOTempAct[CGIResHDD65]),SUMPRODUCT((SEMOTempAct[Date]>=SEMOCycles[[#This Row],[FlowBegin]])*(SEMOTempAct[Date]<=SEMOCycles[[#This Row],[FlowEnd]])*SEMOTempAct[CGISGSHDD60])) -> 23.5 | J23: =SEMOCycles[[#This Row],[NHDD]]-SEMOCycles[[#This Row],[AHDD]] -> 87.1 | K23: =SEMOCycles[[#This Row],[NoOfBills]]*SEMOCycles[[#This Row],[HDDDiff]] -> 823269.2 | L23: =SUMPRODUCT((BetaCoeff[BeginDate]<=SEMOCycles[[#This Row],[FlowBegin]])*(BetaCoeff[EndDate]>=SEMOCycles[[#This Row],[FlowEnd]])*(BetaCoeff[SAPRateCategory]=SEMOCycles[[#This Row],[SAPRateCategory]])*BetaCoeff[BetaCoeff]) -> 0.1408 | M23: =SEMOCycles[[#This Row],[Diff*NoOfBills]]*SEMOCycles[[#This Row],[BetaCoeff]] -> 115916.3034 | N23: =SUMPRODUCT((SEMOCycles[[#This Row],[FlowBegin]]>=VolRates[BeginDate])*(SEMOCycles[[#This Row],[FlowEnd]]<=VolRates[EndDate])*(SEMOCycles[[#This Row],[Region]]=VolRates[Region])*(SEMOCycles[[#This Row],[CustClass]]=VolRates[CustClass])*VolRates[VolRate]) -> 0.31279 | O23: =SEMOCycles[[#This Row],[WNAFactor]]*SEMOCycles[[#This Row],[VolRate]] -> 36257.46053 | P23: =INDEX(RateSched[Territory],MATCH(SEMOCycles[[#This Row],[SAPRateCategory]],RateSched[SAPRateCategory],0)) -> SEMO | Q23: =INDEX(RateSched[Region],MATCH(SEMOCycles[[#This Row],[SAPRateCategory]],RateSched[SAPRateCategory],0)) -> SEMO | R23: =INDEX(RateSched[CustClassShort],MATCH(SEMOCycles[[#This Row],[SAPRateCategory]],RateSched[SAPRateCategory],0)) -> Res | S23: =INDEX(RateSched[ProfitCenter],MATCH(SEMOCycles[[#This Row],[SAPRateCategory]],RateSched[SAPRateCategory],0)) -> 10244
A24: =EDATE(SEMOCycles[[#This Row],[MonthBill]],-1) -> 45931 | B24: 45962 | C24: SMGC_SFGS | D24: 6 | E24: 1104 | F24: =SUMPRODUCT((MeterReadSch[MonthBill]=SEMOCycles[[#This Row],[MonthBill]])*(MeterReadSch[Cycle]=SEMOCycles[[#This Row],[Cycle]])*MeterReadSch[Begin Bill Period]) -> 45933 | G24: =SUMPRODUCT((MeterReadSch[MonthBill]=SEMOCycles[[#This Row],[MonthBill]])*(MeterReadSch[Cycle]=SEMOCycles[[#This Row],[Cycle]])*MeterReadSch[End Bill Period]) -> 45966 | H24: =IF(SEMOCycles[[#This Row],[CustClass]]="Res",SUMPRODUCT((SEMOTempAct[Date]>=SEMOCycles[[#This Row],[FlowBegin]])*(SEMOTempAct[Date]<=SEMOCycles[[#This Row],[FlowEnd]])*SEMOTempAct[CGIResNHDD65]),SUMPRODUCT((SEMOTempAct[Date]>=SEMOCycles[[#This Row],[FlowBegin]])*(SEMOTempAct[Date]<=SEMOCycles[[#This Row],[FlowEnd]])*SEMOTempAct[CGISGSNHDD60])) -> 177.49 | I24: =IF(SEMOCycles[[#This Row],[CustClass]]="Res",SUMPRODUCT((SEMOTempAct[Date]>=SEMOCycles[[#This Row],[FlowBegin]])*(SEMOTempAct[Date]<=SEMOCycles[[#This Row],[FlowEnd]])*SEMOTempAct[CGIResHDD65]),SUMPRODUCT((SEMOTempAct[Date]>=SEMOCycles[[#This Row],[FlowBegin]])*(SEMOTempAct[Date]<=SEMOCycles[[#This Row],[FlowEnd]])*SEMOTempAct[CGISGSHDD60])) -> 143.5 | J24: =SEMOCycles[[#This Row],[NHDD]]-SEMOCycles[[#This Row],[AHDD]] -> 33.99 | K24: =SEMOCycles[[#This Row],[NoOfBills]]*SEMOCycles[[#This Row],[HDDDiff]] -> 37524.96 | L24: =SUMPRODUCT((BetaCoeff[BeginDate]<=SEMOCycles[[#This Row],[FlowBegin]])*(BetaCoeff[EndDate]>=SEMOCycles[[#This Row],[FlowEnd]])*(BetaCoeff[SAPRateCategory]=SEMOCycles[[#This Row],[SAPRateCategory]])*BetaCoeff[BetaCoeff]) -> 0.32963 | M24: =SEMOCycles[[#This Row],[Diff*NoOfBills]]*SEMOCycles[[#This Row],[BetaCoeff]] -> 12369.35256 | N24: =SUMPRODUCT((SEMOCycles[[#This Row],[FlowBegin]]>=VolRates[BeginDate])*(SEMOCycles[[#This Row],[FlowEnd]]<=VolRates[EndDate])*(SEMOCycles[[#This Row],[Region]]=VolRates[Region])*(SEMOCycles[[#This Row],[CustClass]]=VolRates[CustClass])*VolRates[VolRate]) -> 0.10651 | O24: =SEMOCycles[[#This Row],[WNAFactor]]*SEMOCycles[[#This Row],[VolRate]] -> 1317.459742 | P24: =INDEX(RateSched[Territory],MATCH(SEMOCycles[[#This Row],[SAPRateCategory]],RateSched[SAPRateCategory],0)) -> SEMO | Q24: =INDEX(RateSched[Region],MATCH(SEMOCycles[[#This Row],[SAPRateCategory]],RateSched[SAPRateCategory],0)) -> SEMO | R24: =INDEX(RateSched[CustClassShort],MATCH(SEMOCycles[[#This Row],[SAPRateCategory]],RateSched[SAPRateCategory],0)) -> SGS | S24: =INDEX(RateSched[ProfitCenter],MATCH(SEMOCycles[[#This Row],[SAPRateCategory]],RateSched[SAPRateCategory],0)) -> 10244
A25: =EDATE(SEMOCycles[[#This Row],[MonthBill]],-1) -> 45931 | B25: 45962 | C25: SMGC_SFGS | D25: 7 | E25: 993 | F25: =SUMPRODUCT((MeterReadSch[MonthBill]=SEMOCycles[[#This Row],[MonthBill]])*(MeterReadSch[Cycle]=SEMOCycles[[#This Row],[Cycle]])*MeterReadSch[Begin Bill Period]) -> 45938 | G25: =SUMPRODUCT((MeterReadSch[MonthBill]=SEMOCycles[[#This Row],[MonthBill]])*(MeterReadSch[Cycle]=SEMOCycles[[#This Row],[Cycle]])*MeterReadSch[End Bill Period]) -> 45968 | H25: =IF(SEMOCycles[[#This Row],[CustClass]]="Res",SUMPRODUCT((SEMOTempAct[Date]>=SEMOCycles[[#This Row],[FlowBegin]])*(SEMOTempAct[Date]<=SEMOCycles[[#This Row],[FlowEnd]])*SEMOTempAct[CGIResNHDD65]),SUMPRODUCT((SEMOTempAct[Date]>=SEMOCycles[[#This Row],[FlowBegin]])*(SEMOTempAct[Date]<=SEMOCycles[[#This Row],[FlowEnd]])*SEMOTempAct[CGISGSNHDD60])) -> 187.19 | I25: =IF(SEMOCycles[[#This Row],[CustClass]]="Res",SUMPRODUCT((SEMOTempAct[Date]>=SEMOCycles[[#This Row],[FlowBegin]])*(SEMOTempAct[Date]<=SEMOCycles[[#This Row],[FlowEnd]])*SEMOTempAct[CGIResHDD65]),SUMPRODUCT((SEMOTempAct[Date]>=SEMOCycles[[#This Row],[FlowBegin]])*(SEMOTempAct[Date]<=SEMOCycles[[#This Row],[FlowEnd]])*SEMOTempAct[CGISGSHDD60])) -> 153 | J25: =SEMOCycles[[#This Row],[NHDD]]-SEMOCycles[[#This Row],[AHDD]] -> 34.19 | K25: =SEMOCycles[[#This Row],[NoOfBills]]*SEMOCycles[[#This Row],[HDDDiff]] -> 33950.67 | L25: =SUMPRODUCT((BetaCoeff[BeginDate]<=SEMOCycles[[#This Row],[FlowBegin]])*(BetaCoeff[EndDate]>=SEMOCycles[[#This Row],[FlowEnd]])*(BetaCoeff[SAPRateCategory]=SEMOCycles[[#This Row],[SAPRateCategory]])*BetaCoeff[BetaCoeff]) -> 0.32963 | M25: =SEMOCycles[[#This Row],[Diff*NoOfBills]]*SEMOCycles[[#This Row],[BetaCoeff]] -> 11191.15935 | N25: =SUMPRODUCT((SEMOCycles[[#This Row],[FlowBegin]]>=VolRates[BeginDate])*(SEMOCycles[[#This Row],[FlowEnd]]<=VolRates[EndDate])*(SEMOCycles[[#This Row],[Region]]=VolRates[Region])*(SEMOCycles[[#This Row],[CustClass]]=VolRates[CustClass])*VolRates[VolRate]) -> 0.10651 | O25: =SEMOCycles[[#This Row],[WNAFactor]]*SEMOCycles[[#This Row],[VolRate]] -> 1191.970383 | P25: =INDEX(RateSched[Territory],MATCH(SEMOCycles[[#This Row],[SAPRateCategory]],RateSched[SAPRateCategory],0)) -> SEMO | Q25: =INDEX(RateSched[Region],MATCH(SEMOCycles[[#This Row],[SAPRateCategory]],RateSched[SAPRateCategory],0)) -> SEMO | R25: =INDEX(RateSched[CustClassShort],MATCH(SEMOCycles[[#This Row],[SAPRateCategory]],RateSched[SAPRateCategory],0)) -> SGS | S25: =INDEX(RateSched[ProfitCenter],MATCH(SEMOCycles[[#This Row],[SAPRateCategory]],RateSched[SAPRateCategory],0)) -> 10244
A26: =EDATE(SEMOCycles[[#This Row],[MonthBill]],-1) -> 45931 | B26: 45962 | C26: SMGC_SFGS | D26: 15 | E26: 1100 | F26: =SUMPRODUCT((MeterReadSch[MonthBill]=SEMOCycles[[#This Row],[MonthBill]])*(MeterReadSch[Cycle]=SEMOCycles[[#This Row],[Cycle]])*MeterReadSch[Begin Bill Period]) -> 45947 | G26: =SUMPRODUCT((MeterReadSch[MonthBill]=SEMOCycles[[#This Row],[MonthBill]])*(MeterReadSch[Cycle]=SEMOCycles[[#This Row],[Cycle]])*MeterReadSch[End Bill Period]) -> 45980 | H26: =IF(SEMOCycles[[#This Row],[CustClass]]="Res",SUMPRODUCT((SEMOTempAct[Date]>=SEMOCycles[[#This Row],[FlowBegin]])*(SEMOTempAct[Date]<=SEMOCycles[[#This Row],[FlowEnd]])*SEMOTempAct[CGIResNHDD65]),SUMPRODUCT((SEMOTempAct[Date]>=SEMOCycles[[#This Row],[FlowBegin]])*(SEMOTempAct[Date]<=SEMOCycles[[#This Row],[FlowEnd]])*SEMOTempAct[CGISGSNHDD60])) -> 324.37 | I26: =IF(SEMOCycles[[#This Row],[CustClass]]="Res",SUMPRODUCT((SEMOTempAct[Date]>=SEMOCycles[[#This Row],[FlowBegin]])*(SEMOTempAct[Date]<=SEMOCycles[[#This Row],[FlowEnd]])*SEMOTempAct[CGIResHDD65]),SUMPRODUCT((SEMOTempAct[Date]>=SEMOCycles[[#This Row],[FlowBegin]])*(SEMOTempAct[Date]<=SEMOCycles[[#This Row],[FlowEnd]])*SEMOTempAct[CGISGSHDD60])) -> 272.5 | J26: =SEMOCycles[[#This Row],[NHDD]]-SEMOCycles[[#This Row],[AHDD]] -> 51.87 | K26: =SEMOCycles[[#This Row],[NoOfBills]]*SEMOCycles[[#This Row],[HDDDiff]] -> 57057 | L26: =SUMPRODUCT((BetaCoeff[BeginDate]<=SEMOCycles[[#This Row],[FlowBegin]])*(BetaCoeff[EndDate]>=SEMOCycles[[#This Row],[FlowEnd]])*(BetaCoeff[SAPRateCategory]=SEMOCycles[[#This Row],[SAPRateCategory]])*BetaCoeff[BetaCoeff]) -> 0.32963 | M26: =SEMOCycles[[#This Row],[Diff*NoOfBills]]*SEMOCycles[[#This Row],[BetaCoeff]] -> 18807.69891 | N26: =SUMPRODUCT((SEMOCycles[[#This Row],[FlowBegin]]>=VolRates[BeginDate])*(SEMOCycles[[#This Row],[FlowEnd]]<=VolRates[EndDate])*(SEMOCycles[[#This Row],[Region]]=VolRates[Region])*(SEMOCycles[[#This Row],[CustClass]]=VolRates[CustClass])*VolRates[VolRate]) -> 0.10651 | O26: =SEMOCycles[[#This Row],[WNAFactor]]*SEMOCycles[[#This Row],[VolRate]] -> 2003.208011 | P26: =INDEX(RateSched[Territory],MATCH(SEMOCycles[[#This Row],[SAPRateCategory]],RateSched[SAPRateCategory],0)) -> SEMO | Q26: =INDEX(RateSched[Region],MATCH(SEMOCycles[[#This Row],[SAPRateCategory]],RateSched[SAPRateCategory],0)) -> SEMO | R26: =INDEX(RateSched[CustClassShort],MATCH(SEMOCycles[[#This Row],[SAPRateCategory]],RateSched[SAPRateCategory],0)) -> SGS | S26: =INDEX(RateSched[ProfitCenter],MATCH(SEMOCycles[[#This Row],[SAPRateCategory]],RateSched[SAPRateCategory],0)) -> 10244
A27: =EDATE(SEMOCycles[[#This Row],[MonthBill]],-1) -> 45931 | B27: 45962 | C27: SMGC_SFGS | D27: 20 | E27: 2 | F27: =SUMPRODUCT((MeterReadSch[MonthBill]=SEMOCycles[[#This Row],[MonthBill]])*(MeterReadSch[Cycle]=SEMOCycles[[#This Row],[Cycle]])*MeterReadSch[Begin Bill Period]) -> 45962 | G27: =SUMPRODUCT((MeterReadSch[MonthBill]=SEMOCycles[[#This Row],[MonthBill]])*(MeterReadSch[Cycle]=SEMOCycles[[#This Row],[Cycle]])*MeterReadSch[End Bill Period]) -> 45987 | H27: =IF(SEMOCycles[[#This Row],[CustClass]]="Res",SUMPRODUCT((SEMOTempAct[Date]>=SEMOCycles[[#This Row],[FlowBegin]])*(SEMOTempAct[Date]<=SEMOCycles[[#This Row],[FlowEnd]])*SEMOTempAct[CGIResNHDD65]),SUMPRODUCT((SEMOTempAct[Date]>=SEMOCycles[[#This Row],[FlowBegin]])*(SEMOTempAct[Date]<=SEMOCycles[[#This Row],[FlowEnd]])*SEMOTempAct[CGISGSNHDD60])) -> 340.97 | I27: =IF(SEMOCycles[[#This Row],[CustClass]]="Res",SUMPRODUCT((SEMOTempAct[Date]>=SEMOCycles[[#This Row],[FlowBegin]])*(SEMOTempAct[Date]<=SEMOCycles[[#This Row],[FlowEnd]])*SEMOTempAct[CGIResHDD65]),SUMPRODUCT((SEMOTempAct[Date]>=SEMOCycles[[#This Row],[FlowBegin]])*(SEMOTempAct[Date]<=SEMOCycles[[#This Row],[FlowEnd]])*SEMOTempAct[CGISGSHDD60])) -> 247 | J27: =SEMOCycles[[#This Row],[NHDD]]-SEMOCycles[[#This Row],[AHDD]] -> 93.97 | K27: =SEMOCycles[[#This Row],[NoOfBills]]*SEMOCycles[[#This Row],[HDDDiff]] -> 187.94 | L27: =SUMPRODUCT((BetaCoeff[BeginDate]<=SEMOCycles[[#This Row],[FlowBegin]])*(BetaCoeff[EndDate]>=SEMOCycles[[#This Row],[FlowEnd]])*(BetaCoeff[SAPRateCategory]=SEMOCycles[[#This Row],[SAPRateCategory]])*BetaCoeff[BetaCoeff]) -> 0.32963 | M27: =SEMOCycles[[#This Row],[Diff*NoOfBills]]*SEMOCycles[[#This Row],[BetaCoeff]] -> 61.9506622 | N27: =SUMPRODUCT((SEMOCycles[[#This Row],[FlowBegin]]>=VolRates[BeginDate])*(SEMOCycles[[#This Row],[FlowEnd]]<=VolRates[EndDate])*(SEMOCycles[[#This Row],[Region]]=VolRates[Region])*(SEMOCycles[[#This Row],[CustClass]]=VolRates[CustClass])*VolRates[VolRate]) -> 0.10651 | O27: =SEMOCycles[[#This Row],[WNAFactor]]*SEMOCycles[[#This Row],[VolRate]] -> 6.598365031 | P27: =INDEX(RateSched[Territory],MATCH(SEMOCycles[[#This Row],[SAPRateCategory]],RateSched[SAPRateCategory],0)) -> SEMO | Q27: =INDEX(RateSched[Region],MATCH(SEMOCycles[[#This Row],[SAPRateCategory]],RateSched[SAPRateCategory],0)) -> SEMO | R27: =INDEX(RateSched[CustClassShort],MATCH(SEMOCycles[[#This Row],[SAPRateCategory]],RateSched[SAPRateCategory],0)) -> SGS | S27: =INDEX(RateSched[ProfitCenter],MATCH(SEMOCycles[[#This Row],[SAPRateCategory]],RateSched[SAPRateCategory],0)) -> 10244
A28: =EDATE(SEMOCycles[[#This Row],[MonthBill]],-1) -> 45931 | B28: 45962 | C28: SMGR_RFS | D28: 6 | E28: 7517 | F28: =SUMPRODUCT((MeterReadSch[MonthBill]=SEMOCycles[[#This Row],[MonthBill]])*(MeterReadSch[Cycle]=SEMOCycles[[#This Row],[Cycle]])*MeterReadSch[Begin Bill Period]) -> 45933 | G28: =SUMPRODUCT((MeterReadSch[MonthBill]=SEMOCycles[[#This Row],[MonthBill]])*(MeterReadSch[Cycle]=SEMOCycles[[#This Row],[Cycle]])*MeterReadSch[End Bill Period]) -> 45966 | H28: =IF(SEMOCycles[[#This Row],[CustClass]]="Res",SUMPRODUCT((SEMOTempAct[Date]>=SEMOCycles[[#This Row],[FlowBegin]])*(SEMOTempAct[Date]<=SEMOCycles[[#This Row],[FlowEnd]])*SEMOTempAct[CGIResNHDD65]),SUMPRODUCT((SEMOTempAct[Date]>=SEMOCycles[[#This Row],[FlowBegin]])*(SEMOTempAct[Date]<=SEMOCycles[[#This Row],[FlowEnd]])*SEMOTempAct[CGISGSNHDD60])) -> 298.46 | I28: =IF(SEMOCycles[[#This Row],[CustClass]]="Res",SUMPRODUCT((SEMOTempAct[Date]>=SEMOCycles[[#This Row],[FlowBegin]])*(SEMOTempAct[Date]<=SEMOCycles[[#This Row],[FlowEnd]])*SEMOTempAct[CGIResHDD65]),SUMPRODUCT((SEMOTempAct[Date]>=SEMOCycles[[#This Row],[FlowBegin]])*(SEMOTempAct[Date]<=SEMOCycles[[#This Row],[FlowEnd]])*SEMOTempAct[CGISGSHDD60])) -> 251.5 | J28: =SEMOCycles[[#This Row],[NHDD]]-SEMOCycles[[#This Row],[AHDD]] -> 46.96 | K28: =SEMOCycles[[#This Row],[NoOfBills]]*SEMOCycles[[#This Row],[HDDDiff]] -> 352998.32 | L28: =SUMPRODUCT((BetaCoeff[BeginDate]<=SEMOCycles[[#This Row],[FlowBegin]])*(BetaCoeff[EndDate]>=SEMOCycles[[#This Row],[FlowEnd]])*(BetaCoeff[SAPRateCategory]=SEMOCycles[[#This Row],[SAPRateCategory]])*BetaCoeff[BetaCoeff]) -> 0.1408 | M28: =SEMOCycles[[#This Row],[Diff*NoOfBills]]*SEMOCycles[[#This Row],[BetaCoeff]] -> 49702.16346 | N28: =SUMPRODUCT((SEMOCycles[[#This Row],[FlowBegin]]>=VolRates[BeginDate])*(SEMOCycles[[#This Row],[FlowEnd]]<=VolRates[EndDate])*(SEMOCycles[[#This Row],[Region]]=VolRates[Region])*(SEMOCycles[[#This Row],[CustClass]]=VolRates[CustClass])*VolRates[VolRate]) -> 0.31279 | O28: =SEMOCycles[[#This Row],[WNAFactor]]*SEMOCycles[[#This Row],[VolRate]] -> 15546.33971 | P28: =INDEX(RateSched[Territory],MATCH(SEMOCycles[[#This Row],[SAPRateCategory]],RateSched[SAPRateCategory],0)) -> SEMO | Q28: =INDEX(RateSched[Region],MATCH(SEMOCycles[[#This Row],[SAPRateCategory]],RateSched[SAPRateCategory],0)) -> SEMO | R28: =INDEX(RateSched[CustClassShort],MATCH(SEMOCycles[[#This Row],[SAPRateCategory]],RateSched[SAPRateCategory],0)) -> Res | S28: =INDEX(RateSched[ProfitCenter],MATCH(SEMOCycles[[#This Row],[SAPRateCategory]],RateSched[SAPRateCategory],0)) -> 10244
A29: =EDATE(SEMOCycles[[#This Row],[MonthBill]],-1) -> 45931 | B29: 45962 | C29: SMGR_RFS | D29: 7 | E29: 9737 | F29: =SUMPRODUCT((MeterReadSch[MonthBill]=SEMOCycles[[#This Row],[MonthBill]])*(MeterReadSch[Cycle]=SEMOCycles[[#This Row],[Cycle]])*MeterReadSch[Begin Bill Period]) -> 45938 | G29: =SUMPRODUCT((MeterReadSch[MonthBill]=SEMOCycles[[#This Row],[MonthBill]])*(MeterReadSch[Cycle]=SEMOCycles[[#This Row],[Cycle]])*MeterReadSch[End Bill Period]) -> 45968 | H29: =IF(SEMOCycles[[#This Row],[CustClass]]="Res",SUMPRODUCT((SEMOTempAct[Date]>=SEMOCycles[[#This Row],[FlowBegin]])*(SEMOTempAct[Date]<=SEMOCycles[[#This Row],[FlowEnd]])*SEMOTempAct[CGIResNHDD65]),SUMPRODUCT((SEMOTempAct[Date]>=SEMOCycles[[#This Row],[FlowBegin]])*(SEMOTempAct[Date]<=SEMOCycles[[#This Row],[FlowEnd]])*SEMOTempAct[CGISGSNHDD60])) -> 306.07 | I29: =IF(SEMOCycles[[#This Row],[CustClass]]="Res",SUMPRODUCT((SEMOTempAct[Date]>=SEMOCycles[[#This Row],[FlowBegin]])*(SEMOTempAct[Date]<=SEMOCycles[[#This Row],[FlowEnd]])*SEMOTempAct[CGIResHDD65]),SUMPRODUCT((SEMOTempAct[Date]>=SEMOCycles[[#This Row],[FlowBegin]])*(SEMOTempAct[Date]<=SEMOCycles[[#This Row],[FlowEnd]])*SEMOTempAct[CGISGSHDD60])) -> 271 | J29: =SEMOCycles[[#This Row],[NHDD]]-SEMOCycles[[#This Row],[AHDD]] -> 35.07 | K29: =SEMOCycles[[#This Row],[NoOfBills]]*SEMOCycles[[#This Row],[HDDDiff]] -> 341476.59 | L29: =SUMPRODUCT((BetaCoeff[BeginDate]<=SEMOCycles[[#This Row],[FlowBegin]])*(BetaCoeff[EndDate]>=SEMOCycles[[#This Row],[FlowEnd]])*(BetaCoeff[SAPRateCategory]=SEMOCycles[[#This Row],[SAPRateCategory]])*BetaCoeff[BetaCoeff]) -> 0.1408 | M29: =SEMOCycles[[#This Row],[Diff*NoOfBills]]*SEMOCycles[[#This Row],[BetaCoeff]] -> 48079.90387 | N29: =SUMPRODUCT((SEMOCycles[[#This Row],[FlowBegin]]>=VolRates[BeginDate])*(SEMOCycles[[#This Row],[FlowEnd]]<=VolRates[EndDate])*(SEMOCycles[[#This Row],[Region]]=VolRates[Region])*(SEMOCycles[[#This Row],[CustClass]]=VolRates[CustClass])*VolRates[VolRate]) -> 0.31279 | O29: =SEMOCycles[[#This Row],[WNAFactor]]*SEMOCycles[[#This Row],[VolRate]] -> 15038.91313 | P29: =INDEX(RateSched[Territory],MATCH(SEMOCycles[[#This Row],[SAPRateCategory]],RateSched[SAPRateCategory],0)) -> SEMO | Q29: =INDEX(RateSched[Region],MATCH(SEMOCycles[[#This Row],[SAPRateCategory]],RateSched[SAPRateCategory],0)) -> SEMO | R29: =INDEX(RateSched[CustClassShort],MATCH(SEMOCycles[[#This Row],[SAPRateCategory]],RateSched[SAPRateCategory],0)) -> Res | S29: =INDEX(RateSched[ProfitCenter],MATCH(SEMOCycles[[#This Row],[SAPRateCategory]],RateSched[SAPRateCategory],0)) -> 10244
A30: =EDATE(SEMOCycles[[#This Row],[MonthBill]],-1) -> 45931 | B30: 45962 | C30: SMGR_RFS | D30: 15 | E30: 9484 | F30: =SUMPRODUCT((MeterReadSch[MonthBill]=SEMOCycles[[#This Row],[MonthBill]])*(MeterReadSch[Cycle]=SEMOCycles[[#This Row],[Cycle]])*MeterReadSch[Begin Bill Period]) -> 45947 | G30: =SUMPRODUCT((MeterReadSch[MonthBill]=SEMOCycles[[#This Row],[MonthBill]])*(MeterReadSch[Cycle]=SEMOCycles[[#This Row],[Cycle]])*MeterReadSch[End Bill Period]) -> 45980 | H30: =IF(SEMOCycles[[#This Row],[CustClass]]="Res",SUMPRODUCT((SEMOTempAct[Date]>=SEMOCycles[[#This Row],[FlowBegin]])*(SEMOTempAct[Date]<=SEMOCycles[[#This Row],[FlowEnd]])*SEMOTempAct[CGIResNHDD65]),SUMPRODUCT((SEMOTempAct[Date]>=SEMOCycles[[#This Row],[FlowBegin]])*(SEMOTempAct[Date]<=SEMOCycles[[#This Row],[FlowEnd]])*SEMOTempAct[CGISGSNHDD60])) -> 472.25 | I30: =IF(SEMOCycles[[#This Row],[CustClass]]="Res",SUMPRODUCT((SEMOTempAct[Date]>=SEMOCycles[[#This Row],[FlowBegin]])*(SEMOTempAct[Date]<=SEMOCycles[[#This Row],[FlowEnd]])*SEMOTempAct[CGIResHDD65]),SUMPRODUCT((SEMOTempAct[Date]>=SEMOCycles[[#This Row],[FlowBegin]])*(SEMOTempAct[Date]<=SEMOCycles[[#This Row],[FlowEnd]])*SEMOTempAct[CGISGSHDD60])) -> 425.5 | J30: =SEMOCycles[[#This Row],[NHDD]]-SEMOCycles[[#This Row],[AHDD]] -> 46.75 | K30: =SEMOCycles[[#This Row],[NoOfBills]]*SEMOCycles[[#This Row],[HDDDiff]] -> 443377 | L30: =SUMPRODUCT((BetaCoeff[BeginDate]<=SEMOCycles[[#This Row],[FlowBegin]])*(BetaCoeff[EndDate]>=SEMOCycles[[#This Row],[FlowEnd]])*(BetaCoeff[SAPRateCategory]=SEMOCycles[[#This Row],[SAPRateCategory]])*BetaCoeff[BetaCoeff]) -> 0.1408 | M30: =SEMOCycles[[#This Row],[Diff*NoOfBills]]*SEMOCycles[[#This Row],[BetaCoeff]] -> 62427.4816 | N30: =SUMPRODUCT((SEMOCycles[[#This Row],[FlowBegin]]>=VolRates[BeginDate])*(SEMOCycles[[#This Row],[FlowEnd]]<=VolRates[EndDate])*(SEMOCycles[[#This Row],[Region]]=VolRates[Region])*(SEMOCycles[[#This Row],[CustClass]]=VolRates[CustClass])*VolRates[VolRate]) -> 0.31279 | O30: =SEMOCycles[[#This Row],[WNAFactor]]*SEMOCycles[[#This Row],[VolRate]] -> 19526.69197 | P30: =INDEX(RateSched[Territory],MATCH(SEMOCycles[[#This Row],[SAPRateCategory]],RateSched[SAPRateCategory],0)) -> SEMO | Q30: =INDEX(RateSched[Region],MATCH(SEMOCycles[[#This Row],[SAPRateCategory]],RateSched[SAPRateCategory],0)) -> SEMO | R30: =INDEX(RateSched[CustClassShort],MATCH(SEMOCycles[[#This Row],[SAPRateCategory]],RateSched[SAPRateCategory],0)) -> Res | S30: =INDEX(RateSched[ProfitCenter],MATCH(SEMOCycles[[#This Row],[SAPRateCategory]],RateSched[SAPRateCategory],0)) -> 10244
A31: =EDATE(SEMOCycles[[#This Row],[MonthBill]],-1) -> 45962 | B31: 45992 | C31: SMGC_SFGS | D31: 6 | E31: 1111 | F31: =SUMPRODUCT((MeterReadSch[MonthBill]=SEMOCycles[[#This Row],[MonthBill]])*(MeterReadSch[Cycle]=SEMOCycles[[#This Row],[Cycle]])*MeterReadSch[Begin Bill Period]) -> 45967 | G31: =SUMPRODUCT((MeterReadSch[MonthBill]=SEMOCycles[[#This Row],[MonthBill]])*(MeterReadSch[Cycle]=SEMOCycles[[#This Row],[Cycle]])*MeterReadSch[End Bill Period]) -> 45995 | H31: =IF(SEMOCycles[[#This Row],[CustClass]]="Res",SUMPRODUCT((SEMOTempAct[Date]>=SEMOCycles[[#This Row],[FlowBegin]])*(SEMOTempAct[Date]<=SEMOCycles[[#This Row],[FlowEnd]])*SEMOTempAct[CGIResNHDD65]),SUMPRODUCT((SEMOTempAct[Date]>=SEMOCycles[[#This Row],[FlowBegin]])*(SEMOTempAct[Date]<=SEMOCycles[[#This Row],[FlowEnd]])*SEMOTempAct[CGISGSNHDD60])) -> 443.56 | I31: =IF(SEMOCycles[[#This Row],[CustClass]]="Res",SUMPRODUCT((SEMOTempAct[Date]>=SEMOCycles[[#This Row],[FlowBegin]])*(SEMOTempAct[Date]<=SEMOCycles[[#This Row],[FlowEnd]])*SEMOTempAct[CGIResHDD65]),SUMPRODUCT((SEMOTempAct[Date]>=SEMOCycles[[#This Row],[FlowBegin]])*(SEMOTempAct[Date]<=SEMOCycles[[#This Row],[FlowEnd]])*SEMOTempAct[CGISGSHDD60])) -> 421.5 | J31: =SEMOCycles[[#This Row],[NHDD]]-SEMOCycles[[#This Row],[AHDD]] -> 22.06 | K31: =SEMOCycles[[#This Row],[NoOfBills]]*SEMOCycles[[#This Row],[HDDDiff]] -> 24508.66 | L31: =SUMPRODUCT((BetaCoeff[BeginDate]<=SEMOCycles[[#This Row],[FlowBegin]])*(BetaCoeff[EndDate]>=SEMOCycles[[#This Row],[FlowEnd]])*(BetaCoeff[SAPRateCategory]=SEMOCycles[[#This Row],[SAPRateCategory]])*BetaCoeff[BetaCoeff]) -> 0.32963 | M31: =SEMOCycles[[#This Row],[Diff*NoOfBills]]*SEMOCycles[[#This Row],[BetaCoeff]] -> 8078.789596 | N31: =SUMPRODUCT((SEMOCycles[[#This Row],[FlowBegin]]>=VolRates[BeginDate])*(SEMOCycles[[#This Row],[FlowEnd]]<=VolRates[EndDate])*(SEMOCycles[[#This Row],[Region]]=VolRates[Region])*(SEMOCycles[[#This Row],[CustClass]]=VolRates[CustClass])*VolRates[VolRate]) -> 0.10651 | O31: =SEMOCycles[[#This Row],[WNAFactor]]*SEMOCycles[[#This Row],[VolRate]] -> 860.4718798 | P31: =INDEX(RateSched[Territory],MATCH(SEMOCycles[[#This Row],[SAPRateCategory]],RateSched[SAPRateCategory],0)) -> SEMO | Q31: =INDEX(RateSched[Region],MATCH(SEMOCycles[[#This Row],[SAPRateCategory]],RateSched[SAPRateCategory],0)) -> SEMO | R31: =INDEX(RateSched[CustClassShort],MATCH(SEMOCycles[[#This Row],[SAPRateCategory]],RateSched[SAPRateCategory],0)) -> SGS | S31: =INDEX(RateSched[ProfitCenter],MATCH(SEMOCycles[[#This Row],[SAPRateCategory]],RateSched[SAPRateCategory],0)) -> 10244
A32: =EDATE(SEMOCycles[[#This Row],[MonthBill]],-1) -> 45962 | B32: 45992 | C32: SMGC_SFGS | D32: 7 | E32: 1006 | F32: =SUMPRODUCT((MeterReadSch[MonthBill]=SEMOCycles[[#This Row],[MonthBill]])*(MeterReadSch[Cycle]=SEMOCycles[[#This Row],[Cycle]])*MeterReadSch[Begin Bill Period]) -> 45969 | G32: =SUMPRODUCT((MeterReadSch[MonthBill]=SEMOCycles[[#This Row],[MonthBill]])*(MeterReadSch[Cycle]=SEMOCycles[[#This Row],[Cycle]])*MeterReadSch[End Bill Period]) -> 45996 | H32: =IF(SEMOCycles[[#This Row],[CustClass]]="Res",SUMPRODUCT((SEMOTempAct[Date]>=SEMOCycles[[#This Row],[FlowBegin]])*(SEMOTempAct[Date]<=SEMOCycles[[#This Row],[FlowEnd]])*SEMOTempAct[CGIResNHDD65]),SUMPRODUCT((SEMOTempAct[Date]>=SEMOCycles[[#This Row],[FlowBegin]])*(SEMOTempAct[Date]<=SEMOCycles[[#This Row],[FlowEnd]])*SEMOTempAct[CGISGSNHDD60])) -> 444.23 | I32: =IF(SEMOCycles[[#This Row],[CustClass]]="Res",SUMPRODUCT((SEMOTempAct[Date]>=SEMOCycles[[#This Row],[FlowBegin]])*(SEMOTempAct[Date]<=SEMOCycles[[#This Row],[FlowEnd]])*SEMOTempAct[CGIResHDD65]),SUMPRODUCT((SEMOTempAct[Date]>=SEMOCycles[[#This Row],[FlowBegin]])*(SEMOTempAct[Date]<=SEMOCycles[[#This Row],[FlowEnd]])*SEMOTempAct[CGISGSHDD60])) -> 444 | J32: =SEMOCycles[[#This Row],[NHDD]]-SEMOCycles[[#This Row],[AHDD]] -> 0.23 | K32: =SEMOCycles[[#This Row],[NoOfBills]]*SEMOCycles[[#This Row],[HDDDiff]] -> 231.38 | L32: =SUMPRODUCT((BetaCoeff[BeginDate]<=SEMOCycles[[#This Row],[FlowBegin]])*(BetaCoeff[EndDate]>=SEMOCycles[[#This Row],[FlowEnd]])*(BetaCoeff[SAPRateCategory]=SEMOCycles[[#This Row],[SAPRateCategory]])*BetaCoeff[BetaCoeff]) -> 0.32963 | M32: =SEMOCycles[[#This Row],[Diff*NoOfBills]]*SEMOCycles[[#This Row],[BetaCoeff]] -> 76.2697894 | N32: =SUMPRODUCT((SEMOCycles[[#This Row],[FlowBegin]]>=VolRates[BeginDate])*(SEMOCycles[[#This Row],[FlowEnd]]<=VolRates[EndDate])*(SEMOCycles[[#This Row],[Region]]=VolRates[Region])*(SEMOCycles[[#This Row],[CustClass]]=VolRates[CustClass])*VolRates[VolRate]) -> 0.10651 | O32: =SEMOCycles[[#This Row],[WNAFactor]]*SEMOCycles[[#This Row],[VolRate]] -> 8.123495269 | P32: =INDEX(RateSched[Territory],MATCH(SEMOCycles[[#This Row],[SAPRateCategory]],RateSched[SAPRateCategory],0)) -> SEMO | Q32: =INDEX(RateSched[Region],MATCH(SEMOCycles[[#This Row],[SAPRateCategory]],RateSched[SAPRateCategory],0)) -> SEMO | R32: =INDEX(RateSched[CustClassShort],MATCH(SEMOCycles[[#This Row],[SAPRateCategory]],RateSched[SAPRateCategory],0)) -> SGS | S32: =INDEX(RateSched[ProfitCenter],MATCH(SEMOCycles[[#This Row],[SAPRateCategory]],RateSched[SAPRateCategory],0)) -> 10244
A33: =EDATE(SEMOCycles[[#This Row],[MonthBill]],-1) -> 45962 | B33: 45992 | C33: SMGC_SFGS | D33: 15 | E33: 1132 | F33: =SUMPRODUCT((MeterReadSch[MonthBill]=SEMOCycles[[#This Row],[MonthBill]])*(MeterReadSch[Cycle]=SEMOCycles[[#This Row],[Cycle]])*MeterReadSch[Begin Bill Period]) -> 45981 | G33: =SUMPRODUCT((MeterReadSch[MonthBill]=SEMOCycles[[#This Row],[MonthBill]])*(MeterReadSch[Cycle]=SEMOCycles[[#This Row],[Cycle]])*MeterReadSch[End Bill Period]) -> 46007 | H33: =IF(SEMOCycles[[#This Row],[CustClass]]="Res",SUMPRODUCT((SEMOTempAct[Date]>=SEMOCycles[[#This Row],[FlowBegin]])*(SEMOTempAct[Date]<=SEMOCycles[[#This Row],[FlowEnd]])*SEMOTempAct[CGIResNHDD65]),SUMPRODUCT((SEMOTempAct[Date]>=SEMOCycles[[#This Row],[FlowBegin]])*(SEMOTempAct[Date]<=SEMOCycles[[#This Row],[FlowEnd]])*SEMOTempAct[CGISGSNHDD60])) -> 519.09 | I33: =IF(SEMOCycles[[#This Row],[CustClass]]="Res",SUMPRODUCT((SEMOTempAct[Date]>=SEMOCycles[[#This Row],[FlowBegin]])*(SEMOTempAct[Date]<=SEMOCycles[[#This Row],[FlowEnd]])*SEMOTempAct[CGIResHDD65]),SUMPRODUCT((SEMOTempAct[Date]>=SEMOCycles[[#This Row],[FlowBegin]])*(SEMOTempAct[Date]<=SEMOCycles[[#This Row],[FlowEnd]])*SEMOTempAct[CGISGSHDD60])) -> 629.5 | J33: =SEMOCycles[[#This Row],[NHDD]]-SEMOCycles[[#This Row],[AHDD]] -> -110.41 | K33: =SEMOCycles[[#This Row],[NoOfBills]]*SEMOCycles[[#This Row],[HDDDiff]] -> -124984.12 | L33: =SUMPRODUCT((BetaCoeff[BeginDate]<=SEMOCycles[[#This Row],[FlowBegin]])*(BetaCoeff[EndDate]>=SEMOCycles[[#This Row],[FlowEnd]])*(BetaCoeff[SAPRateCategory]=SEMOCycles[[#This Row],[SAPRateCategory]])*BetaCoeff[BetaCoeff]) -> 0.32963 | M33: =SEMOCycles[[#This Row],[Diff*NoOfBills]]*SEMOCycles[[#This Row],[BetaCoeff]] -> -41198.51548 | N33: =SUMPRODUCT((SEMOCycles[[#This Row],[FlowBegin]]>=VolRates[BeginDate])*(SEMOCycles[[#This Row],[FlowEnd]]<=VolRates[EndDate])*(SEMOCycles[[#This Row],[Region]]=VolRates[Region])*(SEMOCycles[[#This Row],[CustClass]]=VolRates[CustClass])*VolRates[VolRate]) -> 0.10651 | O33: =SEMOCycles[[#This Row],[WNAFactor]]*SEMOCycles[[#This Row],[VolRate]] -> -4388.053883 | P33: =INDEX(RateSched[Territory],MATCH(SEMOCycles[[#This Row],[SAPRateCategory]],RateSched[SAPRateCategory],0)) -> SEMO | Q33: =INDEX(RateSched[Region],MATCH(SEMOCycles[[#This Row],[SAPRateCategory]],RateSched[SAPRateCategory],0)) -> SEMO | R33: =INDEX(RateSched[CustClassShort],MATCH(SEMOCycles[[#This Row],[SAPRateCategory]],RateSched[SAPRateCategory],0)) -> SGS | S33: =INDEX(RateSched[ProfitCenter],MATCH(SEMOCycles[[#This Row],[SAPRateCategory]],RateSched[SAPRateCategory],0)) -> 10244
A34: =EDATE(SEMOCycles[[#This Row],[MonthBill]],-1) -> 45962 | B34: 45992 | C34: SMGC_SFGS | D34: 20 | E34: 1 | F34: =SUMPRODUCT((MeterReadSch[MonthBill]=SEMOCycles[[#This Row],[MonthBill]])*(MeterReadSch[Cycle]=SEMOCycles[[#This Row],[Cycle]])*MeterReadSch[Begin Bill Period]) -> 45988 | G34: =SUMPRODUCT((MeterReadSch[MonthBill]=SEMOCycles[[#This Row],[MonthBill]])*(MeterReadSch[Cycle]=SEMOCycles[[#This Row],[Cycle]])*MeterReadSch[End Bill Period]) -> 46022 | H34: =IF(SEMOCycles[[#This Row],[CustClass]]="Res",SUMPRODUCT((SEMOTempAct[Date]>=SEMOCycles[[#This Row],[FlowBegin]])*(SEMOTempAct[Date]<=SEMOCycles[[#This Row],[FlowEnd]])*SEMOTempAct[CGIResNHDD65]),SUMPRODUCT((SEMOTempAct[Date]>=SEMOCycles[[#This Row],[FlowBegin]])*(SEMOTempAct[Date]<=SEMOCycles[[#This Row],[FlowEnd]])*SEMOTempAct[CGISGSNHDD60])) -> 732.43 | I34: =IF(SEMOCycles[[#This Row],[CustClass]]="Res",SUMPRODUCT((SEMOTempAct[Date]>=SEMOCycles[[#This Row],[FlowBegin]])*(SEMOTempAct[Date]<=SEMOCycles[[#This Row],[FlowEnd]])*SEMOTempAct[CGIResHDD65]),SUMPRODUCT((SEMOTempAct[Date]>=SEMOCycles[[#This Row],[FlowBegin]])*(SEMOTempAct[Date]<=SEMOCycles[[#This Row],[FlowEnd]])*SEMOTempAct[CGISGSHDD60])) -> 777 | J34: =SEMOCycles[[#This Row],[NHDD]]-SEMOCycles[[#This Row],[AHDD]] -> -44.57 | K34: =SEMOCycles[[#This Row],[NoOfBills]]*SEMOCycles[[#This Row],[HDDDiff]] -> -44.57 | L34: =SUMPRODUCT((BetaCoeff[BeginDate]<=SEMOCycles[[#This Row],[FlowBegin]])*(BetaCoeff[EndDate]>=SEMOCycles[[#This Row],[FlowEnd]])*(BetaCoeff[SAPRateCategory]=SEMOCycles[[#This Row],[SAPRateCategory]])*BetaCoeff[BetaCoeff]) -> 0.32963 | M34: =SEMOCycles[[#This Row],[Diff*NoOfBills]]*SEMOCycles[[#This Row],[BetaCoeff]] -> -14.6916091 | N34: =SUMPRODUCT((SEMOCycles[[#This Row],[FlowBegin]]>=VolRates[BeginDate])*(SEMOCycles[[#This Row],[FlowEnd]]<=VolRates[EndDate])*(SEMOCycles[[#This Row],[Region]]=VolRates[Region])*(SEMOCycles[[#This Row],[CustClass]]=VolRates[CustClass])*VolRates[VolRate]) -> 0.10651 | O34: =SEMOCycles[[#This Row],[WNAFactor]]*SEMOCycles[[#This Row],[VolRate]] -> -1.564803285 | P34: =INDEX(RateSched[Territory],MATCH(SEMOCycles[[#This Row],[SAPRateCategory]],RateSched[SAPRateCategory],0)) -> SEMO | Q34: =INDEX(RateSched[Region],MATCH(SEMOCycles[[#This Row],[SAPRateCategory]],RateSched[SAPRateCategory],0)) -> SEMO | R34: =INDEX(RateSched[CustClassShort],MATCH(SEMOCycles[[#This Row],[SAPRateCategory]],RateSched[SAPRateCategory],0)) -> SGS | S34: =INDEX(RateSched[ProfitCenter],MATCH(SEMOCycles[[#This Row],[SAPRateCategory]],RateSched[SAPRateCategory],0)) -> 10244
A35: =EDATE(SEMOCycles[[#This Row],[MonthBill]],-1) -> 45962 | B35: 45992 | C35: SMGR_RFS | D35: 6 | E35: 7624 | F35: =SUMPRODUCT((MeterReadSch[MonthBill]=SEMOCycles[[#This Row],[MonthBill]])*(MeterReadSch[Cycle]=SEMOCycles[[#This Row],[Cycle]])*MeterReadSch[Begin Bill Period]) -> 45967 | G35: =SUMPRODUCT((MeterReadSch[MonthBill]=SEMOCycles[[#This Row],[MonthBill]])*(MeterReadSch[Cycle]=SEMOCycles[[#This Row],[Cycle]])*MeterReadSch[End Bill Period]) -> 45995 | H35: =IF(SEMOCycles[[#This Row],[CustClass]]="Res",SUMPRODUCT((SEMOTempAct[Date]>=SEMOCycles[[#This Row],[FlowBegin]])*(SEMOTempAct[Date]<=SEMOCycles[[#This Row],[FlowEnd]])*SEMOTempAct[CGIResNHDD65]),SUMPRODUCT((SEMOTempAct[Date]>=SEMOCycles[[#This Row],[FlowBegin]])*(SEMOTempAct[Date]<=SEMOCycles[[#This Row],[FlowEnd]])*SEMOTempAct[CGISGSNHDD60])) -> 583.83 | I35: =IF(SEMOCycles[[#This Row],[CustClass]]="Res",SUMPRODUCT((SEMOTempAct[Date]>=SEMOCycles[[#This Row],[FlowBegin]])*(SEMOTempAct[Date]<=SEMOCycles[[#This Row],[FlowEnd]])*SEMOTempAct[CGIResHDD65]),SUMPRODUCT((SEMOTempAct[Date]>=SEMOCycles[[#This Row],[FlowBegin]])*(SEMOTempAct[Date]<=SEMOCycles[[#This Row],[FlowEnd]])*SEMOTempAct[CGISGSHDD60])) -> 559.5 | J35: =SEMOCycles[[#This Row],[NHDD]]-SEMOCycles[[#This Row],[AHDD]] -> 24.33 | K35: =SEMOCycles[[#This Row],[NoOfBills]]*SEMOCycles[[#This Row],[HDDDiff]] -> 185491.92 | L35: =SUMPRODUCT((BetaCoeff[BeginDate]<=SEMOCycles[[#This Row],[FlowBegin]])*(BetaCoeff[EndDate]>=SEMOCycles[[#This Row],[FlowEnd]])*(BetaCoeff[SAPRateCategory]=SEMOCycles[[#This Row],[SAPRateCategory]])*BetaCoeff[BetaCoeff]) -> 0.1408 | M35: =SEMOCycles[[#This Row],[Diff*NoOfBills]]*SEMOCycles[[#This Row],[BetaCoeff]] -> 26117.26234 | N35: =SUMPRODUCT((SEMOCycles[[#This Row],[FlowBegin]]>=VolRates[BeginDate])*(SEMOCycles[[#This Row],[FlowEnd]]<=VolRates[EndDate])*(SEMOCycles[[#This Row],[Region]]=VolRates[Region])*(SEMOCycles[[#This Row],[CustClass]]=VolRates[CustClass])*VolRates[VolRate]) -> 0.31279 | O35: =SEMOCycles[[#This Row],[WNAFactor]]*SEMOCycles[[#This Row],[VolRate]] -> 8169.218486 | P35: =INDEX(RateSched[Territory],MATCH(SEMOCycles[[#This Row],[SAPRateCategory]],RateSched[SAPRateCategory],0)) -> SEMO | Q35: =INDEX(RateSched[Region],MATCH(SEMOCycles[[#This Row],[SAPRateCategory]],RateSched[SAPRateCategory],0)) -> SEMO | R35: =INDEX(RateSched[CustClassShort],MATCH(SEMOCycles[[#This Row],[SAPRateCategory]],RateSched[SAPRateCategory],0)) -> Res | S35: =INDEX(RateSched[ProfitCenter],MATCH(SEMOCycles[[#This Row],[SAPRateCategory]],RateSched[SAPRateCategory],0)) -> 10244
A36: =EDATE(SEMOCycles[[#This Row],[MonthBill]],-1) -> 45962 | B36: 45992 | C36: SMGR_RFS | D36: 7 | E36: 9913 | F36: =SUMPRODUCT((MeterReadSch[MonthBill]=SEMOCycles[[#This Row],[MonthBill]])*(MeterReadSch[Cycle]=SEMOCycles[[#This Row],[Cycle]])*MeterReadSch[Begin Bill Period]) -> 45969 | G36: =SUMPRODUCT((MeterReadSch[MonthBill]=SEMOCycles[[#This Row],[MonthBill]])*(MeterReadSch[Cycle]=SEMOCycles[[#This Row],[Cycle]])*MeterReadSch[End Bill Period]) -> 45996 | H36: =IF(SEMOCycles[[#This Row],[CustClass]]="Res",SUMPRODUCT((SEMOTempAct[Date]>=SEMOCycles[[#This Row],[FlowBegin]])*(SEMOTempAct[Date]<=SEMOCycles[[#This Row],[FlowEnd]])*SEMOTempAct[CGIResNHDD65]),SUMPRODUCT((SEMOTempAct[Date]>=SEMOCycles[[#This Row],[FlowBegin]])*(SEMOTempAct[Date]<=SEMOCycles[[#This Row],[FlowEnd]])*SEMOTempAct[CGISGSNHDD60])) -> 579.88 | I36: =IF(SEMOCycles[[#This Row],[CustClass]]="Res",SUMPRODUCT((SEMOTempAct[Date]>=SEMOCycles[[#This Row],[FlowBegin]])*(SEMOTempAct[Date]<=SEMOCycles[[#This Row],[FlowEnd]])*SEMOTempAct[CGIResHDD65]),SUMPRODUCT((SEMOTempAct[Date]>=SEMOCycles[[#This Row],[FlowBegin]])*(SEMOTempAct[Date]<=SEMOCycles[[#This Row],[FlowEnd]])*SEMOTempAct[CGISGSHDD60])) -> 577 | J36: =SEMOCycles[[#This Row],[NHDD]]-SEMOCycles[[#This Row],[AHDD]] -> 2.88 | K36: =SEMOCycles[[#This Row],[NoOfBills]]*SEMOCycles[[#This Row],[HDDDiff]] -> 28549.44 | L36: =SUMPRODUCT((BetaCoeff[BeginDate]<=SEMOCycles[[#This Row],[FlowBegin]])*(BetaCoeff[EndDate]>=SEMOCycles[[#This Row],[FlowEnd]])*(BetaCoeff[SAPRateCategory]=SEMOCycles[[#This Row],[SAPRateCategory]])*BetaCoeff[BetaCoeff]) -> 0.1408 | M36: =SEMOCycles[[#This Row],[Diff*NoOfBills]]*SEMOCycles[[#This Row],[BetaCoeff]] -> 4019.761152 | N36: =SUMPRODUCT((SEMOCycles[[#This Row],[FlowBegin]]>=VolRates[BeginDate])*(SEMOCycles[[#This Row],[FlowEnd]]<=VolRates[EndDate])*(SEMOCycles[[#This Row],[Region]]=VolRates[Region])*(SEMOCycles[[#This Row],[CustClass]]=VolRates[CustClass])*VolRates[VolRate]) -> 0.31279 | O36: =SEMOCycles[[#This Row],[WNAFactor]]*SEMOCycles[[#This Row],[VolRate]] -> 1257.341091 | P36: =INDEX(RateSched[Territory],MATCH(SEMOCycles[[#This Row],[SAPRateCategory]],RateSched[SAPRateCategory],0)) -> SEMO | Q36: =INDEX(RateSched[Region],MATCH(SEMOCycles[[#This Row],[SAPRateCategory]],RateSched[SAPRateCategory],0)) -> SEMO | R36: =INDEX(RateSched[CustClassShort],MATCH(SEMOCycles[[#This Row],[SAPRateCategory]],RateSched[SAPRateCategory],0)) -> Res | S36: =INDEX(RateSched[ProfitCenter],MATCH(SEMOCycles[[#This Row],[SAPRateCategory]],RateSched[SAPRateCategory],0)) -> 10244
A37: =EDATE(SEMOCycles[[#This Row],[MonthBill]],-1) -> 45962 | B37: 45992 | C37: SMGR_RFS | D37: 15 | E37: 9616 | F37: =SUMPRODUCT((MeterReadSch[MonthBill]=SEMOCycles[[#This Row],[MonthBill]])*(MeterReadSch[Cycle]=SEMOCycles[[#This Row],[Cycle]])*MeterReadSch[Begin Bill Period]) -> 45981 | G37: =SUMPRODUCT((MeterReadSch[MonthBill]=SEMOCycles[[#This Row],[MonthBill]])*(MeterReadSch[Cycle]=SEMOCycles[[#This Row],[Cycle]])*MeterReadSch[End Bill Period]) -> 46007 | H37: =IF(SEMOCycles[[#This Row],[CustClass]]="Res",SUMPRODUCT((SEMOTempAct[Date]>=SEMOCycles[[#This Row],[FlowBegin]])*(SEMOTempAct[Date]<=SEMOCycles[[#This Row],[FlowEnd]])*SEMOTempAct[CGIResNHDD65]),SUMPRODUCT((SEMOTempAct[Date]>=SEMOCycles[[#This Row],[FlowBegin]])*(SEMOTempAct[Date]<=SEMOCycles[[#This Row],[FlowEnd]])*SEMOTempAct[CGISGSNHDD60])) -> 652.16 | I37: =IF(SEMOCycles[[#This Row],[CustClass]]="Res",SUMPRODUCT((SEMOTempAct[Date]>=SEMOCycles[[#This Row],[FlowBegin]])*(SEMOTempAct[Date]<=SEMOCycles[[#This Row],[FlowEnd]])*SEMOTempAct[CGIResHDD65]),SUMPRODUCT((SEMOTempAct[Date]>=SEMOCycles[[#This Row],[FlowBegin]])*(SEMOTempAct[Date]<=SEMOCycles[[#This Row],[FlowEnd]])*SEMOTempAct[CGISGSHDD60])) -> 764.5 | J37: =SEMOCycles[[#This Row],[NHDD]]-SEMOCycles[[#This Row],[AHDD]] -> -112.34 | K37: =SEMOCycles[[#This Row],[NoOfBills]]*SEMOCycles[[#This Row],[HDDDiff]] -> -1080261.44 | L37: =SUMPRODUCT((BetaCoeff[BeginDate]<=SEMOCycles[[#This Row],[FlowBegin]])*(BetaCoeff[EndDate]>=SEMOCycles[[#This Row],[FlowEnd]])*(BetaCoeff[SAPRateCategory]=SEMOCycles[[#This Row],[SAPRateCategory]])*BetaCoeff[BetaCoeff]) -> 0.1408 | M37: =SEMOCycles[[#This Row],[Diff*NoOfBills]]*SEMOCycles[[#This Row],[BetaCoeff]] -> -152100.8108 | N37: =SUMPRODUCT((SEMOCycles[[#This Row],[FlowBegin]]>=VolRates[BeginDate])*(SEMOCycles[[#This Row],[FlowEnd]]<=VolRates[EndDate])*(SEMOCycles[[#This Row],[Region]]=VolRates[Region])*(SEMOCycles[[#This Row],[CustClass]]=VolRates[CustClass])*VolRates[VolRate]) -> 0.31279 | O37: =SEMOCycles[[#This Row],[WNAFactor]]*SEMOCycles[[#This Row],[VolRate]] -> -47575.6126 | P37: =INDEX(RateSched[Territory],MATCH(SEMOCycles[[#This Row],[SAPRateCategory]],RateSched[SAPRateCategory],0)) -> SEMO | Q37: =INDEX(RateSched[Region],MATCH(SEMOCycles[[#This Row],[SAPRateCategory]],RateSched[SAPRateCategory],0)) -> SEMO | R37: =INDEX(RateSched[CustClassShort],MATCH(SEMOCycles[[#This Row],[SAPRateCategory]],RateSched[SAPRateCategory],0)) -> Res | S37: =INDEX(RateSched[ProfitCenter],MATCH(SEMOCycles[[#This Row],[SAPRateCategory]],RateSched[SAPRateCategory],0)) -> 10244
A38: =EDATE(SEMOCycles[[#This Row],[MonthBill]],-1) -> 45992 | B38: 46023 | C38: SMGC_SFGS | D38: 6 | E38: 1119 | F38: =SUMPRODUCT((MeterReadSch[MonthBill]=SEMOCycles[[#This Row],[MonthBill]])*(MeterReadSch[Cycle]=SEMOCycles[[#This Row],[Cycle]])*MeterReadSch[Begin Bill Period]) -> 45996 | G38: =SUMPRODUCT((MeterReadSch[MonthBill]=SEMOCycles[[#This Row],[MonthBill]])*(MeterReadSch[Cycle]=SEMOCycles[[#This Row],[Cycle]])*MeterReadSch[End Bill Period]) -> 46028 | H38: =IF(SEMOCycles[[#This Row],[CustClass]]="Res",SUMPRODUCT((SEMOTempAct[Date]>=SEMOCycles[[#This Row],[FlowBegin]])*(SEMOTempAct[Date]<=SEMOCycles[[#This Row],[FlowEnd]])*SEMOTempAct[CGIResNHDD65]),SUMPRODUCT((SEMOTempAct[Date]>=SEMOCycles[[#This Row],[FlowBegin]])*(SEMOTempAct[Date]<=SEMOCycles[[#This Row],[FlowEnd]])*SEMOTempAct[CGISGSNHDD60])) -> 737.69 | I38: =IF(SEMOCycles[[#This Row],[CustClass]]="Res",SUMPRODUCT((SEMOTempAct[Date]>=SEMOCycles[[#This Row],[FlowBegin]])*(SEMOTempAct[Date]<=SEMOCycles[[#This Row],[FlowEnd]])*SEMOTempAct[CGIResHDD65]),SUMPRODUCT((SEMOTempAct[Date]>=SEMOCycles[[#This Row],[FlowBegin]])*(SEMOTempAct[Date]<=SEMOCycles[[#This Row],[FlowEnd]])*SEMOTempAct[CGISGSHDD60])) -> 680 | J38: =SEMOCycles[[#This Row],[NHDD]]-SEMOCycles[[#This Row],[AHDD]] -> 57.69 | K38: =SEMOCycles[[#This Row],[NoOfBills]]*SEMOCycles[[#This Row],[HDDDiff]] -> 64555.11 | L38: =SUMPRODUCT((BetaCoeff[BeginDate]<=SEMOCycles[[#This Row],[FlowBegin]])*(BetaCoeff[EndDate]>=SEMOCycles[[#This Row],[FlowEnd]])*(BetaCoeff[SAPRateCategory]=SEMOCycles[[#This Row],[SAPRateCategory]])*BetaCoeff[BetaCoeff]) -> 0.32963 | M38: =SEMOCycles[[#This Row],[Diff*NoOfBills]]*SEMOCycles[[#This Row],[BetaCoeff]] -> 21279.30091 | N38: =SUMPRODUCT((SEMOCycles[[#This Row],[FlowBegin]]>=VolRates[BeginDate])*(SEMOCycles[[#This Row],[FlowEnd]]<=VolRates[EndDate])*(SEMOCycles[[#This Row],[Region]]=VolRates[Region])*(SEMOCycles[[#This Row],[CustClass]]=VolRates[CustClass])*VolRates[VolRate]) -> 0.10651 | O38: =SEMOCycles[[#This Row],[WNAFactor]]*SEMOCycles[[#This Row],[VolRate]] -> 2266.45834 | P38: =INDEX(RateSched[Territory],MATCH(SEMOCycles[[#This Row],[SAPRateCategory]],RateSched[SAPRateCategory],0)) -> SEMO | Q38: =INDEX(RateSched[Region],MATCH(SEMOCycles[[#This Row],[SAPRateCategory]],RateSched[SAPRateCategory],0)) -> SEMO | R38: =INDEX(RateSched[CustClassShort],MATCH(SEMOCycles[[#This Row],[SAPRateCategory]],RateSched[SAPRateCategory],0)) -> SGS | S38: =INDEX(RateSched[ProfitCenter],MATCH(SEMOCycles[[#This Row],[SAPRateCategory]],RateSched[SAPRateCategory],0)) -> 10244
A39: =EDATE(SEMOCycles[[#This Row],[MonthBill]],-1) -> 45992 | B39: 46023 | C39: SMGC_SFGS | D39: 7 | E39: 1012 | F39: =SUMPRODUCT((MeterReadSch[MonthBill]=SEMOCycles[[#This Row],[MonthBill]])*(MeterReadSch[Cycle]=SEMOCycles[[#This Row],[Cycle]])*MeterReadSch[Begin Bill Period]) -> 45997 | G39: =SUMPRODUCT((MeterReadSch[MonthBill]=SEMOCycles[[#This Row],[MonthBill]])*(MeterReadSch[Cycle]=SEMOCycles[[#This Row],[Cycle]])*MeterReadSch[End Bill Period]) -> 46029 | H39: =IF(SEMOCycles[[#This Row],[CustClass]]="Res",SUMPRODUCT((SEMOTempAct[Date]>=SEMOCycles[[#This Row],[FlowBegin]])*(SEMOTempAct[Date]<=SEMOCycles[[#This Row],[FlowEnd]])*SEMOTempAct[CGIResNHDD65]),SUMPRODUCT((SEMOTempAct[Date]>=SEMOCycles[[#This Row],[FlowBegin]])*(SEMOTempAct[Date]<=SEMOCycles[[#This Row],[FlowEnd]])*SEMOTempAct[CGISGSNHDD60])) -> 743.04 | I39: =IF(SEMOCycles[[#This Row],[CustClass]]="Res",SUMPRODUCT((SEMOTempAct[Date]>=SEMOCycles[[#This Row],[FlowBegin]])*(SEMOTempAct[Date]<=SEMOCycles[[#This Row],[FlowEnd]])*SEMOTempAct[CGIResHDD65]),SUMPRODUCT((SEMOTempAct[Date]>=SEMOCycles[[#This Row],[FlowBegin]])*(SEMOTempAct[Date]<=SEMOCycles[[#This Row],[FlowEnd]])*SEMOTempAct[CGISGSHDD60])) -> 662 | J39: =SEMOCycles[[#This Row],[NHDD]]-SEMOCycles[[#This Row],[AHDD]] -> 81.04 | K39: =SEMOCycles[[#This Row],[NoOfBills]]*SEMOCycles[[#This Row],[HDDDiff]] -> 82012.48 | L39: =SUMPRODUCT((BetaCoeff[BeginDate]<=SEMOCycles[[#This Row],[FlowBegin]])*(BetaCoeff[EndDate]>=SEMOCycles[[#This Row],[FlowEnd]])*(BetaCoeff[SAPRateCategory]=SEMOCycles[[#This Row],[SAPRateCategory]])*BetaCoeff[BetaCoeff]) -> 0.32963 | M39: =SEMOCycles[[#This Row],[Diff*NoOfBills]]*SEMOCycles[[#This Row],[BetaCoeff]] -> 27033.77378 | N39: =SUMPRODUCT((SEMOCycles[[#This Row],[FlowBegin]]>=VolRates[BeginDate])*(SEMOCycles[[#This Row],[FlowEnd]]<=VolRates[EndDate])*(SEMOCycles[[#This Row],[Region]]=VolRates[Region])*(SEMOCycles[[#This Row],[CustClass]]=VolRates[CustClass])*VolRates[VolRate]) -> 0.10651 | O39: =SEMOCycles[[#This Row],[WNAFactor]]*SEMOCycles[[#This Row],[VolRate]] -> 2879.367246 | P39: =INDEX(RateSched[Territory],MATCH(SEMOCycles[[#This Row],[SAPRateCategory]],RateSched[SAPRateCategory],0)) -> SEMO | Q39: =INDEX(RateSched[Region],MATCH(SEMOCycles[[#This Row],[SAPRateCategory]],RateSched[SAPRateCategory],0)) -> SEMO | R39: =INDEX(RateSched[CustClassShort],MATCH(SEMOCycles[[#This Row],[SAPRateCategory]],RateSched[SAPRateCategory],0)) -> SGS | S39: =INDEX(RateSched[ProfitCenter],MATCH(SEMOCycles[[#This Row],[SAPRateCategory]],RateSched[SAPRateCategory],0)) -> 10244
A40: =EDATE(SEMOCycles[[#This Row],[MonthBill]],-1) -> 45992 | B40: 46023 | C40: SMGC_SFGS | D40: 15 | E40: 1123 | F40: =SUMPRODUCT((MeterReadSch[MonthBill]=SEMOCycles[[#This Row],[MonthBill]])*(MeterReadSch[Cycle]=SEMOCycles[[#This Row],[Cycle]])*MeterReadSch[Begin Bill Period]) -> 46008 | G40: =SUMPRODUCT((MeterReadSch[MonthBill]=SEMOCycles[[#This Row],[MonthBill]])*(MeterReadSch[Cycle]=SEMOCycles[[#This Row],[Cycle]])*MeterReadSch[End Bill Period]) -> 46038 | H40: =IF(SEMOCycles[[#This Row],[CustClass]]="Res",SUMPRODUCT((SEMOTempAct[Date]>=SEMOCycles[[#This Row],[FlowBegin]])*(SEMOTempAct[Date]<=SEMOCycles[[#This Row],[FlowEnd]])*SEMOTempAct[CGIResNHDD65]),SUMPRODUCT((SEMOTempAct[Date]>=SEMOCycles[[#This Row],[FlowBegin]])*(SEMOTempAct[Date]<=SEMOCycles[[#This Row],[FlowEnd]])*SEMOTempAct[CGISGSNHDD60])) -> 724.83 | I40: =IF(SEMOCycles[[#This Row],[CustClass]]="Res",SUMPRODUCT((SEMOTempAct[Date]>=SEMOCycles[[#This Row],[FlowBegin]])*(SEMOTempAct[Date]<=SEMOCycles[[#This Row],[FlowEnd]])*SEMOTempAct[CGIResHDD65]),SUMPRODUCT((SEMOTempAct[Date]>=SEMOCycles[[#This Row],[FlowBegin]])*(SEMOTempAct[Date]<=SEMOCycles[[#This Row],[FlowEnd]])*SEMOTempAct[CGISGSHDD60])) -> 520 | J40: =SEMOCycles[[#This Row],[NHDD]]-SEMOCycles[[#This Row],[AHDD]] -> 204.83 | K40: =SEMOCycles[[#This Row],[NoOfBills]]*SEMOCycles[[#This Row],[HDDDiff]] -> 230024.09 | L40: =SUMPRODUCT((BetaCoeff[BeginDate]<=SEMOCycles[[#This Row],[FlowBegin]])*(BetaCoeff[EndDate]>=SEMOCycles[[#This Row],[FlowEnd]])*(BetaCoeff[SAPRateCategory]=SEMOCycles[[#This Row],[SAPRateCategory]])*BetaCoeff[BetaCoeff]) -> 0.32963 | M40: =SEMOCycles[[#This Row],[Diff*NoOfBills]]*SEMOCycles[[#This Row],[BetaCoeff]] -> 75822.84079 | N40: =SUMPRODUCT((SEMOCycles[[#This Row],[FlowBegin]]>=VolRates[BeginDate])*(SEMOCycles[[#This Row],[FlowEnd]]<=VolRates[EndDate])*(SEMOCycles[[#This Row],[Region]]=VolRates[Region])*(SEMOCycles[[#This Row],[CustClass]]=VolRates[CustClass])*VolRates[VolRate]) -> 0.10651 | O40: =SEMOCycles[[#This Row],[WNAFactor]]*SEMOCycles[[#This Row],[VolRate]] -> 8075.890772 | P40: =INDEX(RateSched[Territory],MATCH(SEMOCycles[[#This Row],[SAPRateCategory]],RateSched[SAPRateCategory],0)) -> SEMO | Q40: =INDEX(RateSched[Region],MATCH(SEMOCycles[[#This Row],[SAPRateCategory]],RateSched[SAPRateCategory],0)) -> SEMO | R40: =INDEX(RateSched[CustClassShort],MATCH(SEMOCycles[[#This Row],[SAPRateCategory]],RateSched[SAPRateCategory],0)) -> SGS | S40: =INDEX(RateSched[ProfitCenter],MATCH(SEMOCycles[[#This Row],[SAPRateCategory]],RateSched[SAPRateCategory],0)) -> 10244
A41: =EDATE(SEMOCycles[[#This Row],[MonthBill]],-1) -> 45992 | B41: 46023 | C41: SMGC_SFGS | D41: 20 | E41: 3 | F41: =SUMPRODUCT((MeterReadSch[MonthBill]=SEMOCycles[[#This Row],[MonthBill]])*(MeterReadSch[Cycle]=SEMOCycles[[#This Row],[Cycle]])*MeterReadSch[Begin Bill Period]) -> 46023 | G41: =SUMPRODUCT((MeterReadSch[MonthBill]=SEMOCycles[[#This Row],[MonthBill]])*(MeterReadSch[Cycle]=SEMOCycles[[#This Row],[Cycle]])*MeterReadSch[End Bill Period]) -> 46052 | H41: =IF(SEMOCycles[[#This Row],[CustClass]]="Res",SUMPRODUCT((SEMOTempAct[Date]>=SEMOCycles[[#This Row],[FlowBegin]])*(SEMOTempAct[Date]<=SEMOCycles[[#This Row],[FlowEnd]])*SEMOTempAct[CGIResNHDD65]),SUMPRODUCT((SEMOTempAct[Date]>=SEMOCycles[[#This Row],[FlowBegin]])*(SEMOTempAct[Date]<=SEMOCycles[[#This Row],[FlowEnd]])*SEMOTempAct[CGISGSNHDD60])) -> 770.06 | I41: =IF(SEMOCycles[[#This Row],[CustClass]]="Res",SUMPRODUCT((SEMOTempAct[Date]>=SEMOCycles[[#This Row],[FlowBegin]])*(SEMOTempAct[Date]<=SEMOCycles[[#This Row],[FlowEnd]])*SEMOTempAct[CGIResHDD65]),SUMPRODUCT((SEMOTempAct[Date]>=SEMOCycles[[#This Row],[FlowBegin]])*(SEMOTempAct[Date]<=SEMOCycles[[#This Row],[FlowEnd]])*SEMOTempAct[CGISGSHDD60])) -> 858 | J41: =SEMOCycles[[#This Row],[NHDD]]-SEMOCycles[[#This Row],[AHDD]] -> -87.94 | K41: =SEMOCycles[[#This Row],[NoOfBills]]*SEMOCycles[[#This Row],[HDDDiff]] -> -263.82 | L41: =SUMPRODUCT((BetaCoeff[BeginDate]<=SEMOCycles[[#This Row],[FlowBegin]])*(BetaCoeff[EndDate]>=SEMOCycles[[#This Row],[FlowEnd]])*(BetaCoeff[SAPRateCategory]=SEMOCycles[[#This Row],[SAPRateCategory]])*BetaCoeff[BetaCoeff]) -> 0.32963 | M41: =SEMOCycles[[#This Row],[Diff*NoOfBills]]*SEMOCycles[[#This Row],[BetaCoeff]] -> -86.9629866 | N41: =SUMPRODUCT((SEMOCycles[[#This Row],[FlowBegin]]>=VolRates[BeginDate])*(SEMOCycles[[#This Row],[FlowEnd]]<=VolRates[EndDate])*(SEMOCycles[[#This Row],[Region]]=VolRates[Region])*(SEMOCycles[[#This Row],[CustClass]]=VolRates[CustClass])*VolRates[VolRate]) -> 0.10651 | O41: =SEMOCycles[[#This Row],[WNAFactor]]*SEMOCycles[[#This Row],[VolRate]] -> -9.262427703 | P41: =INDEX(RateSched[Territory],MATCH(SEMOCycles[[#This Row],[SAPRateCategory]],RateSched[SAPRateCategory],0)) -> SEMO | Q41: =INDEX(RateSched[Region],MATCH(SEMOCycles[[#This Row],[SAPRateCategory]],RateSched[SAPRateCategory],0)) -> SEMO | R41: =INDEX(RateSched[CustClassShort],MATCH(SEMOCycles[[#This Row],[SAPRateCategory]],RateSched[SAPRateCategory],0)) -> SGS | S41: =INDEX(RateSched[ProfitCenter],MATCH(SEMOCycles[[#This Row],[SAPRateCategory]],RateSched[SAPRateCategory],0)) -> 10244
A42: =EDATE(SEMOCycles[[#This Row],[MonthBill]],-1) -> 45992 | B42: 46023 | C42: SMGR_RFS | D42: 6 | E42: 7622 | F42: =SUMPRODUCT((MeterReadSch[MonthBill]=SEMOCycles[[#This Row],[MonthBill]])*(MeterReadSch[Cycle]=SEMOCycles[[#This Row],[Cycle]])*MeterReadSch[Begin Bill Period]) -> 45996 | G42: =SUMPRODUCT((MeterReadSch[MonthBill]=SEMOCycles[[#This Row],[MonthBill]])*(MeterReadSch[Cycle]=SEMOCycles[[#This Row],[Cycle]])*MeterReadSch[End Bill Period]) -> 46028 | H42: =IF(SEMOCycles[[#This Row],[CustClass]]="Res",SUMPRODUCT((SEMOTempAct[Date]>=SEMOCycles[[#This Row],[FlowBegin]])*(SEMOTempAct[Date]<=SEMOCycles[[#This Row],[FlowEnd]])*SEMOTempAct[CGIResNHDD65]),SUMPRODUCT((SEMOTempAct[Date]>=SEMOCycles[[#This Row],[FlowBegin]])*(SEMOTempAct[Date]<=SEMOCycles[[#This Row],[FlowEnd]])*SEMOTempAct[CGISGSNHDD60])) -> 901.61 | I42: =IF(SEMOCycles[[#This Row],[CustClass]]="Res",SUMPRODUCT((SEMOTempAct[Date]>=SEMOCycles[[#This Row],[FlowBegin]])*(SEMOTempAct[Date]<=SEMOCycles[[#This Row],[FlowEnd]])*SEMOTempAct[CGIResHDD65]),SUMPRODUCT((SEMOTempAct[Date]>=SEMOCycles[[#This Row],[FlowBegin]])*(SEMOTempAct[Date]<=SEMOCycles[[#This Row],[FlowEnd]])*SEMOTempAct[CGISGSHDD60])) -> 840 | J42: =SEMOCycles[[#This Row],[NHDD]]-SEMOCycles[[#This Row],[AHDD]] -> 61.61 | K42: =SEMOCycles[[#This Row],[NoOfBills]]*SEMOCycles[[#This Row],[HDDDiff]] -> 469591.42 | L42: =SUMPRODUCT((BetaCoeff[BeginDate]<=SEMOCycles[[#This Row],[FlowBegin]])*(BetaCoeff[EndDate]>=SEMOCycles[[#This Row],[FlowEnd]])*(BetaCoeff[SAPRateCategory]=SEMOCycles[[#This Row],[SAPRateCategory]])*BetaCoeff[BetaCoeff]) -> 0.1408 | M42: =SEMOCycles[[#This Row],[Diff*NoOfBills]]*SEMOCycles[[#This Row],[BetaCoeff]] -> 66118.47194 | N42: =SUMPRODUCT((SEMOCycles[[#This Row],[FlowBegin]]>=VolRates[BeginDate])*(SEMOCycles[[#This Row],[FlowEnd]]<=VolRates[EndDate])*(SEMOCycles[[#This Row],[Region]]=VolRates[Region])*(SEMOCycles[[#This Row],[CustClass]]=VolRates[CustClass])*VolRates[VolRate]) -> 0.31279 | O42: =SEMOCycles[[#This Row],[WNAFactor]]*SEMOCycles[[#This Row],[VolRate]] -> 20681.19684 | P42: =INDEX(RateSched[Territory],MATCH(SEMOCycles[[#This Row],[SAPRateCategory]],RateSched[SAPRateCategory],0)) -> SEMO | Q42: =INDEX(RateSched[Region],MATCH(SEMOCycles[[#This Row],[SAPRateCategory]],RateSched[SAPRateCategory],0)) -> SEMO | R42: =INDEX(RateSched[CustClassShort],MATCH(SEMOCycles[[#This Row],[SAPRateCategory]],RateSched[SAPRateCategory],0)) -> Res | S42: =INDEX(RateSched[ProfitCenter],MATCH(SEMOCycles[[#This Row],[SAPRateCategory]],RateSched[SAPRateCategory],0)) -> 10244
A43: =EDATE(SEMOCycles[[#This Row],[MonthBill]],-1) -> 45992 | B43: 46023 | C43: SMGR_RFS | D43: 7 | E43: 9702 | F43: =SUMPRODUCT((MeterReadSch[MonthBill]=SEMOCycles[[#This Row],[MonthBill]])*(MeterReadSch[Cycle]=SEMOCycles[[#This Row],[Cycle]])*MeterReadSch[Begin Bill Period]) -> 45997 | G43: =SUMPRODUCT((MeterReadSch[MonthBill]=SEMOCycles[[#This Row],[MonthBill]])*(MeterReadSch[Cycle]=SEMOCycles[[#This Row],[Cycle]])*MeterReadSch[End Bill Period]) -> 46029 | H43: =IF(SEMOCycles[[#This Row],[CustClass]]="Res",SUMPRODUCT((SEMOTempAct[Date]>=SEMOCycles[[#This Row],[FlowBegin]])*(SEMOTempAct[Date]<=SEMOCycles[[#This Row],[FlowEnd]])*SEMOTempAct[CGIResNHDD65]),SUMPRODUCT((SEMOTempAct[Date]>=SEMOCycles[[#This Row],[FlowBegin]])*(SEMOTempAct[Date]<=SEMOCycles[[#This Row],[FlowEnd]])*SEMOTempAct[CGISGSNHDD60])) -> 906.73 | I43: =IF(SEMOCycles[[#This Row],[CustClass]]="Res",SUMPRODUCT((SEMOTempAct[Date]>=SEMOCycles[[#This Row],[FlowBegin]])*(SEMOTempAct[Date]<=SEMOCycles[[#This Row],[FlowEnd]])*SEMOTempAct[CGIResHDD65]),SUMPRODUCT((SEMOTempAct[Date]>=SEMOCycles[[#This Row],[FlowBegin]])*(SEMOTempAct[Date]<=SEMOCycles[[#This Row],[FlowEnd]])*SEMOTempAct[CGISGSHDD60])) -> 822 | J43: =SEMOCycles[[#This Row],[NHDD]]-SEMOCycles[[#This Row],[AHDD]] -> 84.73 | K43: =SEMOCycles[[#This Row],[NoOfBills]]*SEMOCycles[[#This Row],[HDDDiff]] -> 822050.46 | L43: =SUMPRODUCT((BetaCoeff[BeginDate]<=SEMOCycles[[#This Row],[FlowBegin]])*(BetaCoeff[EndDate]>=SEMOCycles[[#This Row],[FlowEnd]])*(BetaCoeff[SAPRateCategory]=SEMOCycles[[#This Row],[SAPRateCategory]])*BetaCoeff[BetaCoeff]) -> 0.1408 | M43: =SEMOCycles[[#This Row],[Diff*NoOfBills]]*SEMOCycles[[#This Row],[BetaCoeff]] -> 115744.7048 | N43: =SUMPRODUCT((SEMOCycles[[#This Row],[FlowBegin]]>=VolRates[BeginDate])*(SEMOCycles[[#This Row],[FlowEnd]]<=VolRates[EndDate])*(SEMOCycles[[#This Row],[Region]]=VolRates[Region])*(SEMOCycles[[#This Row],[CustClass]]=VolRates[CustClass])*VolRates[VolRate]) -> 0.31279 | O43: =SEMOCycles[[#This Row],[WNAFactor]]*SEMOCycles[[#This Row],[VolRate]] -> 36203.7862 | P43: =INDEX(RateSched[Territory],MATCH(SEMOCycles[[#This Row],[SAPRateCategory]],RateSched[SAPRateCategory],0)) -> SEMO | Q43: =INDEX(RateSched[Region],MATCH(SEMOCycles[[#This Row],[SAPRateCategory]],RateSched[SAPRateCategory],0)) -> SEMO | R43: =INDEX(RateSched[CustClassShort],MATCH(SEMOCycles[[#This Row],[SAPRateCategory]],RateSched[SAPRateCategory],0)) -> Res | S43: =INDEX(RateSched[ProfitCenter],MATCH(SEMOCycles[[#This Row],[SAPRateCategory]],RateSched[SAPRateCategory],0)) -> 10244
A44: =EDATE(SEMOCycles[[#This Row],[MonthBill]],-1) -> 45992 | B44: 46023 | C44: SMGR_RFS | D44: 13 | E44: 1 | F44: =SUMPRODUCT((MeterReadSch[MonthBill]=SEMOCycles[[#This Row],[MonthBill]])*(MeterReadSch[Cycle]=SEMOCycles[[#This Row],[Cycle]])*MeterReadSch[Begin Bill Period]) -> 46010 | G44: =SUMPRODUCT((MeterReadSch[MonthBill]=SEMOCycles[[#This Row],[MonthBill]])*(MeterReadSch[Cycle]=SEMOCycles[[#This Row],[Cycle]])*MeterReadSch[End Bill Period]) -> 46037 | H44: =IF(SEMOCycles[[#This Row],[CustClass]]="Res",SUMPRODUCT((SEMOTempAct[Date]>=SEMOCycles[[#This Row],[FlowBegin]])*(SEMOTempAct[Date]<=SEMOCycles[[#This Row],[FlowEnd]])*SEMOTempAct[CGIResNHDD65]),SUMPRODUCT((SEMOTempAct[Date]>=SEMOCycles[[#This Row],[FlowBegin]])*(SEMOTempAct[Date]<=SEMOCycles[[#This Row],[FlowEnd]])*SEMOTempAct[CGISGSNHDD60])) -> 790.14 | I44: =IF(SEMOCycles[[#This Row],[CustClass]]="Res",SUMPRODUCT((SEMOTempAct[Date]>=SEMOCycles[[#This Row],[FlowBegin]])*(SEMOTempAct[Date]<=SEMOCycles[[#This Row],[FlowEnd]])*SEMOTempAct[CGIResHDD65]),SUMPRODUCT((SEMOTempAct[Date]>=SEMOCycles[[#This Row],[FlowBegin]])*(SEMOTempAct[Date]<=SEMOCycles[[#This Row],[FlowEnd]])*SEMOTempAct[CGISGSHDD60])) -> 605 | J44: =SEMOCycles[[#This Row],[NHDD]]-SEMOCycles[[#This Row],[AHDD]] -> 185.14 | K44: =SEMOCycles[[#This Row],[NoOfBills]]*SEMOCycles[[#This Row],[HDDDiff]] -> 185.14 | L44: =SUMPRODUCT((BetaCoeff[BeginDate]<=SEMOCycles[[#This Row],[FlowBegin]])*(BetaCoeff[EndDate]>=SEMOCycles[[#This Row],[FlowEnd]])*(BetaCoeff[SAPRateCategory]=SEMOCycles[[#This Row],[SAPRateCategory]])*BetaCoeff[BetaCoeff]) -> 0.1408 | M44: =SEMOCycles[[#This Row],[Diff*NoOfBills]]*SEMOCycles[[#This Row],[BetaCoeff]] -> 26.067712 | N44: =SUMPRODUCT((SEMOCycles[[#This Row],[FlowBegin]]>=VolRates[BeginDate])*(SEMOCycles[[#This Row],[FlowEnd]]<=VolRates[EndDate])*(SEMOCycles[[#This Row],[Region]]=VolRates[Region])*(SEMOCycles[[#This Row],[CustClass]]=VolRates[CustClass])*VolRates[VolRate]) -> 0.31279 | O44: =SEMOCycles[[#This Row],[WNAFactor]]*SEMOCycles[[#This Row],[VolRate]] -> 8.153719636 | P44: =INDEX(RateSched[Territory],MATCH(SEMOCycles[[#This Row],[SAPRateCategory]],RateSched[SAPRateCategory],0)) -> SEMO | Q44: =INDEX(RateSched[Region],MATCH(SEMOCycles[[#This Row],[SAPRateCategory]],RateSched[SAPRateCategory],0)) -> SEMO | R44: =INDEX(RateSched[CustClassShort],MATCH(SEMOCycles[[#This Row],[SAPRateCategory]],RateSched[SAPRateCategory],0)) -> Res | S44: =INDEX(RateSched[ProfitCenter],MATCH(SEMOCycles[[#This Row],[SAPRateCategory]],RateSched[SAPRateCategory],0)) -> 10244
A45: =EDATE(SEMOCycles[[#This Row],[MonthBill]],-1) -> 45992 | B45: 46023 | C45: SMGR_RFS | D45: 15 | E45: 9611 | F45: =SUMPRODUCT((MeterReadSch[MonthBill]=SEMOCycles[[#This Row],[MonthBill]])*(MeterReadSch[Cycle]=SEMOCycles[[#This Row],[Cycle]])*MeterReadSch[Begin Bill Period]) -> 46008 | G45: =SUMPRODUCT((MeterReadSch[MonthBill]=SEMOCycles[[#This Row],[MonthBill]])*(MeterReadSch[Cycle]=SEMOCycles[[#This Row],[Cycle]])*MeterReadSch[End Bill Period]) -> 46038 | H45: =IF(SEMOCycles[[#This Row],[CustClass]]="Res",SUMPRODUCT((SEMOTempAct[Date]>=SEMOCycles[[#This Row],[FlowBegin]])*(SEMOTempAct[Date]<=SEMOCycles[[#This Row],[FlowEnd]])*SEMOTempAct[CGIResNHDD65]),SUMPRODUCT((SEMOTempAct[Date]>=SEMOCycles[[#This Row],[FlowBegin]])*(SEMOTempAct[Date]<=SEMOCycles[[#This Row],[FlowEnd]])*SEMOTempAct[CGISGSNHDD60])) -> 878.87 | I45: =IF(SEMOCycles[[#This Row],[CustClass]]="Res",SUMPRODUCT((SEMOTempAct[Date]>=SEMOCycles[[#This Row],[FlowBegin]])*(SEMOTempAct[Date]<=SEMOCycles[[#This Row],[FlowEnd]])*SEMOTempAct[CGIResHDD65]),SUMPRODUCT((SEMOTempAct[Date]>=SEMOCycles[[#This Row],[FlowBegin]])*(SEMOTempAct[Date]<=SEMOCycles[[#This Row],[FlowEnd]])*SEMOTempAct[CGISGSHDD60])) -> 670 | J45: =SEMOCycles[[#This Row],[NHDD]]-SEMOCycles[[#This Row],[AHDD]] -> 208.87 | K45: =SEMOCycles[[#This Row],[NoOfBills]]*SEMOCycles[[#This Row],[HDDDiff]] -> 2007449.57 | L45: =SUMPRODUCT((BetaCoeff[BeginDate]<=SEMOCycles[[#This Row],[FlowBegin]])*(BetaCoeff[EndDate]>=SEMOCycles[[#This Row],[FlowEnd]])*(BetaCoeff[SAPRateCategory]=SEMOCycles[[#This Row],[SAPRateCategory]])*BetaCoeff[BetaCoeff]) -> 0.1408 | M45: =SEMOCycles[[#This Row],[Diff*NoOfBills]]*SEMOCycles[[#This Row],[BetaCoeff]] -> 282648.8995 | N45: =SUMPRODUCT((SEMOCycles[[#This Row],[FlowBegin]]>=VolRates[BeginDate])*(SEMOCycles[[#This Row],[FlowEnd]]<=VolRates[EndDate])*(SEMOCycles[[#This Row],[Region]]=VolRates[Region])*(SEMOCycles[[#This Row],[CustClass]]=VolRates[CustClass])*VolRates[VolRate]) -> 0.31279 | O45: =SEMOCycles[[#This Row],[WNAFactor]]*SEMOCycles[[#This Row],[VolRate]] -> 88409.74926 | P45: =INDEX(RateSched[Territory],MATCH(SEMOCycles[[#This Row],[SAPRateCategory]],RateSched[SAPRateCategory],0)) -> SEMO | Q45: =INDEX(RateSched[Region],MATCH(SEMOCycles[[#This Row],[SAPRateCategory]],RateSched[SAPRateCategory],0)) -> SEMO | R45: =INDEX(RateSched[CustClassShort],MATCH(SEMOCycles[[#This Row],[SAPRateCategory]],RateSched[SAPRateCategory],0)) -> Res | S45: =INDEX(RateSched[ProfitCenter],MATCH(SEMOCycles[[#This Row],[SAPRateCategory]],RateSched[SAPRateCategory],0)) -> 10244
